Workbook

Sheet General
C4: Advantages of District Cooling
C7: Disadvantages of District Cooling
C10: Quatification

Sheet Rate Design
P27: Incremental Cost | R27: 50
P28: Total Cost | R28: 100
C30: Issues: | D30: Distance | P30: New Customer | R30: 100 | S30: Would not join
D31: Density | P31: New Customer | R31: 75 | S31: Would Join
D32: Incremental Cost
D33: Surplus Capacity
Q34: 1 | R34: 2 | S34: 3 | T34: 4 | U34: 5 | V34: 6 | W34: 7 | X34: 8 | Y34: 9 | Z34: 10 | AA34: 11 | AB34: 12 | AC34: 13 | AD34: 14 | AE34: 15 | AF34: 16 | AG34: 17 | AH34: 18 | AI34: 19 | AJ34: 20
N35: Capacity Payments | Q35: 100 | R35: 100 | S35: 100 | T35: 100 | U35: 100 | V35: 100 | W35: 100 | X35: 100 | Y35: 100 | Z35: 100 | AA35: 100 | AB35: 100 | AC35: 100 | AD35: 100 | AE35: 100 | AF35: 100 | AG35: 100 | AH35: 100 | AI35: 100 | AJ35: 100
P37: WACC
N38: Exit Payment | P38: 0.1 | R38: =NPV($P$38,R35:AJ35) -> 836.4920092 | S38: =NPV($P$38,S35:AK35) -> 820.1412101 | T38: 802.1553311 | U38: 782.3708642 | V38: 760.6079506 | W38: 736.6687457 | X38: 710.3356203 | Y38: 681.3691823 | Z38: 649.5061005 | AA38: 614.4567106 | AB38: 575.9023816 | AC38: 533.4926198 | AD38: 486.8418818 | AE38: 435.5260699 | AF38: 379.0786769 | AG38: 316.9865446 | AH38: 248.6851991 | AI38: 173.553719 | AJ38: 90.90909091
N40: Debt Outstanding | Z40: 1500
Z41: 0.3
Z42: =Z40*Z41 -> 450
D44: Time Period | H44: 2022 | I44: 2023 | J44: 2024 | K44: 2025 | L44: 2026 | M44: 2027 | N44: 2028 | O44: 2029 | P44: 2030 | Q44: 2031 | R44: 2032 | S44: 2033 | T44: 2034 | U44: 2035 | V44: 2036 | W44: 2037 | X44: 2038 | Y44: 2039 | Z44: 2040 | AA44: 2041 | AB44: 2042
D46: Revenues
D47: Capacity Payment | I47: 500 | J47: 500 | K47: 500 | L47: 500 | M47: 500 | N47: 500 | O47: 500 | P47: 500 | Q47: 500 | R47: 500 | S47: 500 | T47: 500 | U47: 500 | V47: 500 | W47: 500 | X47: 500 | Y47: 500 | Z47: 500 | AA47: 500 | AB47: 500
D48: Energy Payment | I48: 2000 | J48: =I48*1.02 -> 2040 | K48: =J48*1.02 -> 2080.8 | L48: 2122.416 | M48: 2164.86432 | N48: 2208.161606 | O48: 2252.324839 | P48: 2297.371335 | Q48: 2343.318762 | R48: 2390.185137 | S48: 2437.98884 | T48: 2486.748617 | U48: 2536.483589 | V48: 2587.213261 | W48: 2638.957526 | X48: 2691.736677 | Y48: 2745.57141 | Z48: 2800.482838 | AA48: 2856.492495 | AB48: 2913.622345
D49: Total Revenues | I49: =SUM(I47:I48) -> 2500 | J49: =SUM(J47:J48) -> 2540 | K49: 2580.8 | L49: 2622.416 | M49: 2664.86432 | N49: 2708.161606 | O49: 2752.324839 | P49: 2797.371335 | Q49: 2843.318762 | R49: 2890.185137 | S49: 2937.98884 | T49: 2986.748617 | U49: 3036.483589 | V49: 3087.213261 | W49: 3138.957526 | X49: 3191.736677 | Y49: 3245.57141 | Z49: 3300.482838 | AA49: 3356.492495 | AB49: 3413.622345
D51: Expenses
D52: Payment for On-Peak and Off-Peak | I52: =I48 -> 2000 | J52: =J48 -> 2040 | K52: 2080.8 | L52: 2122.416 | M52: 2164.86432 | N52: 2208.161606 | O52: 2252.324839 | P52: 2297.371335 | Q52: 2343.318762 | R52: 2390.185137 | S52: 2437.98884 | T52: 2486.748617 | U52: 2536.483589 | V52: 2587.213261 | W52: 2638.957526 | X52: 2691.736677 | Y52: 2745.57141 | Z52: 2800.482838 | AA52: 2856.492495 | AB52: 2913.622345
D53: Fixed Expenses | I53: 100 | J53: =I53 -> 100 | K53: =J53 -> 100 | L53: 100 | M53: 100 | N53: 100 | O53: 100 | P53: 100 | Q53: 100 | R53: 100 | S53: 100 | T53: 100 | U53: 100 | V53: 100 | W53: 100 | X53: 100 | Y53: 100 | Z53: 100 | AA53: 100 | AB53: 100
D54: Total Expeses | I54: =SUM(I52:I53) -> 2100 | J54: =SUM(J52:J53) -> 2140 | K54: 2180.8 | L54: 2222.416 | M54: 2264.86432 | N54: 2308.161606 | O54: 2352.324839 | P54: 2397.371335 | Q54: 2443.318762 | R54: 2490.185137 | S54: 2537.98884 | T54: 2586.748617 | U54: 2636.483589 | V54: 2687.213261 | W54: 2738.957526 | X54: 2791.736677 | Y54: 2845.57141 | Z54: 2900.482838 | AA54: 2956.492495 | AB54: 3013.622345
D56: EBITDA | I56: =I49-I54 -> 400 | J56: =J49-J54 -> 400 | K56: 400 | L56: 400 | M56: 400 | N56: 400 | O56: 400 | P56: 400 | Q56: 400 | R56: 400 | S56: 400 | T56: 400 | U56: 400 | V56: 400 | W56: 400 | X56: 400 | Y56: 400 | Z56: 400 | AA56: 400 | AB56: 3000
D57: Capital Allowance | I57: =$H$64/10 -> 350 | J57: =$H$64/10 -> 350 | K57: 350 | L57: 350 | M57: 350 | N57: 350 | O57: 350 | P57: 350 | Q57: 350 | R57: 350
D58: EBIT | I58: =I56-I57 -> 50 | J58: =J56-J57 -> 50 | K58: 50 | L58: 50 | M58: 50 | N58: 50 | O58: 50 | P58: 50 | Q58: 50 | R58: 50 | S58: =S56-S57 -> 400 | T58: =T56-T57 -> 400 | U58: =U56-U57 -> 400 | V58: =V56-V57 -> 400 | W58: =W56-W57 -> 400 | X58: =X56-X57 -> 400 | Y58: =Y56-Y57 -> 400 | Z58: =Z56-Z57 -> 400 | AA58: =AA56-AA57 -> 400 | AB58: =AB56-AB57 -> 3000
D59: Interest Expense | I59: =I74 -> 70 | J59: =J74 -> 67.47029671 | K59: 64.83940529 | L59: 62.10327822 | M59: 59.25770606 | N59: 56.29831101 | O59: 53.22054016 | P59: 50.01965848 | Q59: 46.69074153 | R59: 43.22866791 | S59: 39.62811133 | T59: 35.8835325 | U59: 31.98917051 | V59: 27.93903404 | W59: 23.72689212 | X59: 19.34626451 | Y59: 14.7904118 | Z59: 10.05232499 | AA59: 5.1247147 | AB59: 0
D60: EBT | I60: =I58-I59 -> -20 | J60: =J58-J59 -> -17.47029671 | K60: -14.83940529 | L60: -12.10327822 | M60: -9.257706056 | N60: -6.29831101 | O60: -3.220540163 | P60: -0.01965848088 | Q60: 3.309258468 | R60: 6.771332095 | S60: =S58-S59 -> 360.3718887 | T60: =T58-T59 -> 364.1164675 | U60: =U58-U59 -> 368.0108295 | V60: =V58-V59 -> 372.060966 | W60: =W58-W59 -> 376.2731079 | X60: =X58-X59 -> 380.6537355 | Y60: =Y58-Y59 -> 385.2095882 | Z60: =Z58-Z59 -> 389.947675 | AA60: =AA58-AA59 -> 394.8752853 | AB60: =AB58-AB59 -> 3000
D61: Taxes | H61: 0.25 | I61: =I60*$H$61 -> -5 | J61: =J60*$H$61 -> -4.367574178 | K61: -3.709851323 | L61: -3.025819554 | M61: -2.314426514 | N61: -1.574577753 | O61: -0.8051350406 | P61: -0.00491462022 | Q61: 0.827314617 | R61: 1.692833024 | S61: =S60*$H$61 -> 90.09297217 | T61: =T60*$H$61 -> 91.02911688 | U61: =U60*$H$61 -> 92.00270737 | V61: =V60*$H$61 -> 93.01524149 | W61: =W60*$H$61 -> 94.06827697 | X61: =X60*$H$61 -> 95.16343387 | Y61: =Y60*$H$61 -> 96.30239705 | Z61: =Z60*$H$61 -> 97.48691875 | AA61: =AA60*$H$61 -> 98.71882132 | AB61: =AB60*$H$61 -> 750
D62: Earnings | I62: =I60-I61 -> -15 | J62: =J60-J61 -> -13.10272253 | K62: -11.12955397 | L62: -9.077458662 | M62: -6.943279542 | N62: -4.723733258 | O62: -2.415405122 | P62: -0.01474386066 | Q62: 2.481943851 | R62: 5.078499071 | S62: =S60-S61 -> 270.2789165 | T62: =T60-T61 -> 273.0873506 | U62: =U60-U61 -> 276.0081221 | V62: =V60-V61 -> 279.0457245 | W62: =W60-W61 -> 282.2048309 | X62: =X60-X61 -> 285.4903016 | Y62: =Y60-Y61 -> 288.9071911 | Z62: =Z60-Z61 -> 292.4607563 | AA62: =AA60-AA61 -> 296.156464 | AB62: =AB60-AB61 -> 2250
D64: Capital Expeiture | H64: 3500
D65: Net Cash Flow | H65: =H56-H64 -> -3500 | I65: =I56-I64 -> 400 | J65: 400 | K65: 400 | L65: 400 | M65: 400 | N65: 400 | O65: 400 | P65: 400 | Q65: 400 | R65: 400 | S65: 400 | T65: 400 | U65: 400 | V65: 400 | W65: 400 | X65: 400 | Y65: 400 | Z65: 400 | AA65: 400 | AB65: 3000
D66: Pre-tax Project IRR | H66: =IRR(H65:AB65) -> 0.110294048
D68: Debt | G68: 0.5 | H68: =H64*G68 -> 1750
D69: Total Payment | G69: 19 | H69: 0.04 | I69: =PMT($H$69,$G$69,-$H$68) -> 133.2425822 | J69: =PMT($H$69,$G$69,-$H$68) -> 133.2425822 | K69: 133.2425822 | L69: 133.2425822 | M69: 133.2425822 | N69: 133.2425822 | O69: 133.2425822 | P69: 133.2425822 | Q69: 133.2425822 | R69: 133.2425822 | S69: 133.2425822 | T69: 133.2425822 | U69: 133.2425822 | V69: 133.2425822 | W69: 133.2425822 | X69: 133.2425822 | Y69: 133.2425822 | Z69: 133.2425822 | AA69: 133.2425822 | AB69: 133.2425822
D71: Opening | I71: =H73 -> 1750 | J71: =I73 -> 1686.757418 | K71: 1620.985132 | L71: 1552.581955 | M71: 1481.442651 | N71: 1407.457775 | O71: 1330.513504 | P71: 1250.491462 | Q71: 1167.268538 | R71: 1080.716698 | S71: 990.7027833 | T71: 897.0883125 | U71: =T73 -> 799.7292628 | V71: 698.4758511 | W71: 593.1723029 | X71: 483.6566128 | Y71: 369.7602951 | Z71: 251.3081247 | AA71: 128.1178675 | AB71: 0
D72: Less: Repayment | I72: =I69-I74 -> 63.2425822 | J72: 65.77228549 | K72: 68.40317691 | L72: 71.13930399 | M72: 73.98487615 | N72: 76.94427119 | O72: 80.02204204 | P72: 83.22292372 | Q72: 86.55184067 | R72: 90.0139143 | S72: 93.61447087 | T72: 97.35904971 | U72: =U69-U74 -> 101.2534117 | V72: 105.3035482 | W72: 109.5156901 | X72: 113.8963177 | Y72: 118.4521704 | Z72: 123.1902572 | AA72: 128.1178675 | AB72: 133.2425822
D73: Closing | H73: =H68 -> 1750 | I73: =I71-I72 -> 1686.757418 | J73: =J71-J72 -> 1620.985132 | K73: 1552.581955 | L73: 1481.442651 | M73: 1407.457775 | N73: 1330.513504 | O73: 1250.491462 | P73: 1167.268538 | Q73: 1080.716698 | R73: 990.7027833 | S73: 897.0883125 | T73: 799.7292628 | U73: =U71-U72 -> 698.4758511 | V73: =V71-V72 -> 593.1723029 | W73: =W71-W72 -> 483.6566128 | X73: =X71-X72 -> 369.7602951 | Y73: =Y71-Y72 -> 251.3081247 | Z73: =Z71-Z72 -> 128.1178675 | AA73: =AA71-AA72 -> 0 | AB73: =AB71-AB72 -> -133.2425822
D74: Interest | I74: =I71*$H$69 -> 70 | J74: =J71*$H$69 -> 67.47029671 | K74: 64.83940529 | L74: 62.10327822 | M74: 59.25770606 | N74: 56.29831101 | O74: 53.22054016 | P74: 50.01965848 | Q74: 46.69074153 | R74: 43.22866791 | S74: 39.62811133 | T74: 35.8835325 | U74: =U71*$H$69 -> 31.98917051 | V74: 27.93903404 | W74: 23.72689212 | X74: 19.34626451 | Y74: 14.7904118 | Z74: 10.05232499 | AA74: 5.1247147 | AB74: 0
D76: Equity Cash Flow | H76: =H65+H68 -> -1750 | I76: =I56-I61-I69 -> 271.7574178 | J76: =J56-J61-J69 -> 271.124992 | K76: 270.4672691 | L76: 269.7832374 | M76: 269.0718443 | N76: 268.3319955 | O76: 267.5625528 | P76: 266.7623324 | Q76: 265.9301032 | R76: 265.0645848 | S76: 176.6644456 | T76: 175.7283009 | U76: 174.7547104 | V76: 173.7421763 | W76: 172.6891408 | X76: 171.5939839 | Y76: 170.4550207 | Z76: 169.270499 | AA76: 168.0385965 | AB76: 2116.757418
D77: EIRR | H77: =IRR(H76:AB76) -> 0.1437481911
D79: Equity Capital | H79: =-H76 -> 1750 | I79: =H79+I62-I76 -> 1463.242582 | J79: =I79+J62-J76 -> 1179.014868 | K79: 897.4180446 | L79: 618.5573486 | M79: 342.5422247 | N79: 69.48649594 | O79: -200.491462 | P79: -467.2685383 | Q79: -730.7166976 | R79: -990.7027833 | S79: -897.0883125 | T79: -799.7292628 | U79: -698.4758511 | V79: -593.1723029 | W79: -483.6566128 | X79: -369.7602951 | Y79: -251.3081247 | Z79: -128.1178675 | AA79: -2.842170943e-13 | AB79: 133.2425822
D82: Debt to Capital | H82: =H73/(H79+H73) -> 0.5 | I82: =I73/(I79+I73) -> 0.5354785453 | J82: 0.5789232615 | K82: 0.6337069206 | L82: 0.7054488816 | M82: 0.8042615859 | N82: 0.9503667886 | O82: 1.19094425 | P82: 1.667526483 | Q82: 3.087761993 | T82: -7034492987751651 | U82: -6143858559677802 | V82: -5217598754480999 | W82: -4.254288557e+15 | X82: -3252445951775461 | Y82: -2210529642262564 | Z82: -1126936680369151 | AA82: 0 | AB82: 3.34861185e+14
D83: Equity to Capital
L85: EIRR Lost Profit | O85: =NPV($H$77,O76:AB76) -> 1588.051909 | P85: =NPV($H$77,P76:AC76) -> 1548.768945 | Q85: 1504.639347 | R85: 1454.998428 | S85: 1399.087235 | T85: 1423.539049 | U85: 1452.441911 | V85: 1486.473098 | W85: 1526.408741 | X85: 1573.138095 | Y85: 1627.679867 | Z85: 1691.200882 | AA85: 1765.037451 | AB85: 1850.719795
L86: Debt | O86: =O73 -> 1250.491462 | P86: =P73 -> 1167.268538 | Q86: 1080.716698 | R86: 990.7027833 | S86: 897.0883125 | T86: 799.7292628 | U86: 698.4758511 | V86: 593.1723029 | W86: 483.6566128 | X86: 369.7602951 | Y86: 251.3081247 | Z86: 128.1178675 | AA86: 0 | AB86: -133.2425822
L87: Total | O87: =SUM(O85:O86) -> 2838.543371 | P87: =SUM(P85:P86) -> 2716.037483 | Q87: 2585.356045 | R87: 2445.701211 | S87: 2296.175548 | T87: 2223.268312 | U87: 2150.917762 | V87: 2079.645401 | W87: 2010.065353 | X87: 1942.89839 | Y87: 1878.987991 | Z87: 1819.31875 | AA87: 1765.037451 | AB87: 1717.477213
J92: 1 | K92: 2 | L92: 3 | M92: 4 | N92: 5 | O92: 6 | P92: 7 | Q92: 8 | R92: 9 | S92: 10 | T92: 11 | U92: 12 | V92: 13 | W92: 14 | X92: 15 | Y92: 16 | Z92: 17 | AA92: 18 | AB92: 19 | AC92: 20 | AD92: 21 | AE92: 22 | AF92: 23 | AG92: 24 | AH92: 25 | AI92: 26 | AJ92: 27 | AK92: 28 | AL92: 29 | AM92: 30 | AN92: 31 | AO92: 32 | AP92: 33 | AQ92: 34 | AR92: 35 | AS92: 36 | AT92: 37 | AU92: 38 | AV92: 39 | AW92: 40 | AX92: 41 | AY92: 42 | AZ92: 43 | BA92: 44 | BB92: 45 | BC92: 46 | BD92: 47 | BE92: 48 | BF92: 49 | BG92: 50 | BH92: 51 | BI92: 52 | BJ92: 53 | BK92: 54 | BL92: 55 | BM92: 56 | BN92: 57 | BO92: 58 | BP92: 59 | BQ92: 60 | BR92: 61 | BS92: 62 | BT92: 63 | BU92: 64 | BV92: 65 | BW92: 66 | BX92: 67 | BY92: 68 | BZ92: 69 | CA92: 70 | CB92: 71 | CC92: 72 | CD92: 73 | CE92: 74 | CF92: 75 | CG92: 76 | CH92: 77 | CI92: 78 | CJ92: 79 | CK92: 80 | CL92: 81 | CM92: 82 | CN92: 83 | CO92: 84 | CP92: 85 | CQ92: 86 | CR92: 87 | CS92: 88 | CT92: 89 | CU92: 90 | CV92: 91 | CW92: 92 | CX92: 93 | CY92: 94 | CZ92: 95 | DA92: 96 | DB92: 97 | DC92: 98 | DD92: 99 | DE92: 100
I93: Cash Flow | J93: -800 | K93: 40 | L93: 40 | M93: 40 | N93: 40 | O93: 40 | P93: 40 | Q93: 40 | R93: 40 | S93: 40 | T93: 40 | U93: 40 | V93: 40 | W93: 40 | X93: 40 | Y93: 40 | Z93: 40 | AA93: 40 | AB93: 40 | AC93: 40
I95: =IRR(J93:DE93) -> -0.005077528793

Sheet Diagram Costs
F2: Total Demand | H2: 4 | I2: 750 | J2: 3000 | K2: RT | N2: Is this Max RT/Day | Q2: District cooling cost reduction | T2: ='District Cooling LCOC'!L98 -> 0.08391501779
F3: Peak Demand | I3: =I2*H2 -> 3000 | J3: RT
F4: Annual Demand | I4: ='Storage and Demand'!M27 -> 15710995.43 | J4: RT year
F6: Chiller | I6: Life | J6: 30
F7: Pipeline | G7: ='District Cooling LCOC'!L21 -> 5 | H7: km | I7: Life | J7: 60
R8: =H2*4 -> 16
Q9: Single | R9: Total
P10: Capacity | Q10: 1000 | R10: =Q10*R8 -> 16000
P11: Demand | Q11: 750 | R11: =Q11*R8 -> 12000
P12: Redund | Q12: =Q10/Q11-1 -> 0.3333333333
P15: Square Feet of Space
B20: Life | D20: 40
B22: Storage Capacity | D22: ='Storage and Demand'!N47 -> 9256.074791
B24: Cap Exp | D24: DCS | E24: Conventional | J24: Number | K24: Size | L24: Total | M24: Demand | N24: Redundancy
B25: Chiller Cost | D25: ='District Cooling LCOC'!L35 -> 6277403.552 | E25: ='District Cooling LCOC'!N35 -> 14799630 | H25: Total Capacity | J25: 14 | K25: 250 | L25: =J25*K25 -> 3500 | M25: =J2 -> 3000 | N25: =L25/M25-1 -> 0.1666666667
B26: Pipeline Cost | D26: ='District Cooling LCOC'!L36 -> 5000000
B27: Space Cost | E27: ='District Cooling LCOC'!N37 -> 400000
B28: Storage Cost | D28: ='District Cooling LCOC'!L38 -> 4628000 | K28: DCS | L28: Conventional | N28: Savings | O28: Pct Savings
B29: Total | D29: =SUM(D25:D28) -> 15905403.55 | E29: =SUM(E25:E28) -> 15199630 | I29: Total Cost | K29: ='District Cooling LCOC'!L94 -> 5905651.767 | L29: ='District Cooling LCOC'!N94 -> 6446619.999 | N29: =L29-K29 -> 540968.2318 | O29: =N29/L29 -> 0.08391501779
I30: Cost/RTh | K30: ='District Cooling LCOC'!L96 -> 0.3758929084 | L30: ='District Cooling LCOC'!N96 -> 0.410325369 | N30: =L30-K30 -> 0.03443246064 | O30: =N30/L30 -> 0.08391501779
B31: On-Peak
B32: Off-Peal

Sheet Storage and Demand
L2: Mean | M2: Std Dev | N2: Sum | O2: 1 | P2: 2 | Q2: 3 | R2: 4 | S2: 5 | T2: 6 | U2: 7 | V2: 8 | W2: 9 | X2: 10 | Y2: 11 | Z2: 12 | AA2: 13 | AB2: 14 | AC2: 15 | AD2: 16 | AE2: 17 | AF2: 18 | AG2: 19 | AH2: 20 | AI2: 21 | AJ2: 22 | AK2: 23 | AL2: 24
J3: Demand | K3: =M16 -> 3000 | L3: 12 | M3: 10 | N3: =SUM(O3:AL3) -> 0.7694721864 | O3: =_xlfn.NORM.DIST(O$2,$L3,$M3,0) -> 0.0217852177 | P3: =_xlfn.NORM.DIST(P$2,$L3,$M3,0) -> 0.02419707245 | Q3: 0.02660852499 | R3: 0.02896915528 | S3: 0.03122539334 | T3: 0.03332246029 | U3: 0.03520653268 | V3: 0.03682701403 | W3: 0.03813878155 | X3: 0.0391042694 | Y3: 0.03969525475 | Z3: 0.03989422804 | AA3: 0.03969525475 | AB3: 0.0391042694 | AC3: 0.03813878155 | AD3: 0.03682701403 | AE3: 0.03520653268 | AF3: 0.03332246029 | AG3: 0.03122539334 | AH3: 0.02896915528 | AI3: 0.02660852499 | AJ3: 0.02419707245 | AK3: 0.0217852177 | AL3: 0.0194186055
J4: Storage | K4: =N47 -> 9256.074791 | L4: 12 | M4: 1000 | N4: =SUM(O4:AL4) -> 0.009574384146 | O4: =_xlfn.NORM.DIST(O$2,$L4,$M4,0) -> 0.0003989181451 | P4: 0.0003989223338 | Q4: 0.0003989261236 | R4: 0.0003989295145 | S4: 0.0003989325064 | T4: 0.0003989350995 | U4: 0.0003989372937 | V4: 0.0003989390889 | W4: 0.0003989404852 | X4: 0.0003989414825 | Y4: 0.0003989420809 | Z4: 0.0003989422804 | AA4: 0.0003989420809 | AB4: 0.0003989414825 | AC4: 0.0003989404852 | AD4: 0.0003989390889 | AE4: 0.0003989372937 | AF4: 0.0003989350995 | AG4: 0.0003989325064 | AH4: 0.0003989295145 | AI4: 0.0003989261236 | AJ4: 0.0003989223338 | AK4: 0.0003989181451 | AL4: 0.0003989135576
L5: 12 | M5: 6 | N5: =SUM(O5:AL5) -> 0.9540000526 | O5: 0.01238519393 | P5: 0.01657952313 | Q5: 0.02158626594 | R5: 0.02733501245 | S5: 0.03366644759 | T5: 0.04032845409 | U5: 0.04698531257 | V5: 0.05324133425 | W5: 0.05867755446 | X5: 0.06289720462 | Y5: 0.06557328602 | Z5: 0.06649038007 | AA5: 0.06557328602 | AB5: 0.06289720462 | AC5: 0.05867755446 | AD5: 0.05324133425 | AE5: 0.04698531257 | AF5: 0.04032845409 | AG5: 0.03366644759 | AH5: 0.02733501245 | AI5: 0.02158626594 | AJ5: 0.01657952313 | AK5: 0.01238519393 | AL5: 0.008998494419
L6: 12 | M6: 3 | N6: =SUM(O6:AL6) -> 0.9999269775 | O6: 0.0001600902172 | P6: 0.0005140929988 | Q6: 0.001477282804 | R6: 0.003798662008 | S6: 0.008740629698 | T6: 0.01799698884 | U6: 0.03315904626 | V6: 0.05467002489 | W6: 0.08065690817 | X6: 0.1064826685 | Y6: 0.1257944092 | Z6: 0.1329807601 | AA6: 0.1257944092 | AB6: 0.1064826685 | AC6: 0.08065690817 | AD6: 0.05467002489 | AE6: 0.03315904626 | AF6: 0.01799698884 | AG6: 0.008740629698 | AH6: 0.003798662008 | AI6: 0.001477282804 | AJ6: 0.0005140929988 | AK6: 0.0001600902172 | AL6: 4.461007525e-05
O8: =O2 -> 1 | P8: =P2 -> 2 | Q8: 3 | R8: 4 | S8: 5 | T8: 6 | U8: 7 | V8: 8 | W8: 9 | X8: 10 | Y8: 11 | Z8: 12 | AA8: 13 | AB8: 14 | AC8: 15 | AD8: 16 | AE8: 17 | AF8: 18 | AG8: 19 | AH8: 20 | AI8: 21 | AJ8: 22 | AK8: 23 | AL8: 24
L9: Base Load | O9: =O3/$N$3 -> 0.02831189754 | P9: =P3/$N$3 -> 0.031446325 | Q9: 0.03458022975 | R9: 0.03764808629 | S9: 0.04058027553 | T9: 0.04330560724 | U9: 0.04575413289 | V9: 0.04786009771 | W9: 0.04956486046 | X9: 0.05081960087 | Y9: 0.05158764079 | Z9: 0.05184622491 | AA9: 0.05158764079 | AB9: 0.05081960087 | AC9: 0.04956486046 | AD9: 0.04786009771 | AE9: 0.04575413289 | AF9: 0.04330560724 | AG9: 0.04058027553 | AH9: 0.03764808629 | AI9: 0.03458022975 | AJ9: 0.031446325 | AK9: 0.02831189754 | AL9: 0.02523626694
L10: Flat Load | O10: =O4/$N$4 -> 0.04166514932 | P10: =P4/$N$4 -> 0.04166558681 | Q10: 0.04166598263 | R10: 0.0416663368 | S10: 0.0416666493 | T10: 0.04166692013 | U10: 0.0416671493 | V10: 0.0416673368 | W10: 0.04166748264 | X10: 0.04166758681 | Y10: 0.04166764931 | Z10: 0.04166767014 | AA10: 0.04166764931 | AB10: 0.04166758681 | AC10: 0.04166748264 | AD10: 0.0416673368 | AE10: 0.0416671493 | AF10: 0.04166692013 | AG10: 0.0416666493 | AH10: 0.0416663368 | AI10: 0.04166598263 | AJ10: 0.04166558681 | AK10: 0.04166514932 | AL10: 0.04166467018
L11: More Peak Load | O11: =O5/$N$5 -> 0.01298238286 | P11: =P5/$N$5 -> 0.01737895411 | Q11: 0.0226271119 | R11: 0.0286530513 | S11: 0.03528977541 | T11: 0.04227301034 | U11: 0.04925084903 | V11: 0.0558085234 | W11: 0.06150686711 | X11: 0.06592998024 | Y11: 0.06873509686 | Z11: 0.06969641132 | AA11: 0.06873509686 | AB11: 0.06592998024 | AC11: 0.06150686711 | AD11: 0.0558085234 | AE11: 0.04925084903 | AF11: 0.04227301034 | AG11: 0.03528977541 | AH11: 0.0286530513 | AI11: 0.0226271119 | AJ11: 0.01737895411 | AK11: 0.01298238286 | AL11: 0.009432383567
L12: High Peaking Load | O12: =O6/$N$6 -> 0.0001601019083 | P12: =P6/$N$6 -> 0.0005141305419 | Q12: 0.001477390687 | R12: 0.003798939416 | S12: 0.008741268007 | T12: 0.01799830312 | U12: 0.0331614678 | V12: 0.05467401733 | W12: 0.08066279837 | X12: 0.1064904447 | Y12: 0.1258035957 | Z12: 0.1329904714 | AA12: 0.1258035957 | AB12: 0.1064904447 | AC12: 0.08066279837 | AD12: 0.05467401733 | AE12: 0.0331614678 | AF12: 0.01799830312 | AG12: 0.008741268007 | AH12: 0.003798939416 | AI12: 0.001477390687 | AJ12: 0.0005141305419 | AK12: 0.0001601019083 | AL12: 4.461333303e-05
L14: Code Number | M14: 3
L16: Peak Load | M16: ='Diagram Costs'!I3 -> 3000
L18: =INDEX(L9:L12,$M$14) -> More Peak Load | O18: =INDEX(O9:O12,$M$14) -> 0.01298238286 | P18: =INDEX(P9:P12,$M$14) -> 0.01737895411 | Q18: =INDEX(Q9:Q12,$M$14) -> 0.0226271119 | R18: =INDEX(R9:R12,$M$14) -> 0.0286530513 | S18: =INDEX(S9:S12,$M$14) -> 0.03528977541 | T18: =INDEX(T9:T12,$M$14) -> 0.04227301034 | U18: =INDEX(U9:U12,$M$14) -> 0.04925084903 | V18: =INDEX(V9:V12,$M$14) -> 0.0558085234 | W18: =INDEX(W9:W12,$M$14) -> 0.06150686711 | X18: =INDEX(X9:X12,$M$14) -> 0.06592998024 | Y18: =INDEX(Y9:Y12,$M$14) -> 0.06873509686 | Z18: =INDEX(Z9:Z12,$M$14) -> 0.06969641132 | AA18: =INDEX(AA9:AA12,$M$14) -> 0.06873509686 | AB18: =INDEX(AB9:AB12,$M$14) -> 0.06592998024 | AC18: =INDEX(AC9:AC12,$M$14) -> 0.06150686711 | AD18: =INDEX(AD9:AD12,$M$14) -> 0.0558085234 | AE18: =INDEX(AE9:AE12,$M$14) -> 0.04925084903 | AF18: =INDEX(AF9:AF12,$M$14) -> 0.04227301034 | AG18: =INDEX(AG9:AG12,$M$14) -> 0.03528977541 | AH18: =INDEX(AH9:AH12,$M$14) -> 0.0286530513 | AI18: =INDEX(AI9:AI12,$M$14) -> 0.0226271119 | AJ18: =INDEX(AJ9:AJ12,$M$14) -> 0.01737895411 | AK18: =INDEX(AK9:AK12,$M$14) -> 0.01298238286 | AL18: =INDEX(AL9:AL12,$M$14) -> 0.009432383567
L19: Max Percent | M19: =MAX(O18:AL18) -> 0.06969641132
L20: Factor to Input | M20: =M16/M19 -> 43043.8231 | N20: Pct Red
L21: Average Demand | M21: =AVERAGE(O23:AL23) -> 1793.492629 | N21: =1-M21/M16 -> 0.4021691236
O22: =O8 -> 1 | P22: 2 | Q22: 3 | R22: 4 | S22: 5 | T22: 6 | U22: 7 | V22: 8 | W22: 9 | X22: 10 | Y22: 11 | Z22: 12 | AA22: 13 | AB22: 14 | AC22: 15 | AD22: 16 | AE22: 17 | AF22: 18 | AG22: 19 | AH22: 20 | AI22: 21 | AJ22: 22 | AK22: 23 | AL22: 24
L23: Hourly Demand RT | O23: =O18*$M$20 -> 558.8113911 | P23: =P18*$M$20 -> 748.0566263 | Q23: 973.9574021 | R23: 1233.336872 | S23: 1519.00685 | T23: 1819.591979 | U23: 2119.944834 | V23: 2402.212209 | W23: 2647.490708 | X23: 2837.878407 | Y23: 2958.62135 | Z23: 3000 | AA23: 2958.62135 | AB23: 2837.878407 | AC23: 2647.490708 | AD23: 2402.212209 | AE23: 2119.944834 | AF23: 1819.591979 | AG23: 1519.00685 | AH23: 1233.336872 | AI23: 973.9574021 | AJ23: 748.0566263 | AK23: 558.8113911 | AL23: 406.0058497
L24: Produced After Storage | O24: =$M$21 -> 1793.492629 | P24: 1793.492629 | Q24: 1793.492629 | R24: 1793.492629 | S24: 1793.492629 | T24: 1793.492629 | U24: 1793.492629 | V24: 1793.492629 | W24: 1793.492629 | X24: 1793.492629 | Y24: 1793.492629 | Z24: 1793.492629 | AA24: 1793.492629 | AB24: 1793.492629 | AC24: 1793.492629 | AD24: 1793.492629 | AE24: 1793.492629 | AF24: 1793.492629 | AG24: 1793.492629 | AH24: 1793.492629 | AI24: 1793.492629 | AJ24: 1793.492629 | AK24: 1793.492629 | AL24: 1793.492629
L25: Max Demand (RT) | M25: =MAX(O23:AL23) -> 3000
L26: Daily Demand (RT day) | M26: =SUM(O23:AL23) -> 43043.8231
L27: Daily Demand (RT Year) | M27: =M26*365 -> 15710995.43
L29: Surplus into Storage | M29: RT | O29: =MAX(O24-O23,0) -> 1234.681238 | P29: 1045.436003 | Q29: 819.5352273 | R29: 560.1557578 | S29: 274.4857794 | T29: 0 | U29: 0 | V29: 0 | W29: 0 | X29: 0 | Y29: 0 | Z29: 0 | AA29: 0 | AB29: 0 | AC29: 0 | AD29: 0 | AE29: 0 | AF29: 0 | AG29: 274.4857794 | AH29: 560.1557578 | AI29: 819.5352273 | AJ29: 1045.436003 | AK29: 1234.681238 | AL29: 1387.48678
L30: Withdrawl from Storage | M30: RT | O30: =MAX(O23-O24,0) -> 0 | P30: 0 | Q30: 0 | R30: 0 | S30: 0 | T30: 26.09934981 | U30: 326.4522042 | V30: 608.7195794 | W30: 853.9980784 | X30: 1044.385777 | Y30: 1165.128721 | Z30: 1206.507371 | AA30: 1165.128721 | AB30: 1044.385777 | AC30: 853.9980784 | AD30: 608.7195794 | AE30: 326.4522042 | AF30: 26.09934981 | AG30: 0 | AH30: 0 | AI30: 0 | AJ30: 0 | AK30: 0 | AL30: 0
L32: Start of Storage | O32: =AND(O30=0,N30<>0) -> FALSE | P32: =AND(P30=0,O30<>0) -> FALSE | Q32: FALSE | R32: FALSE | S32: FALSE | T32: FALSE | U32: FALSE | V32: FALSE | W32: FALSE | X32: FALSE | Y32: FALSE | Z32: FALSE | AA32: FALSE | AB32: FALSE | AC32: FALSE | AD32: FALSE | AE32: FALSE | AF32: FALSE | AG32: TRUE | AH32: FALSE | AI32: FALSE | AJ32: FALSE | AK32: FALSE | AL32: FALSE
L33: Column | N33: =MATCH(TRUE,32:32,0) -> 33 | O33: =COLUMN() -> 15 | AE33: =COLUMN(AE33) -> 31 | AL33: =COLUMN() -> 38
L34: Max Column | N34: =AL33 -> 38
L35: Start Column | N35: =O33 -> 15
L36: Counter | O36: =N33 -> 33 | P36: =IF(O36=$N$34,$N$35,O36+1) -> 34 | Q36: 35 | R36: 36 | S36: 37 | T36: 38 | U36: 15 | V36: 16 | W36: 17 | X36: 18 | Y36: 19 | Z36: 20 | AA36: 21 | AB36: 22 | AC36: 23 | AD36: 24 | AE36: 25 | AF36: =IF(AE36=AD267,AD277,AE36+1) -> 26 | AG36: 27 | AH36: 28 | AI36: 29 | AJ36: 30 | AK36: 31 | AL36: 32
L38: Demand | M38: RT | O38: =INDEX(23:23,O36) -> 1519.00685 | P38: =INDEX(23:23,P36) -> 1233.336872 | Q38: =INDEX(23:23,Q36) -> 973.9574021 | R38: =INDEX(23:23,R36) -> 748.0566263 | S38: =INDEX(23:23,S36) -> 558.8113911 | T38: =INDEX(23:23,T36) -> 406.0058497 | U38: =INDEX(23:23,U36) -> 558.8113911 | V38: =INDEX(23:23,V36) -> 748.0566263 | W38: =INDEX(23:23,W36) -> 973.9574021 | X38: =INDEX(23:23,X36) -> 1233.336872 | Y38: =INDEX(23:23,Y36) -> 1519.00685 | Z38: =INDEX(23:23,Z36) -> 1819.591979 | AA38: =INDEX(23:23,AA36) -> 2119.944834 | AB38: =INDEX(23:23,AB36) -> 2402.212209 | AC38: =INDEX(23:23,AC36) -> 2647.490708 | AD38: =INDEX(23:23,AD36) -> 2837.878407 | AE38: =INDEX(23:23,AE36) -> 2958.62135 | AF38: =INDEX(23:23,AF36) -> 3000 | AG38: =INDEX(23:23,AG36) -> 2958.62135 | AH38: =INDEX(23:23,AH36) -> 2837.878407 | AI38: =INDEX(23:23,AI36) -> 2647.490708 | AJ38: =INDEX(23:23,AJ36) -> 2402.212209 | AK38: =INDEX(23:23,AK36) -> 2119.944834 | AL38: =INDEX(23:23,AL36) -> 1819.591979
L39: Stored | M39: RT | O39: =INDEX(29:29,O36) -> 274.4857794 | P39: =INDEX(29:29,P36) -> 560.1557578 | Q39: =INDEX(29:29,Q36) -> 819.5352273 | R39: =INDEX(29:29,R36) -> 1045.436003 | S39: =INDEX(29:29,S36) -> 1234.681238 | T39: =INDEX(29:29,T36) -> 1387.48678 | U39: =INDEX(29:29,U36) -> 1234.681238 | V39: =INDEX(29:29,V36) -> 1045.436003 | W39: =INDEX(29:29,W36) -> 819.5352273 | X39: =INDEX(29:29,X36) -> 560.1557578 | Y39: =INDEX(29:29,Y36) -> 274.4857794 | Z39: =INDEX(29:29,Z36) -> 0 | AA39: =INDEX(29:29,AA36) -> 0 | AB39: =INDEX(29:29,AB36) -> 0 | AC39: =INDEX(29:29,AC36) -> 0 | AD39: =INDEX(29:29,AD36) -> 0 | AE39: =INDEX(29:29,AE36) -> 0 | AF39: =INDEX(29:29,AF36) -> 0 | AG39: =INDEX(29:29,AG36) -> 0 | AH39: =INDEX(29:29,AH36) -> 0 | AI39: =INDEX(29:29,AI36) -> 0 | AJ39: =INDEX(29:29,AJ36) -> 0 | AK39: =INDEX(29:29,AK36) -> 0 | AL39: =INDEX(29:29,AL36) -> 0
L40: Withdrawl | M40: RT | O40: =INDEX(30:30,O36) -> 0 | P40: =INDEX(30:30,P36) -> 0 | Q40: =INDEX(30:30,Q36) -> 0 | R40: =INDEX(30:30,R36) -> 0 | S40: =INDEX(30:30,S36) -> 0 | T40: =INDEX(30:30,T36) -> 0 | U40: =INDEX(30:30,U36) -> 0 | V40: =INDEX(30:30,V36) -> 0 | W40: =INDEX(30:30,W36) -> 0 | X40: =INDEX(30:30,X36) -> 0 | Y40: =INDEX(30:30,Y36) -> 0 | Z40: =INDEX(30:30,Z36) -> 26.09934981 | AA40: =INDEX(30:30,AA36) -> 326.4522042 | AB40: =INDEX(30:30,AB36) -> 608.7195794 | AC40: =INDEX(30:30,AC36) -> 853.9980784 | AD40: =INDEX(30:30,AD36) -> 1044.385777 | AE40: =INDEX(30:30,AE36) -> 1165.128721 | AF40: =INDEX(30:30,AF36) -> 1206.507371 | AG40: =INDEX(30:30,AG36) -> 1165.128721 | AH40: =INDEX(30:30,AH36) -> 1044.385777 | AI40: =INDEX(30:30,AI36) -> 853.9980784 | AJ40: =INDEX(30:30,AJ36) -> 608.7195794 | AK40: =INDEX(30:30,AK36) -> 326.4522042 | AL40: =INDEX(30:30,AL36) -> 26.09934981
L42: Opening Balance | M42: RTh | O42: =N45 -> 0 | P42: =O45 -> 274.4857794 | Q42: 834.6415372 | R42: 1654.176764 | S42: 2699.612767 | T42: 3934.294006 | U42: 5321.780785 | V42: 6556.462024 | W42: 7601.898027 | X42: 8421.433254 | Y42: 8981.589012 | Z42: 9256.074791 | AA42: 9229.975441 | AB42: 8903.523237 | AC42: 8294.803658 | AD42: 7440.805579 | AE42: 6396.419802 | AF42: 5231.291081 | AG42: 4024.78371 | AH42: 2859.654989 | AI42: 1815.269212 | AJ42: 961.2711335 | AK42: 352.551554 | AL42: 26.09934981
L43: Add: Stored | M43: RT | O43: =O39 -> 274.4857794 | P43: =P39 -> 560.1557578 | Q43: 819.5352273 | R43: 1045.436003 | S43: 1234.681238 | T43: 1387.48678 | U43: 1234.681238 | V43: 1045.436003 | W43: 819.5352273 | X43: 560.1557578 | Y43: 274.4857794 | Z43: 0 | AA43: 0 | AB43: 0 | AC43: 0 | AD43: 0 | AE43: 0 | AF43: 0 | AG43: 0 | AH43: 0 | AI43: 0 | AJ43: 0 | AK43: 0 | AL43: 0
L44: Less: Withdrawl | M44: RT | O44: =O40 -> 0 | P44: =P40 -> 0 | Q44: 0 | R44: 0 | S44: 0 | T44: 0 | U44: 0 | V44: 0 | W44: 0 | X44: 0 | Y44: 0 | Z44: 26.09934981 | AA44: 326.4522042 | AB44: 608.7195794 | AC44: 853.9980784 | AD44: 1044.385777 | AE44: 1165.128721 | AF44: 1206.507371 | AG44: 1165.128721 | AH44: 1044.385777 | AI44: 853.9980784 | AJ44: 608.7195794 | AK44: 326.4522042 | AL44: 26.09934981
L45: Closing | M45: Rth | O45: =O42+O43-O44 -> 274.4857794 | P45: =P42+P43-P44 -> 834.6415372 | Q45: 1654.176764 | R45: 2699.612767 | S45: 3934.294006 | T45: 5321.780785 | U45: 6556.462024 | V45: 7601.898027 | W45: 8421.433254 | X45: 8981.589012 | Y45: 9256.074791 | Z45: 9229.975441 | AA45: 8903.523237 | AB45: 8294.803658 | AC45: 7440.805579 | AD45: 6396.419802 | AE45: 5231.291081 | AF45: 4024.78371 | AG45: 2859.654989 | AH45: 1815.269212 | AI45: 961.2711335 | AJ45: 352.551554 | AK45: 26.09934981 | AL45: -1.136868377e-12
L47: Total Storage | M47: Rth | N47: =MAX(O45:AL45) -> 9256.074791
L48: Max Demand without Storage | N48: =MAX(O23:AL23) -> 3000
L49: Max Demand with Storage | N49: =M21 -> 1793.492629
L51: Capacity Reduction from Storage | N51: =1-N49/N48 -> 0.4021691236
L54: On-Peak and Off-Peak with Storage | O54: =O22 -> 1 | P54: =P22 -> 2 | Q54: 3 | R54: 4 | S54: 5 | T54: 6 | U54: 7 | V54: 8 | W54: 9 | X54: 10 | Y54: 11 | Z54: 12 | AA54: 13 | AB54: 14 | AC54: 15 | AD54: 16 | AE54: 17 | AF54: 18 | AG54: 19 | AH54: 20 | AI54: 21 | AJ54: 22 | AK54: 23 | AL54: 24
L55: On-Peak | M55: 8 | N55: 20 | O55: =AND(O54>=$M$55,O54<=$N$55) -> FALSE | P55: =AND(P54>=$M$55,P54<=$N$55) -> FALSE | Q55: FALSE | R55: FALSE | S55: FALSE | T55: FALSE | U55: FALSE | V55: TRUE | W55: TRUE | X55: TRUE | Y55: TRUE | Z55: TRUE | AA55: TRUE | AB55: TRUE | AC55: TRUE | AD55: TRUE | AE55: TRUE | AF55: TRUE | AG55: TRUE | AH55: TRUE | AI55: FALSE | AJ55: FALSE | AK55: FALSE | AL55: FALSE
L56: Total Production | M56: =SUM(O56:AL56) -> 43043.8231 | O56: =O24 -> 1793.492629 | P56: =P24 -> 1793.492629 | Q56: 1793.492629 | R56: 1793.492629 | S56: 1793.492629 | T56: 1793.492629 | U56: 1793.492629 | V56: 1793.492629 | W56: 1793.492629 | X56: 1793.492629 | Y56: 1793.492629 | Z56: 1793.492629 | AA56: 1793.492629 | AB56: 1793.492629 | AC56: 1793.492629 | AD56: 1793.492629 | AE56: 1793.492629 | AF56: 1793.492629 | AG56: 1793.492629 | AH56: 1793.492629 | AI56: 1793.492629 | AJ56: 1793.492629 | AK56: 1793.492629 | AL56: 1793.492629
L57: On-Peak Production | M57: =SUM(O57:AL57) -> 23315.40418 | O57: =O56*O55 -> 0 | P57: =P56*P55 -> 0 | Q57: 0 | R57: 0 | S57: 0 | T57: 0 | U57: 0 | V57: 1793.492629 | W57: 1793.492629 | X57: 1793.492629 | Y57: 1793.492629 | Z57: 1793.492629 | AA57: 1793.492629 | AB57: 1793.492629 | AC57: 1793.492629 | AD57: 1793.492629 | AE57: 1793.492629 | AF57: 1793.492629 | AG57: 1793.492629 | AH57: 1793.492629 | AI57: 0 | AJ57: 0 | AK57: 0 | AL57: 0
L58: Off-Peak Production | M58: =SUM(O58:AL58) -> 19728.41892 | O58: =O56-O57 -> 1793.492629 | P58: =P56-P57 -> 1793.492629 | Q58: 1793.492629 | R58: 1793.492629 | S58: 1793.492629 | T58: 1793.492629 | U58: 1793.492629 | V58: 0 | W58: 0 | X58: 0 | Y58: 0 | Z58: 0 | AA58: 0 | AB58: 0 | AC58: 0 | AD58: 0 | AE58: 0 | AF58: 0 | AG58: 0 | AH58: 0 | AI58: 1793.492629 | AJ58: 1793.492629 | AK58: 1793.492629 | AL58: 1793.492629
L60: On-Peak Percent | M60: =M57/M56 -> 0.5416666667
L61: Off-Peak Percent | M61: =M58/M56 -> 0.4583333333
L64: On-Peak and Off-Peak without Storage
L65: Total Production | M65: =SUM(O65:AL65) -> 43043.8231 | O65: =O23 -> 558.8113911 | P65: =P23 -> 748.0566263 | Q65: 973.9574021 | R65: 1233.336872 | S65: 1519.00685 | T65: 1819.591979 | U65: 2119.944834 | V65: 2402.212209 | W65: 2647.490708 | X65: 2837.878407 | Y65: 2958.62135 | Z65: 3000 | AA65: 2958.62135 | AB65: 2837.878407 | AC65: 2647.490708 | AD65: 2402.212209 | AE65: 2119.944834 | AF65: 1819.591979 | AG65: 1519.00685 | AH65: 1233.336872 | AI65: 973.9574021 | AJ65: 748.0566263 | AK65: 558.8113911 | AL65: 406.0058497
L66: On-Peak Production | M66: =SUM(O66:AL66) -> 31384.28588 | O66: =O65*O55 -> 0 | P66: =P65*P55 -> 0 | Q66: 0 | R66: 0 | S66: 0 | T66: 0 | U66: 0 | V66: 2402.212209 | W66: 2647.490708 | X66: 2837.878407 | Y66: 2958.62135 | Z66: 3000 | AA66: 2958.62135 | AB66: 2837.878407 | AC66: 2647.490708 | AD66: 2402.212209 | AE66: 2119.944834 | AF66: 1819.591979 | AG66: 1519.00685 | AH66: 1233.336872 | AI66: 0 | AJ66: 0 | AK66: 0 | AL66: 0
L67: Off-Peak Production | M67: =SUM(O67:AL67) -> 11659.53722 | O67: =O65-O66 -> 558.8113911 | P67: =P65-P66 -> 748.0566263 | Q67: 973.9574021 | R67: 1233.336872 | S67: 1519.00685 | T67: 1819.591979 | U67: 2119.944834 | V67: 0 | W67: 0 | X67: 0 | Y67: 0 | Z67: 0 | AA67: 0 | AB67: 0 | AC67: 0 | AD67: 0 | AE67: 0 | AF67: 0 | AG67: 0 | AH67: 0 | AI67: 973.9574021 | AJ67: 748.0566263 | AK67: 558.8113911 | AL67: 406.0058497
L70: On-Peak Percent | M70: =M66/M65 -> 0.7291240326
L71: Off-Peak Percent | M71: =M67/M65 -> 0.2708759674

Sheet Performance
G3: 0 | H3: 1 | I3: 2 | J3: 3 | K3: 4 | L3: 5 | M3: 6 | N3: 7 | O3: 8 | P3: 9 | Q3: 10 | R3: 11 | S3: 12 | T3: 13 | U3: 14 | V3: 15 | W3: 16 | X3: 17 | Y3: 18 | Z3: 19 | AA3: 20 | AB3: 21 | AC3: 22 | AD3: 23 | AE3: 24 | AF3: 25
B5: Original FM
E6: Revenues Base Case | H6: 200 | I6: 200 | J6: 200 | K6: 200 | L6: 200 | M6: 200 | N6: 200 | O6: 200 | P6: 200 | Q6: 200 | R6: 200 | S6: 200 | T6: 200 | U6: 200 | V6: 200 | W6: 200 | X6: 200 | Y6: 200 | Z6: 200 | AA6: 200 | AB6: 200 | AC6: 200 | AD6: 200 | AE6: 200 | AF6: 200
E7: Operating Expenses | H7: =H6*0.6 -> 120 | I7: =I6*0.6 -> 120 | J7: 120 | K7: 120 | L7: 120 | M7: 120 | N7: 120 | O7: 120 | P7: 120 | Q7: 120 | R7: 120 | S7: 120 | T7: 120 | U7: 120 | V7: 120 | W7: 120 | X7: 120 | Y7: 120 | Z7: 120 | AA7: 120 | AB7: 120 | AC7: 120 | AD7: 120 | AE7: 120 | AF7: 120
E8: EBITDA | H8: =H6-H7 -> 80 | I8: =I6-I7 -> 80 | J8: 80 | K8: 80 | L8: 80 | M8: 80 | N8: 80 | O8: 80 | P8: 80 | Q8: 80 | R8: 80 | S8: 80 | T8: 80 | U8: 80 | V8: 80 | W8: 80 | X8: 80 | Y8: 80 | Z8: 80 | AA8: 80 | AB8: 80 | AC8: 80 | AD8: 80 | AE8: 80 | AF8: 80
E9: Capital Expenditures | G9: 900
E10: Cash Flow | G10: =G8-G9 -> -900 | H10: =H8-H9 -> 80 | I10: 80 | J10: 80 | K10: 80 | L10: 80 | M10: 80 | N10: 80 | O10: 80 | P10: 80 | Q10: 80 | R10: 80 | S10: 80 | T10: 80 | U10: 80 | V10: 80 | W10: 80 | X10: 80 | Y10: 80 | Z10: 80 | AA10: 80 | AB10: 80 | AC10: 80 | AD10: 80 | AE10: 80 | AF10: 80
E11: Project IRR | G11: =IRR(G10:AF10) -> 0.07395381634
E13: Value of Project | G13: =NPV($G$11,H10:AF10) -> 899.9999999 | H13: =NPV($G$11,I10:AG10) -> 886.5584346 | I13: =NPV($G$11,J10:AH10) -> 872.1228143 | J13: =NPV($G$11,K10:AI10) -> 856.6196247 | K13: 839.9699151 | L13: 822.0888959 | M13: 802.8855071 | N13: 782.2619545 | O13: 760.1132114 | P13: 736.3264842 | Q13: 710.7806378 | R13: 683.3455785 | S13: 653.8815919 | T13: 622.2386311 | U13: 588.2555525 | V13: 551.7592956 | W13: 512.5640012 | X13: 470.4700652 | Y13: 425.263122 | Z13: 376.7129528 | AA13: 324.5723134 | AB13: 268.5756746 | AC13: 208.4378707 | AD13: 143.8526467 | AE13: 74.49109895 | AF13: 0
E14: Economic Depreciation | H14: =G13-H13 -> 13.4415653 | I14: =H13-I13 -> 14.43562035 | J14: 15.50318957 | K14: 16.64970961 | L14: 17.88101917 | M14: 19.20338878 | N14: 20.62355267 | O14: 22.14874309 | P14: 23.78672717 | Q14: 25.54584642 | R14: 27.43505926 | S14: 29.46398659 | T14: 31.64296084 | U14: 33.98307856 | V14: 36.49625691 | W14: 39.19529439 | X14: 42.09393599 | Y14: 45.2069432 | Z14: 48.55016918 | AA14: 52.14063947 | AB14: 55.99663875 | AC14: 60.13780389 | AD14: 64.58522399 | AE14: 69.36154778 | AF14: 74.49109895
E15: EBIT | H15: =H8-H14 -> 66.5584347 | I15: =I10-I14 -> 65.56437965 | J15: 64.49681043 | K15: 63.35029039 | L15: 62.11898083 | M15: 60.79661122 | N15: 59.37644733 | O15: 57.85125691 | P15: 56.21327283 | Q15: 54.45415358 | R15: 52.56494074 | S15: 50.53601341 | T15: 48.35703916 | U15: 46.01692144 | V15: 43.50374309 | W15: 40.80470561 | X15: 37.90606401 | Y15: 34.7930568 | Z15: 31.44983082 | AA15: 27.85936053 | AB15: 24.00336125 | AC15: 19.86219611 | AD15: 15.41477601 | AE15: 10.63845222 | AF15: 5.50890105
E17: Economic ROIC | H17: =H15/G13 -> 0.07395381634 | I17: =I15/H13 -> 0.07395381634 | J17: 0.07395381634 | K17: 0.07395381634 | L17: 0.07395381634 | M17: 0.07395381634 | N17: 0.07395381634 | O17: 0.07395381634 | P17: 0.07395381634 | Q17: 0.07395381634 | R17: 0.07395381634 | S17: 0.07395381634 | T17: 0.07395381634 | U17: 0.07395381634 | V17: 0.07395381634 | W17: 0.07395381634 | X17: 0.07395381634 | Y17: 0.07395381634 | Z17: 0.07395381634 | AA17: 0.07395381634 | AB17: 0.07395381634 | AC17: 0.07395381634 | AD17: 0.07395381634 | AE17: 0.07395381634 | AF17: 0.07395381634
E19: SL Depreciation | G19: =G13 -> 899.9999999 | H19: =$G$19/25 -> 36 | I19: =$G$19/25 -> 36 | J19: 36 | K19: 36 | L19: 36 | M19: 36 | N19: 36 | O19: 36 | P19: 36 | Q19: 36 | R19: 36 | S19: 36 | T19: 36 | U19: 36 | V19: 36 | W19: 36 | X19: 36 | Y19: 36 | Z19: 36 | AA19: 36 | AB19: 36 | AC19: 36 | AD19: 36 | AE19: 36 | AF19: 36
E20: Accumulated Depreciation | H20: =G20+H19 -> 36 | I20: =H20+I19 -> 71.99999999 | J20: 108 | K20: 144 | L20: 180 | M20: 216 | N20: 252 | O20: 288 | P20: 324 | Q20: 360 | R20: 396 | S20: 432 | T20: 468 | U20: 503.9999999 | V20: 539.9999999 | W20: 575.9999999 | X20: 611.9999999 | Y20: 647.9999999 | Z20: 683.9999999 | AA20: 719.9999999 | AB20: 755.9999999 | AC20: 791.9999999 | AD20: 827.9999999 | AE20: 863.9999999 | AF20: 899.9999999
E21: Net Plant | G21: =$G$19-G20 -> 899.9999999 | H21: =$G$19-H20 -> 863.9999999 | I21: =$G$19-I20 -> 827.9999999 | J21: 791.9999999 | K21: 755.9999999 | L21: 719.9999999 | M21: 683.9999999 | N21: 647.9999999 | O21: 611.9999999 | P21: 575.9999999 | Q21: 539.9999999 | R21: 503.9999999 | S21: 468 | T21: 432 | U21: 396 | V21: 360 | W21: 324 | X21: 288 | Y21: 252 | Z21: 216 | AA21: 180 | AB21: 144 | AC21: 108 | AD21: 71.99999999 | AE21: 36 | AF21: 0
E22: Econmic Value | G22: =G21 -> 899.9999999 | H22: =H13 -> 886.5584346 | I22: =I13 -> 872.1228143 | J22: 856.6196247 | K22: 839.9699151 | L22: 822.0888959 | M22: 802.8855071 | N22: 782.2619545 | O22: 760.1132114 | P22: 736.3264842 | Q22: 710.7806378 | R22: 683.3455785 | S22: 653.8815919 | T22: 622.2386311 | U22: 588.2555525 | V22: 551.7592956 | W22: 512.5640012 | X22: 470.4700652 | Y22: 425.263122 | Z22: 376.7129528 | AA22: 324.5723134 | AB22: 268.5756746 | AC22: 208.4378707 | AD22: 143.8526467 | AE22: 74.49109895 | AF22: 0
E24: EBIT | H24: =H8-H19 -> 44 | I24: =I8-I19 -> 44 | J24: 44 | K24: 44 | L24: 44 | M24: 44 | N24: 44 | O24: 44 | P24: 44 | Q24: 44 | R24: 44 | S24: 44 | T24: 44 | U24: 44 | V24: 44 | W24: 44 | X24: 44 | Y24: 44 | Z24: 44 | AA24: 44 | AB24: 44 | AC24: 44 | AD24: 44 | AE24: 44 | AF24: 44
E25: ROIC | F25: =AVERAGE(H25:AF25) -> 0.1104171651 | H25: =H24/G22 -> 0.0488888889 | I25: =I24/H22 -> 0.04963011832 | J25: 0.05045160989 | K25: 0.05136468829 | L25: 0.0523828285 | M25: 0.05352219234 | N25: 0.05480233435 | O25: 0.05624714298 | P25: 0.057886114 | Q25: 0.05975610133 | R25: 0.06190376843 | S25: 0.06438909007 | T25: 0.06729047055 | U25: 0.07071242094 | V25: 0.07479742404 | W25: 0.0797449184 | X25: 0.08584293844 | Y25: 0.09352348482 | Z25: 0.1034653553 | AA25: 0.1167998065 | AB25: 0.1355630107 | AC25: 0.1638271972 | AD25: 0.2110940773 | AE25: 0.3058685468 | AF25: 0.590674599
B28: Bad Performance in Year 2
E29: Revenues Base Case | H29: =H6 -> 200 | I29: 120 | J29: 120 | K29: =K6 -> 200 | L29: 200 | M29: 200 | N29: 200 | O29: 200 | P29: 200 | Q29: 200 | R29: 200 | S29: 200 | T29: 200 | U29: 200 | V29: 200 | W29: 200 | X29: 200 | Y29: 200 | Z29: 200 | AA29: 200 | AB29: 200 | AC29: 200 | AD29: 200 | AE29: 200 | AF29: 200
E30: Operating Expenses | H30: =H29*0.6 -> 120 | I30: =I29*0.6 -> 72 | J30: 72 | K30: 120 | L30: 120 | M30: 120 | N30: 120 | O30: 120 | P30: 120 | Q30: 120 | R30: 120 | S30: 120 | T30: 120 | U30: 120 | V30: 120 | W30: 120 | X30: 120 | Y30: 120 | Z30: 120 | AA30: 120 | AB30: 120 | AC30: 120 | AD30: 120 | AE30: 120 | AF30: 120
E31: EBITDA | H31: =H29-H30 -> 80 | I31: =I29-I30 -> 48 | J31: 48 | K31: 80 | L31: 80 | M31: 80 | N31: 80 | O31: 80 | P31: 80 | Q31: 80 | R31: 80 | S31: 80 | T31: 80 | U31: 80 | V31: 80 | W31: 80 | X31: 80 | Y31: 80 | Z31: 80 | AA31: 80 | AB31: 80 | AC31: 80 | AD31: 80 | AE31: 80 | AF31: 80
E32: Capital Expenditures | G32: =G9 -> 900
E33: Cash Flow | G33: =G31-G32 -> -900 | H33: =H31-H32 -> 80 | I33: 48 | J33: 48 | K33: 80 | L33: 80 | M33: 80 | N33: 80 | O33: 80 | P33: 80 | Q33: 80 | R33: 80 | S33: 80 | T33: 80 | U33: 80 | V33: 80 | W33: 80 | X33: 80 | Y33: 80 | Z33: 80 | AA33: 80 | AB33: 80 | AC33: 80 | AD33: 80 | AE33: 80 | AF33: 80
E34: Project IRR | G34: =IRR(G33:AF33) -> 0.06741593202
E36: Economic Depreciation | H36: =H14 -> 13.4415653 | I36: =I14 -> 14.43562035 | J36: 15.50318957 | K36: 16.64970961 | L36: 17.88101917 | M36: 19.20338878 | N36: 20.62355267 | O36: 22.14874309 | P36: 23.78672717 | Q36: 25.54584642 | R36: 27.43505926 | S36: 29.46398659 | T36: 31.64296084 | U36: 33.98307856 | V36: 36.49625691 | W36: 39.19529439 | X36: 42.09393599 | Y36: 45.2069432 | Z36: 48.55016918 | AA36: 52.14063947 | AB36: 55.99663875 | AC36: 60.13780389 | AD36: 64.58522399 | AE36: 69.36154778 | AF36: 74.49109895
E37: EBIT | H37: =H31-H36 -> 66.5584347 | I37: =I31-I36 -> 33.56437965 | J37: 32.49681043 | K37: 63.35029039 | L37: 62.11898083 | M37: 60.79661122 | N37: 59.37644733 | O37: 57.85125691 | P37: 56.21327283 | Q37: 54.45415358 | R37: 52.56494074 | S37: 50.53601341 | T37: 48.35703916 | U37: 46.01692144 | V37: 43.50374309 | W37: 40.80470561 | X37: 37.90606401 | Y37: 34.7930568 | Z37: 31.44983082 | AA37: 27.85936053 | AB37: 24.00336125 | AC37: 19.86219611 | AD37: 15.41477601 | AE37: 10.63845222 | AF37: 5.50890105
E39: Economic ROIC | H39: =H37/G13 -> 0.07395381634 | I39: =I37/H13 -> 0.03785918484 | J39: =J37/I13 -> 0.03726173642 | K39: 0.07395381634 | L39: 0.07395381634 | M39: 0.07395381634 | N39: 0.07395381634 | O39: 0.07395381634 | P39: 0.07395381634 | Q39: 0.07395381634 | R39: 0.07395381634 | S39: 0.07395381634 | T39: 0.07395381634 | U39: 0.07395381634 | V39: 0.07395381634 | W39: 0.07395381634 | X39: 0.07395381634 | Y39: 0.07395381634 | Z39: 0.07395381634 | AA39: 0.07395381634 | AB39: 0.07395381634 | AC39: 0.07395381634 | AD39: 0.07395381634 | AE39: 0.07395381634 | AF39: 0.07395381634
E41: SL Depreciation | H41: =H19 -> 36 | I41: =I19 -> 36 | J41: 36 | K41: 36 | L41: 36 | M41: 36 | N41: 36 | O41: 36 | P41: 36 | Q41: 36 | R41: 36 | S41: 36 | T41: 36 | U41: 36 | V41: 36 | W41: 36 | X41: 36 | Y41: 36 | Z41: 36 | AA41: 36 | AB41: 36 | AC41: 36 | AD41: 36 | AE41: 36 | AF41: 36
E42: Net Plant | G42: =G21 -> 899.9999999 | H42: =H21 -> 863.9999999 | I42: 827.9999999 | J42: 791.9999999 | K42: 755.9999999 | L42: 719.9999999 | M42: 683.9999999 | N42: 647.9999999 | O42: 611.9999999 | P42: 575.9999999 | Q42: 539.9999999 | R42: 503.9999999 | S42: 468 | T42: 432 | U42: 396 | V42: 360 | W42: 324 | X42: 288 | Y42: 252 | Z42: 216 | AA42: 180 | AB42: 144 | AC42: 108 | AD42: 71.99999999 | AE42: 36 | AF42: 0
E44: EBIT | H44: =H31-H41 -> 44 | I44: =I31-I41 -> 12 | J44: 12 | K44: 44 | L44: 44 | M44: 44 | N44: 44 | O44: 44 | P44: 44 | Q44: 44 | R44: 44 | S44: 44 | T44: 44 | U44: 44 | V44: 44 | W44: 44 | X44: 44 | Y44: 44 | Z44: 44 | AA44: 44 | AB44: 44 | AC44: 44 | AD44: 44 | AE44: 44 | AF44: 44
E45: ROIC | H45: =H44/G42 -> 0.0488888889 | I45: =I44/H42 -> 0.01388888889 | J45: =J44/I42 -> 0.01449275363 | K45: 0.05555555557 | L45: 0.05820105821 | M45: 0.06111111112 | N45: 0.06432748539 | O45: 0.06790123458 | P45: 0.07189542485 | Q45: 0.0763888889 | R45: 0.0814814815 | S45: 0.08730158732 | T45: 0.09401709403 | U45: 0.1018518519 | V45: 0.1111111111 | W45: 0.1222222222 | X45: 0.1358024692 | Y45: 0.1527777778 | Z45: 0.1746031746 | AA45: 0.2037037037 | AB45: 0.2444444445 | AC45: 0.3055555556 | AD45: 0.4074074075 | AE45: 0.6111111112 | AF45: 1.222222222
B48: Bad Performance in Year 20
E49: Revenues Base Case | H49: =H6 -> 200 | I49: =I6 -> 200 | J49: 200 | K49: 200 | L49: 200 | M49: 200 | N49: 200 | O49: 200 | P49: 200 | Q49: 200 | R49: 200 | S49: 200 | T49: 200 | U49: 200 | V49: 200 | W49: 200 | X49: 200 | Y49: 200 | Z49: 200 | AA49: 100 | AB49: 100 | AC49: 200 | AD49: 200 | AE49: 200 | AF49: 200
E50: Operating Expenses | H50: =H49*0.6 -> 120 | I50: =I49*0.6 -> 120 | J50: =J49*0.6 -> 120 | K50: =K49*0.6 -> 120 | L50: =L49*0.6 -> 120 | M50: =M49*0.6 -> 120 | N50: =N49*0.6 -> 120 | O50: =O49*0.6 -> 120 | P50: =P49*0.6 -> 120 | Q50: =Q49*0.6 -> 120 | R50: =R49*0.6 -> 120 | S50: =S49*0.6 -> 120 | T50: =T49*0.6 -> 120 | U50: =U49*0.6 -> 120 | V50: =V49*0.6 -> 120 | W50: =W49*0.6 -> 120 | X50: =X49*0.6 -> 120 | Y50: =Y49*0.6 -> 120 | Z50: =Z49*0.6 -> 120 | AA50: =AA49*0.6 -> 60 | AB50: =AB49*0.6 -> 60 | AC50: =AC49*0.6 -> 120 | AD50: =AD49*0.6 -> 120 | AE50: =AE49*0.6 -> 120 | AF50: =AF49*0.6 -> 120
E51: EBITDA | H51: =H49-H50 -> 80 | I51: =I49-I50 -> 80 | J51: =J49-J50 -> 80 | K51: =K49-K50 -> 80 | L51: =L49-L50 -> 80 | M51: =M49-M50 -> 80 | N51: =N49-N50 -> 80 | O51: =O49-O50 -> 80 | P51: =P49-P50 -> 80 | Q51: =Q49-Q50 -> 80 | R51: =R49-R50 -> 80 | S51: =S49-S50 -> 80 | T51: =T49-T50 -> 80 | U51: =U49-U50 -> 80 | V51: =V49-V50 -> 80 | W51: =W49-W50 -> 80 | X51: =X49-X50 -> 80 | Y51: =Y49-Y50 -> 80 | Z51: =Z49-Z50 -> 80 | AA51: =AA49-AA50 -> 40 | AB51: =AB49-AB50 -> 40 | AC51: =AC49-AC50 -> 80 | AD51: =AD49-AD50 -> 80 | AE51: =AE49-AE50 -> 80 | AF51: =AF49-AF50 -> 80
E52: Capital Expenditures | G52: =G9 -> 900
E53: Cash Flow | G53: =G51-G52 -> -900 | H53: =H51-H52 -> 80 | I53: =I51-I52 -> 80 | J53: =J51-J52 -> 80 | K53: =K51-K52 -> 80 | L53: =L51-L52 -> 80 | M53: =M51-M52 -> 80 | N53: =N51-N52 -> 80 | O53: =O51-O52 -> 80 | P53: =P51-P52 -> 80 | Q53: =Q51-Q52 -> 80 | R53: =R51-R52 -> 80 | S53: =S51-S52 -> 80 | T53: =T51-T52 -> 80 | U53: =U51-U52 -> 80 | V53: =V51-V52 -> 80 | W53: =W51-W52 -> 80 | X53: =X51-X52 -> 80 | Y53: =Y51-Y52 -> 80 | Z53: =Z51-Z52 -> 80 | AA53: =AA51-AA52 -> 40 | AB53: =AB51-AB52 -> 40 | AC53: =AC51-AC52 -> 80 | AD53: =AD51-AD52 -> 80 | AE53: =AE51-AE52 -> 80 | AF53: =AF51-AF52 -> 80
E54: Project IRR | G54: =IRR(G53:AF53) -> 0.07154990038
E56: Economic Depreciation | H56: =H14 -> 13.4415653 | I56: =I14 -> 14.43562035 | J56: 15.50318957 | K56: 16.64970961 | L56: 17.88101917 | M56: 19.20338878 | N56: 20.62355267 | O56: 22.14874309 | P56: 23.78672717 | Q56: 25.54584642 | R56: 27.43505926 | S56: 29.46398659 | T56: 31.64296084 | U56: 33.98307856 | V56: 36.49625691 | W56: 39.19529439 | X56: 42.09393599 | Y56: 45.2069432 | Z56: 48.55016918 | AA56: 52.14063947 | AB56: 55.99663875 | AC56: 60.13780389 | AD56: 64.58522399 | AE56: 69.36154778 | AF56: 74.49109895
E57: EBIT | H57: =H51-H56 -> 66.5584347 | I57: =I51-I56 -> 65.56437965 | J57: =J51-J56 -> 64.49681043 | K57: =K51-K56 -> 63.35029039 | L57: =L51-L56 -> 62.11898083 | M57: =M51-M56 -> 60.79661122 | N57: =N51-N56 -> 59.37644733 | O57: =O51-O56 -> 57.85125691 | P57: =P51-P56 -> 56.21327283 | Q57: =Q51-Q56 -> 54.45415358 | R57: =R51-R56 -> 52.56494074 | S57: =S51-S56 -> 50.53601341 | T57: =T51-T56 -> 48.35703916 | U57: =U51-U56 -> 46.01692144 | V57: =V51-V56 -> 43.50374309 | W57: =W51-W56 -> 40.80470561 | X57: =X51-X56 -> 37.90606401 | Y57: =Y51-Y56 -> 34.7930568 | Z57: =Z51-Z56 -> 31.44983082 | AA57: =AA51-AA56 -> -12.14063947 | AB57: =AB51-AB56 -> -15.99663875 | AC57: =AC51-AC56 -> 19.86219611 | AD57: =AD51-AD56 -> 15.41477601 | AE57: =AE51-AE56 -> 10.63845222 | AF57: =AF51-AF56 -> 5.50890105
E59: Economic ROIC | H59: =H57/G13 -> 0.07395381634 | I59: =I57/H13 -> 0.07395381634 | J59: 0.07395381634 | K59: 0.07395381634 | L59: 0.07395381634 | M59: 0.07395381634 | N59: 0.07395381634 | O59: 0.07395381634 | P59: 0.07395381634 | Q59: 0.07395381634 | R59: 0.07395381634 | S59: 0.07395381634 | T59: 0.07395381634 | U59: 0.07395381634 | V59: 0.07395381634 | W59: 0.07395381634 | X59: 0.07395381634 | Y59: 0.07395381634 | Z59: 0.07395381634 | AA59: -0.03222782594 | AB59: -0.04928528433 | AC59: 0.07395381634 | AD59: 0.07395381634 | AE59: 0.07395381634 | AF59: 0.07395381634
E61: SL Depreciation | H61: =H19 -> 36 | I61: =I19 -> 36 | J61: 36 | K61: 36 | L61: 36 | M61: 36 | N61: 36 | O61: 36 | P61: 36 | Q61: 36 | R61: 36 | S61: 36 | T61: 36 | U61: 36 | V61: 36 | W61: 36 | X61: 36 | Y61: 36 | Z61: 36 | AA61: 36 | AB61: 36 | AC61: 36 | AD61: 36 | AE61: 36 | AF61: 36
E62: Net Plant | G62: =G42 -> 899.9999999 | H62: =H42 -> 863.9999999 | I62: 827.9999999 | J62: 791.9999999 | K62: 755.9999999 | L62: 719.9999999 | M62: 683.9999999 | N62: 647.9999999 | O62: 611.9999999 | P62: 575.9999999 | Q62: 539.9999999 | R62: 503.9999999 | S62: 468 | T62: 432 | U62: 396 | V62: 360 | W62: 324 | X62: 288 | Y62: 252 | Z62: 216 | AA62: 180 | AB62: 144 | AC62: 108 | AD62: 71.99999999 | AE62: 36 | AF62: 0
E64: EBIT | H64: =H51-H61 -> 44 | I64: =I51-I61 -> 44 | J64: 44 | K64: 44 | L64: 44 | M64: 44 | N64: 44 | O64: 44 | P64: 44 | Q64: 44 | R64: 44 | S64: 44 | T64: 44 | U64: 44 | V64: 44 | W64: 44 | X64: 44 | Y64: 44 | Z64: 44 | AA64: 4.000000004 | AB64: 4.000000004 | AC64: 44 | AD64: 44 | AE64: 44 | AF64: 44
E65: ROIC | H65: =H64/G62 -> 0.0488888889 | I65: =I64/H62 -> 0.05092592594 | J65: =J64/I62 -> 0.05314009663 | K65: =K64/J62 -> 0.05555555557 | L65: =L64/K62 -> 0.05820105821 | M65: =M64/L62 -> 0.06111111112 | N65: =N64/M62 -> 0.06432748539 | O65: =O64/N62 -> 0.06790123458 | P65: =P64/O62 -> 0.07189542485 | Q65: =Q64/P62 -> 0.0763888889 | R65: =R64/Q62 -> 0.0814814815 | S65: =S64/R62 -> 0.08730158732 | T65: =T64/S62 -> 0.09401709403 | U65: =U64/T62 -> 0.1018518519 | V65: =V64/U62 -> 0.1111111111 | W65: =W64/V62 -> 0.1222222222 | X65: =X64/W62 -> 0.1358024692 | Y65: =Y64/X62 -> 0.1527777778 | Z65: =Z64/Y62 -> 0.1746031746 | AA65: =AA64/Z62 -> 0.01851851854 | AB65: =AB64/AA62 -> 0.02222222224 | AC65: =AC64/AB62 -> 0.3055555556 | AD65: =AD64/AC62 -> 0.4074074075 | AE65: =AE64/AD62 -> 0.6111111112 | AF65: =AF64/AE62 -> 1.222222222

Sheet Storage Number 2
F2: Mean | G2: Std Dev | H2: Sum | I2: 1 | J2: 2 | K2: 3 | L2: 4 | M2: 5 | N2: 6 | O2: 7 | P2: 8 | Q2: 9 | R2: 10 | S2: 11 | T2: 12 | U2: 13 | V2: 14 | W2: 15 | X2: 16 | Y2: 17 | Z2: 18 | AA2: 19 | AB2: 20 | AC2: 21 | AD2: 22 | AE2: 23 | AF2: 24
D3: Demand | E3: =G16 -> 3000 | F3: 12 | G3: 10 | H3: =SUM(I3:AF3) -> 0.7694721864 | I3: =_xlfn.NORM.DIST(I$2,$F3,$G3,0) -> 0.0217852177 | J3: =_xlfn.NORM.DIST(J$2,$F3,$G3,0) -> 0.02419707245 | K3: 0.02660852499 | L3: 0.02896915528 | M3: 0.03122539334 | N3: 0.03332246029 | O3: 0.03520653268 | P3: 0.03682701403 | Q3: 0.03813878155 | R3: 0.0391042694 | S3: 0.03969525475 | T3: 0.03989422804 | U3: 0.03969525475 | V3: 0.0391042694 | W3: 0.03813878155 | X3: 0.03682701403 | Y3: 0.03520653268 | Z3: 0.03332246029 | AA3: 0.03122539334 | AB3: 0.02896915528 | AC3: 0.02660852499 | AD3: 0.02419707245 | AE3: 0.0217852177 | AF3: 0.0194186055
D4: Storage | E4: =H130 -> 11126.78627 | F4: 12 | G4: 1000 | H4: =SUM(I4:AF4) -> 0.009574384146 | I4: =_xlfn.NORM.DIST(I$2,$F4,$G4,0) -> 0.0003989181451 | J4: 0.0003989223338 | K4: 0.0003989261236 | L4: 0.0003989295145 | M4: 0.0003989325064 | N4: 0.0003989350995 | O4: 0.0003989372937 | P4: 0.0003989390889 | Q4: 0.0003989404852 | R4: 0.0003989414825 | S4: 0.0003989420809 | T4: 0.0003989422804 | U4: 0.0003989420809 | V4: 0.0003989414825 | W4: 0.0003989404852 | X4: 0.0003989390889 | Y4: 0.0003989372937 | Z4: 0.0003989350995 | AA4: 0.0003989325064 | AB4: 0.0003989295145 | AC4: 0.0003989261236 | AD4: 0.0003989223338 | AE4: 0.0003989181451 | AF4: 0.0003989135576
F5: 12 | G5: 6 | H5: =SUM(I5:AF5) -> 0.9540000526 | I5: 0.01238519393 | J5: 0.01657952313 | K5: 0.02158626594 | L5: 0.02733501245 | M5: 0.03366644759 | N5: 0.04032845409 | O5: 0.04698531257 | P5: 0.05324133425 | Q5: 0.05867755446 | R5: 0.06289720462 | S5: 0.06557328602 | T5: 0.06649038007 | U5: 0.06557328602 | V5: 0.06289720462 | W5: 0.05867755446 | X5: 0.05324133425 | Y5: 0.04698531257 | Z5: 0.04032845409 | AA5: 0.03366644759 | AB5: 0.02733501245 | AC5: 0.02158626594 | AD5: 0.01657952313 | AE5: 0.01238519393 | AF5: 0.008998494419
F6: 12 | G6: 3 | H6: =SUM(I6:AF6) -> 0.9999269775 | I6: 0.0001600902172 | J6: 0.0005140929988 | K6: 0.001477282804 | L6: 0.003798662008 | M6: 0.008740629698 | N6: 0.01799698884 | O6: 0.03315904626 | P6: 0.05467002489 | Q6: 0.08065690817 | R6: 0.1064826685 | S6: 0.1257944092 | T6: 0.1329807601 | U6: 0.1257944092 | V6: 0.1064826685 | W6: 0.08065690817 | X6: 0.05467002489 | Y6: 0.03315904626 | Z6: 0.01799698884 | AA6: 0.008740629698 | AB6: 0.003798662008 | AC6: 0.001477282804 | AD6: 0.0005140929988 | AE6: 0.0001600902172 | AF6: 4.461007525e-05
I8: =I2 -> 1 | J8: =J2 -> 2 | K8: 3 | L8: 4 | M8: 5 | N8: 6 | O8: 7 | P8: 8 | Q8: 9 | R8: 10 | S8: 11 | T8: 12 | U8: 13 | V8: 14 | W8: 15 | X8: 16 | Y8: 17 | Z8: 18 | AA8: 19 | AB8: 20 | AC8: 21 | AD8: 22 | AE8: 23 | AF8: 24
F9: Base Load | I9: =I3/$H$3 -> 0.02831189754 | J9: =J3/$H$3 -> 0.031446325 | K9: 0.03458022975 | L9: 0.03764808629 | M9: 0.04058027553 | N9: 0.04330560724 | O9: 0.04575413289 | P9: 0.04786009771 | Q9: 0.04956486046 | R9: 0.05081960087 | S9: 0.05158764079 | T9: 0.05184622491 | U9: 0.05158764079 | V9: 0.05081960087 | W9: 0.04956486046 | X9: 0.04786009771 | Y9: 0.04575413289 | Z9: 0.04330560724 | AA9: 0.04058027553 | AB9: 0.03764808629 | AC9: 0.03458022975 | AD9: 0.031446325 | AE9: 0.02831189754 | AF9: 0.02523626694
F10: Flat Load | I10: =I4/$H$4 -> 0.04166514932 | J10: =J4/$H$4 -> 0.04166558681 | K10: 0.04166598263 | L10: 0.0416663368 | M10: 0.0416666493 | N10: 0.04166692013 | O10: 0.0416671493 | P10: 0.0416673368 | Q10: 0.04166748264 | R10: 0.04166758681 | S10: 0.04166764931 | T10: 0.04166767014 | U10: 0.04166764931 | V10: 0.04166758681 | W10: 0.04166748264 | X10: 0.0416673368 | Y10: 0.0416671493 | Z10: 0.04166692013 | AA10: 0.0416666493 | AB10: 0.0416663368 | AC10: 0.04166598263 | AD10: 0.04166558681 | AE10: 0.04166514932 | AF10: 0.04166467018
F11: More Peak Load | I11: =I5/$H$5 -> 0.01298238286 | J11: =J5/$H$5 -> 0.01737895411 | K11: 0.0226271119 | L11: 0.0286530513 | M11: 0.03528977541 | N11: 0.04227301034 | O11: 0.04925084903 | P11: 0.0558085234 | Q11: 0.06150686711 | R11: 0.06592998024 | S11: 0.06873509686 | T11: 0.06969641132 | U11: 0.06873509686 | V11: 0.06592998024 | W11: 0.06150686711 | X11: 0.0558085234 | Y11: 0.04925084903 | Z11: 0.04227301034 | AA11: 0.03528977541 | AB11: 0.0286530513 | AC11: 0.0226271119 | AD11: 0.01737895411 | AE11: 0.01298238286 | AF11: 0.009432383567
F12: High Peaking Load | I12: =I6/$H$6 -> 0.0001601019083 | J12: =J6/$H$6 -> 0.0005141305419 | K12: 0.001477390687 | L12: 0.003798939416 | M12: 0.008741268007 | N12: 0.01799830312 | O12: 0.0331614678 | P12: 0.05467401733 | Q12: 0.08066279837 | R12: 0.1064904447 | S12: 0.1258035957 | T12: 0.1329904714 | U12: 0.1258035957 | V12: 0.1064904447 | W12: 0.08066279837 | X12: 0.05467401733 | Y12: 0.0331614678 | Z12: 0.01799830312 | AA12: 0.008741268007 | AB12: 0.003798939416 | AC12: 0.001477390687 | AD12: 0.0005141305419 | AE12: 0.0001601019083 | AF12: 4.461333303e-05
F14: Code Number | G14: 4
F16: Peak Load | G16: ='Diagram Costs'!I3 -> 3000
F18: =INDEX(F9:F12,$G$14) -> High Peaking Load | I18: =INDEX(I9:I12,$G$14) -> 0.0001601019083 | J18: =INDEX(J9:J12,$G$14) -> 0.0005141305419 | K18: =INDEX(K9:K12,$G$14) -> 0.001477390687 | L18: =INDEX(L9:L12,$G$14) -> 0.003798939416 | M18: =INDEX(M9:M12,$G$14) -> 0.008741268007 | N18: =INDEX(N9:N12,$G$14) -> 0.01799830312 | O18: =INDEX(O9:O12,$G$14) -> 0.0331614678 | P18: =INDEX(P9:P12,$G$14) -> 0.05467401733 | Q18: =INDEX(Q9:Q12,$G$14) -> 0.08066279837 | R18: =INDEX(R9:R12,$G$14) -> 0.1064904447 | S18: =INDEX(S9:S12,$G$14) -> 0.1258035957 | T18: =INDEX(T9:T12,$G$14) -> 0.1329904714 | U18: =INDEX(U9:U12,$G$14) -> 0.1258035957 | V18: =INDEX(V9:V12,$G$14) -> 0.1064904447 | W18: =INDEX(W9:W12,$G$14) -> 0.08066279837 | X18: =INDEX(X9:X12,$G$14) -> 0.05467401733 | Y18: =INDEX(Y9:Y12,$G$14) -> 0.0331614678 | Z18: =INDEX(Z9:Z12,$G$14) -> 0.01799830312 | AA18: =INDEX(AA9:AA12,$G$14) -> 0.008741268007 | AB18: =INDEX(AB9:AB12,$G$14) -> 0.003798939416 | AC18: =INDEX(AC9:AC12,$G$14) -> 0.001477390687 | AD18: =INDEX(AD9:AD12,$G$14) -> 0.0005141305419 | AE18: =INDEX(AE9:AE12,$G$14) -> 0.0001601019083 | AF18: =INDEX(AF9:AF12,$G$14) -> 4.461333303e-05
F19: Max Percent | G19: =MAX(I18:AF18) -> 0.1329904714
F20: Factor to Input | G20: =G16/G19 -> 22558.00711 | H20: Pct Red
F21: Average Demand | G21: =AVERAGE(I23:AF23) -> 939.9169629 | H21: =1-G21/G16 -> 0.6866943457
I22: =I8 -> 1 | J22: 2 | K22: 3 | L22: 4 | M22: 5 | N22: 6 | O22: 7 | P22: 8 | Q22: 9 | R22: 10 | S22: 11 | T22: 12 | U22: 13 | V22: 14 | W22: 15 | X22: 16 | Y22: 17 | Z22: 18 | AA22: 19 | AB22: 20 | AC22: 21 | AD22: 22 | AE22: 23 | AF22: 24
F23: Hourly Demand RT | I23: =I18*$G$20 -> 3.611579984 | J23: =J18*$G$20 -> 11.59776042 | K23: 33.32698961 | L23: 85.69650235 | M23: 197.1855858 | N23: 406.0058497 | O23: 748.0566263 | P23: 1233.336872 | Q23: 1819.591979 | R23: 2402.212209 | S23: 2837.878407 | T23: 3000 | U23: 2837.878407 | V23: 2402.212209 | W23: 1819.591979 | X23: 1233.336872 | Y23: 748.0566263 | Z23: 406.0058497 | AA23: 197.1855858 | AB23: 85.69650235 | AC23: 33.32698961 | AD23: 11.59776042 | AE23: 3.611579984 | AF23: 1.006387884
B25: Peak and Off-Peak
F26: On-Peak and Off-Peak with Storage | I26: =I22 -> 1 | J26: 2 | K26: 3 | L26: 4 | M26: 5 | N26: 6 | O26: 7 | P26: 8 | Q26: 9 | R26: 10 | S26: 11 | T26: 12 | U26: 13 | V26: 14 | W26: 15 | X26: 16 | Y26: 17 | Z26: 18 | AA26: 19 | AB26: 20 | AC26: 21 | AD26: 22 | AE26: 23 | AF26: 24
F27: On-Peak | G27: 8 | H27: 20 | I27: =AND(I26>=$G$27,I26<=$H$27) -> FALSE | J27: =AND(J26>=$G$27,J26<=$H$27) -> FALSE | K27: FALSE | L27: FALSE | M27: FALSE | N27: FALSE | O27: FALSE | P27: TRUE | Q27: TRUE | R27: TRUE | S27: TRUE | T27: TRUE | U27: TRUE | V27: TRUE | W27: TRUE | X27: TRUE | Y27: TRUE | Z27: TRUE | AA27: TRUE | AB27: TRUE | AC27: FALSE | AD27: FALSE | AE27: FALSE | AF27: FALSE
F30: On-Peak and Off-Peak without Storage
F31: Total Production | G31: =SUM(I31:AF31) -> 22558.00711 | I31: =I23 -> 3.611579984 | J31: 11.59776042 | K31: 33.32698961 | L31: 85.69650235 | M31: 197.1855858 | N31: 406.0058497 | O31: 748.0566263 | P31: 1233.336872 | Q31: 1819.591979 | R31: 2402.212209 | S31: 2837.878407 | T31: 3000 | U31: 2837.878407 | V31: 2402.212209 | W31: 1819.591979 | X31: 1233.336872 | Y31: 748.0566263 | Z31: 406.0058497 | AA31: 197.1855858 | AB31: 85.69650235 | AC31: 33.32698961 | AD31: 11.59776042 | AE31: 3.611579984 | AF31: 1.006387884
F32: On-Peak Production | G32: =SUM(I32:AF32) -> 21022.9835 | I32: =I31*I27 -> 0 | J32: 0 | K32: 0 | L32: 0 | M32: 0 | N32: 0 | O32: 0 | P32: 1233.336872 | Q32: 1819.591979 | R32: 2402.212209 | S32: 2837.878407 | T32: 3000 | U32: 2837.878407 | V32: 2402.212209 | W32: 1819.591979 | X32: 1233.336872 | Y32: 748.0566263 | Z32: 406.0058497 | AA32: 197.1855858 | AB32: 85.69650235 | AC32: 0 | AD32: 0 | AE32: 0 | AF32: 0
F33: Off-Peak Production | G33: =SUM(I33:AF33) -> 1535.023612 | I33: =I31-I32 -> 3.611579984 | J33: =J31-J32 -> 11.59776042 | K33: 33.32698961 | L33: 85.69650235 | M33: 197.1855858 | N33: 406.0058497 | O33: 748.0566263 | P33: 0 | Q33: 0 | R33: 0 | S33: 0 | T33: 0 | U33: 0 | V33: 0 | W33: 0 | X33: 0 | Y33: 0 | Z33: 0 | AA33: 0 | AB33: 0 | AC33: 33.32698961 | AD33: 11.59776042 | AE33: 3.611579984 | AF33: 1.006387884
F36: On-Peak Percent | G36: =G32/G31 -> 0.9319521621
F37: Off-Peak Percent | G37: =G33/G31 -> 0.06804783795
B40: Storage Analysis with Given Input
F41: First Storage | I41: FALSE | J41: =AND(J33>0,I33=0) -> FALSE | K41: FALSE | L41: FALSE | M41: FALSE | N41: FALSE | O41: FALSE | P41: FALSE | Q41: FALSE | R41: FALSE | S41: FALSE | T41: FALSE | U41: FALSE | V41: FALSE | W41: FALSE | X41: FALSE | Y41: FALSE | Z41: FALSE | AA41: FALSE | AB41: FALSE | AC41: TRUE | AD41: FALSE | AE41: FALSE | AF41: FALSE
F42: Match | G42: =MATCH(TRUE,41:41,0) -> 29 | I42: =COLUMN() -> 9 | AF42: =COLUMN() -> 32
F43: End Column | G43: =AF42 -> 32
F44: Start Column | G44: =I42 -> 9
F45: Column Number | I45: =G42 -> 29 | J45: =IF(I45=$G$43,$G$44,I45+1) -> 30 | K45: =IF(J45=$G$43,$G$44,J45+1) -> 31 | L45: 32 | M45: 9 | N45: 10 | O45: 11 | P45: 12 | Q45: 13 | R45: 14 | S45: 15 | T45: 16 | U45: 17 | V45: 18 | W45: 19 | X45: 20 | Y45: 21 | Z45: 22 | AA45: 23 | AB45: 24 | AC45: 25 | AD45: 26 | AE45: 27 | AF45: 28
F47: First Storage | I47: =INDEX(31:31,I45) -> 33.32698961 | J47: =INDEX(31:31,J45) -> 11.59776042 | K47: =INDEX(31:31,K45) -> 3.611579984 | L47: =INDEX(31:31,L45) -> 1.006387884 | M47: =INDEX(31:31,M45) -> 3.611579984 | N47: =INDEX(31:31,N45) -> 11.59776042 | O47: =INDEX(31:31,O45) -> 33.32698961 | P47: =INDEX(31:31,P45) -> 85.69650235 | Q47: =INDEX(31:31,Q45) -> 197.1855858 | R47: =INDEX(31:31,R45) -> 406.0058497 | S47: =INDEX(31:31,S45) -> 748.0566263 | T47: =INDEX(31:31,T45) -> 1233.336872 | U47: =INDEX(31:31,U45) -> 1819.591979 | V47: =INDEX(31:31,V45) -> 2402.212209 | W47: =INDEX(31:31,W45) -> 2837.878407 | X47: =INDEX(31:31,X45) -> 3000 | Y47: =INDEX(31:31,Y45) -> 2837.878407 | Z47: =INDEX(31:31,Z45) -> 2402.212209 | AA47: =INDEX(31:31,AA45) -> 1819.591979 | AB47: =INDEX(31:31,AB45) -> 1233.336872 | AC47: =INDEX(31:31,AC45) -> 748.0566263 | AD47: =INDEX(31:31,AD45) -> 406.0058497 | AE47: =INDEX(31:31,AE45) -> 197.1855858 | AF47: =INDEX(31:31,AF45) -> 85.69650235
F48: On-Peak | I48: =INDEX(27:27,I45) -> FALSE | J48: =INDEX(27:27,J45) -> FALSE | K48: =INDEX(27:27,K45) -> FALSE | L48: =INDEX(27:27,L45) -> FALSE | M48: =INDEX(27:27,M45) -> FALSE | N48: =INDEX(27:27,N45) -> FALSE | O48: =INDEX(27:27,O45) -> FALSE | P48: =INDEX(27:27,P45) -> FALSE | Q48: =INDEX(27:27,Q45) -> FALSE | R48: =INDEX(27:27,R45) -> FALSE | S48: =INDEX(27:27,S45) -> FALSE | T48: =INDEX(27:27,T45) -> TRUE | U48: =INDEX(27:27,U45) -> TRUE | V48: =INDEX(27:27,V45) -> TRUE | W48: =INDEX(27:27,W45) -> TRUE | X48: =INDEX(27:27,X45) -> TRUE | Y48: =INDEX(27:27,Y45) -> TRUE | Z48: =INDEX(27:27,Z45) -> TRUE | AA48: =INDEX(27:27,AA45) -> TRUE | AB48: =INDEX(27:27,AB45) -> TRUE | AC48: =INDEX(27:27,AC45) -> TRUE | AD48: =INDEX(27:27,AD45) -> TRUE | AE48: =INDEX(27:27,AE45) -> TRUE | AF48: =INDEX(27:27,AF45) -> TRUE
F50: Chiller Capacity | G50: 4000
F51: Storage Capacity | G51: 30000
F53: Remaining Storage Capacity | H53: =G51 -> 30000
F55: Opening Balance
F56: Add: Storage Off-Peak
F57: Less: Removal From Storage On-Peak
F58: Closing Balance
F107: Produced After Storage | I107: =$G$21 -> 939.9169629 | J107: 939.9169629 | K107: 939.9169629 | L107: 939.9169629 | M107: 939.9169629 | N107: 939.9169629 | O107: 939.9169629 | P107: 939.9169629 | Q107: 939.9169629 | R107: 939.9169629 | S107: 939.9169629 | T107: 939.9169629 | U107: 939.9169629 | V107: 939.9169629 | W107: 939.9169629 | X107: 939.9169629 | Y107: 939.9169629 | Z107: 939.9169629 | AA107: 939.9169629 | AB107: 939.9169629 | AC107: 939.9169629 | AD107: 939.9169629 | AE107: 939.9169629 | AF107: 939.9169629
F108: Max Demand (RT) | G108: =MAX(I23:AF23) -> 3000
F109: Daily Demand (RT day) | G109: =SUM(I23:AF23) -> 22558.00711
F110: Daily Demand (RT Year) | G110: =G109*365 -> 8233672.595
F112: Surplus into Storage | G112: RT | I112: =MAX(I107-I23,0) -> 936.3053829 | J112: 928.3192024 | K112: 906.5899732 | L112: 854.2204605 | M112: 742.731377 | N112: 533.9111132 | O112: 191.8603365 | P112: 0 | Q112: 0 | R112: 0 | S112: 0 | T112: 0 | U112: 0 | V112: 0 | W112: 0 | X112: 0 | Y112: 191.8603365 | Z112: 533.9111132 | AA112: 742.731377 | AB112: 854.2204605 | AC112: 906.5899732 | AD112: 928.3192024 | AE112: 936.3053829 | AF112: 938.910575
F113: Withdrawl from Storage | G113: RT | I113: =MAX(I23-I107,0) -> 0 | J113: 0 | K113: 0 | L113: 0 | M113: 0 | N113: 0 | O113: 0 | P113: 293.4199087 | Q113: 879.6750163 | R113: 1462.295246 | S113: 1897.961444 | T113: 2060.083037 | U113: 1897.961444 | V113: 1462.295246 | W113: 879.6750163 | X113: 293.4199087 | Y113: 0 | Z113: 0 | AA113: 0 | AB113: 0 | AC113: 0 | AD113: 0 | AE113: 0 | AF113: 0
F115: Start of Storage | I115: =AND(I113=0,H113<>0) -> FALSE | J115: =AND(J113=0,I113<>0) -> FALSE | K115: FALSE | L115: FALSE | M115: FALSE | N115: FALSE | O115: FALSE | P115: FALSE | Q115: FALSE | R115: FALSE | S115: FALSE | T115: FALSE | U115: FALSE | V115: FALSE | W115: FALSE | X115: FALSE | Y115: TRUE | Z115: FALSE | AA115: FALSE | AB115: FALSE | AC115: FALSE | AD115: FALSE | AE115: FALSE | AF115: FALSE
F116: Column | H116: =MATCH(TRUE,115:115,0) -> 25 | I116: =COLUMN() -> 9 | Y116: =COLUMN(Y116) -> 25 | AF116: =COLUMN() -> 32
F117: Max Column | H117: =AF116 -> 32
F118: Start Column | H118: =I116 -> 9
F119: Counter | I119: =H116 -> 25 | J119: =IF(I119=$H$117,$H$118,I119+1) -> 26 | K119: 27 | L119: 28 | M119: 29 | N119: 30 | O119: 31 | P119: 32 | Q119: 9 | R119: 10 | S119: 11 | T119: 12 | U119: 13 | V119: 14 | W119: 15 | X119: 16 | Y119: 17 | Z119: =IF(Y119=X241,X251,Y119+1) -> 18 | AA119: 19 | AB119: 20 | AC119: 21 | AD119: 22 | AE119: 23 | AF119: 24
F121: Demand | G121: RT | I121: =INDEX(23:23,I119) -> 748.0566263 | J121: =INDEX(23:23,J119) -> 406.0058497 | K121: =INDEX(23:23,K119) -> 197.1855858 | L121: =INDEX(23:23,L119) -> 85.69650235 | M121: =INDEX(23:23,M119) -> 33.32698961 | N121: =INDEX(23:23,N119) -> 11.59776042 | O121: =INDEX(23:23,O119) -> 3.611579984 | P121: =INDEX(23:23,P119) -> 1.006387884 | Q121: =INDEX(23:23,Q119) -> 3.611579984 | R121: =INDEX(23:23,R119) -> 11.59776042 | S121: =INDEX(23:23,S119) -> 33.32698961 | T121: =INDEX(23:23,T119) -> 85.69650235 | U121: =INDEX(23:23,U119) -> 197.1855858 | V121: =INDEX(23:23,V119) -> 406.0058497 | W121: =INDEX(23:23,W119) -> 748.0566263 | X121: =INDEX(23:23,X119) -> 1233.336872 | Y121: =INDEX(23:23,Y119) -> 1819.591979 | Z121: =INDEX(23:23,Z119) -> 2402.212209 | AA121: =INDEX(23:23,AA119) -> 2837.878407 | AB121: =INDEX(23:23,AB119) -> 3000 | AC121: =INDEX(23:23,AC119) -> 2837.878407 | AD121: =INDEX(23:23,AD119) -> 2402.212209 | AE121: =INDEX(23:23,AE119) -> 1819.591979 | AF121: =INDEX(23:23,AF119) -> 1233.336872
F122: Stored | G122: RT | I122: =INDEX(112:112,I119) -> 191.8603365 | J122: =INDEX(112:112,J119) -> 533.9111132 | K122: =INDEX(112:112,K119) -> 742.731377 | L122: =INDEX(112:112,L119) -> 854.2204605 | M122: =INDEX(112:112,M119) -> 906.5899732 | N122: =INDEX(112:112,N119) -> 928.3192024 | O122: =INDEX(112:112,O119) -> 936.3053829 | P122: =INDEX(112:112,P119) -> 938.910575 | Q122: =INDEX(112:112,Q119) -> 936.3053829 | R122: =INDEX(112:112,R119) -> 928.3192024 | S122: =INDEX(112:112,S119) -> 906.5899732 | T122: =INDEX(112:112,T119) -> 854.2204605 | U122: =INDEX(112:112,U119) -> 742.731377 | V122: =INDEX(112:112,V119) -> 533.9111132 | W122: =INDEX(112:112,W119) -> 191.8603365 | X122: =INDEX(112:112,X119) -> 0 | Y122: =INDEX(112:112,Y119) -> 0 | Z122: =INDEX(112:112,Z119) -> 0 | AA122: =INDEX(112:112,AA119) -> 0 | AB122: =INDEX(112:112,AB119) -> 0 | AC122: =INDEX(112:112,AC119) -> 0 | AD122: =INDEX(112:112,AD119) -> 0 | AE122: =INDEX(112:112,AE119) -> 0 | AF122: =INDEX(112:112,AF119) -> 0
F123: Withdrawl | G123: RT | I123: =INDEX(113:113,I119) -> 0 | J123: =INDEX(113:113,J119) -> 0 | K123: =INDEX(113:113,K119) -> 0 | L123: =INDEX(113:113,L119) -> 0 | M123: =INDEX(113:113,M119) -> 0 | N123: =INDEX(113:113,N119) -> 0 | O123: =INDEX(113:113,O119) -> 0 | P123: =INDEX(113:113,P119) -> 0 | Q123: =INDEX(113:113,Q119) -> 0 | R123: =INDEX(113:113,R119) -> 0 | S123: =INDEX(113:113,S119) -> 0 | T123: =INDEX(113:113,T119) -> 0 | U123: =INDEX(113:113,U119) -> 0 | V123: =INDEX(113:113,V119) -> 0 | W123: =INDEX(113:113,W119) -> 0 | X123: =INDEX(113:113,X119) -> 293.4199087 | Y123: =INDEX(113:113,Y119) -> 879.6750163 | Z123: =INDEX(113:113,Z119) -> 1462.295246 | AA123: =INDEX(113:113,AA119) -> 1897.961444 | AB123: =INDEX(113:113,AB119) -> 2060.083037 | AC123: =INDEX(113:113,AC119) -> 1897.961444 | AD123: =INDEX(113:113,AD119) -> 1462.295246 | AE123: =INDEX(113:113,AE119) -> 879.6750163 | AF123: =INDEX(113:113,AF119) -> 293.4199087
F125: Opening Balance | G125: RTh | I125: =H128 -> 0 | J125: =I128 -> 191.8603365 | K125: 725.7714497 | L125: 1468.502827 | M125: 2322.723287 | N125: 3229.31326 | O125: 4157.632463 | P125: 5093.937846 | Q125: 6032.848421 | R125: 6969.153804 | S125: 7897.473006 | T125: 8804.062979 | U125: 9658.28344 | V125: 10401.01482 | W125: 10934.92593 | X125: 11126.78627 | Y125: 10833.36636 | Z125: 9953.691342 | AA125: 8491.396096 | AB125: 6593.434652 | AC125: 4533.351615 | AD125: 2635.390171 | AE125: 1173.094925 | AF125: 293.4199087
F126: Add: Stored | G126: RT | I126: =I122 -> 191.8603365 | J126: =J122 -> 533.9111132 | K126: 742.731377 | L126: 854.2204605 | M126: 906.5899732 | N126: 928.3192024 | O126: 936.3053829 | P126: 938.910575 | Q126: 936.3053829 | R126: 928.3192024 | S126: 906.5899732 | T126: 854.2204605 | U126: 742.731377 | V126: 533.9111132 | W126: 191.8603365 | X126: 0 | Y126: 0 | Z126: 0 | AA126: 0 | AB126: 0 | AC126: 0 | AD126: 0 | AE126: 0 | AF126: 0
F127: Less: Withdrawl | G127: RT | I127: =I123 -> 0 | J127: 0 | K127: 0 | L127: 0 | M127: 0 | N127: 0 | O127: 0 | P127: 0 | Q127: 0 | R127: 0 | S127: 0 | T127: 0 | U127: 0 | V127: 0 | W127: 0 | X127: 293.4199087 | Y127: 879.6750163 | Z127: 1462.295246 | AA127: 1897.961444 | AB127: 2060.083037 | AC127: 1897.961444 | AD127: 1462.295246 | AE127: 879.6750163 | AF127: 293.4199087
F128: Closing | G128: Rth | I128: =I125+I126-I127 -> 191.8603365 | J128: =J125+J126-J127 -> 725.7714497 | K128: 1468.502827 | L128: 2322.723287 | M128: 3229.31326 | N128: 4157.632463 | O128: 5093.937846 | P128: 6032.848421 | Q128: 6969.153804 | R128: 7897.473006 | S128: 8804.062979 | T128: 9658.28344 | U128: 10401.01482 | V128: 10934.92593 | W128: 11126.78627 | X128: 10833.36636 | Y128: 9953.691342 | Z128: 8491.396096 | AA128: 6593.434652 | AB128: 4533.351615 | AC128: 2635.390171 | AD128: 1173.094925 | AE128: 293.4199087 | AF128: 5.684341886e-12
F130: Total Storage | G130: Rth | H130: =MAX(I128:AF128) -> 11126.78627
F131: Max Demand without Storage | H131: =MAX(I23:AF23) -> 3000
F132: Max Demand with Storage | H132: =G21 -> 939.9169629
F134: Capacity Reduction from Storage | H134: =1-H132/H131 -> 0.6866943457

Sheet Scenario Illustration
C2: Scenario Case | D2: 1 | F2: LCOE of conventional | H2: ='District Cooling LCOC'!N96 -> 0.410325369
C3: Number of Buildings | F3: LCOE of disctrict cooling | H3: ='District Cooling LCOC'!L96 -> 0.3758929084
C4: Pipe Length - km | D4: 6 | F4: % w/o savings | H4: =H3/H2 -> 0.9160849822
D7: Reduced Redundancy | F7: Economies of Scale | H7: Efficiency | J7: Space Saving | L7: On Peak Rate | N7: Off Peak Rate | S7: Financing
D8: Conventional | E8: District Cooling | F8: Cap Cost/RT | G8: Cap Cost/RT | H8: District Cooling | I8: Conventional | J8: Sq Foot | K8: Value/Sq Foot | L8: District Cooling | M8: Conventional | N8: District Cooling | O8: Conventional | R8: WACC | S8: Inflation | T8: Life | U8: Storage Amount | W8: Storage Cost
C10: Base Case | D10: 0.3333 | E10: 0.1667 | F10: 3000 | G10: 3700 | H10: 0.85 | I10: 0.78 | J10: 8000 | K10: 50 | L10: 0.365 | M10: 0.365 | N10: 0.184 | O10: 0.224 | R10: 0.08 | S10: 0.03 | T10: 35 | W10: 500 | X10: 1
C11: No Redundancy | D11: 0.3333 | E11: 0.3333 | F11: 3000 | G11: 3700 | H11: 0.85 | I11: 0.78 | J11: 8000 | K11: 50 | L11: 0.365 | M11: 0.365 | N11: 0.184 | O11: 0.224 | R11: 0.08 | S11: 0.03 | T11: 35 | W11: 500 | X11: 2
C12: No Economic of Scale | D12: 0.3333 | E12: 0.1667 | F12: 3700 | G12: 3700 | H12: 0.85 | I12: 0.78 | J12: 8000 | K12: 50 | L12: 0.365 | M12: 0.365 | N12: 0.184 | O12: 0.224 | R12: 0.08 | S12: 0.03 | T12: 35 | W12: 500 | X12: 3
C13: Worst Efficiency | D13: 0.3333 | E13: 0.1667 | F13: 3000 | G13: 3700 | H13: 0.9 | I13: 0.78 | J13: 8000 | K13: 50 | L13: 0.365 | M13: 0.365 | N13: 0.184 | O13: 0.224 | R13: 0.08 | S13: 0.03 | T13: 35 | W13: 500 | X13: 4
C14: No Space Saving | D14: 0.3333 | E14: 0.1667 | F14: 3000 | G14: 3700 | H14: 0.85 | I14: 0.78 | J14: 0 | K14: 50 | L14: 0.365 | M14: 0.365 | N14: 0.184 | O14: 0.224 | R14: 0.08 | S14: 0.03 | T14: 35 | W14: 500 | X14: 5
C15: Same On-Peak and Off-peak | D15: 0.3333 | E15: 0.1667 | F15: 3000 | G15: 3700 | H15: 0.85 | I15: 0.78 | J15: 8000 | K15: 50 | L15: =AVERAGE(L14,N14) -> 0.2745 | M15: =L15 -> 0.2745 | N15: =M15 -> 0.2745 | O15: =N15 -> 0.2745 | R15: 0.08 | S15: 0.03 | T15: 35 | W15: 500 | X15: 5
C16: Same Off-Peak Rate | D16: 0.3333 | E16: 0.1667 | F16: 3000 | G16: 3700 | H16: 0.85 | I16: 0.78 | J16: 8000 | K16: 50 | L16: 0.365 | M16: 0.365 | N16: 0.184 | O16: =N16 -> 0.184 | R16: 0.08 | S16: 0.03 | T16: 35 | W16: 500 | X16: 5
C17: Low WACC | D17: 0.3333 | E17: 0.1667 | F17: 3000 | G17: 3700 | H17: 0.85 | I17: 0.78 | J17: 8000 | K17: 50 | L17: 0.365 | M17: 0.365 | N17: 0.184 | O17: 0.224 | R17: 0.055 | S17: 0.03 | T17: 35 | W17: 500 | X17: 6
C18: High WACC | D18: 0.3333 | E18: 0.1667 | F18: 3000 | G18: 3700 | H18: 0.85 | I18: 0.78 | J18: 8000 | K18: 50 | L18: 0.365 | M18: 0.365 | N18: 0.184 | O18: 0.224 | R18: 0.1 | S18: 0.03 | T18: 35 | W18: 500 | X18: 7
C19: Shorter Life | D19: 0.3333 | E19: 0.1667 | F19: 3000 | G19: 3700 | H19: 0.85 | I19: 0.78 | J19: 8000 | K19: 50 | L19: 0.365 | M19: 0.365 | N19: 0.184 | O19: 0.224 | R19: 0.08 | S19: 0.03 | T19: 20 | W19: 500 | X19: 8
C21: =INDEX(C10:C19,$D$2) -> Base Case | D21: =INDEX(D10:D19,$D$2) -> 0.3333 | E21: 0.1667 | F21: 3000 | G21: 3700 | H21: 0.85 | I21: 0.78 | J21: 8000 | K21: 50 | L21: 0.365 | M21: 0.365 | N21: 0.184 | O21: 0.224 | R21: =INDEX(R10:R19,$D$2) -> 0.08 | S21: 0.03 | T21: 35 | U21: 0 | V21: 0 | W21: 500

Sheet District Cooling Alt
E2: Code | F2: 1 | I2: Chillers | J2: Pipes | K2: Storage | L2: Dist Cooling Chillers | N2: Conventional
B5: Up Front Cost
C7: Include Storage Capactiy | E7: Flag | L7: TRUE
C8: Load Shape Scenario | E8: Code | L8: ='Storage and Demand'!M14 -> 3 | N8: ='Storage and Demand'!M14 -> 3
C9: Load Shape Description | L9: =INDEX('Storage and Demand'!$L$9:$L$13,'Storage and Demand'!$M$14) -> More Peak Load | N9: =INDEX('Storage and Demand'!$L$9:$L$13,'Storage and Demand'!$M$14) -> More Peak Load
C10: Refrigiration Tonne (RT) Peak Demand | E10: RT | I10: ='Diagram Costs'!$I$3 -> 3000 | L10: =I10 -> 3000 | N10: =L10 -> 3000
C12: Number of Buidings | N12: ='Diagram Costs'!H2 -> 4
C13: Reduction in Capacity from Storage | E13: % | I13: =IF(I7,'Storage and Demand'!$N$21,0) -> 0 | L13: ='District Cooling LCOC'!L13 -> 0.4021691236
C14: Net Chiller Required Before Redundancy | E14: RT | I14: =I10*(1-I13) -> 3000 | L14: =I14 -> 3000 | N14: =N10 -> 3000
C15: Redundancy Requirement | E15: % | I15: ='Scenario Illustration'!$E$21 -> 0.1667 | L15: =I15 -> 0.1667 | N15: ='Scenario Illustration'!D21 -> 0.3333
C16: Refrigiration Tonne (RT) Capacity with Redundancy | E16: RT | I16: ='District Cooling LCOC'!L16 -> 2092.467851 | L16: =I16 -> 2092.467851 | N16: =N14*(1+N15) -> 3999.9
C18: Chiller Cost incuding BOP | E18: RM/RT | I18: ='Scenario Illustration'!$F$21 -> 3000 | L18: =I18 -> 3000 | N18: ='Scenario Illustration'!G21 -> 3700
C19: Chiller Cost | E19: RM | I19: =I18*I16 -> 6277403.552 | L19: =L18*L16 -> 6277403.552 | N19: =N16*N18 -> 14799630
C21: Pipe length | E21: km | J21: 6
C22: Piping Cost per km | E22: RM/km | J22: 1000000
C23: Piping Cost | E23: RM | J23: =J22*J21 -> 6000000
C25: Total Space Amount | E25: RT | N25: ='Scenario Illustration'!J21 -> 8000
C26: Space Cost per Unit | E26: RM/sq ft | N26: ='Scenario Illustration'!K21 -> 50
C27: Space Cost | E27: RM | N27: =N26*N25 -> 400000
C29: Storage Amount | E29: RT x Hrs of Storage | K29: =ROUNDDOWN(IF(L7,'Storage and Demand'!N47,0),0) -> 9256
C30: Storage Cost | E30: RM/RTh | K30: ='Scenario Illustration'!W21 -> 500
C31: Total Capital for Storage | E31: RM | L31: =K29*K30 -> 4628000
B34: Total Cost Summary
C35: Chiller Cost | I35: =L19 -> 6277403.552 | L35: =I35 -> 6277403.552 | N35: =N19 -> 14799630
C36: Piping Cost | J36: =J23 -> 6000000 | L36: =J36 -> 6000000
C37: Space Cost | N37: =N27 -> 400000
C38: Storage Cost | E38: RM | K38: =L31 -> 4628000 | L38: =K38 -> 4628000
C41: Total Cost | E41: RM | I41: =SUM(I35:I40) -> 6277403.552 | J41: =SUM(J35:J40) -> 6000000 | K41: =SUM(K35:K40) -> 4628000 | L41: =SUM(L35:L40) -> 16905403.55 | N41: =SUM(N35:N40) -> 15199630
C43: Lifetime | E43: Years | I43: 35 | J43: 20 | K43: 20 | L43: =N43 -> 35 | N43: ='Scenario Illustration'!T21 -> 35
C45: Degradation | E45: %
C46: Tax Rate
C47: Capital Allowance Life
C48: Inflation | E48: % | I48: 0.02 | J48: 0.02 | K48: 0.02 | L48: =K48 -> 0.02 | N48: =L48 -> 0.02
C49: Debt Percent | E49: %
C50: Pre-tax Interest Rate | E50: %
C51: Post Tax Interest Rate | E51: %
C52: EIRR Requirement | E52: %
C54: WACC | E54: % | I54: ='Scenario Illustration'!$R$21 -> 0.08 | J54: 0.05 | K54: =J54 -> 0.05 | L54: ='Scenario Illustration'!$R$21 -> 0.08 | N54: ='Scenario Illustration'!R21 -> 0.08
C55: Real WACC | E55: % | I55: =(1+$I$54)/(1+$I$48)-1 -> 0.05882352941 | J55: =(1+$J$54)/(1+$J$48)-1 -> 0.02941176471 | K55: =(1+$K$54)/(1+$K$48)-1 -> 0.02941176471 | L55: =(1+$K$54)/(1+$K$48)-1 -> 0.02941176471 | N55: =(1+N54)/(1+N48)-1 -> 0.05882352941
C57: Capacity Payment | E57: USD | I57: =PMT(I55,I43,-I41) -> 427018.2046 | J57: =PMT(J55,J43,-J41) -> 401104.11 | K57: =PMT(K55,K43,-K41) -> 309384.9702 | L57: =K57+J57+I57 -> 1137507.285 | N57: =PMT(N55,N43,-N41) -> 1033949.572
C59: Production per Day | E59: RT-day | L59: ='Storage and Demand'!M26 -> 43043.8231 | N59: =L59 -> 43043.8231
C60: Energy Production | E60: RTh-year | L60: =L59*365 -> 15710995.43 | N60: =N59*365 -> 15710995.43
C61: Energy Production | E61: RTh-hr | L61: =L60/8760 -> 1793.492629 | N61: =N60/8760 -> 1793.492629
B63: Operation and Mainenance
C64: Staff per Building | E64: Number | N64: 4
C65: Total Buildings | E65: Number | N65: =N12 -> 4
C66: Total Staff | E66: Number | L66: 8 | N66: =N64*N65 -> 16
C67: Cost/Staff-year | E67: RM/Yr | L67: =3000*12 -> 36000 | N67: =3000*12 -> 36000
C68: Total Staff Cost | E68: RM | L68: =L66*L67 -> 288000 | N68: =N67*N66 -> 576000
C70: Efficiency | E70: kW/RT | L70: ='Scenario Illustration'!$H$21 -> 0.85 | N70: ='Scenario Illustration'!$I$21 -> 0.78
C71: Total Electricity Use | E71: kWh | L71: =L60*L70 -> 13354346.12 | N71: =N60*N70 -> 12254576.44
C73: Percent Purchased On-Peak Applied | E73: % | L73: =IF($L$7,'Storage and Demand'!M60,N73) -> 0.5416666667 | N73: ='Storage and Demand'!M70 -> 0.7291240326
C74: Percent Purchased Off-Peak | E74: % | L74: =1-L73 -> 0.4583333333 | N74: =1-N73 -> 0.2708759674
C76: On-Peak Energy | E76: kWh-yr | L76: =L74*L71 -> 6120741.971 | N76: =N74*N71 -> 3319470.247
C77: Off-Peak Energy | E77: kWh-yr | L77: =L73*L71 -> 7233604.147 | N77: =N73*N71 -> 8935106.19
C79: Cost/kWh - Off Peak | E79: RM/kWh | L79: ='Scenario Illustration'!N21 -> 0.184 | N79: ='Scenario Illustration'!O21 -> 0.224
C80: Cost/kWh - On Peak | E80: RM/kWh | L80: ='Scenario Illustration'!L21 -> 0.365 | N80: ='Scenario Illustration'!M21 -> 0.365
C82: Total Energy Cost | E82: RM | L82: =L80*L76+L77*L79 -> 3565053.982 | N82: =N80*N76+N77*N79 -> 3213070.427
C84: Demand Charge | E84: RM/kw-mo | L84: 45.1 | N84: 45.1
C85: Demand Charge | E85: RM/kw-yr | L85: =L84*12 -> 541.2 | N85: =N84*12 -> 541.2
C87: Maximum Demand in RT | E87: RT | L87: =L14 -> 3000 | N87: =N14 -> 3000
C89: Total Demand Payment | E89: RM | L89: =L87*L85 -> 1623600 | N89: =N87*N85 -> 1623600
C90: Total Electricity Payment | E90: RM | L90: =L89+L82 -> 5188653.982 | N90: =N89+N82 -> 4836670.427
C92: Real Operating Cost | E92: RM | L92: =L90+L68 -> 5476653.982 | N92: =N90+N68 -> 5412670.427
C93: Inflation Factor | E93: Factor | L93: =PV(L55,L43,-1)/PV(L54,L43,-1) -> 1.859609123 | N93: =PV(N55,N43,-1)/PV(N54,N43,-1) -> 1.261355399
C95: Total Operating Cost | E95: RM | L95: =L92*L93 -> 10184435.71 | M95: =L95/$L$97 -> 0.8995307355 | N95: =N92*N93 -> 6827301.064
C96: Total Capital Recovery | E96: RM | L96: =L57 -> 1137507.285 | M96: =L96/$L$97 -> 0.1004692645 | N96: =N57 -> 1033949.572
C97: Total Cost for Levelised Cost | E97: RM | L97: =SUM(L95:L96) -> 11321942.99 | N97: =SUM(N95:N96) -> 7861250.636
C99: Levelised Cost per RT | E99: RM/RT | L99: =L97/L60 -> 0.7206381697 | N99: =N97/N60 -> 0.5003661715
C101: Savings from District Cooling | E101: % | L101: =1-L99/N99 -> -0.4402216031
C102: Savings per Year | L102: =N97-L97 -> -3460692.358

Sheet District Cooling LCOC
E2: Code | F2: 1 | I2: Chillers | J2: Pipes | K2: Storage | L2: Dist Cooling Chillers | N2: Conventional
B5: Up Front Cost
C7: Include Storage Capactiy | E7: Flag | L7: TRUE
C8: Load Shape Scenario | E8: Code | L8: ='Storage and Demand'!M14 -> 3 | N8: ='Storage and Demand'!M14 -> 3
C9: Load Shape Description | L9: =INDEX('Storage and Demand'!$L$9:$L$13,'Storage and Demand'!$M$14) -> More Peak Load | N9: =INDEX('Storage and Demand'!$L$9:$L$13,'Storage and Demand'!$M$14) -> More Peak Load
C10: Refrigiration Tonne (RT) Peak Demand | E10: RT | L10: ='Diagram Costs'!I3 -> 3000 | N10: =L10 -> 3000
C12: Number of Buidings | N12: ='Diagram Costs'!H2 -> 4
C13: Reduction in Capacity from Storage | E13: % | L13: =IF(L7,'Storage and Demand'!N21,0) -> 0.4021691236
C14: Net Chiller Required Before Redundancy | E14: RT | L14: =L10*(1-L13) -> 1793.492629 | N14: =N10 -> 3000
C15: Redundancy Requirement | E15: % | L15: ='Scenario Illustration'!E21 -> 0.1667 | N15: ='Scenario Illustration'!D21 -> 0.3333
C16: Refrigiration Tonne (RT) Capacity with Redundancy | E16: RT | L16: =L14*(1+L15) -> 2092.467851 | N16: =N14*(1+N15) -> 3999.9
C18: Chiller Cost incuding BOP | E18: RM/RT | L18: ='Scenario Illustration'!F21 -> 3000 | N18: ='Scenario Illustration'!G21 -> 3700
C19: Chiller Cost | E19: RM | L19: =L16*L18 -> 6277403.552 | N19: =N16*N18 -> 14799630
C21: Pipe length | E21: km | L21: 5
C22: Piping Cost per km | E22: RM/km | L22: 1000000
C23: Piping Cost | E23: RM | L23: =L22*L21 -> 5000000
C25: Total Space Amount | E25: RT | N25: ='Scenario Illustration'!J21 -> 8000
C26: Space Cost per Unit | E26: RM/sq ft | N26: ='Scenario Illustration'!K21 -> 50
C27: Space Cost | E27: RM | N27: =N26*N25 -> 400000
C29: Storage Amount | E29: RT x Hrs of Storage | L29: =ROUNDDOWN(IF(L7,'Storage and Demand'!N47,0),0) -> 9256
C30: Storage Cost | E30: RM/RTh | L30: ='Scenario Illustration'!W21 -> 500
C31: Total Capital for Storage | E31: RM | L31: =L29*L30 -> 4628000
B34: Total Cost Summary
C35: Chiller Cost | L35: =L19 -> 6277403.552 | N35: =N19 -> 14799630
C36: Piping Cost | L36: =L23 -> 5000000
C37: Space Cost | N37: =N27 -> 400000
C38: Storage Cost | E38: RM | L38: =L31 -> 4628000
C41: Total Cost | E41: RM | L41: =SUM(L35:L40) -> 15905403.55 | N41: =SUM(N35:N40) -> 15199630
C43: Lifetime | E43: Years | L43: 35 | N43: ='Scenario Illustration'!T21 -> 35
C45: Degradation | E45: %
C46: Tax Rate
C47: Capital Allowance Life
C48: Inflation | E48: % | L48: 0.02 | N48: =L48 -> 0.02
C49: Debt Percent | E49: %
C50: Pre-tax Interest Rate | E50: %
C51: Post Tax Interest Rate | E51: %
C52: EIRR Requirement | E52: %
C54: WACC | E54: % | L54: ='Scenario Illustration'!R21 -> 0.08 | N54: ='Scenario Illustration'!R21 -> 0.08
C55: Real WACC | E55: % | L55: =(1+L54)/(1+L48)-1 -> 0.05882352941 | N55: =(1+N54)/(1+N48)-1 -> 0.05882352941
C57: Demand Payment | E57: USD | L57: =PMT(L55,L43,-L41) -> 1081959.573 | N57: =PMT(N55,N43,-N41) -> 1033949.572
C59: Production per Day | E59: RT-day | L59: ='Storage and Demand'!M26 -> 43043.8231 | N59: =L59 -> 43043.8231
C60: Energy Production | E60: RTh-year | L60: =L59*365 -> 15710995.43 | N60: =N59*365 -> 15710995.43
C61: Energy Production | E61: RTh-hr | L61: =L60/8760 -> 1793.492629 | N61: =N60/8760 -> 1793.492629
B63: Operation and Mainenance
C64: Staff per Building | E64: Number | N64: 4
C65: Total Buildings | E65: Number | N65: =N12 -> 4
C66: Total Staff | E66: Number | L66: 8 | N66: =N64*N65 -> 16
C67: Cost/Staff-year | E67: RM/Yr | L67: =3000*12 -> 36000 | N67: =3000*12 -> 36000
C68: Total Staff Cost | E68: RM | L68: =L66*L67 -> 288000 | N68: =N67*N66 -> 576000
C70: Efficiency | E70: kW/RT | L70: ='Scenario Illustration'!$H$21 -> 0.85 | N70: ='Scenario Illustration'!$I$21 -> 0.78
C71: Total Electricity Use | E71: kWh | L71: =L60*L70 -> 13354346.12 | N71: =N60*N70 -> 12254576.44
C73: Percent Purchased On-Peak Applied | E73: % | L73: =IF($L$7,'Storage and Demand'!M60,N73) -> 0.5416666667 | N73: ='Storage and Demand'!M70 -> 0.7291240326
C74: Percent Purchased Off-Peak | E74: % | L74: =1-L73 -> 0.4583333333 | N74: =1-N73 -> 0.2708759674
C76: On-Peak Energy | E76: kWh-yr | L76: =L74*L71 -> 6120741.971 | N76: =N74*N71 -> 3319470.247
C77: Off-Peak Energy | E77: kWh-yr | L77: =L73*L71 -> 7233604.147 | N77: =N73*N71 -> 8935106.19
C79: Cost/kWh - Off Peak | E79: RM/kWh | L79: ='Scenario Illustration'!N21 -> 0.184 | N79: ='Scenario Illustration'!O21 -> 0.224
C80: Cost/kWh - On Peak | E80: RM/kWh | L80: ='Scenario Illustration'!L21 -> 0.365 | N80: ='Scenario Illustration'!M21 -> 0.365
C82: Total Energy Cost | E82: RM | L82: =L80*L76+L77*L79 -> 3565053.982 | N82: =N80*N76+N77*N79 -> 3213070.427
C84: Demand Charge | E84: RM/kw-mo | L84: 45.1 | N84: 45.1
C85: Demand Charge | E85: RM/kw-yr | L85: =L84*12 -> 541.2 | N85: =N84*12 -> 541.2
C87: Maximum Demand in RT | E87: RT | L87: =L14 -> 1793.492629 | N87: =N14 -> 3000
C89: Total Demand Payment | E89: RM | L89: =L87*L85 -> 970638.211 | N89: =N87*N85 -> 1623600
C90: Total Electricity Payment | E90: RM | L90: =L89+L82 -> 4535692.193 | N90: =N89+N82 -> 4836670.427
C92: Total Operating Cost | E92: RM | L92: =L90+L68 -> 4823692.193 | M92: =L92/$L$94 -> 0.8167925208 | N92: =N90+N68 -> 5412670.427
C93: Total Capital Recovery | E93: RM | L93: =L57 -> 1081959.573 | M93: =L93/$L$94 -> 0.1832074792 | N93: =N57 -> 1033949.572
C94: Total Cost for Levelised Cost | E94: RM | L94: =SUM(L92:L93) -> 5905651.767 | N94: =SUM(N92:N93) -> 6446619.999
C96: Levelised Cost per RT | E96: RM/RT | L96: =L94/L60 -> 0.3758929084 | N96: =N94/N60 -> 0.410325369
C98: Savings from District Cooling | E98: % | L98: =1-L96/N96 -> 0.08391501779
C99: Savings per Year | L99: =N94-L94 -> 540968.2318

Sheet WACC
M3: Two Things
M4: Investments where Return > WACC
E5: Tax Rate | G5: 0.25 | M5: Investments where Project IRR > WACC
M6: Grow the business
E7: Percentage of Accounting Capital | F7: Cost of Capital | G7: After Tax Cost of Capital | H7: Weighted Average
D8: Debt | E8: 0.58 | F8: 0.046 | G8: =F8*(1-G5) -> 0.0345 | H8: =G8*E8 -> 0.02001
D9: Equity | E9: =1-E8 -> 0.42 | F9: 0.07 | G9: 0.12 | H9: =G9*E9 -> 0.0504
E10: =SUM(E8:E9) -> 1 | H10: =SUM(H8:H9) -> 0.07041
L13: Risk Free | M13: 0.0175
D14: Cost of Equity --> MINIMUM rate of return required for a level of risk | L14: Risk Premium | M14: 0.1025
L15: Cost of Equity | M15: =M13+M14 -> 0.12
E17: Percent of New Project | F17: Incremental Cost of Capital | G17: After Tax Cost of Capital | H17: Weighted Average
D18: Debt | E18: 0.7 | F18: =1.75%+2% -> 0.0375 | G18: =F18*(1-G15) -> 0.0375 | H18: =G18*E18 -> 0.02625
D19: Equity | E19: =1-E18 -> 0.3 | F19: 0.07 | G19: =F19 -> 0.07 | H19: =G19*E19 -> 0.021
E20: =SUM(E18:E19) -> 1 | H20: =SUM(H18:H19) -> 0.04725

Sheet Chillers
D3: Model A | E3: Model B | F3: Difference
F4: Model A - Model B
B5: Capacity | C5: RT | D5: 2500 | E5: 2500
B6: Capital Cost | C6: RM/RT | D6: 1400 | E6: 1200
B7: Total Capital Expenditure | C7: RM | D7: =D5*D6 -> 3500000 | E7: =E5*E6 -> 3000000 | F7: =D7-E7 -> 500000
B9: Efficiency | C9: kW/RT | D9: 0.55 | E9: 0.56
B10: Electricity Price | C10: RM/kWh | D10: 0.275 | E10: 0.275
B12: Load Factor | C12: % | D12: 0.8 | E12: 0.8
B13: Total Load | C13: RTh | D13: =D12*D5*8760 -> 17520000 | E13: =E12*E5*8760 -> 17520000
B14: Electricity | C14: kWh | D14: =D13*D9 -> 9636000 | E14: =E13*E9 -> 9811200
B15: Electricity Cost | C15: RM/Year | D15: =D14*D10 -> 2649900 | E15: =E14*E10 -> 2698080 | F15: =D15-E15 -> -48180
B17: Inflation Adjustment | D17: =PV(D25,D20,-1)/PV(D23,D20,-1) -> 1 | E17: =PV(E25,E20,-1)/PV(E23,E20,-1) -> 1
B18: Electricity Cost After Inflation | C18: RM/Year | D18: =D15*D17 -> 2649900 | E18: =E15*E17 -> 2698080
B20: Lifetime of Chiller | C20: Year | D20: 30 | E20: 30
B21: Spread of Capital Cost | D21: =D7/D20 -> 116666.6667 | E21: =E7/E20 -> 100000 | F21: =D21-E21 -> 16666.66667
B23: WACC | D23: 0.08 | E23: 0.08
B24: Inflation | D24: 0 | E24: 0
B25: Real WACC | D25: =(1+D23)/(1+D24)-1 -> 0.08 | E25: =(1+E23)/(1+E24)-1 -> 0.08
B27: Level Payment of Capital Cost | D27: =PMT(D25,D20,-D7) -> 310896.0169 | E27: =PMT(E25,E20,-E7) -> 266482.3002 | F27: =D27-E27 -> 44413.71669
B29: Total Cost of Operation | C29: RM/Yr | D29: =D27+D18 -> 2960796.017 | E29: =E27+E18 -> 2964562.3 | F29: =D29-E29 -> -3766.283306
B30: Levelised Cost | C30: RM/RTh | D30: =D29/D13 -> 0.1689952064 | E30: =E29/E13 -> 0.1692101769

Sheet Simple Solar and NGCC
E2: Code | F2: 1 | N2: =N3/J3-1 -> -0.1815161247
J3: =J41 -> 39.25733256 | K3: =K41 -> 38.19048347 | L3: =L41 -> 40.34983329 | N3: =N41 -> 32.13149368
H4: =INDEX(J4:N4,$F$2) -> Solar - No Track | J4: Solar - No Track | K4: Solar - Single Axis Tracking | L4: Solar - Double Axis Tracking | N4: Nat Gas
B5: Up Front Cost
C6: Capacity | E6: MW | H6: =INDEX(J6:N6,$F$2) -> 100 | J6: 100 | K6: 100 | L6: 100 | N6: 100
C7: Cost/kW | E7: USD/kW | H7: =INDEX(J7:N7,$F$2) -> 600 | J7: 600 | K7: 690 | L7: 739 | N7: 800
C8: Total Cost | E8: USD | H8: =INDEX(J8:N8,$F$2) -> 60000000 | J8: =J6*J7*1000 -> 60000000 | K8: =K6*K7*1000 -> 69000000 | L8: =L6*L7*1000 -> 73900000 | N8: =N6*N7*1000 -> 80000000
C10: Lifetime | E10: Years | H10: =INDEX(J10:N10,$F$2) -> 30 | J10: 30 | K10: 28 | L10: 28 | N10: 20
C12: Inflation | E12: % | H12: =INDEX(J12:N12,$F$2) -> 0.025 | J12: 0.025 | K12: 0.025 | L12: 0.025 | N12: =J12 -> 0.025
C14: Real Project IRR | H14: =INDEX(J14:N14,$F$2) -> 0.07317073171 | J14: =(1+J15)/(1+J12)-1 -> 0.07317073171 | K14: =(1+K15)/(1+K12)-1 -> 0.07317073171 | L14: =(1+L15)/(1+L12)-1 -> 0.07317073171 | N14: =(1+N15)/(1+N12)-1 -> 0.07317073171
C15: Target Project IRR | E15: % | H15: =INDEX(J15:N15,$F$2) -> 0.1 | J15: 0.1 | K15: 0.1 | L15: 0.1 | N15: =J15 -> 0.1
C16: Carrying Charge | E16: USD | H16: =INDEX(J16:N16,$F$2) -> 4990096.198 | J16: =PMT(J14,J10,-J8) -> 4990096.198 | K16: =PMT(K14,K10,-K8) -> 5860069.975 | L16: =PMT(L14,L10,-L8) -> 6276219.872 | N16: =PMT(N14,N10,-N8) -> 7738531.927
C18: Production
C19: Capacity Factor | E19: % | H19: =INDEX(J19:N19,$F$2) -> 0.18 | J19: 0.18 | K19: 0.22 | L19: 0.22 | N19: 0.7
C20: Energy Production | E20: MWH per Yr | H20: =INDEX(J20:N20,$F$2) -> 157680 | J20: =J19*J6*8760 -> 157680 | K20: =K19*K6*8760 -> 192720 | L20: =L19*L6*8760 -> 192720 | N20: =N19*N6*8760 -> 613200
B22: Operation and Mainenance
C23: O&M per kW-yr | E23: USD/kW-y | H23: =INDEX(J23:N23,$F$2) -> 12 | J23: 12 | K23: 15 | L23: 15 | N23: 20
C24: Total O&M Cost | E24: USD | H24: =INDEX(J24:N24,$F$2) -> 1200000 | J24: =J23*J6*1000 -> 1200000 | K24: =K23*K6*1000 -> 1500000 | L24: =L23*L6*1000 -> 1500000 | N24: =N23*N6*1000 -> 2000000
C26: Heat Rate | E26: MMBTU/MWH | H26: =INDEX(J26:N26,$F$2) -> 0 | N26: 6.5
C27: Gas Price | E27: USD/MMBTU | H27: =INDEX(J27:N27,$F$2) -> 0 | N27: 2.5
C28: Gas Cost | E28: USD/MWH | H28: =INDEX(J28:N28,$F$2) -> 0 | N28: =N26*N27 -> 16.25
C29: Total Gas Cost | E29: USD | H29: =INDEX(J29:N29,$F$2) -> 0 | N29: =N28*N20 -> 9964500
C30: Total O&M Before Inflation | E30: USD | H30: =INDEX(J30:N30,$F$2) -> 1200000 | J30: =J24+J29 -> 1200000 | K30: =K24+K29 -> 1500000 | L30: =L24+L29 -> 1500000 | N30: =N24+N29 -> 11964500
C32: Adjustment for Inflation | E32: Factor | H32: =INDEX(J32:N32,$F$2) -> 1.275477394 | J32: =PV(J14,J10,-1)/PV(J15,J10,-1) -> 1.275477394 | K32: =PV(K14,K10,-1)/PV(K15,K10,-1) -> 1.265193068 | L32: =PV(L14,L10,-1)/PV(L15,L10,-1) -> 1.265193068 | N32: =PV(N14,N10,-1)/PV(N15,N10,-1) -> 1.214283287
C33: Adjusted O&M for Inflation | E33: USD | H33: =INDEX(J33:N33,$F$2) -> 1530572.873 | J33: =J30*J32 -> 1530572.873 | K33: =K30*K32 -> 1897789.601 | L33: =L30*L32 -> 1897789.601 | N33: =N30*N32 -> 14528292.38
C35: Total Carrying Cost | E35: USD | H35: =INDEX(J35:N35,$F$2) -> 4990096.198 | J35: =J16 -> 4990096.198 | K35: =K16 -> 5860069.975 | L35: =L16 -> 6276219.872 | N35: =N16 -> 7738531.927
C36: Total O&M Cost | E36: USD | H36: =INDEX(J36:N36,$F$2) -> 1200000 | J36: =J24+J29 -> 1200000 | K36: =K24+K29 -> 1500000 | L36: =L24+L29 -> 1500000 | N36: =N24+N29 -> 11964500
C37: Total Cost | E37: USD | H37: =INDEX(J37:N37,$F$2) -> 6190096.198 | J37: =SUM(J35:J36) -> 6190096.198 | K37: =SUM(K35:K36) -> 7360069.975 | L37: =SUM(L35:L36) -> 7776219.872 | N37: =SUM(N35:N36) -> 19703031.93
C40: Total Production | E40: MWH per year | H40: =INDEX(J40:N40,$F$2) -> 157680 | J40: =J20 -> 157680 | K40: =K20 -> 192720 | L40: =L20 -> 192720 | N40: =N20 -> 613200
C41: Real LCOE | E41: USD/MWH | H41: =INDEX(J41:N41,$F$2) -> 39.25733256 | J41: =J37/J40 -> 39.25733256 | K41: =K37/K40 -> 38.19048347 | L41: =L37/L40 -> 40.34983329 | N41: =N37/N40 -> 32.13149368
C43: Difference | N43: =N41/J41-1 -> -0.1815161247
B46: Financial Model
C47: Period | H47: 1 | I47: 2 | J47: 3 | K47: 4 | L47: 5 | M47: 6 | N47: 7 | O47: 8 | P47: 9 | Q47: 10 | R47: 11 | S47: 12 | T47: 13 | U47: 14 | V47: 15 | W47: 16 | X47: 17 | Y47: 18 | Z47: 19 | AA47: 20 | AB47: 21 | AC47: 22 | AD47: 23 | AE47: 24 | AF47: 25 | AG47: 26 | AH47: 27 | AI47: 28 | AJ47: 29 | AK47: 30 | AL47: 31 | AM47: 32 | AN47: 33 | AO47: 34 | AP47: 35 | AQ47: 36 | AR47: 37 | AS47: 38 | AT47: 39 | AU47: 40
C48: Operation | E48: Flag | F48: =H10 -> 30 | H48: =H47<=$F$48 -> TRUE | I48: =I47<=$F$48 -> TRUE | J48: TRUE | K48: =K47<=$F$48 -> TRUE | L48: TRUE | M48: TRUE | N48: TRUE | O48: TRUE | P48: TRUE | Q48: TRUE | R48: TRUE | S48: TRUE | T48: TRUE | U48: TRUE | V48: TRUE | W48: TRUE | X48: TRUE | Y48: TRUE | Z48: TRUE | AA48: TRUE | AB48: TRUE | AC48: TRUE | AD48: TRUE | AE48: TRUE | AF48: TRUE | AG48: TRUE | AH48: TRUE | AI48: TRUE | AJ48: TRUE | AK48: TRUE | AL48: FALSE | AM48: FALSE | AN48: FALSE | AO48: FALSE | AP48: FALSE | AQ48: FALSE | AR48: FALSE | AS48: FALSE | AT48: FALSE | AU48: FALSE
C50: Capacity | E50: MW | F50: =H6 -> 100 | H50: =$F$50*H48 -> 100 | I50: =$F$50*I48 -> 100 | J50: 100 | K50: =$F$50*K48 -> 100 | L50: 100 | M50: 100 | N50: 100 | O50: 100 | P50: 100 | Q50: 100 | R50: 100 | S50: 100 | T50: 100 | U50: 100 | V50: 100 | W50: 100 | X50: 100 | Y50: 100 | Z50: 100 | AA50: 100 | AB50: 100 | AC50: 100 | AD50: 100 | AE50: 100 | AF50: 100 | AG50: 100 | AH50: 100 | AI50: 100 | AJ50: 100 | AK50: 100 | AL50: 0 | AM50: 0 | AN50: 0 | AO50: 0 | AP50: 0 | AQ50: 0 | AR50: 0 | AS50: 0 | AT50: 0 | AU50: 0
C51: Capacity Factor | E51: % | F51: =H19 -> 0.18 | H51: =$F$51*H48 -> 0.18 | I51: =$F$51*I48 -> 0.18 | J51: 0.18 | K51: =$F$51*K48 -> 0.18 | L51: 0.18 | M51: 0.18 | N51: 0.18 | O51: 0.18 | P51: 0.18 | Q51: 0.18 | R51: 0.18 | S51: 0.18 | T51: 0.18 | U51: 0.18 | V51: 0.18 | W51: 0.18 | X51: 0.18 | Y51: 0.18 | Z51: 0.18 | AA51: 0.18 | AB51: 0.18 | AC51: 0.18 | AD51: 0.18 | AE51: 0.18 | AF51: 0.18 | AG51: 0.18 | AH51: 0.18 | AI51: 0.18 | AJ51: 0.18 | AK51: 0.18 | AL51: 0 | AM51: 0 | AN51: 0 | AO51: 0 | AP51: 0 | AQ51: 0 | AR51: 0 | AS51: 0 | AT51: 0 | AU51: 0
C52: Energy | E52: MWH | H52: =H50*H51*8760 -> 157680 | I52: =I50*I51*8760 -> 157680 | J52: 157680 | K52: =K50*K51*8760 -> 157680 | L52: 157680 | M52: 157680 | N52: 157680 | O52: 157680 | P52: 157680 | Q52: 157680 | R52: 157680 | S52: 157680 | T52: 157680 | U52: 157680 | V52: 157680 | W52: 157680 | X52: 157680 | Y52: 157680 | Z52: 157680 | AA52: 157680 | AB52: 157680 | AC52: 157680 | AD52: 157680 | AE52: 157680 | AF52: 157680 | AG52: 157680 | AH52: 157680 | AI52: 157680 | AJ52: 157680 | AK52: 157680 | AL52: 0 | AM52: 0 | AN52: 0 | AO52: 0 | AP52: 0 | AQ52: 0 | AR52: 0 | AS52: 0 | AT52: 0 | AU52: 0
C54: Inflation Index | E54: Index | F54: =H12 -> 0.025 | G54: 1 | H54: =G54*(1+$F$54) -> 1.025 | I54: =H54*(1+$F$54) -> 1.050625 | J54: 1.076890625 | K54: 1.103812891 | L54: 1.131408213 | M54: 1.159693418 | N54: 1.188685754 | O54: 1.218402898 | P54: 1.24886297 | Q54: 1.280084544 | R54: 1.312086658 | S54: 1.344888824 | T54: 1.378511045 | U54: 1.412973821 | V54: 1.448298166 | W54: 1.484505621 | X54: 1.521618261 | Y54: 1.559658718 | Z54: 1.598650186 | AA54: 1.63861644 | AB54: 1.679581851 | AC54: 1.721571398 | AD54: 1.764610683 | AE54: 1.80872595 | AF54: 1.853944098 | AG54: 1.900292701 | AH54: 1.947800018 | AI54: 1.996495019 | AJ54: 2.046407394 | AK54: 2.097567579 | AL54: 2.150006769 | AM54: 2.203756938 | AN54: 2.258850861 | AO54: 2.315322133 | AP54: 2.373205186 | AQ54: 2.432535316 | AR54: 2.493348699 | AS54: 2.555682416 | AT54: 2.619574476 | AU54: 2.685063838
C56: Price of Power (LCOE) | E56: USD/MWH | F56: 25.6430929 | H56: =$F$56*H48*H54 -> 26.28417022 | I56: =$F$56*I48*I54 -> 26.94127448 | J56: =$F$56*J48*J54 -> 27.61480634 | K56: =$F$56*K48*K54 -> 28.3051765 | L56: 29.01280591 | M56: 29.73812606 | N56: 30.48157921 | O56: 31.24361869 | P56: 32.02470916 | Q56: 32.82532689 | R56: 33.64596006 | S56: 34.48710906 | T56: 35.34928679 | U56: 36.23301895 | V56: 37.13884443 | W56: 38.06731554 | X56: 39.01899843 | Y56: 39.99447339 | Z56: 40.99433522 | AA56: 42.0191936 | AB56: 43.06967344 | AC56: 44.14641528 | AD56: 45.25007566 | AE56: 46.38132755 | AF56: 47.54086074 | AG56: 48.72938226 | AH56: 49.94761682 | AI56: 51.19630724 | AJ56: 52.47621492 | AK56: 53.78812029 | AL56: 0 | AM56: 0 | AN56: 0 | AO56: 0 | AP56: 0 | AQ56: 0 | AR56: 0 | AS56: 0 | AT56: 0 | AU56: 0
C57: Revenues | E57: USD | H57: =H52*H56 -> 4144487.96 | I57: =I52*I56 -> 4248100.159 | J57: 4354302.663 | K57: =K52*K56 -> 4463160.23 | L57: 4574739.236 | M57: 4689107.717 | N57: 4806335.41 | O57: 4926493.795 | P57: 5049656.14 | Q57: 5175897.543 | R57: 5305294.982 | S57: 5437927.356 | T57: 5573875.54 | U57: 5713222.429 | V57: 5856052.989 | W57: 6002454.314 | X57: 6152515.672 | Y57: 6306328.564 | Z57: 6463986.778 | AA57: 6625586.447 | AB57: 6791226.109 | AC57: 6961006.761 | AD57: 7135031.93 | AE57: 7313407.729 | AF57: 7496242.922 | AG57: 7683648.995 | AH57: 7875740.22 | AI57: 8072633.725 | AJ57: 8274449.568 | AK57: 8481310.808 | AL57: 0 | AM57: 0 | AN57: 0 | AO57: 0 | AP57: 0 | AQ57: 0 | AR57: 0 | AS57: 0 | AT57: 0 | AU57: 0
C59: Fixed O&M Cost | E59: USD | F59: =H36 -> 1200000 | H59: =$F$59*H54*H48 -> 1230000 | I59: =$F$59*I54*I48 -> 1260750 | J59: 1292268.75 | K59: 1324575.469 | L59: 1357689.855 | M59: 1391632.102 | N59: 1426422.904 | O59: 1462083.477 | P59: 1498635.564 | Q59: 1536101.453 | R59: 1574503.989 | S59: 1613866.589 | T59: 1654213.254 | U59: 1695568.585 | V59: 1737957.8 | W59: 1781406.745 | X59: 1825941.913 | Y59: 1871590.461 | Z59: 1918380.223 | AA59: 1966339.728 | AB59: 2015498.222 | AC59: 2065885.677 | AD59: 2117532.819 | AE59: 2170471.139 | AF59: 2224732.918 | AG59: 2280351.241 | AH59: 2337360.022 | AI59: 2395794.023 | AJ59: 2455688.873 | AK59: 2517081.095 | AL59: 0 | AM59: 0 | AN59: 0 | AO59: 0 | AP59: 0 | AQ59: 0 | AR59: 0 | AS59: 0 | AT59: 0 | AU59: 0
C61: EBITDA | H61: =H57-H59 -> 2914487.96 | I61: =I57-I59 -> 2987350.159 | J61: 3062033.913 | K61: 3138584.761 | L61: 3217049.38 | M61: 3297475.615 | N61: 3379912.505 | O61: 3464410.318 | P61: 3551020.576 | Q61: 3639796.09 | R61: 3730790.992 | S61: 3824060.767 | T61: 3919662.286 | U61: 4017653.844 | V61: 4118095.19 | W61: 4221047.569 | X61: 4326573.759 | Y61: 4434738.103 | Z61: 4545606.555 | AA61: 4659246.719 | AB61: 4775727.887 | AC61: 4895121.084 | AD61: 5017499.111 | AE61: 5142936.589 | AF61: 5271510.004 | AG61: 5403297.754 | AH61: 5538380.198 | AI61: 5676839.703 | AJ61: 5818760.695 | AK61: 5964229.713 | AL61: 0 | AM61: 0 | AN61: 0 | AO61: 0 | AP61: 0 | AQ61: 0 | AR61: 0 | AS61: 0 | AT61: 0 | AU61: 0
C63: Cap Exp | G63: =H8 -> 60000000
C65: Net Cash Flow | G65: =G61-G63 -> -60000000 | H65: =H61-H63 -> 2914487.96 | I65: 2987350.159 | J65: 3062033.913 | K65: =K61-K63 -> 3138584.761 | L65: 3217049.38 | M65: 3297475.615 | N65: 3379912.505 | O65: 3464410.318 | P65: 3551020.576 | Q65: 3639796.09 | R65: 3730790.992 | S65: 3824060.767 | T65: 3919662.286 | U65: 4017653.844 | V65: 4118095.19 | W65: 4221047.569 | X65: 4326573.759 | Y65: 4434738.103 | Z65: 4545606.555 | AA65: 4659246.719 | AB65: 4775727.887 | AC65: 4895121.084 | AD65: 5017499.111 | AE65: 5142936.589 | AF65: 5271510.004 | AG65: 5403297.754 | AH65: 5538380.198 | AI65: 5676839.703 | AJ65: 5818760.695 | AK65: 5964229.713 | AL65: 0 | AM65: 0 | AN65: 0 | AO65: 0 | AP65: 0 | AQ65: 0 | AR65: 0 | AS65: 0 | AT65: 0 | AU65: 0
C66: Project IRR | F66: =IRR(G65:AU65) -> 0.05
C67: NPV at target IRR | F67: =H15 -> 0.1 | G67: =NPV(F67,G65:AU65) -> -23464950.91
C69: LCOE Formula
C71: NPV of Revenues | F71: =F66 -> 0.05 | G71: =NPV(F71,H57:AU57) -> 85321772.13
C72: NPV of Generation | F72: =F71 -> 0.05 | G72: =NPV(F72,H52:AU52) -> 2423928.078
C73: LCOE | G73: =G71/G72 -> 35.19979528
C76: Cap Exp | G76: =G63 -> 60000000
C77: NPV of Op Exp | F77: =F71 -> 0.05 | G77: =NPV(F77,H59:AU59) -> 25321772.13
C78: Total Cost | G78: =SUM(G76:G77) -> 85321772.13
C79: NPV of Generation | F79: =F72 -> 0.05 | G79: =NPV(F79,H52:AU52) -> 2423928.078
C80: LCOE | G80: =G78/G79 -> 35.19979528

Sheet Terminal
C3: Contract | D3: 20
C4: Economic Life | D4: 40
C5: Target IRR | D5: 0.07
C7: Time | D7: 0 | F7: 1 | G7: 2 | H7: 3 | I7: 4 | J7: 5 | K7: 6 | L7: 7 | M7: 8 | N7: 9 | O7: 10 | P7: 11 | Q7: 12 | R7: 13 | S7: 14 | T7: 15 | U7: 16 | V7: 17 | W7: 18 | X7: 19 | Y7: 20 | Z7: 21 | AA7: 22 | AB7: 23 | AC7: 24 | AD7: 25 | AE7: 26 | AF7: 27 | AG7: 28 | AH7: 29 | AI7: 30 | AJ7: 31 | AK7: 32 | AL7: 33 | AM7: 34 | AN7: 35 | AO7: 36 | AP7: 37 | AQ7: 38 | AR7: 39 | AS7: 40
C8: Contract Period | D8: =D3 -> 20 | F8: =F7<=$D$8 -> TRUE | G8: =G7<=$D$8 -> TRUE | H8: TRUE | I8: TRUE | J8: TRUE | K8: TRUE | L8: TRUE | M8: TRUE | N8: TRUE | O8: TRUE | P8: TRUE | Q8: TRUE | R8: TRUE | S8: TRUE | T8: TRUE | U8: TRUE | V8: TRUE | W8: TRUE | X8: TRUE | Y8: TRUE | Z8: FALSE | AA8: FALSE | AB8: FALSE | AC8: FALSE | AD8: FALSE | AE8: FALSE | AF8: FALSE | AG8: FALSE | AH8: FALSE | AI8: FALSE | AJ8: FALSE | AK8: FALSE | AL8: FALSE | AM8: FALSE | AN8: FALSE | AO8: FALSE | AP8: FALSE | AQ8: FALSE | AR8: FALSE | AS8: FALSE
C9: Operating Life | D9: =D4 -> 40 | F9: =F7<=$D$9 -> TRUE | G9: =G7<=$D$9 -> TRUE | H9: TRUE | I9: TRUE | J9: TRUE | K9: TRUE | L9: TRUE | M9: TRUE | N9: TRUE | O9: TRUE | P9: TRUE | Q9: TRUE | R9: TRUE | S9: TRUE | T9: TRUE | U9: TRUE | V9: TRUE | W9: TRUE | X9: TRUE | Y9: TRUE | Z9: TRUE | AA9: TRUE | AB9: TRUE | AC9: TRUE | AD9: TRUE | AE9: TRUE | AF9: TRUE | AG9: TRUE | AH9: TRUE | AI9: TRUE | AJ9: TRUE | AK9: TRUE | AL9: TRUE | AM9: TRUE | AN9: TRUE | AO9: TRUE | AP9: TRUE | AQ9: TRUE | AR9: TRUE | AS9: TRUE
C10: Post Contract | F10: =F8<>F9 -> FALSE | G10: =G8<>G9 -> FALSE | H10: FALSE | I10: FALSE | J10: FALSE | K10: FALSE | L10: FALSE | M10: FALSE | N10: FALSE | O10: FALSE | P10: FALSE | Q10: FALSE | R10: FALSE | S10: FALSE | T10: FALSE | U10: FALSE | V10: FALSE | W10: FALSE | X10: FALSE | Y10: FALSE | Z10: TRUE | AA10: TRUE | AB10: TRUE | AC10: TRUE | AD10: TRUE | AE10: TRUE | AF10: TRUE | AG10: TRUE | AH10: TRUE | AI10: TRUE | AJ10: TRUE | AK10: TRUE | AL10: TRUE | AM10: TRUE | AN10: TRUE | AO10: TRUE | AP10: TRUE | AQ10: TRUE | AR10: TRUE | AS10: TRUE
C12: Cap Exp | D12: 1000 | E12: =D12 -> 1000
C13: Contract Revenues | F13: 86.64035566 | G13: =$F$13*G8 -> 86.64035566 | H13: =$F$13*H8 -> 86.64035566 | I13: 86.64035566 | J13: 86.64035566 | K13: 86.64035566 | L13: 86.64035566 | M13: 86.64035566 | N13: 86.64035566 | O13: 86.64035566 | P13: 86.64035566 | Q13: 86.64035566 | R13: 86.64035566 | S13: 86.64035566 | T13: 86.64035566 | U13: 86.64035566 | V13: 86.64035566 | W13: 86.64035566 | X13: 86.64035566 | Y13: 86.64035566 | Z13: 0 | AA13: 0 | AB13: 0 | AC13: 0 | AD13: 0 | AE13: 0 | AF13: 0 | AG13: 0 | AH13: 0 | AI13: 0 | AJ13: 0 | AK13: 0 | AL13: 0 | AM13: 0 | AN13: 0 | AO13: 0 | AP13: 0 | AQ13: 0 | AR13: 0 | AS13: 0
C14: Terminal Post Contract | D14: 30 | F14: =$D$14*F10 -> 0 | G14: =$D$14*G10 -> 0 | H14: 0 | I14: 0 | J14: 0 | K14: 0 | L14: 0 | M14: 0 | N14: 0 | O14: 0 | P14: 0 | Q14: 0 | R14: 0 | S14: 0 | T14: 0 | U14: 0 | V14: 0 | W14: 0 | X14: 0 | Y14: 0 | Z14: 30 | AA14: 30 | AB14: 30 | AC14: 30 | AD14: 30 | AE14: 30 | AF14: 30 | AG14: 30 | AH14: 30 | AI14: 30 | AJ14: 30 | AK14: 30 | AL14: 30 | AM14: 30 | AN14: 30 | AO14: 30 | AP14: 30 | AQ14: 30 | AR14: 30 | AS14: 30
C16: Cash Flow | E16: =E13+E14-E12 -> -1000 | F16: =F13+F14-F12 -> 86.64035566 | G16: 86.64035566 | H16: 86.64035566 | I16: 86.64035566 | J16: 86.64035566 | K16: 86.64035566 | L16: 86.64035566 | M16: 86.64035566 | N16: 86.64035566 | O16: 86.64035566 | P16: 86.64035566 | Q16: 86.64035566 | R16: 86.64035566 | S16: 86.64035566 | T16: 86.64035566 | U16: 86.64035566 | V16: 86.64035566 | W16: 86.64035566 | X16: 86.64035566 | Y16: 86.64035566 | Z16: 30 | AA16: 30 | AB16: 30 | AC16: 30 | AD16: 30 | AE16: 30 | AF16: 30 | AG16: 30 | AH16: 30 | AI16: 30 | AJ16: 30 | AK16: 30 | AL16: 30 | AM16: 30 | AN16: 30 | AO16: 30 | AP16: 30 | AQ16: 30 | AR16: 30 | AS16: 30
C18: Pre-tax Project IRR | D18: =IRR(E16:AS16) -> 0.07
C19: NPV at Target | D19: =NPV(D5,E16:AS16) -> 3.619119542e-13

Sheet Basic LCOE Exercise
C2: Capital Costs
C3: Capital Costs | D3: Cost per kWp | E3: 550
C5: Production
C6: Yield | D6: Yield kWh/kWp | E6: 2500
C7: Capacity Factor | D7: Capacity Factor % | H7: Annual in-plane radiation
C9: O&M Cost
C10: O&M Expense | D10: $/kW/year | E10: 11 | H10: Average hourly radiation
C11: Target IRR (pre-tax) | D11: Real Level Required IRR | E11: =G11/100 -> 0.04 | G11: 4 | H11: Average hourly radiation
C12: Project Life | H12: STC capacity
D13: Life in Years | E13: 30 | H13: In-plane capacity factor
C14: LCOE (bid price)
C15: O&M Costs | D15: O&M Cost $/MWh | G15: =_xlfn.FORMULATEXT(E15) -> 
C16: O&M Costs | D16: O&M cents/kWh
C17: Capital Recovery | D17: PMT for Level Capital Cost | G17: =_xlfn.FORMULATEXT(E17) -> 
C18: Capital Recovered | D18: Capital Cost $/kW/year | G18: =_xlfn.FORMULATEXT(E18) -> 
C19: Capital Recovered | D19: Level Capital Cost $/MWh | G19: =_xlfn.FORMULATEXT(E19) -> 
C21: LCOE | D21: Level Total Cost $/MWh | G21: =_xlfn.FORMULATEXT(E21) -> 
C22: LCOE | D22: Level Total Cost cents/kWh
C23: Target LCOE | D23: Target
D24: Difference
B26: Simple Financial Model
H27: 0 | I27: 1 | J27: 2 | K27: 3 | L27: 4 | M27: 5 | N27: 6 | O27: 7 | P27: 8 | Q27: 9 | R27: 10 | S27: 11 | T27: 12 | U27: 13 | V27: 14 | W27: 15 | X27: 16 | Y27: 17 | Z27: 18 | AA27: 19 | AB27: 20 | AC27: 21 | AD27: 22 | AE27: 23 | AF27: 24 | AG27: 25 | AH27: 26 | AI27: 27 | AJ27: 28 | AK27: 29 | AL27: 30
D28: Capacity | E28: kWp | G28: 100
D29: Generation | E29: kWh | G29: =E6 -> 2500
D31: LCOE | E31: USD/kWh | G31: =E22/100 -> 0
D32: Revenues
D33: O&M | E33: USD/kwy | G33: =E10 -> 11
D34: Expenses
D36: EBITDA
D38: Cap Exp | G38: =E3 -> 550
D40: Cash Flow
D41: IRR | G41: =IRR(H40:AL40) -> 
D43: LCOE = NPV Rev/NPV Gen
D44: NPV Rev
D45: NPV Generation
B49: Resource and SCT
C51: Annual kWh/m^2 | E51: POA | F51: 3000
C52: Hourly kWh/m^2 | E52: POA | F52: =F51/8760 -> 0.3424657534
C53: Hourly Wh/m^2 | E53: POA | F53: =F52*1000 -> 342.4657534
C54: STC Wh/m^2 | E54: POA | F54: =1000 -> 1000
C55: Capacity Factor | F55: =F53/F54 -> 0.3424657534

Sheet Basic LCOE
C2: Capital Costs
C3: Capital Costs | D3: Cost per kWp | E3: 550
C5: Production
C6: Yield | D6: Yield kWh/kWp | E6: 2500
C7: Capacity Factor | D7: Capacity Factor % | E7: =E6/8760 -> 0.2853881279 | H7: Annual in-plane radiation
C9: O&M Cost
C10: O&M Expense | D10: $/kW/year | E10: 11 | H10: Average hourly radiation
C11: Target IRR (pre-tax) | D11: Real Level Required IRR | E11: =G11/100 -> 0.04 | G11: 4 | H11: Average hourly radiation
C12: Project Life | H12: STC capacity
D13: Life in Years | E13: 30 | H13: In-plane capacity factor
C14: LCOE (bid price)
C15: O&M Costs | D15: O&M Cost $/MWh | E15: =E10*1000/(8760*E7) -> 4.4 | G15: =_xlfn.FORMULATEXT(E15) -> =E10*1000/(8760*E7)
C16: O&M Costs | D16: O&M cents/kWh | E16: =E15/1000*100 -> 0.44
C17: Capital Recovery | D17: PMT for Level Capital Cost | E17: =PMT(E11,E13,-1) -> 0.05783009913 | G17: =_xlfn.FORMULATEXT(E17) -> =PMT(E11,E13,-1)
C18: Capital Recovered | D18: Capital Cost $/kW/year | E18: =E17*E3 -> 31.80655452 | G18: =_xlfn.FORMULATEXT(E18) -> =E17*E3
C19: Capital Recovered | D19: Level Capital Cost $/MWh | E19: =E18*1000/E6 -> 12.72262181 | G19: =_xlfn.FORMULATEXT(E19) -> =E18*1000/E6
C21: LCOE | D21: Level Total Cost $/MWh | E21: =E15+E19 -> 17.12262181 | G21: =_xlfn.FORMULATEXT(E21) -> =E15+E19
C22: LCOE | D22: Level Total Cost cents/kWh | E22: =E21/10 -> 1.712262181
C23: Target LCOE | D23: Target | E23: 2
D24: Difference | E24: =E22-E23 -> -0.2877378191
B26: Simple Financial Model
H27: 0 | I27: 1 | J27: 2 | K27: 3 | L27: 4 | M27: 5 | N27: 6 | O27: 7 | P27: 8 | Q27: 9 | R27: 10 | S27: 11 | T27: 12 | U27: 13 | V27: 14 | W27: 15 | X27: 16 | Y27: 17 | Z27: 18 | AA27: 19 | AB27: 20 | AC27: 21 | AD27: 22 | AE27: 23 | AF27: 24 | AG27: 25 | AH27: 26 | AI27: 27 | AJ27: 28 | AK27: 29 | AL27: 30
D28: Capacity | E28: kWp | G28: 100 | I28: =$G$28 -> 100 | J28: =$G$28 -> 100 | K28: 100 | L28: 100 | M28: 100 | N28: 100 | O28: 100 | P28: 100 | Q28: 100 | R28: 100 | S28: 100 | T28: 100 | U28: 100 | V28: 100 | W28: 100 | X28: 100 | Y28: 100 | Z28: 100 | AA28: 100 | AB28: 100 | AC28: 100 | AD28: 100 | AE28: 100 | AF28: 100 | AG28: 100 | AH28: 100 | AI28: 100 | AJ28: 100 | AK28: 100 | AL28: 100
D29: Generation | E29: kWh | G29: =E6 -> 2500 | I29: =I28*$G$29 -> 250000 | J29: =J28*$G$29 -> 250000 | K29: 250000 | L29: 250000 | M29: 250000 | N29: 250000 | O29: 250000 | P29: 250000 | Q29: 250000 | R29: 250000 | S29: 250000 | T29: 250000 | U29: 250000 | V29: 250000 | W29: 250000 | X29: 250000 | Y29: 250000 | Z29: 250000 | AA29: 250000 | AB29: 250000 | AC29: 250000 | AD29: 250000 | AE29: 250000 | AF29: 250000 | AG29: 250000 | AH29: 250000 | AI29: 250000 | AJ29: 250000 | AK29: 250000 | AL29: 250000
D31: LCOE | E31: USD/kWh | G31: =E22/100 -> 0.01712262181 | I31: =$G$31 -> 0.01712262181 | J31: =$G$31 -> 0.01712262181 | K31: 0.01712262181 | L31: 0.01712262181 | M31: 0.01712262181 | N31: 0.01712262181 | O31: 0.01712262181 | P31: 0.01712262181 | Q31: 0.01712262181 | R31: 0.01712262181 | S31: 0.01712262181 | T31: 0.01712262181 | U31: 0.01712262181 | V31: 0.01712262181 | W31: 0.01712262181 | X31: 0.01712262181 | Y31: 0.01712262181 | Z31: 0.01712262181 | AA31: 0.01712262181 | AB31: 0.01712262181 | AC31: 0.01712262181 | AD31: 0.01712262181 | AE31: 0.01712262181 | AF31: 0.01712262181 | AG31: 0.01712262181 | AH31: 0.01712262181 | AI31: 0.01712262181 | AJ31: 0.01712262181 | AK31: 0.01712262181 | AL31: 0.01712262181
D32: Revenues | I32: =I31*I29 -> 4280.655452 | J32: =J31*J29 -> 4280.655452 | K32: 4280.655452 | L32: 4280.655452 | M32: 4280.655452 | N32: 4280.655452 | O32: 4280.655452 | P32: 4280.655452 | Q32: 4280.655452 | R32: 4280.655452 | S32: 4280.655452 | T32: 4280.655452 | U32: 4280.655452 | V32: 4280.655452 | W32: 4280.655452 | X32: 4280.655452 | Y32: 4280.655452 | Z32: 4280.655452 | AA32: 4280.655452 | AB32: 4280.655452 | AC32: 4280.655452 | AD32: 4280.655452 | AE32: 4280.655452 | AF32: 4280.655452 | AG32: 4280.655452 | AH32: 4280.655452 | AI32: 4280.655452 | AJ32: 4280.655452 | AK32: 4280.655452 | AL32: 4280.655452
D33: O&M | E33: USD/kwy | G33: =E10 -> 11 | I33: =$G$33 -> 11 | J33: =$G$33 -> 11 | K33: 11 | L33: 11 | M33: 11 | N33: 11 | O33: 11 | P33: 11 | Q33: 11 | R33: 11 | S33: 11 | T33: 11 | U33: 11 | V33: 11 | W33: 11 | X33: 11 | Y33: 11 | Z33: 11 | AA33: 11 | AB33: 11 | AC33: 11 | AD33: 11 | AE33: 11 | AF33: 11 | AG33: 11 | AH33: 11 | AI33: 11 | AJ33: 11 | AK33: 11 | AL33: 11
D34: Expenses | I34: =I33*I28 -> 1100 | J34: =J33*J28 -> 1100 | K34: 1100 | L34: 1100 | M34: 1100 | N34: 1100 | O34: 1100 | P34: 1100 | Q34: 1100 | R34: 1100 | S34: 1100 | T34: 1100 | U34: 1100 | V34: 1100 | W34: 1100 | X34: 1100 | Y34: 1100 | Z34: 1100 | AA34: 1100 | AB34: 1100 | AC34: 1100 | AD34: 1100 | AE34: 1100 | AF34: 1100 | AG34: 1100 | AH34: 1100 | AI34: 1100 | AJ34: 1100 | AK34: 1100 | AL34: 1100
D36: EBITDA | I36: =I32-I34 -> 3180.655452 | J36: =J32-J34 -> 3180.655452 | K36: 3180.655452 | L36: 3180.655452 | M36: 3180.655452 | N36: 3180.655452 | O36: 3180.655452 | P36: 3180.655452 | Q36: 3180.655452 | R36: 3180.655452 | S36: 3180.655452 | T36: 3180.655452 | U36: 3180.655452 | V36: 3180.655452 | W36: 3180.655452 | X36: 3180.655452 | Y36: 3180.655452 | Z36: 3180.655452 | AA36: 3180.655452 | AB36: 3180.655452 | AC36: 3180.655452 | AD36: 3180.655452 | AE36: 3180.655452 | AF36: 3180.655452 | AG36: 3180.655452 | AH36: 3180.655452 | AI36: 3180.655452 | AJ36: 3180.655452 | AK36: 3180.655452 | AL36: 3180.655452
D38: Cap Exp | G38: =E3 -> 550 | H38: =G38*G28 -> 55000
D40: Cash Flow | H40: =H36-H38 -> -55000 | I40: =I36-I38 -> 3180.655452 | J40: 3180.655452 | K40: 3180.655452 | L40: 3180.655452 | M40: 3180.655452 | N40: 3180.655452 | O40: 3180.655452 | P40: 3180.655452 | Q40: 3180.655452 | R40: 3180.655452 | S40: 3180.655452 | T40: 3180.655452 | U40: 3180.655452 | V40: 3180.655452 | W40: 3180.655452 | X40: 3180.655452 | Y40: 3180.655452 | Z40: 3180.655452 | AA40: 3180.655452 | AB40: 3180.655452 | AC40: 3180.655452 | AD40: 3180.655452 | AE40: 3180.655452 | AF40: 3180.655452 | AG40: 3180.655452 | AH40: 3180.655452 | AI40: 3180.655452 | AJ40: 3180.655452 | AK40: 3180.655452 | AL40: 3180.655452
D41: IRR | G41: =IRR(H40:AL40) -> 0.04
D43: LCOE = NPV Rev/NPV Gen
D44: NPV Rev | G44: =NPV(G41,I32:AL32) -> 74021.23663
D45: NPV Generation | G45: =NPV(G41,I29:AL29) -> 4323008.325
G46: =G44/G45 -> 0.01712262181
B49: Resource and SCT
C51: Annual kWh/m^2 | E51: POA | F51: 3000
C52: Hourly kWh/m^2 | E52: POA | F52: =F51/8760 -> 0.3424657534
C53: Hourly Wh/m^2 | E53: POA | F53: =F52*1000 -> 342.4657534
C54: STC Wh/m^2 | E54: POA | F54: =1000 -> 1000
C55: Capacity Factor | F55: =F53/F54 -> 0.3424657534

Sheet LCOE Exercise
B3: Gas Cost | E3: =L81 -> 0
B4: Technology | E4: 2 | G4: =INDEX(I4:S4,$E$4) -> Solar | I4: Solar | J4: Solar | K4: Solar | L4: Natural | M4: Coal | N4: Diesel | O4: Wind | P4: Wind | Q4: Battery | R4: Solar | S4: Battery | T4: Solar for | U4: Battery
G5: =INDEX(I5:S5,$E$4) -> With Tracking | I5: No Tracking | J5: With Tracking | K5: Saudi Arabia | L5: Gas Comb Cycle | O5: Onshore | P5: Offshore | Q5: Ancillary | R5: & Ancillary Services | S5: Storage | T5: Storage | U5: Storage and Solar
B6: Real LCOE | G6: =G117 -> 0 | I6: =I117 -> 0 | J6: =J117 -> 0 | K6: 0 | L6: 0 | M6: 0 | N6: 0 | O6: 0 | P6: 0 | Q6: 0 | R6: 0 | S6: 0 | T6: 0 | U6: 0
B8: Driver 1 Production
C9: Capacity | E9: kW | G9: =INDEX(I9:S9,$E$4) -> 0
C11: Annual In-plane yield | E11: kWh/m2 | G11: =INDEX(I11:S11,$E$4) -> 0
C12: Hourly yield | E12: Wh/m2 | G12: =INDEX(I12:S12,$E$4) -> 0
C13: STC | E13: W/m2 | G13: =INDEX(I13:S13,$E$4) -> 0
C14: In-plane Capacity Factor | E14: % | G14: =INDEX(I14:S14,$E$4) -> 0
C15: Performance Ratio | E15: % | G15: =INDEX(I15:S15,$E$4) -> 0
C16: Capacity Factor to the Grid | E16: % | G16: =INDEX(I16:S16,$E$4) -> 0
C17: Yield | E17: kWh/kWp | G17: =INDEX(I17:S17,$E$4) -> 0
C18: Annual Generation | E18: kWh | G18: =INDEX(I18:S18,$E$4) -> 0
C19: Annual Generation | E19: MWH | G19: =INDEX(I19:S19,$E$4) -> 0
B21: Driver 2 Capital Cost
C22: Panel Cost | E22: USD/kW | G22: =INDEX(I22:S22,$E$4) -> 0
C23: Other Cost | E23: USD/kW | G23: =INDEX(I23:S23,$E$4) -> 0
C24: Total Costs | E24: USD/kW | G24: =INDEX(I24:S24,$E$4) -> 0
C26: Battery Capacity | E26: kW | G26: =INDEX(I26:S26,$E$4) -> 0
C27: Battery Cycle Duration | E27: hours | G27: =INDEX(I27:S27,$E$4) -> 0
C28: Battery Capacity | E28: kWh
C29: Battery Cost | E29: USD/kWh | G29: =INDEX(I29:S29,$E$4) -> 0
G30: =INDEX(I30:S30,$E$4) -> 0
C31: Total Capital Cost | E31: USD | G31: =INDEX(I31:S31,$E$4) -> 0
B33: Driver 3 Cost of Capital and Carrying Charges
C34: Project Life | E34: Yr | G34: =INDEX(I34:S34,$E$4) -> 0
C35: Tax Life | E35: Yr | G35: =INDEX(I35:S35,$E$4) -> 0
C36: Income Tax Rate | E36: % | G36: =INDEX(I36:S36,$E$4) -> 0
C37: Variable Declining Balance Factor (1-St Line) | E37: Factor | G37: =INDEX(I37:S37,$E$4) -> 0
C38: Cost of Debt | E38: % | G38: =INDEX(I38:S38,$E$4) -> 0
C39: After Cost of Debt | E39: % | G39: =INDEX(I39:S39,$E$4) -> 0
C40: Debt to Captial | E40: % | G40: =INDEX(I40:S40,$E$4) -> 0
C41: Target Equity IRR | E41: % | G41: =INDEX(I41:S41,$E$4) -> 0
C42: WACC | E42: % | G42: =INDEX(I42:S42,$E$4) -> 0
C44: Required Project IRR | E44: % p.a. | G44: =INDEX(I44:S44,$E$4) -> 0
C46: Inflation | E46: % p.a. | G46: =INDEX(I46:S46,$E$4) -> 0
C47: Degradation | E47: % p.a. | G47: =INDEX(I47:S47,$E$4) -> 0
C48: Tax Shield Value | E48: % | G48: =INDEX(I48:S48,$E$4) -> 0
C50: Levelizing Factor with PMT | E50: % | G50: =INDEX(I50:S50,$E$4) -> 0
C51: Capital Recovery Pre-Tax | E51: USD/yr | G51: =INDEX(I51:S51,$E$4) -> 0
C53: Capital Cost Recovery Base | E53: USD/yr | G53: =INDEX(I53:S53,$E$4) -> 0
C54: IRR Adjusted for Degradation | E54: % p.a. | G54: =INDEX(I54:S54,$E$4) -> 0
C55: Nominal Levelizing Factor with Degradation | E55: % p.a. | G55: =INDEX(I55:S55,$E$4) -> 0
C56: PMT Factor Adjusted for Paying Taxes | E56: % p.a. | G56: =INDEX(I56:S56,$E$4) -> 0
C57: PMT Factor Adjust for Tax Depreciation Shield | E57: % p.a. | G57: =INDEX(I57:S57,$E$4) -> 0
C59: Construction Timing | E59: Year
C60: Construction Factor | E60: Factor
C61: Capital Cost Recovery with Degradation | E61: USD/yr | G61: =INDEX(I61:S61,$E$4) -> 0
C63: Real IRR | E63: % p.a. | G63: =INDEX(I63:S63,$E$4) -> 0
C64: Levelizing Factor with Real IRR | E64: % p.a. | G64: =INDEX(I64:S64,$E$4) -> 0
C65: Real IRR Adjusted for Degradation | E65: % p.a. | G65: =INDEX(I65:S65,$E$4) -> 0
C66: Levelizing Factor with Real IRR and Degradation | E66: % p.a. | G66: =INDEX(I66:S66,$E$4) -> 0
C68: Adj for Tax on Inc (Divide by (1-t)) | E68: % | G68: =INDEX(I68:S68,$E$4) -> 0
C69: Adj for Tax Shield | E69: % | G69: =INDEX(I69:S69,$E$4) -> 0
C71: Construction Real | E71: Factor
C72: Final Real Capital Cost Recovery with Degradation | E72: USD/yr | G72: =INDEX(I72:S72,$E$4) -> 0
B74: Driver 4 -- O&M Cost
C75: Fixed O&M Cost | E75: USD/kWy | G75: =INDEX(I75:S75,$E$4) -> 0
C76: Other Cost | E76: USD/kWy | G76: =INDEX(I76:S76,$E$4) -> 0
C77: Per Unit Fixed O&M Cost | E77: USD/kWy | G77: =INDEX(I77:S77,$E$4) -> 0
C78: Total Fixed O&M Cost | E78: USD/Yr | G78: =INDEX(I78:S78,$E$4) -> 0
C80: Fuel Effiency (Input/Output) | E80: MMBTU/MWH | G80: =INDEX(I80:S80,$E$4) -> 0
C81: Fuel Cost | E81: USD/MMBTU | G81: =INDEX(I81:S81,$E$4) -> 0
C82: Fuel Expense | E82: USD/MWH | G82: =INDEX(I82:S82,$E$4) -> 0
C83: Total Fuel Cost | E83: USD/Yr | G83: =INDEX(I83:S83,$E$4) -> 0
C85: Other Variable Cost | E85: USD/MWH | G85: =INDEX(I85:S85,$E$4) -> 0
C86: Total Other Variable Cost | E86: USD/Yr | G86: =INDEX(I86:S86,$E$4) -> 0
C88: CO2 Tons Produced per kWh | E88: CO2 Tons/kWh
C89: Total CO2 Produced | E89: CO2 Tons
C90: Value per Tonne | E90: USD/Tonne
C91: Total O&M for CO2 | E91: USD
C93: Total Operating Costs | E93: USD/yr | G93: =INDEX(I93:S93,$E$4) -> 0
C95: Inflation Factor for Nominal Cost | E95: Factor | G95: =INDEX(I95:S95,$E$4) -> 0
C96: Degradation Factor for Nominal Cost | E96: Factor | G96: =INDEX(I96:S96,$E$4) -> 0
C97: Adjusted Nominal Cost for LCOE Calc | E97: USD/yr | G97: =INDEX(I97:S97,$E$4) -> 0
C99: Degradation Factor for Real Cost | E99: Factor | G99: =INDEX(I99:S99,$E$4) -> 0
C100: Adjusted Real Cost of LOCE | E100: USD/yr | G100: =INDEX(I100:S100,$E$4) -> 0
B102: LCOE Calculation
C103: Nominal Capital Recovery | E103: USD/yr | G103: =INDEX(I103:S103,$E$4) -> 0
C104: Nomina O&M Cost | E104: USD/yr | G104: =INDEX(I104:S104,$E$4) -> 0
C105: Total Nominal Cost | E105: USD/yr | G105: =INDEX(I105:S105,$E$4) -> 0
C107: Total Production | E107: kWh | G107: =INDEX(I107:S107,$E$4) -> 0
C108: LCOE - Nominal | E108: USD/kWh | G108: =INDEX(I108:S108,$E$4) -> 0
C109: LCOE - Nominal | E109: USD/MWh | G109: =INDEX(I109:S109,$E$4) -> 0
C111: Capital Recovery - Real | E111: USD/yr | G111: =INDEX(I111:S111,$E$4) -> 0
C112: O&M Cost | E112: USD/yr | G112: =INDEX(I112:S112,$E$4) -> 0
C113: Total Cost | E113: USD/yr | G113: =INDEX(I113:S113,$E$4) -> 0
C115: Total Production | E115: kWh | G115: =INDEX(I115:S115,$E$4) -> 0
C116: LCOE - Real | E116: USD/kWh | G116: =INDEX(I116:S116,$E$4) -> 0
C117: LCOE - Real | E117: USD/MWh | G117: =INDEX(I117:S117,$E$4) -> 0
C119: LCOE-Real | E119: USD/kW-year
C121: Renewable Versus Dispatchable Variable Cost
C122: Natural Gas Price | G122: =$E$3 -> 0 | H122: =$E$3 -> 0
C123: Variable Cost of Natural Gas CC | G123: =L82+L85 -> 0
B125: Financing Assumptions
C126: Max Debt to Capital | G126: =INDEX(I126:S126,$E$4) -> 0
C127: Interest Rate | G127: =INDEX(I127:S127,$E$4) -> 0
C128: Debt Tenor | G128: =INDEX(I128:S128,$E$4) -> 0
C129: P50 DSCR | G129: =INDEX(I129:S129,$E$4) -> 0
C130: P99 DSCR | G130: =INDEX(I130:S130,$E$4) -> 0
C132: Target Equity IRR | G132: =INDEX(I132:S132,$E$4) -> 0
I143: =TRANSPOSE(I4:S4) -> Solar | J143: =TRANSPOSE(I5:U5) -> No Tracking | K143: =I143&" "&J143 -> Solar No Tracking
I144: Solar | J144: With Tracking | K144: =I144&" "&J144 -> Solar With Tracking
I145: Solar | J145: Saudi Arabia | K145: Solar Saudi Arabia
I146: Natural | J146: Gas Comb Cycle | K146: Natural Gas Comb Cycle
I147: Coal | K147: Coal
I148: Diesel | K148: Diesel
I149: Wind | J149: Onshore | K149: Wind Onshore
I150: Wind | J150: Offshore | K150: Wind Offshore
I151: Battery | J151: Ancillary | K151: Battery Ancillary
I152: Solar | J152: & Ancillary Services | K152: Solar & Ancillary Services
I153: Battery | J153: Storage | K153: Battery Storage
J154: Storage
J155: Storage and Solar

Sheet LCOE Comparison
B3: Gas Cost | E3: =L81 -> 6
B4: Technology | E4: 2 | G4: =INDEX(I4:S4,$E$4) -> Solar | I4: Solar | J4: Solar | K4: Solar | L4: Natural | M4: Coal | N4: Diesel | O4: Wind | P4: Wind | Q4: Battery | R4: Solar | S4: Battery | T4: Solar for | U4: Battery
G5: =INDEX(I5:S5,$E$4) -> With Tracking | I5: No Tracking | J5: With Tracking | K5: Saudi Arabia | L5: Gas Comb Cycle | O5: Onshore | P5: Offshore | Q5: Ancillary | R5: & Ancillary Services | S5: Storage | T5: Storage | U5: Storage and Solar
B6: Real LCOE | G6: =G117 -> 19.79653911 | I6: =I117 -> 20.91490816 | J6: =J117 -> 19.79653911 | K6: 14.54861046 | L6: 49.75524574 | M6: 27.99002237 | N6: 227.0433913 | O6: 42.97774259 | P6: 34.2360254 | Q6: 0 | R6: 35.13974026 | S6: 0 | T6: 0 | U6: 0
B8: Driver 1 Production
C9: Capacity | E9: kW | G9: =INDEX(I9:S9,$E$4) -> 100 | I9: 100 | J9: 100 | K9: 100 | L9: 100 | M9: 100 | N9: 100 | O9: 100 | P9: 100 | Q9: 100 | R9: 100 | S9: 100 | T9: 100 | U9: 100
C11: Annual In-plane yield | E11: kWh/m2 | G11: =INDEX(I11:S11,$E$4) -> 2400 | I11: 2000 | J11: 2400 | K11: 3000
C12: Hourly yield | E12: Wh/m2 | G12: =INDEX(I12:S12,$E$4) -> 273.9726027 | I12: =I11/8760*1000 -> 228.3105023 | J12: =J11/8760*1000 -> 273.9726027 | K12: =K11/8760*1000 -> 342.4657534
C13: STC | E13: W/m2 | G13: =INDEX(I13:S13,$E$4) -> 1000 | I13: 1000 | J13: 1000 | K13: 1000
C14: In-plane Capacity Factor | E14: % | G14: =INDEX(I14:S14,$E$4) -> 0.2739726027 | I14: =I12/I13 -> 0.2283105023 | J14: =J12/J13 -> 0.2739726027 | K14: =K12/K13 -> 0.3424657534
C15: Performance Ratio | E15: % | G15: =INDEX(I15:S15,$E$4) -> 0.8 | I15: 0.8 | J15: 0.8 | K15: 0.8
C16: Capacity Factor to the Grid | E16: % | G16: =INDEX(I16:S16,$E$4) -> 0.2191780822 | I16: =I14*I15 -> 0.1826484018 | J16: =J14*J15 -> 0.2191780822 | K16: =K14*K15 -> 0.2739726027 | L16: 0.7 | M16: 0.7 | N16: 0.7 | O16: 0.35 | P16: 0.55 | T16: =I16 -> 0.1826484018
C17: Yield | E17: kWh/kWp | G17: =INDEX(I17:S17,$E$4) -> 1920 | I17: =I16*8760 -> 1600 | J17: 1920 | K17: 2400 | L17: 6132 | M17: 6132 | N17: 6132 | O17: =O16*8760 -> 3066 | P17: =P16*8760 -> 4818 | T17: =I17 -> 1600
C18: Annual Generation | E18: kWh | G18: =INDEX(I18:S18,$E$4) -> 192000 | I18: =I17*I9 -> 160000 | J18: 192000 | K18: 240000 | L18: 613200 | M18: 613200 | N18: 613200 | O18: =O17*O9 -> 306600 | P18: =P17*P9 -> 481800 | T18: =I18 -> 160000
C19: Annual Generation | E19: MWH | G19: =INDEX(I19:S19,$E$4) -> 192 | I19: =I18/1000 -> 160 | J19: 192 | K19: 240 | L19: 613.2 | M19: 613.2 | N19: 613.2 | O19: 306.6 | P19: 481.8 | T19: =I19 -> 160
B21: Driver 2 Capital Cost
C22: Panel Cost | E22: USD/kW | G22: =INDEX(I22:S22,$E$4) -> 200 | I22: 200 | J22: 200 | K22: 200
C23: Other Cost | E23: USD/kW | G23: =INDEX(I23:S23,$E$4) -> 355 | I23: 305 | J23: 355 | K23: 355
C24: Total Costs | E24: USD/kW | G24: =INDEX(I24:S24,$E$4) -> 555 | I24: =I22+I23 -> 505 | J24: =J22+J23 -> 555 | K24: =K22+K23 -> 555 | L24: 800 | M24: 2000 | N24: 200 | O24: 1300 | P24: 2500 | T24: =I24 -> 505
C26: Battery Capacity | E26: kW | G26: =INDEX(I26:S26,$E$4) -> 0 | Q26: 100 | S26: 100
C27: Battery Cycle Duration | E27: hours | G27: =INDEX(I27:S27,$E$4) -> 0 | Q27: =0.25 -> 0.25 | S27: ='Storage Balance'!D42 -> 2.967488293
C28: Battery Capacity | E28: kWh | Q28: =Q26*Q27 -> 25 | S28: =S26*S27 -> 296.7488293
C29: Battery Cost | E29: USD/kWh | G29: =INDEX(I29:S29,$E$4) -> 0 | Q29: 450 | S29: 150
G30: =INDEX(I30:S30,$E$4) -> 0
C31: Total Capital Cost | E31: USD | G31: =INDEX(I31:S31,$E$4) -> 55500 | I31: =I24*I9+I29*I26 -> 50500 | J31: =J24*J9+J29*J26 -> 55500 | K31: 55500 | L31: 80000 | M31: 200000 | N31: 20000 | O31: 130000 | P31: 250000 | Q31: =Q24*Q9+Q29*Q28 -> 11250 | R31: 0 | S31: =S24*S9+S29*S28 -> 44512.32439 | T31: =T24*T9+T29*T28 -> 50500
B33: Driver 3 Cost of Capital and Carrying Charges
C34: Project Life | E34: Yr | G34: =INDEX(I34:S34,$E$4) -> 30 | I34: 30 | J34: 30 | K34: 35 | L34: 30 | M34: 30 | N34: 30 | O34: 30 | P34: 35 | Q34: 20
C35: Tax Life | E35: Yr | G35: =INDEX(I35:S35,$E$4) -> 10 | I35: 5 | J35: 10 | K35: 10 | L35: 10 | M35: 10 | N35: 10 | O35: 10 | P35: 10 | Q35: 10 | S35: 10 | T35: 10
C36: Income Tax Rate | E36: % | G36: =INDEX(I36:S36,$E$4) -> 0.25 | I36: 0.3 | J36: 0.25 | K36: 0 | L36: 0.3 | M36: 0.3 | N36: 0.24 | O36: 0.24 | P36: 0.3 | Q36: 0.3 | R36: 0 | S36: 0 | T36: 0
C37: Variable Declining Balance Factor (1-St Line) | E37: Factor | G37: =INDEX(I37:S37,$E$4) -> 1 | I37: 1 | J37: 1 | K37: 1.5 | L37: 1 | M37: 1 | N37: 1 | O37: 1 | P37: 1 | Q37: 1 | R37: 2 | S37: 2 | T37: 2
C38: Cost of Debt | E38: % | G38: =INDEX(I38:S38,$E$4) -> 0.032 | I38: 0.032 | J38: 0.032 | K38: 0.032 | L38: 0.032 | M38: 0.032 | N38: 0.032 | O38: 0.06 | P38: 0.032 | Q38: 0.032 | R38: 0.032 | S38: 0.032 | T38: 0.032
C39: After Cost of Debt | E39: % | G39: =INDEX(I39:S39,$E$4) -> 0.024 | I39: =I38*(1-I36) -> 0.0224 | J39: =J38*(1-J36) -> 0.024 | K39: 0.032 | L39: 0.0224 | M39: 0.0224 | N39: 0.02432 | O39: 0.0456 | P39: 0.0224 | Q39: 0.0224 | R39: 0.032 | S39: 0.032 | T39: 0.032
C40: Debt to Captial | E40: % | G40: =INDEX(I40:S40,$E$4) -> 0.75 | I40: 0.8 | J40: 0.75 | K40: 0.8 | L40: 0.8 | M40: 0.8 | N40: 0.8 | O40: 0.6 | P40: 0.8 | Q40: 0.8 | R40: 0.8 | S40: 0.8 | T40: 0.8
C41: Target Equity IRR | E41: % | G41: =INDEX(I41:S41,$E$4) -> 0.08 | I41: 0.075 | J41: 0.08 | K41: 0.075 | L41: 0.075 | M41: 0.075 | N41: 0.075 | O41: 0.15 | P41: 0.075 | Q41: 0.075 | R41: 0.075 | S41: 0.075 | T41: 0.075
C42: WACC | E42: % | G42: =INDEX(I42:S42,$E$4) -> 0.038 | I42: =I39*I40+I41*(1-I40) -> 0.03292 | J42: =J39*J40+J41*(1-J40) -> 0.038 | K42: 0.0406 | L42: 0.03292 | M42: 0.03292 | N42: 0.034456 | O42: 0.08736 | P42: 0.03292 | Q42: 0.03292 | R42: 0.0406 | S42: 0.0406 | T42: 0.0406
C44: Required Project IRR | E44: % p.a. | G44: =INDEX(I44:S44,$E$4) -> 0.038 | I44: =I42 -> 0.03292 | J44: =J42 -> 0.038 | K44: 0.0406 | L44: 0.03292 | M44: 0.03292 | N44: 0.034456 | O44: 0.08736 | P44: 0.03292 | Q44: 0.03292 | R44: 0.0406 | S44: 0.0406 | T44: 0.0406
C46: Inflation | E46: % p.a. | G46: =INDEX(I46:S46,$E$4) -> 0.02 | I46: 0.02 | J46: 0.02 | K46: 0.02 | L46: 0.02 | M46: 0.02 | N46: 0.02 | O46: 0.02 | P46: 0.02 | Q46: 0.02 | S46: 0.02 | T46: 0.02
C47: Degradation | E47: % p.a. | G47: =INDEX(I47:S47,$E$4) -> 0.005 | I47: 0.005 | J47: 0.005 | K47: 0.005 | L47: 0 | M47: 0 | N47: 0 | O47: 0 | P47: 0 | Q47: 0.031 | S47: 0.03 | T47: 0.031
C48: Tax Shield Value | E48: % | G48: =INDEX(I48:S48,$E$4) -> 0.2048064063 | I48: =tax_dep_shield(I35,I37,I44,I36) -> 0.2725064009 | J48: =tax_dep_shield(J35,J37,J44,J36) -> 0.2048064063 | K48: =tax_dep_shield(K35,K37,K44,K36) -> 0 | L48: =tax_dep_shield(L35,L37,L44,L36) -> 0.2521344793 | M48: =tax_dep_shield(M35,M37,M44,M36) -> 0.2521344793 | N48: =tax_dep_shield(N35,N37,N44,N36) -> 0.2001469381 | O48: =tax_dep_shield(O35,O37,O44,O36) -> 0.155829865 | P48: =tax_dep_shield(P35,P37,P44,P36) -> 0.2521344793 | Q48: =tax_dep_shield(Q35,Q37,Q44,Q36) -> 0.2521344793 | S48: =tax_dep_shield(S35,S37,S44,S36) -> 0 | T48: =tax_dep_shield(T35,T37,T44,T36) -> 0 | U48: =tax_dep_shield(U35,U37,U44,U36) -> 0
C50: Levelizing Factor with PMT | E50: % | G50: =INDEX(I50:S50,$E$4) -> 0.05643404068 | I50: =PMT(I44,I34,-1) -> 0.05296368708 | J50: 0.05643404068 | K50: 0.05401458695 | L50: 0.05296368708 | M50: 0.05296368708 | N50: 0.05400138368 | O50: 0.09506591563 | P50: 0.04854449332 | Q50: 0.0690433683 | S50: =PMT(S44,S34,-1) ->  | T50: =PMT(T44,T34,-1) -> 
C51: Capital Recovery Pre-Tax | E51: USD/yr | G51: =INDEX(I51:S51,$E$4) -> 3132.089258 | I51: =I50*I31 -> 2674.666197 | J51: 3132.089258 | K51: 2997.809576 | L51: 4237.094966 | M51: 10592.73742 | N51: 1080.027674 | O51: 12358.56903 | P51: 12136.12333 | Q51: 776.7378933
C53: Capital Cost Recovery Base | E53: USD/yr | G53: =INDEX(I53:S53,$E$4) -> 3132.089258 | I53: =I50*I31 -> 2674.666197 | J53: 3132.089258 | K53: 2997.809576 | L53: 4237.094966 | M53: 10592.73742 | N53: 1080.027674 | O53: 12358.56903 | P53: 12136.12333 | Q53: 776.7378933 | S53: =S50*S31 ->  | T53: =T50*T31 -> 
C54: IRR Adjusted for Degradation | E54: % p.a. | G54: =INDEX(I54:S54,$E$4) -> 0.0432160804 | I54: =(1+I44)/(1-I47)-1 -> 0.03811055276 | J54: 0.0432160804 | K54: 0.04582914573 | L54: 0.03292 | M54: 0.03292 | N54: 0.034456 | O54: 0.08736 | P54: 0.03292 | Q54: 0.06596491228 | S54: =(1+S50)/(1-S47)-1 ->  | T54: =(1+T50)/(1-T47)-1 -> 
C55: Nominal Levelizing Factor with Degradation | E55: % p.a. | G55: =INDEX(I55:S55,$E$4) -> 0.06010935734 | I55: =PMT(I54,I34,-1) -> 0.05651077627 | J55: 0.06010935734 | K55: 0.05789349283 | L55: 0.05296368708 | M55: 0.05296368708 | N55: 0.05400138368 | O55: 0.09506591563 | P55: 0.04854449332 | Q55: 0.09145320447 | S55: =PMT(S54,S34,-1) ->  | T55: =PMT(T54,T34,-1) -> 
C56: PMT Factor Adjusted for Paying Taxes | E56: % p.a. | G56: =INDEX(I56:S56,$E$4) -> 0.08014580979 | I56: =I55/(1-I36) -> 0.08072968039 | J56: 0.08014580979 | K56: 0.05789349283 | L56: 0.07566241011 | M56: 0.07566241011 | N56: 0.07105445221 | O56: 0.1250867311 | P56: 0.06934927617 | Q56: 0.130647435
C57: PMT Factor Adjust for Tax Depreciation Shield | E57: % p.a. | G57: =INDEX(I57:S57,$E$4) -> 0.06373143451 | I57: =I56*(1-I48) -> 0.05873032574 | J57: =J56*(1-J48) -> 0.06373143451 | K57: 0.05789349283 | L57: 0.05658530774 | M57: 0.05658530774 | N57: 0.05683312117 | O57: 0.1055944827 | P57: 0.05186393253 | Q57: 0.09770671198
C59: Construction Timing | E59: Year | I59: 1 | J59: 1 | K59: 1 | L59: 2 | M59: 3 | N59: 1.5 | O59: 1.5 | P59: 1 | Q59: 1 | R59: 1 | S59: 1 | T59: 1
C60: Construction Factor | E60: Factor | I60: =FV(I44,I59,-1/I59) -> 1 | J60: 1 | K60: 1 | L60: 1.01646 | M60: 1.033281242 | N60: 1.008565161 | O60: 1.021531994 | P60: 1 | Q60: 1 | R60: 1 | S60: 1 | T60: 1
C61: Capital Cost Recovery with Degradation | E61: USD/yr | G61: =INDEX(I61:S61,$E$4) -> 3537.094615 | I61: =I57*I31*I60 -> 2965.88145 | J61: 3537.094615 | K61: 3213.088852 | L61: 4601.336152 | M61: 11693.70741 | N61: 1146.39812 | O61: 14022.85852 | P61: 12965.98313 | Q61: 1099.20051 | S61: =S55*S31 ->  | T61: =T55*T31 -> 
C63: Real IRR | E63: % p.a. | G63: =INDEX(I63:S63,$E$4) -> 0.01764705882 | I63: =(1+I44)/(1+I46)-1 -> 0.01266666667 | J63: 0.01764705882 | K63: 0.02019607843 | L63: 0.01266666667 | M63: 0.01266666667 | N63: 0.01417254902 | O63: 0.06603921569 | P63: 0.01266666667 | Q63: 0.01266666667 | S63: =(1+S44)/(1+S46)-1 -> 0.02019607843 | T63: =(1+T44)/(1+T46)-1 -> 0.02019607843
C64: Levelizing Factor with Real IRR | E64: % p.a. | G64: =INDEX(I64:S64,$E$4) -> 0.02276086314 | I64: =(1+I63)/(1-I47)-1 -> 0.01775544389 | J64: 0.02276086314 | K64: 0.02532269189 | L64: 0.01266666667 | M64: 0.01266666667 | N64: 0.01417254902 | O64: 0.06603921569 | P64: 0.01266666667 | Q64: 0.04506363949 | S64: =(1+S63)/(1-S47)-1 -> 0.05174853447 | T64: =(1+T63)/(1-T47)-1 -> 0.05283393027
C65: Real IRR Adjusted for Degradation | E65: % p.a. | G65: =INDEX(I65:S65,$E$4) -> 0.02276086314 | I65: =(1+I63)/(1-I47)-1 -> 0.01775544389 | J65: 0.02276086314 | K65: 0.02532269189 | L65: 0.01266666667 | M65: 0.01266666667 | N65: 0.01417254902 | O65: 0.06603921569 | P65: 0.01266666667 | Q65: 0.04506363949
C66: Levelizing Factor with Real IRR and Degradation | E66: % p.a. | G66: =INDEX(I66:S66,$E$4) -> 0.04636268733 | I66: =PMT(I65,I34,-1) -> 0.04328372983 | J66: 0.04636268733 | K66: 0.04341685095 | L66: 0.04027498283 | M66: 0.04027498283 | N66: 0.04115241566 | O66: 0.07740420776 | P66: 0.03554886136 | Q66: 0.07691854302 | S66: =PMT(S63,S34,-1) ->  | T66: =PMT(T63,T34,-1) -> 
C68: Adj for Tax on Inc (Divide by (1-t)) | E68: % | G68: =INDEX(I68:S68,$E$4) -> 0.06181691644 | I68: =I66/(1-I36) -> 0.06183389975 | J68: 0.06181691644 | K68: 0.04341685095 | L68: 0.05753568975 | M68: 0.05753568975 | N68: 0.05414791534 | O68: 0.1018476418 | P68: 0.05078408765 | Q68: 0.1098836329
C69: Adj for Tax Shield | E69: % | G69: =INDEX(I69:S69,$E$4) -> 0.04915641593 | I69: =I68*(1-I48) -> 0.04498376628 | J69: 0.04915641593 | K69: 0.04341685095 | L69: 0.04302895858 | M69: 0.04302895858 | N69: 0.04331037588 | O69: 0.08597673752 | P69: 0.03797966816 | Q69: 0.08217818032
C71: Construction Real | E71: Factor | I71: 1 | J71: 1 | K71: 1 | L71: 1 | M71: 1 | N71: 1 | O71: 1 | P71: 1 | Q71: 1 | R71: 1 | S71: 1 | T71: 1
C72: Final Real Capital Cost Recovery with Degradation | E72: USD/yr | G72: =INDEX(I72:S72,$E$4) -> 2728.181084 | I72: =I69*I31 -> 2271.680197 | J72: 2728.181084 | K72: 2409.635228 | L72: 3442.316686 | M72: 8605.791716 | N72: 866.2075176 | O72: 11176.97588 | P72: 9494.917039 | Q72: 924.5045287 | S72: =S66*S31 ->  | T72: =T66*T31 -> 
B74: Driver 4 -- O&M Cost
C75: Fixed O&M Cost | E75: USD/kWy | G75: =INDEX(I75:S75,$E$4) -> 7 | I75: 7 | J75: 7 | K75: 7 | L75: 5 | M75: 7 | N75: 7 | O75: 20 | P75: 67 | Q75: 7 | S75: 7 | T75: 7
C76: Other Cost | E76: USD/kWy | G76: =INDEX(I76:S76,$E$4) -> 3 | I76: 3 | J76: 3 | K76: 3 | L76: 2 | M76: 3 | N76: 3 | O76: 0 | P76: 3 | Q76: 3 | S76: 3 | T76: 3
C77: Per Unit Fixed O&M Cost | E77: USD/kWy | G77: =INDEX(I77:S77,$E$4) -> 10 | I77: =SUM(I75:I76) -> 10 | J77: =SUM(J75:J76) -> 10 | K77: 10 | L77: 7 | M77: 10 | N77: 10 | O77: 20 | P77: 70 | Q77: 10 | S77: 10 | T77: =SUM(T75:T76) -> 10
C78: Total Fixed O&M Cost - Current | E78: USD/Yr | G78: =INDEX(I78:S78,$E$4) -> 1000 | I78: =I77*I9 -> 1000 | J78: 1000 | K78: 1000 | L78: 700 | M78: 1000 | N78: 1000 | O78: 2000 | P78: 7000 | Q78: 1000 | S78: =S77*S9 -> 1000 | T78: =T77*T9 -> 1000
C80: Fuel Effiency (Input/Output) | E80: MMBTU/MWH | G80: =INDEX(I80:S80,$E$4) -> 0 | L80: 6.5 | M80: 8.5 | N80: =28*10 -> 280
C81: Fuel Cost | E81: USD/MMBTU | G81: =INDEX(I81:S81,$E$4) -> 0 | L81: 6 | M81: 1.45 | N81: 0.8
C82: Fuel Expense | E82: USD/MWH | G82: =INDEX(I82:S82,$E$4) -> 0 | L82: =L81*L80 -> 39 | M82: =M81*M80 -> 12.325 | N82: =N81*N80 -> 224
C83: Total Fuel Cost | E83: USD/Yr | G83: =INDEX(I83:S83,$E$4) -> 0 | L83: =L82*L19 -> 23914.8 | M83: =M82*M19 -> 7557.69 | N83: =N82*N19 -> 137356.8
C85: Other Variable Cost | E85: USD/MWH | G85: =INDEX(I85:S85,$E$4) -> 0 | L85: 4
C86: Total Other Variable Cost | E86: USD/Yr | G86: =INDEX(I86:S86,$E$4) -> 0 | L86: =L85*L19 -> 2452.8
C88: CO2 Tons Produced per kWh | E88: CO2 Tons/kWh
C89: Total CO2 Produced | E89: CO2 Tons
C90: Value per Tonne | E90: USD/Tonne
C91: Total O&M for CO2 | E91: USD
C93: Total Operating Costs | E93: USD/yr | G93: =INDEX(I93:S93,$E$4) -> 1000 | I93: =I78+I83+I86 -> 1000 | J93: =J78+J83+J86 -> 1000 | K93: 1000 | L93: 27067.6 | M93: 8557.69 | N93: 138356.8 | O93: 2000 | P93: 7000 | Q93: 1000 | S93: 1000 | T93: =T78+T83+T86 -> 1000
C95: Inflation Factor for Nominal Cost | E95: Factor | G95: =INDEX(I95:S95,$E$4) -> 1.305788561 | I95: =PV(I63,I34,-1)/PV(I44,I34,-1) -> 1.315051761 | J95: 1.305788561 | K95: 1.346147211 | L95: 1.315051761 | M95: 1.315051761 | N95: 1.312228768 | O95: 1.228175036 | P95: 1.365570976 | Q95: 1.213100782 | S95: =PV(S63,S34,-1)/PV(S44,S34,-1) ->  | T95: =PV(T63,T34,-1)/PV(T44,T34,-1) -> 
C96: Degradation Factor for Nominal Cost | E96: Factor | G96: =INDEX(I96:S96,$E$4) -> 1.390829193 | I96: =PV(I63,I34,-1)/PV(I54,I34,-1) -> 1.403123535 | J96: 1.390829193 | K96: 1.442816993 | L96: 1.315051761 | M96: 1.315051761 | N96: 1.312228768 | O96: 1.228175036 | P96: 1.365570976 | Q96: 1.606844461
C97: Adjusted Nominal Cost for LCOE Calc | E97: USD/yr | G97: =INDEX(I97:S97,$E$4) -> 1390.829193 | I97: =I96*I93 -> 1403.123535 | J97: =J96*J93 -> 1390.829193 | K97: 1442.816993 | L97: 35595.29504 | M97: 11253.8053 | N97: 181555.7732 | O97: 2456.350071 | P97: 9558.996835 | Q97: 1606.844461 | S97: =S93*S95 ->  | T97: =T93*T95 -> 
C99: Degradation Factor for Real Cost | E99: Factor | G99: =INDEX(I99:S99,$E$4) -> 1.072754424 | I99: =PV(I63,I34,-1)/PV(I65,I34,-1) -> 1.074705109 | J99: 1.072754424 | K99: 1.082031283 | L99: 1 | M99: 1 | N99: 1 | O99: 1 | P99: 1 | Q99: 1.351468606 | S99: =PV(S63,S34,-1)/PV(S65,S34,-1) ->  | T99: =PV(T63,T34,-1)/PV(T65,T34,-1) -> 
C100: Adjusted Real Cost of LOCE | E100: USD/yr | G100: =INDEX(I100:S100,$E$4) -> 1072.754424 | I100: =I93*I99 -> 1074.705109 | J100: =J93*J99 -> 1072.754424 | K100: 1082.031283 | L100: 27067.6 | M100: 8557.69 | N100: 138356.8 | O100: 2000 | P100: 7000 | Q100: 1351.468606
B102: LCOE Calculation
C103: Nominal Capital Recovery | E103: USD/yr | G103: =INDEX(I103:S103,$E$4) -> 3537.094615 | I103: =I61 -> 2965.88145 | J103: =J61 -> 3537.094615 | K103: 3213.088852 | L103: 4601.336152 | M103: 11693.70741 | N103: 1146.39812 | O103: 14022.85852 | P103: 12965.98313 | Q103: 1099.20051 | R103: =Q103+I103 -> 4065.08196 | S103: =S53 ->  | T103: =T53 ->  | U103: =I103+S103+T103 -> 
C104: Nomina O&M Cost | E104: USD/yr | G104: =INDEX(I104:S104,$E$4) -> 1390.829193 | I104: =I97 -> 1403.123535 | J104: =J97 -> 1390.829193 | K104: 1442.816993 | L104: 35595.29504 | M104: 11253.8053 | N104: 181555.7732 | O104: 2456.350071 | P104: 9558.996835 | Q104: 1606.844461 | R104: =Q104+I104 -> 3009.967995 | T104: =T97 ->  | U104: =I104+S104+T104 -> 
C105: Total Nominal Cost | E105: USD/yr | G105: =INDEX(I105:S105,$E$4) -> 4927.923808 | I105: =SUM(I103:I104) -> 4369.004985 | J105: =SUM(J103:J104) -> 4927.923808 | K105: 4655.905845 | L105: 40196.63119 | M105: 22947.51271 | N105: 182702.1713 | O105: 16479.20859 | P105: 22524.97997 | Q105: 2706.04497 | R105: 7075.049955 | T105: =SUM(T103:T104) ->  | U105: =SUM(U103:U104) -> 
C107: Total Production | E107: kWh | G107: =INDEX(I107:S107,$E$4) -> 192000 | I107: =I18 -> 160000 | J107: 192000 | K107: 240000 | L107: 613200 | M107: 613200 | N107: 613200 | O107: 306600 | P107: 481800 | Q107: 0 | R107: =I107 -> 160000 | S107: =S18 -> 0 | T107: =T18 -> 160000 | U107: =I107+T107 -> 320000
C108: LCOE - Nominal | E108: USD/kWh | G108: =INDEX(I108:S108,$E$4) -> 0.02566626983 | I108: =IFERROR(I105/I107,FALSE) -> 0.02730628115 | J108: =IFERROR(J105/J107,FALSE) -> 0.02566626983 | K108: 0.01939960769 | L108: 0.06555223612 | M108: 0.03742255824 | N108: 0.2979487464 | O108: 0.05374823414 | P108: 0.04675172264 | Q108: FALSE | R108: 0.04421906222 | S108: FALSE | T108: FALSE | U108: FALSE
C109: LCOE - Nominal | E109: USD/MWh | G109: =INDEX(I109:S109,$E$4) -> 25.66626983 | I109: =I108*1000 -> 27.30628115 | J109: =J108*1000 -> 25.66626983 | K109: 19.39960769 | L109: 65.55223612 | M109: 37.42255824 | N109: 297.9487464 | O109: 53.74823414 | P109: 46.75172264 | Q109: 0 | R109: 44.21906222 | S109: 0 | T109: =T108*1000 -> 0 | U109: =U108*1000 -> 0
C111: Capital Recovery - Real | E111: USD/yr | G111: =INDEX(I111:S111,$E$4) -> 2728.181084 | I111: =I72 -> 2271.680197 | J111: =J72 -> 2728.181084 | K111: 2409.635228 | L111: 3442.316686 | M111: 8605.791716 | N111: 866.2075176 | O111: 11176.97588 | P111: 9494.917039 | Q111: 924.5045287 | R111: =Q111+I111 -> 3196.184726 | T111: =T72 ->  | U111: =U72 -> 0
C112: O&M Cost | E112: USD/yr | G112: =INDEX(I112:S112,$E$4) -> 1072.754424 | I112: =I100 -> 1074.705109 | J112: =J100 -> 1072.754424 | K112: 1082.031283 | L112: 27067.6 | M112: 8557.69 | N112: 138356.8 | O112: 2000 | P112: 7000 | Q112: 1351.468606 | R112: =Q112+I112 -> 2426.173715 | U112: 0
C113: Total Cost | E113: USD/yr | G113: =INDEX(I113:S113,$E$4) -> 3800.935508 | I113: =SUM(I111:I112) -> 3346.385306 | J113: =SUM(J111:J112) -> 3800.935508 | K113: 3491.666511 | L113: 30509.91669 | M113: 17163.48172 | N113: 139223.0075 | O113: 13176.97588 | P113: 16494.91704 | Q113: 2275.973135 | R113: 5622.358441 | T113: =SUM(T111:T112) ->  | U113: =SUM(U111:U112) -> 0
C115: Total Production | E115: kWh | G115: =INDEX(I115:S115,$E$4) -> 192000 | I115: =I107 -> 160000 | J115: =J107 -> 192000 | K115: 240000 | L115: 613200 | M115: 613200 | N115: 613200 | O115: 306600 | P115: 481800 | Q115: 0 | R115: 160000 | S115: 0 | T115: =T107 -> 160000 | U115: =U107 -> 320000
C116: LCOE - Real | E116: USD/kWh | G116: =INDEX(I116:S116,$E$4) -> 0.01979653911 | I116: =IFERROR(I113/I115,FALSE) -> 0.02091490816 | J116: =IFERROR(J113/J115,FALSE) -> 0.01979653911 | K116: 0.01454861046 | L116: 0.04975524574 | M116: 0.02799002237 | N116: 0.2270433913 | O116: 0.04297774259 | P116: 0.0342360254 | Q116: FALSE | R116: 0.03513974026 | S116: FALSE | T116: FALSE | U116: 0
C117: LCOE - Real | E117: USD/MWh | G117: =INDEX(I117:S117,$E$4) -> 19.79653911 | I117: =I116*1000 -> 20.91490816 | J117: =J116*1000 -> 19.79653911 | K117: 14.54861046 | L117: 49.75524574 | M117: 27.99002237 | N117: 227.0433913 | O117: 42.97774259 | P117: 34.2360254 | Q117: 0 | R117: 35.13974026 | S117: 0 | T117: =T116*1000 -> 0 | U117: =U116*1000 -> 0
C119: LCOE-Real | E119: USD/kW-year
C121: Renewable Versus Dispatchable Variable Cost
C122: Natural Gas Price | G122: =$E$3 -> 6 | H122: =$E$3 -> 6 | I122: 6 | J122: 6 | K122: 6 | L122: 6 | M122: 6 | N122: 6 | O122: 6 | P122: 6 | Q122: 6 | R122: 6 | S122: 6 | T122: 6 | U122: 6
C123: Variable Cost of Natural Gas CC | G123: =L82+L85 -> 43 | I123: =$G$123 -> 43 | J123: =$G$123 -> 43 | K123: 43 | L123: 43 | M123: 43 | N123: 43 | O123: 43 | P123: 43 | Q123: 43 | R123: 43 | S123: 43 | T123: 43 | U123: 43
B125: Financing Assumptions
C126: Max Debt to Capital | G126: =INDEX(I126:S126,$E$4) -> 0.85 | I126: 0.85 | J126: 0.85 | K126: 0.85 | L126: 0.8 | M126: 0.8 | N126: 0.8 | O126: 0.8 | P126: 0.8 | Q126: 0.8 | R126: 0.8 | S126: 0.8 | T126: 0.8 | U126: 0.8
C127: Interest Rate | G127: =INDEX(I127:S127,$E$4) -> 0.03 | I127: 0.03 | J127: 0.03 | K127: 0.03 | L127: 0.03 | M127: 0.03 | N127: 0.03 | O127: 0.03 | P127: 0.03 | Q127: 0.03 | R127: 0.03 | S127: 0.03 | T127: 0.03 | U127: 0.03
C128: Debt Tenor | G128: =INDEX(I128:S128,$E$4) -> 30 | I128: 20 | J128: 30 | K128: 25 | L128: 20 | M128: 20 | N128: 20 | O128: 20 | P128: 20 | Q128: 20 | R128: 20 | S128: 20 | T128: =T34-2 -> -2 | U128: =U34-2 -> -2
C129: P50 DSCR | G129: =INDEX(I129:S129,$E$4) -> 1.2 | I129: 1.2 | J129: 1.2 | K129: 1.2 | L129: 1.2 | M129: 1.2 | N129: 1.2 | O129: 1.35 | P129: 1.35 | Q129: 1.2 | R129: 1.2 | S129: 1.2 | T129: 1.2 | U129: 1.2
C130: P99 DSCR | G130: =INDEX(I130:S130,$E$4) -> 1 | I130: 1 | J130: 1 | K130: 1 | L130: 1 | M130: 1 | N130: 1 | O130: 1 | P130: 1 | Q130: 1 | R130: 1 | S130: 1 | T130: 1 | U130: 1
C132: Target Equity IRR | G132: =INDEX(I132:S132,$E$4) -> 0.08 | I132: 0.08 | J132: 0.08 | K132: 0.07 | L132: 0.065 | M132: 0.065 | N132: 0.065 | O132: 0.065 | P132: 0.065 | Q132: 0.065 | R132: 0.065 | S132: 0.065 | T132: 0.065 | U132: 0.065
I143: =TRANSPOSE(I4:S4) -> Solar | J143: =TRANSPOSE(I5:U5) -> No Tracking | K143: =I143&" "&J143 -> Solar No Tracking
I144: Solar | J144: With Tracking | K144: =I144&" "&J144 -> Solar With Tracking
I145: Solar | J145: Saudi Arabia | K145: Solar Saudi Arabia
I146: Natural | J146: Gas Comb Cycle | K146: Natural Gas Comb Cycle
I147: Coal | K147: Coal
I148: Diesel | K148: Diesel
I149: Wind | J149: Onshore | K149: Wind Onshore
I150: Wind | J150: Offshore | K150: Wind Offshore
I151: Battery | J151: Ancillary | K151: Battery Ancillary
I152: Solar | J152: & Ancillary Services | K152: Solar & Ancillary Services
I153: Battery | J153: Storage | K153: Battery Storage
J154: Storage
J155: Storage and Solar

Sheet Financial Model
B1: ='Detailed LCOE Calculator'!G4&" "&'Detailed LCOE Calculator'!G5 -> Solar No Tracking | M1: =H73 -> Debt to Capital
B2: Timeline | G2: TRUE
C3: Period | H3: 0 | I3: 1 | J3: 2 | K3: 3 | L3: 4 | M3: 5 | N3: 6 | O3: 7 | P3: 8 | Q3: 9 | R3: 10 | S3: 11 | T3: 12 | U3: 13 | V3: 14 | W3: 15 | X3: 16 | Y3: 17 | Z3: 18 | AA3: 19 | AB3: 20 | AC3: 21 | AD3: 22 | AE3: 23 | AF3: 24 | AG3: 25 | AH3: 26 | AI3: 27 | AJ3: 28 | AK3: 29 | AL3: 30 | AM3: 31 | AN3: 32 | AO3: 33 | AP3: 34 | AQ3: 35 | AR3: 36 | AS3: 37 | AT3: 38 | AU3: 39 | AV3: 40 | AW3: 41 | AX3: 42 | AY3: 43 | AZ3: 44 | BA3: 45 | BB3: 46 | BC3: 47 | BD3: 48 | BE3: 49 | BF3: 50
C4: Operation | E4: Flag | F4: ='Detailed LCOE Calculator'!G12 -> 30 | H4: =AND(H3>0,H3<=$F$4) -> FALSE | I4: =AND(I3>0,I3<=$F$4) -> TRUE | J4: TRUE | K4: TRUE | L4: TRUE | M4: TRUE | N4: TRUE | O4: TRUE | P4: TRUE | Q4: TRUE | R4: TRUE | S4: TRUE | T4: TRUE | U4: TRUE | V4: TRUE | W4: TRUE | X4: TRUE | Y4: TRUE | Z4: TRUE | AA4: TRUE | AB4: TRUE | AC4: TRUE | AD4: TRUE | AE4: TRUE | AF4: TRUE | AG4: TRUE | AH4: TRUE | AI4: TRUE | AJ4: TRUE | AK4: TRUE | AL4: TRUE | AM4: FALSE | AN4: FALSE | AO4: FALSE | AP4: FALSE | AQ4: FALSE | AR4: FALSE | AS4: FALSE | AT4: FALSE | AU4: FALSE | AV4: FALSE | AW4: FALSE | AX4: FALSE | AY4: FALSE | AZ4: FALSE | BA4: FALSE | BB4: FALSE | BC4: FALSE | BD4: FALSE | BE4: FALSE | BF4: FALSE
C5: Construction period | E5: Flag | H5: =H3=0 -> TRUE | I5: =I3=0 -> FALSE | J5: FALSE | K5: FALSE | L5: FALSE | M5: FALSE | N5: FALSE | O5: FALSE | P5: FALSE | Q5: FALSE | R5: FALSE | S5: FALSE | T5: FALSE | U5: FALSE | V5: FALSE | W5: FALSE | X5: FALSE | Y5: FALSE | Z5: FALSE | AA5: FALSE | AB5: FALSE | AC5: FALSE | AD5: FALSE | AE5: FALSE | AF5: FALSE | AG5: FALSE | AH5: FALSE | AI5: FALSE | AJ5: FALSE | AK5: FALSE | AL5: FALSE | AM5: FALSE | AN5: FALSE | AO5: FALSE | AP5: FALSE | AQ5: FALSE | AR5: FALSE | AS5: FALSE | AT5: FALSE | AU5: FALSE | AV5: FALSE | AW5: FALSE | AX5: FALSE | AY5: FALSE | AZ5: FALSE | BA5: FALSE | BB5: FALSE | BC5: FALSE | BD5: FALSE | BE5: FALSE | BF5: FALSE
B7: Operating Analysis
C8: Capacity | E8: Units | F8: 100 | H8: =$F$8*H4 -> 0 | I8: =$F$8*I4 -> 100 | J8: 100 | K8: 100 | L8: 100 | M8: 100 | N8: 100 | O8: 100 | P8: 100 | Q8: 100 | R8: 100 | S8: 100 | T8: 100 | U8: 100 | V8: 100 | W8: 100 | X8: 100 | Y8: 100 | Z8: 100 | AA8: 100 | AB8: 100 | AC8: 100 | AD8: 100 | AE8: 100 | AF8: 100 | AG8: 100 | AH8: 100 | AI8: 100 | AJ8: 100 | AK8: 100 | AL8: 100 | AM8: 0 | AN8: 0 | AO8: 0 | AP8: 0 | AQ8: 0 | AR8: 0 | AS8: 0 | AT8: 0 | AU8: 0 | AV8: 0 | AW8: 0 | AX8: 0 | AY8: 0 | AZ8: 0 | BA8: 0 | BB8: 0 | BC8: 0 | BD8: 0 | BE8: 0 | BF8: 0
C9: Capacity factor | E9: % | F9: 0.25 | H9: =H4*$F$9 -> 0 | I9: =I4*$F$9 -> 0.25 | J9: 0.25 | K9: 0.25 | L9: 0.25 | M9: 0.25 | N9: 0.25 | O9: 0.25 | P9: 0.25 | Q9: 0.25 | R9: 0.25 | S9: 0.25 | T9: 0.25 | U9: 0.25 | V9: 0.25 | W9: 0.25 | X9: 0.25 | Y9: 0.25 | Z9: 0.25 | AA9: 0.25 | AB9: 0.25 | AC9: 0.25 | AD9: 0.25 | AE9: 0.25 | AF9: 0.25 | AG9: 0.25 | AH9: 0.25 | AI9: 0.25 | AJ9: 0.25 | AK9: 0.25 | AL9: 0.25 | AM9: 0 | AN9: 0 | AO9: 0 | AP9: 0 | AQ9: 0 | AR9: 0 | AS9: 0 | AT9: 0 | AU9: 0 | AV9: 0 | AW9: 0 | AX9: 0 | AY9: 0 | AZ9: 0 | BA9: 0 | BB9: 0 | BC9: 0 | BD9: 0 | BE9: 0 | BF9: 0
C10: Generation | E10: kWh | H10: =H8*H9*8760 -> 0 | I10: =I8*I9*8760 -> 219000 | J10: 219000 | K10: 219000 | L10: 219000 | M10: 219000 | N10: 219000 | O10: 219000 | P10: 219000 | Q10: 219000 | R10: 219000 | S10: 219000 | T10: 219000 | U10: 219000 | V10: 219000 | W10: 219000 | X10: 219000 | Y10: 219000 | Z10: 219000 | AA10: 219000 | AB10: 219000 | AC10: 219000 | AD10: 219000 | AE10: 219000 | AF10: 219000 | AG10: 219000 | AH10: 219000 | AI10: 219000 | AJ10: 219000 | AK10: 219000 | AL10: 219000 | AM10: 0 | AN10: 0 | AO10: 0 | AP10: 0 | AQ10: 0 | AR10: 0 | AS10: 0 | AT10: 0 | AU10: 0 | AV10: 0 | AW10: 0 | AX10: 0 | AY10: 0 | AZ10: 0 | BA10: 0 | BB10: 0 | BC10: 0 | BD10: 0 | BE10: 0 | BF10: 0
C12: Degradation | E12: Index | F12: ='Detailed LCOE Calculator'!G25 -> 0.005 | H12: 1 | I12: =H12*(1-$F$12) -> 0.995 | J12: =I12*(1-$F$12) -> 0.990025 | K12: 0.985074875 | L12: 0.9801495006 | M12: 0.9752487531 | N12: 0.9703725094 | O12: 0.9655206468 | P12: 0.9606930436 | Q12: 0.9558895784 | R12: 0.9511101305 | S12: 0.9463545798 | T12: 0.9416228069 | U12: 0.9369146929 | V12: 0.9322301194 | W12: 0.9275689688 | X12: 0.922931124 | Y12: 0.9183164684 | Z12: 0.913724886 | AA12: 0.9091562616 | AB12: 0.9046104803 | AC12: 0.9000874279 | AD12: 0.8955869907 | AE12: 0.8911090558 | AF12: 0.8866535105 | AG12: 0.8822202429 | AH12: 0.8778091417 | AI12: 0.873420096 | AJ12: 0.8690529955 | AK12: 0.8647077306 | AL12: 0.8603841919 | AM12: 0.856082271 | AN12: 0.8518018596 | AO12: 0.8475428503 | AP12: 0.8433051361 | AQ12: 0.8390886104 | AR12: 0.8348931673 | AS12: 0.8307187015 | AT12: 0.826565108 | AU12: 0.8224322824 | AV12: 0.818320121 | AW12: 0.8142285204 | AX12: 0.8101573778 | AY12: 0.8061065909 | AZ12: 0.802076058 | BA12: 0.7980656777 | BB12: 0.7940753493 | BC12: 0.7901049725 | BD12: 0.7861544477 | BE12: 0.7822236754 | BF12: 0.7783125571
C13: Generation after Degradation | E13: kWh | H13: =H10*H12 -> 0 | I13: =I10*I12 -> 217905 | J13: 216815.475 | K13: 215731.3976 | L13: 214652.7406 | M13: 213579.4769 | N13: 212511.5795 | O13: 211449.0217 | P13: 210391.7765 | Q13: 209339.8177 | R13: 208293.1186 | S13: 207251.653 | T13: 206215.3947 | U13: 205184.3177 | V13: 204158.3962 | W13: 203137.6042 | X13: 202121.9162 | Y13: 201111.3066 | Z13: 200105.75 | AA13: 199105.2213 | AB13: 198109.6952 | AC13: 197119.1467 | AD13: 196133.551 | AE13: 195152.8832 | AF13: 194177.1188 | AG13: 193206.2332 | AH13: 192240.202 | AI13: 191279.001 | AJ13: 190322.606 | AK13: 189370.993 | AL13: 188424.138 | AM13: 0 | AN13: 0 | AO13: 0 | AP13: 0 | AQ13: 0 | AR13: 0 | AS13: 0 | AT13: 0 | AU13: 0 | AV13: 0 | AW13: 0 | AX13: 0 | AY13: 0 | AZ13: 0 | BA13: 0 | BB13: 0 | BC13: 0 | BD13: 0 | BE13: 0 | BF13: 0
B15: Operating Cashflow - Pre-Tax
C17: Inflation Index | E17: Index | F17: ='Detailed LCOE Calculator'!G24 -> 0.02 | H17: 1 | I17: =H17*(1+$F$17) -> 1.02 | J17: =I17*(1+$F$17) -> 1.0404 | K17: 1.061208 | L17: 1.08243216 | M17: 1.104080803 | N17: 1.126162419 | O17: 1.148685668 | P17: 1.171659381 | Q17: 1.195092569 | R17: 1.21899442 | S17: 1.243374308 | T17: 1.268241795 | U17: 1.29360663 | V17: 1.319478763 | W17: 1.345868338 | X17: 1.372785705 | Y17: 1.400241419 | Z17: 1.428246248 | AA17: 1.456811173 | AB17: 1.485947396 | AC17: 1.515666344 | AD17: 1.545979671 | AE17: 1.576899264 | AF17: 1.608437249 | AG17: 1.640605994 | AH17: 1.673418114 | AI17: 1.706886477 | AJ17: 1.741024206 | AK17: 1.77584469 | AL17: 1.811361584 | AM17: 1.847588816 | AN17: 1.884540592 | AO17: 1.922231404 | AP17: 1.960676032 | AQ17: 1.999889553 | AR17: 2.039887344 | AS17: 2.080685091 | AT17: 2.122298792 | AU17: 2.164744768 | AV17: 2.208039664 | AW17: 2.252200457 | AX17: 2.297244466 | AY17: 2.343189355 | AZ17: 2.390053142 | BA17: 2.437854205 | BB17: 2.486611289 | BC17: 2.536343515 | BD17: 2.587070385 | BE17: 2.638811793 | BF17: 2.691588029
C19: CAPEX | E19: USD | F19: ='Detailed LCOE Calculator'!G9 -> 50500 | H19: =$F$19*H5 -> 50500 | I19: 0 | J19: 0 | K19: 0 | L19: 0 | M19: 0 | N19: 0 | O19: 0 | P19: 0 | Q19: 0 | R19: 0 | S19: 0 | T19: 0 | U19: 0 | V19: 0 | W19: 0 | X19: 0 | Y19: 0 | Z19: 0 | AA19: 0 | AB19: 0 | AC19: 0 | AD19: 0 | AE19: 0 | AF19: 0 | AG19: 0 | AH19: 0 | AI19: 0 | AJ19: 0 | AK19: 0 | AL19: 0 | AM19: 0 | AN19: =$F$19*AN5 -> 0 | AO19: 0 | AP19: 0 | AQ19: 0 | AR19: 0 | AS19: 0 | AT19: 0 | AU19: 0 | AV19: 0 | AW19: 0 | AX19: 0 | AY19: 0 | AZ19: 0 | BA19: 0 | BB19: 0 | BC19: 0 | BD19: 0 | BE19: 0 | BF19: 0
C20: OPEX | E20: USD | F20: ='Detailed LCOE Calculator'!G53 -> 1000 | H20: =$F$20*H4*H17 -> 0 | I20: =$F$20*I4*I17 -> 1020 | J20: 1040.4 | K20: 1061.208 | L20: 1082.43216 | M20: 1104.080803 | N20: 1126.162419 | O20: 1148.685668 | P20: 1171.659381 | Q20: 1195.092569 | R20: 1218.99442 | S20: 1243.374308 | T20: 1268.241795 | U20: 1293.60663 | V20: 1319.478763 | W20: 1345.868338 | X20: 1372.785705 | Y20: 1400.241419 | Z20: 1428.246248 | AA20: 1456.811173 | AB20: 1485.947396 | AC20: 1515.666344 | AD20: 1545.979671 | AE20: 1576.899264 | AF20: 1608.437249 | AG20: 1640.605994 | AH20: 1673.418114 | AI20: 1706.886477 | AJ20: 1741.024206 | AK20: 1775.84469 | AL20: 1811.361584 | AM20: 0 | AN20: 0 | AO20: 0 | AP20: 0 | AQ20: 0 | AR20: 0 | AS20: 0 | AT20: 0 | AU20: 0 | AV20: 0 | AW20: 0 | AX20: 0 | AY20: 0 | AZ20: 0 | BA20: 0 | BB20: 0 | BC20: 0 | BD20: 0 | BE20: 0 | BF20: 0
C21: Price | E21: USD/kWh | F21: =IF(G2,'Detailed LCOE Calculator'!G76,'Detailed LCOE Calculator'!G68) -> 20.91490816 | H21: =IF($G$2,$F$21*H17,$F$21) -> 20.91490816 | I21: =IF($G$2,$F$21*I17,$F$21) -> 21.33320633 | J21: 21.75987045 | K21: 22.19506786 | L21: 22.63896922 | M21: 23.09174861 | N21: 23.55358358 | O21: 24.02465525 | P21: 24.50514835 | Q21: 24.99525132 | R21: 25.49515635 | S21: 26.00505947 | T21: 26.52516066 | U21: 27.05566388 | V21: 27.59677715 | W21: 28.1487127 | X21: 28.71168695 | Y21: 29.28592069 | Z21: 29.8716391 | AA21: 30.46907189 | AB21: 31.07845332 | AC21: 31.70002239 | AD21: 32.33402284 | AE21: 32.9807033 | AF21: 33.64031736 | AG21: 34.31312371 | AH21: 34.99938618 | AI21: 35.69937391 | AJ21: 36.41336138 | AK21: 37.14162861 | AL21: 37.88446118 | AM21: 38.64215041 | AN21: 39.41499342 | AO21: 40.20329328 | AP21: 41.00735915 | AQ21: 41.82750633 | AR21: 42.66405646 | AS21: 43.51733759 | AT21: 44.38768434 | AU21: 45.27543803 | AV21: 46.18094679 | AW21: 47.10456572 | AX21: 48.04665704 | AY21: 49.00759018 | AZ21: 49.98774198 | BA21: 50.98749682 | BB21: 52.00724676 | BC21: 53.04739169 | BD21: 54.10833953 | BE21: 55.19050632 | BF21: 56.29431644
C22: Revenue | E22: USD | H22: =H21*H13 -> 0 | I22: =I21*I13 -> 4648612.325 | J22: 4717876.649 | K22: 4788173.011 | L22: 4859516.788 | M22: 4931923.589 | N22: 5005409.25 | O22: 5079989.848 | P22: 5155681.697 | Q22: 5232501.354 | R22: 5310465.624 | S22: 5389591.562 | T22: 5469896.476 | U22: 5551397.934 | V22: 5634113.763 | W22: 5718062.058 | X22: 5803261.183 | Y22: 5889729.774 | Z22: 5977486.748 | AA22: 6066551.3 | AB22: 6156942.915 | AC22: 6248681.364 | AD22: 6341786.716 | AE22: 6436279.339 | AF22: 6532179.901 | AG22: 6629509.381 | AH22: 6728289.071 | AI22: 6828540.578 | AJ22: 6930285.833 | AK22: 7033547.092 | AL22: 7138346.943 | AM22: 0 | AN22: 0 | AO22: 0 | AP22: 0 | AQ22: 0 | AR22: 0 | AS22: 0 | AT22: 0 | AU22: 0 | AV22: 0 | AW22: 0 | AX22: 0 | AY22: 0 | AZ22: 0 | BA22: 0 | BB22: 0 | BC22: 0 | BD22: 0 | BE22: 0 | BF22: 0
C24: EBITDA | E24: USD | H24: =H22-H20 -> 0 | I24: =I22-I20 -> 4647592.325 | J24: 4716836.249 | K24: 4787111.803 | L24: 4858434.356 | M24: 4930819.508 | N24: 5004283.088 | O24: 5078841.162 | P24: 5154510.037 | Q24: 5231306.261 | R24: 5309246.63 | S24: 5388348.188 | T24: 5468628.234 | U24: 5550104.327 | V24: 5632794.284 | W24: 5716716.19 | X24: 5801888.397 | Y24: 5888329.533 | Z24: 5976058.502 | AA24: 6065094.489 | AB24: 6155456.967 | AC24: 6247165.698 | AD24: 6340240.737 | AE24: 6434702.439 | AF24: 6530571.463 | AG24: 6627868.775 | AH24: 6726615.653 | AI24: 6826833.692 | AJ24: 6928544.809 | AK24: 7031771.247 | AL24: 7136535.582 | AM24: 0 | AN24: 0 | AO24: 0 | AP24: 0 | AQ24: 0 | AR24: 0 | AS24: 0 | AT24: 0 | AU24: 0 | AV24: 0 | AW24: 0 | AX24: 0 | AY24: 0 | AZ24: 0 | BA24: 0 | BB24: 0 | BC24: 0 | BD24: 0 | BE24: 0 | BF24: 0
C25: Project Free Cashflow | E25: USD | H25: =H24-H19 -> -50500 | I25: 4647592.325 | J25: 4716836.249 | K25: 4787111.803 | L25: 4858434.356 | M25: 4930819.508 | N25: 5004283.088 | O25: 5078841.162 | P25: 5154510.037 | Q25: 5231306.261 | R25: 5309246.63 | S25: 5388348.188 | T25: 5468628.234 | U25: 5550104.327 | V25: 5632794.284 | W25: 5716716.19 | X25: 5801888.397 | Y25: 5888329.533 | Z25: 5976058.502 | AA25: 6065094.489 | AB25: 6155456.967 | AC25: 6247165.698 | AD25: 6340240.737 | AE25: 6434702.439 | AF25: 6530571.463 | AG25: 6627868.775 | AH25: 6726615.653 | AI25: 6826833.692 | AJ25: 6928544.809 | AK25: 7031771.247 | AL25: 7136535.582 | AM25: 0 | AN25: =AN24-AN19 -> 0 | AO25: 0 | AP25: 0 | AQ25: 0 | AR25: 0 | AS25: 0 | AT25: 0 | AU25: 0 | AV25: 0 | AW25: 0 | AX25: 0 | AY25: 0 | AZ25: 0 | BA25: 0 | BB25: 0 | BC25: 0 | BD25: 0 | BE25: 0 | BF25: 0
C26: Pre-tax IRR | E26: % | F26: =IRR(H25:BF25) -> 92.04643007
C28: Tax Depreciation Period | E28: Flag | F28: ='Detailed LCOE Calculator'!G13 -> 5 | H28: =AND(H4,H3<=$F$28) -> FALSE | I28: TRUE | J28: TRUE | K28: TRUE | L28: TRUE | M28: TRUE | N28: FALSE | O28: FALSE | P28: FALSE | Q28: FALSE | R28: FALSE | S28: FALSE | T28: FALSE | U28: FALSE | V28: FALSE | W28: FALSE | X28: FALSE | Y28: FALSE | Z28: FALSE | AA28: FALSE | AB28: FALSE | AC28: FALSE | AD28: FALSE | AE28: FALSE | AF28: FALSE | AG28: FALSE | AH28: FALSE | AI28: FALSE | AJ28: FALSE | AK28: FALSE | AL28: FALSE | AM28: FALSE | AN28: =AND(AN4,AN3<=$F$28) -> FALSE | AO28: FALSE | AP28: FALSE | AQ28: FALSE | AR28: FALSE | AS28: FALSE | AT28: FALSE | AU28: FALSE | AV28: FALSE | AW28: FALSE | AX28: FALSE | AY28: FALSE | AZ28: FALSE | BA28: FALSE | BB28: FALSE | BC28: FALSE | BD28: FALSE | BE28: FALSE | BF28: FALSE
C29: Depreciation Rate | E29: % | F29: =1/F28 -> 0.2 | G29: ='Detailed LCOE Calculator'!G15 -> 1 | H29: =IFERROR(VDB(1,0,$F$28,G3,H3,$G$29),0) -> 0 | I29: =IFERROR(VDB(1,0,$F$28,H3,I3,$G$29),0) -> 0.2 | J29: 0.2 | K29: 0.2 | L29: 0.2 | M29: 0.2 | N29: 0 | O29: 0 | P29: 0 | Q29: 0 | R29: 0 | S29: 0 | T29: 0 | U29: 0 | V29: 0 | W29: 0 | X29: 0 | Y29: 0 | Z29: 0 | AA29: 0 | AB29: 0 | AC29: 0 | AD29: 0 | AE29: 0 | AF29: 0 | AG29: 0 | AH29: 0 | AI29: 0 | AJ29: 0 | AK29: 0 | AL29: 0 | AM29: 0 | AN29: 0 | AO29: 0 | AP29: 0 | AQ29: 0 | AR29: 0 | AS29: 0 | AT29: 0 | AU29: 0 | AV29: 0 | AW29: 0 | AX29: 0 | AY29: 0 | AZ29: 0 | BA29: 0 | BB29: 0 | BC29: 0 | BD29: 0 | BE29: 0 | BF29: 0
C30: Depreciation Amount | E30: USD | F30: =F19 -> 50500 | H30: =$F$30*H29 -> 0 | I30: =$F$30*I29 -> 10100 | J30: 10100 | K30: 10100 | L30: 10100 | M30: 10100 | N30: 0 | O30: 0 | P30: 0 | Q30: 0 | R30: 0 | S30: 0 | T30: 0 | U30: 0 | V30: 0 | W30: 0 | X30: 0 | Y30: 0 | Z30: 0 | AA30: 0 | AB30: 0 | AC30: 0 | AD30: 0 | AE30: 0 | AF30: 0 | AG30: 0 | AH30: 0 | AI30: 0 | AJ30: 0 | AK30: 0 | AL30: 0 | AM30: 0 | AN30: 0 | AO30: 0 | AP30: 0 | AQ30: 0 | AR30: 0 | AS30: 0 | AT30: 0 | AU30: 0 | AV30: 0 | AW30: 0 | AX30: 0 | AY30: 0 | AZ30: 0 | BA30: 0 | BB30: 0 | BC30: 0 | BD30: 0 | BE30: 0 | BF30: 0
C32: EBIT | E32: USD | H32: =H24-H30 -> 0 | I32: 4637492.325 | J32: 4706736.249 | K32: 4777011.803 | L32: 4848334.356 | M32: 4920719.508 | N32: 5004283.088 | O32: 5078841.162 | P32: 5154510.037 | Q32: 5231306.261 | R32: 5309246.63 | S32: 5388348.188 | T32: 5468628.234 | U32: 5550104.327 | V32: 5632794.284 | W32: 5716716.19 | X32: 5801888.397 | Y32: 5888329.533 | Z32: 5976058.502 | AA32: 6065094.489 | AB32: 6155456.967 | AC32: 6247165.698 | AD32: 6340240.737 | AE32: 6434702.439 | AF32: 6530571.463 | AG32: 6627868.775 | AH32: 6726615.653 | AI32: 6826833.692 | AJ32: 6928544.809 | AK32: 7031771.247 | AL32: 7136535.582 | AM32: 0 | AN32: =AN24-AN30 -> 0 | AO32: 0 | AP32: 0 | AQ32: 0 | AR32: 0 | AS32: 0 | AT32: 0 | AU32: 0 | AV32: 0 | AW32: 0 | AX32: 0 | AY32: 0 | AZ32: 0 | BA32: 0 | BB32: 0 | BC32: 0 | BD32: 0 | BE32: 0 | BF32: 0
C33: Taxes on EBIT | E33: USD | F33: ='Detailed LCOE Calculator'!G14 -> 0.3 | H33: =H32*$F$33 -> 0 | I33: =I32*$F$33 -> 1391247.697 | J33: 1412020.875 | K33: 1433103.541 | L33: 1454500.307 | M33: 1476215.852 | N33: 1501284.926 | O33: 1523652.349 | P33: 1546353.011 | Q33: 1569391.878 | R33: 1592773.989 | S33: 1616504.456 | T33: 1640588.47 | U33: 1665031.298 | V33: 1689838.285 | W33: 1715014.857 | X33: 1740566.519 | Y33: 1766498.86 | Z33: 1792817.55 | AA33: 1819528.347 | AB33: 1846637.09 | AC33: 1874149.709 | AD33: 1902072.221 | AE33: 1930410.732 | AF33: 1959171.439 | AG33: 1988360.633 | AH33: 2017984.696 | AI33: 2048050.108 | AJ33: 2078563.443 | AK33: 2109531.374 | AL33: 2140960.675 | AM33: 0 | AN33: 0 | AO33: 0 | AP33: 0 | AQ33: 0 | AR33: 0 | AS33: 0 | AT33: 0 | AU33: 0 | AV33: 0 | AW33: 0 | AX33: 0 | AY33: 0 | AZ33: 0 | BA33: 0 | BB33: 0 | BC33: 0 | BD33: 0 | BE33: 0 | BF33: 0
C34: After-tax Cash Flow | E34: USD | H34: =H25-H33 -> -50500 | I34: 3256344.627 | J34: 3304815.374 | K34: 3354008.262 | L34: 3403934.049 | M34: 3454603.655 | N34: 3502998.161 | O34: 3555188.814 | P34: 3608157.026 | Q34: 3661914.383 | R34: 3716472.641 | S34: 3771843.731 | T34: 3828039.764 | U34: 3885073.029 | V34: 3942955.999 | W34: 4001701.333 | X34: 4061321.878 | Y34: 4121830.673 | Z34: 4183240.951 | AA34: 4245566.142 | AB34: 4308819.877 | AC34: 4373015.988 | AD34: 4438168.516 | AE34: 4504291.708 | AF34: 4571400.024 | AG34: 4639508.143 | AH34: 4708630.957 | AI34: 4778783.584 | AJ34: 4849981.366 | AK34: 4922239.873 | AL34: 4995574.907 | AM34: 0 | AN34: =AN25-AN33 -> 0 | AO34: 0 | AP34: 0 | AQ34: 0 | AR34: 0 | AS34: 0 | AT34: 0 | AU34: 0 | AV34: 0 | AW34: 0 | AX34: 0 | AY34: 0 | AZ34: 0 | BA34: 0 | BB34: 0 | BC34: 0 | BD34: 0 | BE34: 0 | BF34: 0
C36: After-tax IRR | F36: =IRR(H34:BF34) -> 64.49695685
C37: Target IRR | E37: % | F37: ='Detailed LCOE Calculator'!G22 -> 0.03292
B39: Other LCOE Formulas
C40: NPV of Revenues | E40: USD | F40: =F36 -> 64.49695685 | G40: =NPV(F40,I22:BF22) -> 72091.56395
C41: NPV of Generation | E41: USD | G41: =NPV(F40,I13:BF13) -> 3378.2696
C42: NPV Revenues/NPV of Generation | E42: USD/kWh | G42: =G40/G41 -> 21.33979003
C44: NPV of Revenues | G44: =G40 -> 72091.56395
C45: NPV of Generation at real discount rate | F45: =(1+F40)/(1+F17)-1 -> 63.21270279 | G45: =NPV(F45,I13:BF13) -> 3446.898422
C46: NPV Revenues/NPV of Generation | G46: =G44/G45 -> 20.91490816
C48: NPV of Op Exp | E48: USD
C49: Add: Cap Exp | E49: USD
C50: Total Cost | E50: USD
C51: NPV of Total Cost/NPV of Generation | E51: USD/kWh
B53: Financing
C54: Total Uses of Funds
D55: Capital Expenditures | E55: USD | H55: =H19 -> 50500
D56: Add: IDC | E56: USD
D57: Add: Fees | E57: USD
D58: Add: DSRA | E58: USD
D59: Total Uses of Funds | E59: USD | H59: =SUM(H55:H58) -> 50500
C61: Sources of Funds
D62: Debt Financing | E62: USD | H62: =H118 -> 42925
D63: Equity Financing | E63: USD | H63: =H59-H62 -> 7575
D64: Total Sources of funds | E64: USD | H64: =SUM(H62:H63) -> 50500
C66: Repayment Period | E66: Flag | F66: ='Detailed LCOE Calculator'!G84 -> 20 | I66: =I3<=$F$66 -> TRUE | J66: TRUE | K66: TRUE | L66: TRUE | M66: TRUE | N66: TRUE | O66: TRUE | P66: TRUE | Q66: TRUE | R66: TRUE | S66: TRUE | T66: TRUE | U66: TRUE | V66: TRUE | W66: TRUE | X66: TRUE | Y66: TRUE | Z66: TRUE | AA66: TRUE | AB66: TRUE | AC66: FALSE | AD66: FALSE | AE66: FALSE | AF66: FALSE | AG66: FALSE | AH66: FALSE | AI66: FALSE | AJ66: FALSE | AK66: FALSE | AL66: FALSE | AM66: FALSE | AN66: FALSE | AO66: =AO3<=$F$66 -> FALSE | AP66: FALSE | AQ66: FALSE | AR66: FALSE | AS66: FALSE | AT66: FALSE | AU66: FALSE | AV66: FALSE | AW66: FALSE | AX66: FALSE | AY66: FALSE | AZ66: FALSE | BA66: FALSE | BB66: FALSE | BC66: FALSE | BD66: FALSE | BE66: FALSE | BF66: FALSE
C67: Interest Rate | E67: USD | F67: ='Detailed LCOE Calculator'!G83 -> 0.03 | I67: =$F$67 -> 0.03 | J67: =$F$67 -> 0.03 | K67: 0.03 | L67: 0.03 | M67: 0.03 | N67: 0.03 | O67: 0.03 | P67: 0.03 | Q67: 0.03 | R67: 0.03 | S67: 0.03 | T67: 0.03 | U67: 0.03 | V67: 0.03 | W67: 0.03 | X67: 0.03 | Y67: 0.03 | Z67: 0.03 | AA67: 0.03 | AB67: 0.03 | AC67: 0.03 | AD67: 0.03 | AE67: 0.03 | AF67: 0.03 | AG67: 0.03 | AH67: 0.03 | AI67: 0.03 | AJ67: 0.03 | AK67: 0.03 | AL67: 0.03 | AM67: 0.03 | AN67: 0.03 | AO67: 0.03 | AP67: 0.03 | AQ67: 0.03 | AR67: 0.03 | AS67: 0.03 | AT67: 0.03 | AU67: 0.03 | AV67: 0.03 | AW67: 0.03 | AX67: 0.03 | AY67: 0.03 | AZ67: 0.03 | BA67: 0.03 | BB67: 0.03 | BC67: 0.03 | BD67: 0.03 | BE67: 0.03 | BF67: 0.03
C69: Cash Flow at P50 | E69: USD | I69: =I34*I66 -> 3256344.627 | J69: =J34*J66 -> 3304815.374 | K69: 3354008.262 | L69: 3403934.049 | M69: 3454603.655 | N69: 3502998.161 | O69: 3555188.814 | P69: 3608157.026 | Q69: 3661914.383 | R69: 3716472.641 | S69: 3771843.731 | T69: 3828039.764 | U69: 3885073.029 | V69: 3942955.999 | W69: 4001701.333 | X69: 4061321.878 | Y69: 4121830.673 | Z69: 4183240.951 | AA69: 4245566.142 | AB69: 4308819.877 | AC69: 0 | AD69: 0 | AE69: 0 | AF69: 0 | AG69: 0 | AH69: 0 | AI69: 0 | AJ69: 0 | AK69: 0 | AL69: 0 | AM69: 0 | AN69: 0 | AO69: 0 | AP69: 0 | AQ69: 0 | AR69: 0 | AS69: 0 | AT69: 0 | AU69: 0 | AV69: 0 | AW69: 0 | AX69: 0 | AY69: 0 | AZ69: 0 | BA69: 0 | BB69: 0 | BC69: 0 | BD69: 0 | BE69: 0 | BF69: 0
C70: Target Debt Service at P50 | E70: USD | F70: ='Detailed LCOE Calculator'!G85 -> 1.2 | I70: =I69/$F$70 -> 2713620.523 | J70: =J69/$F$70 -> 2754012.812 | K70: 2795006.885 | L70: 2836611.708 | M70: 2878836.38 | N70: 2919165.134 | O70: 2962657.345 | P70: 3006797.522 | Q70: 3051595.319 | R70: 3097060.534 | S70: 3143203.109 | T70: 3190033.137 | U70: 3237560.857 | V70: 3285796.666 | W70: 3334751.111 | X70: 3384434.898 | Y70: 3434858.894 | Z70: 3486034.126 | AA70: 3537971.785 | AB70: 3590683.231 | AC70: 0 | AD70: 0 | AE70: 0 | AF70: 0 | AG70: 0 | AH70: 0 | AI70: 0 | AJ70: 0 | AK70: 0 | AL70: 0 | AM70: 0 | AN70: 0 | AO70: 0 | AP70: 0 | AQ70: 0 | AR70: 0 | AS70: 0 | AT70: 0 | AU70: 0 | AV70: 0 | AW70: 0 | AX70: 0 | AY70: 0 | AZ70: 0 | BA70: 0 | BB70: 0 | BC70: 0 | BD70: 0 | BE70: 0 | BF70: 0
C71: NPV of Debt Service at Int Rate | E71: USD | F71: =NPV(F67,I70:BF70) -> 45928625.13
C73: Uncertainty in Solar | E73: % | F73: 0.05 | H73: =H120 -> Debt to Capital
C74: P50 Capacity Factor | E74: % | F74: =F9 -> 0.25
C75: P50 Yield | E75: kWh/kWp | F75: =F74*8760 -> 2190
C76: Std Devation of Yield | E76: kWh/kWp | F76: =F75*F73 -> 109.5
C77: Probablity Level | E77: % | F77: 0.01
C78: Probablity Above | E78: % | F78: =1-F77 -> 0.99
C79: Downside Yield | E79: kWh/kWp | F79: =_xlfn.NORM.INV(F77,F75,F76) -> 1935.264908 | H79: =_xlfn.FORMULATEXT(F79) -> =NORM.INV(F77,F75,F76)
C80: Downside Capacity Factor | E80: % | F80: =F79/8760 -> 0.2209206516
C81: P99/P50 | E81: % | F81: =F79/F75 -> 0.8836826063
B83: Downside Cash Flow
C84: Capacity | E84: kWp | F84: =F8 -> 100 | H84: =$F$84*H4 -> 0 | I84: =$F$84*I4 -> 100 | J84: 100 | K84: 100 | L84: 100 | M84: 100 | N84: 100 | O84: 100 | P84: 100 | Q84: 100 | R84: 100 | S84: 100 | T84: 100 | U84: 100 | V84: 100 | W84: 100 | X84: 100 | Y84: 100 | Z84: 100 | AA84: 100 | AB84: 100 | AC84: 100 | AD84: 100 | AE84: 100 | AF84: 100 | AG84: 100 | AH84: 100 | AI84: 100 | AJ84: 100 | AK84: 100 | AL84: 100 | AM84: 0 | AN84: 0 | AO84: 0 | AP84: 0 | AQ84: 0 | AR84: 0 | AS84: 0 | AT84: 0 | AU84: 0 | AV84: 0 | AW84: 0 | AX84: 0 | AY84: 0 | AZ84: 0 | BA84: 0 | BB84: 0 | BC84: 0 | BD84: 0 | BE84: 0 | BF84: 0
C85: Capacity factor | E85: % | F85: =F80 -> 0.2209206516 | H85: =H4*$F$85 -> 0 | I85: =I4*$F$85 -> 0.2209206516 | J85: 0.2209206516 | K85: 0.2209206516 | L85: 0.2209206516 | M85: 0.2209206516 | N85: 0.2209206516 | O85: 0.2209206516 | P85: 0.2209206516 | Q85: 0.2209206516 | R85: 0.2209206516 | S85: 0.2209206516 | T85: 0.2209206516 | U85: 0.2209206516 | V85: 0.2209206516 | W85: 0.2209206516 | X85: 0.2209206516 | Y85: 0.2209206516 | Z85: 0.2209206516 | AA85: 0.2209206516 | AB85: 0.2209206516 | AC85: 0.2209206516 | AD85: 0.2209206516 | AE85: 0.2209206516 | AF85: 0.2209206516 | AG85: 0.2209206516 | AH85: 0.2209206516 | AI85: 0.2209206516 | AJ85: 0.2209206516 | AK85: 0.2209206516 | AL85: 0.2209206516 | AM85: 0 | AN85: 0 | AO85: 0 | AP85: 0 | AQ85: 0 | AR85: 0 | AS85: 0 | AT85: 0 | AU85: 0 | AV85: 0 | AW85: 0 | AX85: 0 | AY85: 0 | AZ85: 0 | BA85: 0 | BB85: 0 | BC85: 0 | BD85: 0 | BE85: 0 | BF85: 0
C86: Generation | E86: kWh | H86: =H84*H85*8760 -> 0 | I86: =I84*I85*8760 -> 193526.4908 | J86: 193526.4908 | K86: 193526.4908 | L86: 193526.4908 | M86: 193526.4908 | N86: 193526.4908 | O86: 193526.4908 | P86: 193526.4908 | Q86: 193526.4908 | R86: 193526.4908 | S86: 193526.4908 | T86: 193526.4908 | U86: 193526.4908 | V86: 193526.4908 | W86: 193526.4908 | X86: 193526.4908 | Y86: 193526.4908 | Z86: 193526.4908 | AA86: 193526.4908 | AB86: 193526.4908 | AC86: 193526.4908 | AD86: 193526.4908 | AE86: 193526.4908 | AF86: 193526.4908 | AG86: 193526.4908 | AH86: 193526.4908 | AI86: 193526.4908 | AJ86: 193526.4908 | AK86: 193526.4908 | AL86: 193526.4908 | AM86: 0 | AN86: 0 | AO86: 0 | AP86: 0 | AQ86: 0 | AR86: 0 | AS86: 0 | AT86: 0 | AU86: 0 | AV86: 0 | AW86: 0 | AX86: 0 | AY86: 0 | AZ86: 0 | BA86: 0 | BB86: 0 | BC86: 0 | BD86: 0 | BE86: 0 | BF86: 0
C87: Degradation | E87: Index | F87: =F12 -> 0.005 | H87: 1 | I87: =H87*(1-$F$87) -> 0.995 | J87: =I87*(1-$F$87) -> 0.990025 | K87: 0.985074875 | L87: 0.9801495006 | M87: 0.9752487531 | N87: 0.9703725094 | O87: 0.9655206468 | P87: 0.9606930436 | Q87: 0.9558895784 | R87: 0.9511101305 | S87: 0.9463545798 | T87: 0.9416228069 | U87: 0.9369146929 | V87: 0.9322301194 | W87: 0.9275689688 | X87: 0.922931124 | Y87: 0.9183164684 | Z87: 0.913724886 | AA87: 0.9091562616 | AB87: 0.9046104803 | AC87: 0.9000874279 | AD87: 0.8955869907 | AE87: 0.8911090558 | AF87: 0.8866535105 | AG87: 0.8822202429 | AH87: 0.8778091417 | AI87: 0.873420096 | AJ87: 0.8690529955 | AK87: 0.8647077306 | AL87: 0.8603841919 | AM87: 0.856082271 | AN87: 0.8518018596 | AO87: 0.8475428503 | AP87: 0.8433051361 | AQ87: 0.8390886104 | AR87: 0.8348931673 | AS87: 0.8307187015 | AT87: 0.826565108 | AU87: 0.8224322824 | AV87: 0.818320121 | AW87: 0.8142285204 | AX87: 0.8101573778 | AY87: 0.8061065909 | AZ87: 0.802076058 | BA87: 0.7980656777 | BB87: 0.7940753493 | BC87: 0.7901049725 | BD87: 0.7861544477 | BE87: 0.7822236754 | BF87: 0.7783125571
C88: Generation after Degradation | E88: kWh | H88: =H86*H87 -> 0 | I88: 192558.8583 | J88: 191596.064 | K88: 190638.0837 | L88: 189684.8933 | M88: 188736.4688 | N88: 187792.7865 | O88: 186853.8226 | P88: 185919.5534 | Q88: 184989.9557 | R88: 184065.0059 | S88: 183144.6809 | T88: 182228.9575 | U88: 181317.8127 | V88: 180411.2236 | W88: 179509.1675 | X88: 178611.6217 | Y88: 177718.5635 | Z88: 176829.9707 | AA88: 175945.8209 | AB88: 175066.0918 | AC88: 174190.7613 | AD88: 173319.8075 | AE88: 172453.2085 | AF88: 171590.9424 | AG88: 170732.9877 | AH88: 169879.3228 | AI88: 169029.9262 | AJ88: 168184.7765 | AK88: 167343.8526 | AL88: 166507.1334 | AM88: 0 | AN88: =AN86*AN87 -> 0 | AO88: 0 | AP88: 0 | AQ88: 0 | AR88: 0 | AS88: 0 | AT88: 0 | AU88: 0 | AV88: 0 | AW88: 0 | AX88: 0 | AY88: 0 | AZ88: 0 | BA88: 0 | BB88: 0 | BC88: 0 | BD88: 0 | BE88: 0 | BF88: 0
C90: Inflation Index | E90: Index | F90: ='Detailed LCOE Calculator'!G80 -> 0 | H90: =H17 -> 1 | I90: =I17 -> 1.02 | J90: 1.0404 | K90: 1.061208 | L90: 1.08243216 | M90: 1.104080803 | N90: 1.126162419 | O90: 1.148685668 | P90: 1.171659381 | Q90: 1.195092569 | R90: 1.21899442 | S90: 1.243374308 | T90: 1.268241795 | U90: 1.29360663 | V90: 1.319478763 | W90: 1.345868338 | X90: 1.372785705 | Y90: 1.400241419 | Z90: 1.428246248 | AA90: 1.456811173 | AB90: 1.485947396 | AC90: 1.515666344 | AD90: 1.545979671 | AE90: 1.576899264 | AF90: 1.608437249 | AG90: 1.640605994 | AH90: 1.673418114 | AI90: 1.706886477 | AJ90: 1.741024206 | AK90: 1.77584469 | AL90: 1.811361584 | AM90: 1.847588816 | AN90: 1.884540592 | AO90: 1.922231404 | AP90: 1.960676032 | AQ90: 1.999889553 | AR90: 2.039887344 | AS90: 2.080685091 | AT90: 2.122298792 | AU90: 2.164744768 | AV90: 2.208039664 | AW90: 2.252200457 | AX90: 2.297244466 | AY90: 2.343189355 | AZ90: 2.390053142 | BA90: 2.437854205 | BB90: 2.486611289 | BC90: 2.536343515 | BD90: 2.587070385 | BE90: 2.638811793 | BF90: 2.691588029
C91: OPEX | E91: USD | F91: =F20 -> 1000 | H91: =H20 -> 0 | I91: =I20 -> 1020 | J91: 1040.4 | K91: 1061.208 | L91: 1082.43216 | M91: 1104.080803 | N91: 1126.162419 | O91: 1148.685668 | P91: 1171.659381 | Q91: 1195.092569 | R91: 1218.99442 | S91: 1243.374308 | T91: 1268.241795 | U91: 1293.60663 | V91: 1319.478763 | W91: 1345.868338 | X91: 1372.785705 | Y91: 1400.241419 | Z91: 1428.246248 | AA91: 1456.811173 | AB91: 1485.947396 | AC91: 1515.666344 | AD91: 1545.979671 | AE91: 1576.899264 | AF91: 1608.437249 | AG91: 1640.605994 | AH91: 1673.418114 | AI91: 1706.886477 | AJ91: 1741.024206 | AK91: 1775.84469 | AL91: 1811.361584 | AM91: 0 | AN91: 0 | AO91: 0 | AP91: 0 | AQ91: 0 | AR91: 0 | AS91: 0 | AT91: 0 | AU91: 0 | AV91: 0 | AW91: 0 | AX91: 0 | AY91: 0 | AZ91: 0 | BA91: 0 | BB91: 0 | BC91: 0 | BD91: 0 | BE91: 0 | BF91: 0
C92: Price | E92: USD/kWh | F92: =F21 -> 20.91490816 | H92: =IF($G$2,$F$92*H90,$F$92) -> 20.91490816 | I92: 21.33320633 | J92: 21.75987045 | K92: 22.19506786 | L92: 22.63896922 | M92: 23.09174861 | N92: 23.55358358 | O92: 24.02465525 | P92: 24.50514835 | Q92: 24.99525132 | R92: 25.49515635 | S92: 26.00505947 | T92: 26.52516066 | U92: 27.05566388 | V92: 27.59677715 | W92: 28.1487127 | X92: 28.71168695 | Y92: 29.28592069 | Z92: 29.8716391 | AA92: 30.46907189 | AB92: 31.07845332 | AC92: 31.70002239 | AD92: 32.33402284 | AE92: 32.9807033 | AF92: 33.64031736 | AG92: 34.31312371 | AH92: 34.99938618 | AI92: 35.69937391 | AJ92: 36.41336138 | AK92: 37.14162861 | AL92: 37.88446118 | AM92: 38.64215041 | AN92: =IF($G$2,$F$92*AN90,$F$92) -> 39.41499342 | AO92: 40.20329328 | AP92: 41.00735915 | AQ92: 41.82750633 | AR92: 42.66405646 | AS92: 43.51733759 | AT92: 44.38768434 | AU92: 45.27543803 | AV92: 46.18094679 | AW92: 47.10456572 | AX92: 48.04665704 | AY92: 49.00759018 | AZ92: 49.98774198 | BA92: 50.98749682 | BB92: 52.00724676 | BC92: 53.04739169 | BD92: 54.10833953 | BE92: 55.19050632 | BF92: 56.29431644
C93: Revenue | E93: USD | H93: =H92*H88 -> 0 | I93: 4107897.855 | J93: 4169105.533 | K93: 4231225.205 | L93: 4294270.461 | M93: 4358255.091 | N93: 4423193.092 | O93: 4489098.669 | P93: 4555986.239 | Q93: 4623870.434 | R93: 4692766.103 | S93: 4762688.318 | T93: 4833652.374 | U93: 4905673.795 | V93: 4978768.334 | W93: 5052951.982 | X93: 5128240.967 | Y93: 5204651.757 | Z93: 5282201.068 | AA93: 5360905.864 | AB93: 5440783.362 | AC93: 5521851.034 | AD93: 5604126.614 | AE93: 5687628.101 | AF93: 5772373.759 | AG93: 5858382.128 | AH93: 5945672.022 | AI93: 6034262.535 | AJ93: 6124173.047 | AK93: 6215423.226 | AL93: 6308033.032 | AM93: 0 | AN93: =AN92*AN88 -> 0 | AO93: 0 | AP93: 0 | AQ93: 0 | AR93: 0 | AS93: 0 | AT93: 0 | AU93: 0 | AV93: 0 | AW93: 0 | AX93: 0 | AY93: 0 | AZ93: 0 | BA93: 0 | BB93: 0 | BC93: 0 | BD93: 0 | BE93: 0 | BF93: 0
C95: EBITDA | E95: USD | H95: =H93-H91 -> 0 | I95: =I93-I91 -> 4106877.855 | J95: 4168065.133 | K95: 4230163.997 | L95: 4293188.029 | M95: 4357151.01 | N95: 4422066.929 | O95: 4487949.983 | P95: 4554814.58 | Q95: 4622675.341 | R95: 4691547.109 | S95: 4761444.944 | T95: 4832384.132 | U95: 4904380.188 | V95: 4977448.855 | W95: 5051606.114 | X95: 5126868.181 | Y95: 5203251.516 | Z95: 5280772.822 | AA95: 5359449.053 | AB95: 5439297.414 | AC95: 5520335.367 | AD95: 5602580.635 | AE95: 5686051.202 | AF95: 5770765.322 | AG95: 5856741.522 | AH95: 5943998.604 | AI95: 6032555.649 | AJ95: 6122432.023 | AK95: 6213647.381 | AL95: 6306221.67 | AM95: 0 | AN95: 0 | AO95: 0 | AP95: 0 | AQ95: 0 | AR95: 0 | AS95: 0 | AT95: 0 | AU95: 0 | AV95: 0 | AW95: 0 | AX95: 0 | AY95: 0 | AZ95: 0 | BA95: 0 | BB95: 0 | BC95: 0 | BD95: 0 | BE95: 0 | BF95: 0
C96: Depreciation Amount | E96: USD | H96: =H30 -> 0 | I96: =I30 -> 10100 | J96: 10100 | K96: 10100 | L96: 10100 | M96: 10100 | N96: 0 | O96: 0 | P96: 0 | Q96: 0 | R96: 0 | S96: 0 | T96: 0 | U96: 0 | V96: 0 | W96: 0 | X96: 0 | Y96: 0 | Z96: 0 | AA96: 0 | AB96: 0 | AC96: 0 | AD96: 0 | AE96: 0 | AF96: 0 | AG96: 0 | AH96: 0 | AI96: 0 | AJ96: 0 | AK96: 0 | AL96: 0 | AM96: 0 | AN96: 0 | AO96: 0 | AP96: 0 | AQ96: 0 | AR96: 0 | AS96: 0 | AT96: 0 | AU96: 0 | AV96: 0 | AW96: 0 | AX96: 0 | AY96: 0 | AZ96: 0 | BA96: 0 | BB96: 0 | BC96: 0 | BD96: 0 | BE96: 0 | BF96: 0
C97: EBIT | E97: USD | H97: =H95-H96 -> 0 | I97: 4096777.855 | J97: 4157965.133 | K97: 4220063.997 | L97: 4283088.029 | M97: 4347051.01 | N97: 4422066.929 | O97: 4487949.983 | P97: 4554814.58 | Q97: 4622675.341 | R97: 4691547.109 | S97: 4761444.944 | T97: 4832384.132 | U97: 4904380.188 | V97: 4977448.855 | W97: 5051606.114 | X97: 5126868.181 | Y97: 5203251.516 | Z97: 5280772.822 | AA97: 5359449.053 | AB97: 5439297.414 | AC97: 5520335.367 | AD97: 5602580.635 | AE97: 5686051.202 | AF97: 5770765.322 | AG97: 5856741.522 | AH97: 5943998.604 | AI97: 6032555.649 | AJ97: 6122432.023 | AK97: 6213647.381 | AL97: 6306221.67 | AM97: 0 | AN97: =AN95-AN96 -> 0 | AO97: 0 | AP97: 0 | AQ97: 0 | AR97: 0 | AS97: 0 | AT97: 0 | AU97: 0 | AV97: 0 | AW97: 0 | AX97: 0 | AY97: 0 | AZ97: 0 | BA97: 0 | BB97: 0 | BC97: 0 | BD97: 0 | BE97: 0 | BF97: 0
C98: Taxes on EBIT | E98: USD | F98: =F33 -> 0.3 | H98: =H97*$F$98 -> 0 | I98: =I97*$F$98 -> 1229033.356 | J98: 1247389.54 | K98: 1266019.199 | L98: 1284926.409 | M98: 1304115.303 | N98: 1326620.079 | O98: 1346384.995 | P98: 1366444.374 | Q98: 1386802.602 | R98: 1407464.133 | S98: 1428433.483 | T98: 1449715.24 | U98: 1471314.056 | V98: 1493234.657 | W98: 1515481.834 | X98: 1538060.454 | Y98: 1560975.455 | Z98: 1584231.847 | AA98: 1607834.716 | AB98: 1631789.224 | AC98: 1656100.61 | AD98: 1680774.19 | AE98: 1705815.36 | AF98: 1731229.597 | AG98: 1757022.457 | AH98: 1783199.581 | AI98: 1809766.695 | AJ98: 1836729.607 | AK98: 1864094.214 | AL98: 1891866.501 | AM98: 0 | AN98: 0 | AO98: 0 | AP98: 0 | AQ98: 0 | AR98: 0 | AS98: 0 | AT98: 0 | AU98: 0 | AV98: 0 | AW98: 0 | AX98: 0 | AY98: 0 | AZ98: 0 | BA98: 0 | BB98: 0 | BC98: 0 | BD98: 0 | BE98: 0 | BF98: 0
C99: After-tax Cash Flow | E99: USD | H99: =H95-H98 -> 0 | I99: =I95-I98 -> 2877844.498 | J99: 2920675.593 | K99: 2964144.798 | L99: 3008261.62 | M99: 3053035.707 | N99: 3095446.85 | O99: 3141564.988 | P99: 3188370.206 | Q99: 3235872.739 | R99: 3284082.976 | S99: 3333011.461 | T99: 3382668.893 | U99: 3433066.132 | V99: 3484214.199 | W99: 3536124.28 | X99: 3588807.727 | Y99: 3642276.061 | Z99: 3696540.976 | AA99: 3751614.337 | AB99: 3807508.19 | AC99: 3864234.757 | AD99: 3921806.444 | AE99: 3980235.841 | AF99: 4039535.726 | AG99: 4099719.066 | AH99: 4160799.023 | AI99: 4222788.954 | AJ99: 4285702.416 | AK99: 4349553.167 | AL99: 4414355.169 | AM99: 0 | AN99: 0 | AO99: 0 | AP99: 0 | AQ99: 0 | AR99: 0 | AS99: 0 | AT99: 0 | AU99: 0 | AV99: 0 | AW99: 0 | AX99: 0 | AY99: 0 | AZ99: 0 | BA99: 0 | BB99: 0 | BC99: 0 | BD99: 0 | BE99: 0 | BF99: 0
C101: Cash Flow at P99 | E101: USD | I101: =I99*I66 -> 2877844.498 | J101: 2920675.593 | K101: 2964144.798 | L101: 3008261.62 | M101: 3053035.707 | N101: 3095446.85 | O101: 3141564.988 | P101: 3188370.206 | Q101: 3235872.739 | R101: 3284082.976 | S101: 3333011.461 | T101: 3382668.893 | U101: 3433066.132 | V101: 3484214.199 | W101: 3536124.28 | X101: 3588807.727 | Y101: 3642276.061 | Z101: 3696540.976 | AA101: 3751614.337 | AB101: 3807508.19 | AC101: 0 | AD101: 0 | AE101: 0 | AF101: 0 | AG101: 0 | AH101: 0 | AI101: 0 | AJ101: 0 | AK101: 0 | AL101: 0 | AM101: 0 | AN101: 0 | AO101: 0 | AP101: 0 | AQ101: 0 | AR101: 0 | AS101: 0 | AT101: 0 | AU101: 0 | AV101: 0 | AW101: 0 | AX101: 0 | AY101: 0 | AZ101: 0 | BA101: 0 | BB101: 0 | BC101: 0 | BD101: 0 | BE101: 0 | BF101: 0
C102: Target Debt Service at P99 | E102: USD | F102: ='Detailed LCOE Calculator'!G86 -> 1 | I102: =I101/$F$102 -> 2877844.498 | J102: 2920675.593 | K102: 2964144.798 | L102: 3008261.62 | M102: 3053035.707 | N102: 3095446.85 | O102: 3141564.988 | P102: 3188370.206 | Q102: 3235872.739 | R102: 3284082.976 | S102: 3333011.461 | T102: 3382668.893 | U102: 3433066.132 | V102: 3484214.199 | W102: 3536124.28 | X102: 3588807.727 | Y102: 3642276.061 | Z102: 3696540.976 | AA102: 3751614.337 | AB102: 3807508.19 | AC102: 0 | AD102: 0 | AE102: 0 | AF102: 0 | AG102: 0 | AH102: 0 | AI102: 0 | AJ102: 0 | AK102: 0 | AL102: 0 | AM102: 0 | AN102: 0 | AO102: 0 | AP102: 0 | AQ102: 0 | AR102: 0 | AS102: 0 | AT102: 0 | AU102: 0 | AV102: 0 | AW102: 0 | AX102: 0 | AY102: 0 | AZ102: 0 | BA102: 0 | BB102: 0 | BC102: 0 | BD102: 0 | BE102: 0 | BF102: 0
C103: NPV of Debt Service at Int Rate | E103: USD | H103: =NPV(F67,I102:BF102) -> 48703734.45
C105: Minimum of P50 or P99 Debt | E105: USD | H105: =MIN(H103,F71) -> 45928625.13
C106: Minimum of P50 or P99 Cash Flow | E106: USD | I106: =MIN(I101,I69) -> 2877844.498 | J106: =MIN(J101,J69) -> 2920675.593 | K106: 2964144.798 | L106: 3008261.62 | M106: 3053035.707 | N106: 3095446.85 | O106: 3141564.988 | P106: 3188370.206 | Q106: 3235872.739 | R106: 3284082.976 | S106: 3333011.461 | T106: 3382668.893 | U106: 3433066.132 | V106: 3484214.199 | W106: 3536124.28 | X106: 3588807.727 | Y106: 3642276.061 | Z106: 3696540.976 | AA106: 3751614.337 | AB106: 3807508.19 | AC106: 0 | AD106: 0 | AE106: 0 | AF106: 0 | AG106: 0 | AH106: 0 | AI106: 0 | AJ106: 0 | AK106: 0 | AL106: 0 | AM106: 0 | AN106: 0 | AO106: 0 | AP106: 0 | AQ106: 0 | AR106: 0 | AS106: 0 | AT106: 0 | AU106: 0 | AV106: 0 | AW106: 0 | AX106: 0 | AY106: 0 | AZ106: 0 | BA106: 0 | BB106: 0 | BC106: 0 | BD106: 0 | BE106: 0 | BF106: 0
C108: Total Project Cost | E108: USD | H108: =H59 -> 50500
C109: Debt from Debt to Capital | E109: USD | F109: ='Detailed LCOE Calculator'!G82 -> 0.85 | H109: =H108*F109 -> 42925
C110: PV of Cash Flow | E110: USD | F110: =F67 -> 0.03 | H110: =NPV(F110,I106:BF106) -> 48703734.45
C111: LLCR from Fixed Debt | E111: USD | H111: =H110/H109 -> 1134.623983
C112: Debt Service from Fixed Debt | E112: USD | I112: =I106/$H$111 -> 2536.3861 | J112: =J106/$H$111 -> 2574.135254 | K112: 2612.446805 | L112: 2651.329133 | M112: 2690.790741 | N112: 2728.169771 | O112: 2768.815957 | P112: 2810.067701 | Q112: 2851.934023 | R112: 2894.424079 | S112: 2937.547163 | T112: 2981.312703 | U112: 3025.730272 | V112: 3070.809583 | W112: 3116.560494 | X112: 3162.993011 | Y112: 3210.117287 | Z112: 3257.943629 | AA112: 3306.482495 | AB112: 3355.744501 | AC112: 0 | AD112: 0 | AE112: 0 | AF112: 0 | AG112: 0 | AH112: 0 | AI112: 0 | AJ112: 0 | AK112: 0 | AL112: 0 | AM112: 0 | AN112: 0 | AO112: 0 | AP112: 0 | AQ112: 0 | AR112: 0 | AS112: 0 | AT112: 0 | AU112: 0 | AV112: 0 | AW112: 0 | AX112: 0 | AY112: 0 | AZ112: 0 | BA112: 0 | BB112: 0 | BC112: 0 | BD112: 0 | BE112: 0 | BF112: 0
C114: P50 Debt | E114: USD | H114: =F71 -> 45928625.13
C115: P99 Debt | E115: USD | H115: =H103 -> 48703734.45
C116: Debt to Capital | E116: USD | H116: =H109 -> 42925
C118: Final Debt Applied | E118: USD | H118: =MIN(H114:H116) -> 42925
C119: Match of Debt | E119: # | H119: =MATCH(H118,H114:H116,0) -> 3
C120: Debt Applied | H120: =INDEX(C114:C116,H119) -> Debt to Capital | I120: =_xlfn.XLOOKUP(H118,H114:H116,C114:C116,0,0) -> Debt to Capital
C122: Final Debt Service Applied | E122: USD | I122: =CHOOSE($H$119,I70,I106,I112) -> 2536.3861 | J122: =CHOOSE($H$119,J70,J106,J112) -> 2574.135254 | K122: 2612.446805 | L122: 2651.329133 | M122: 2690.790741 | N122: 2728.169771 | O122: 2768.815957 | P122: 2810.067701 | Q122: 2851.934023 | R122: 2894.424079 | S122: 2937.547163 | T122: 2981.312703 | U122: 3025.730272 | V122: 3070.809583 | W122: 3116.560494 | X122: 3162.993011 | Y122: 3210.117287 | Z122: 3257.943629 | AA122: 3306.482495 | AB122: 3355.744501 | AC122: 0 | AD122: 0 | AE122: 0 | AF122: 0 | AG122: 0 | AH122: 0 | AI122: 0 | AJ122: 0 | AK122: 0 | AL122: 0 | AM122: 0 | AN122: 0 | AO122: 0 | AP122: 0 | AQ122: 0 | AR122: 0 | AS122: 0 | AT122: 0 | AU122: 0 | AV122: 0 | AW122: 0 | AX122: 0 | AY122: 0 | AZ122: 0 | BA122: 0 | BB122: 0 | BC122: 0 | BD122: 0 | BE122: 0 | BF122: 0
C124: Debt Account
C125: Opening Balance | H125: =G128 -> 0 | I125: =H128 -> 42925 | J125: 41676.3639 | K125: 40352.51956 | L125: 38950.64835 | M125: 37467.83866 | N125: 35901.08308 | O125: 34249.9458 | P125: 32508.62822 | Q125: 30673.81937 | R125: 28742.09992 | S125: 26709.93884 | T125: 24573.68985 | U125: 22329.58784 | V125: 19973.7452 | W125: 17502.14797 | X125: 14910.65192 | Y125: 12194.97847 | Z125: 9350.710532 | AA125: 6373.288219 | AB125: 3258.00437 | AC125: -9.549694369e-12 | AD125: -9.8361852e-12 | AE125: -1.013127076e-11 | AF125: -1.043520888e-11 | AG125: -1.074826514e-11 | AH125: -1.10707131e-11 | AI125: -1.140283449e-11 | AJ125: -1.174491953e-11 | AK125: -1.209726711e-11 | AL125: -1.246018513e-11 | AM125: -1.283399068e-11 | AN125: -1.32190104e-11 | AO125: -1.361558071e-11 | AP125: -1.402404813e-11 | AQ125: -1.444476958e-11 | AR125: -1.487811266e-11 | AS125: -1.532445604e-11 | AT125: -1.578418973e-11 | AU125: -1.625771542e-11 | AV125: -1.674544688e-11 | AW125: -1.724781029e-11 | AX125: -1.77652446e-11 | AY125: -1.829820193e-11 | AZ125: -1.884714799e-11 | BA125: -1.941256243e-11 | BB125: -1.99949393e-11 | BC125: -2.059478748e-11 | BD125: -2.121263111e-11 | BE125: -2.184901004e-11 | BF125: -2.250448034e-11
C126: Add: Debt Issued | H126: =H118 -> 42925 | I126: =I118 -> 0 | J126: 0 | K126: 0 | L126: 0 | M126: 0 | N126: 0 | O126: 0 | P126: 0 | Q126: 0 | R126: 0 | S126: 0 | T126: 0 | U126: 0 | V126: 0 | W126: 0 | X126: 0 | Y126: 0 | Z126: 0 | AA126: 0 | AB126: 0 | AC126: 0 | AD126: 0 | AE126: 0 | AF126: 0 | AG126: 0 | AH126: 0 | AI126: 0 | AJ126: 0 | AK126: 0 | AL126: 0 | AM126: 0 | AN126: 0 | AO126: 0 | AP126: 0 | AQ126: 0 | AR126: 0 | AS126: 0 | AT126: 0 | AU126: 0 | AV126: 0 | AW126: 0 | AX126: 0 | AY126: 0 | AZ126: 0 | BA126: 0 | BB126: 0 | BC126: 0 | BD126: 0 | BE126: 0 | BF126: 0
C127: Less: Repayment | H127: =H122-H129 -> 0 | I127: =I122-I129 -> 1248.6361 | J127: 1323.844337 | K127: 1401.871218 | L127: 1482.809683 | M127: 1566.755581 | N127: 1651.137278 | O127: 1741.317583 | P127: 1834.808854 | Q127: 1931.719442 | R127: 2032.161082 | S127: 2136.248997 | T127: 2244.102008 | U127: 2355.842637 | V127: 2471.597227 | W127: 2591.496055 | X127: 2715.673453 | Y127: 2844.267933 | Z127: 2977.422313 | AA127: 3115.283849 | AB127: 3258.00437 | AC127: 2.864908311e-13 | AD127: 2.95085556e-13 | AE127: 3.039381227e-13 | AF127: 3.130562664e-13 | AG127: 3.224479543e-13 | AH127: 3.32121393e-13 | AI127: 3.420850348e-13 | AJ127: 3.523475858e-13 | AK127: 3.629180134e-13 | AL127: 3.738055538e-13 | AM127: 3.850197204e-13 | AN127: 3.96570312e-13 | AO127: 4.084674214e-13 | AP127: 4.20721444e-13 | AQ127: 4.333430873e-13 | AR127: 4.463433799e-13 | AS127: 4.597336813e-13 | AT127: 4.735256918e-13 | AU127: 4.877314625e-13 | AV127: 5.023634064e-13 | AW127: 5.174343086e-13 | AX127: 5.329573379e-13 | AY127: 5.48946058e-13 | AZ127: 5.654144397e-13 | BA127: 5.823768729e-13 | BB127: 5.998481791e-13 | BC127: 6.178436245e-13 | BD127: 6.363789332e-13 | BE127: 6.554703012e-13 | BF127: 6.751344103e-13
C128: Closing Balance | H128: =H125+H126-H127 -> 42925 | I128: =I125+I126-I127 -> 41676.3639 | J128: 40352.51956 | K128: 38950.64835 | L128: 37467.83866 | M128: 35901.08308 | N128: 34249.9458 | O128: 32508.62822 | P128: 30673.81937 | Q128: 28742.09992 | R128: 26709.93884 | S128: 24573.68985 | T128: 22329.58784 | U128: 19973.7452 | V128: 17502.14797 | W128: 14910.65192 | X128: 12194.97847 | Y128: 9350.710532 | Z128: 6373.288219 | AA128: 3258.00437 | AB128: -9.549694369e-12 | AC128: -9.8361852e-12 | AD128: -1.013127076e-11 | AE128: -1.043520888e-11 | AF128: -1.074826514e-11 | AG128: -1.10707131e-11 | AH128: -1.140283449e-11 | AI128: -1.174491953e-11 | AJ128: -1.209726711e-11 | AK128: -1.246018513e-11 | AL128: -1.283399068e-11 | AM128: -1.32190104e-11 | AN128: -1.361558071e-11 | AO128: -1.402404813e-11 | AP128: -1.444476958e-11 | AQ128: -1.487811266e-11 | AR128: -1.532445604e-11 | AS128: -1.578418973e-11 | AT128: -1.625771542e-11 | AU128: -1.674544688e-11 | AV128: -1.724781029e-11 | AW128: -1.77652446e-11 | AX128: -1.829820193e-11 | AY128: -1.884714799e-11 | AZ128: -1.941256243e-11 | BA128: -1.99949393e-11 | BB128: -2.059478748e-11 | BC128: -2.121263111e-11 | BD128: -2.184901004e-11 | BE128: -2.250448034e-11 | BF128: -2.317961475e-11
C129: Interest Expense | F129: =F110 -> 0.03 | H129: =$F$129*H125 -> 0 | I129: =$F$129*I125 -> 1287.75 | J129: 1250.290917 | K129: 1210.575587 | L129: 1168.51945 | M129: 1124.03516 | N129: 1077.032492 | O129: 1027.498374 | P129: 975.2588466 | Q129: 920.214581 | R129: 862.2629977 | S129: 801.2981653 | T129: 737.2106954 | U129: 669.8876351 | V129: 599.212356 | W129: 525.0644392 | X129: 447.3195575 | Y129: 365.849354 | Z129: 280.521316 | AA129: 191.1986466 | AB129: 97.74013109 | AC129: -2.864908311e-13 | AD129: -2.95085556e-13 | AE129: -3.039381227e-13 | AF129: -3.130562664e-13 | AG129: -3.224479543e-13 | AH129: -3.32121393e-13 | AI129: -3.420850348e-13 | AJ129: -3.523475858e-13 | AK129: -3.629180134e-13 | AL129: -3.738055538e-13 | AM129: -3.850197204e-13 | AN129: -3.96570312e-13 | AO129: -4.084674214e-13 | AP129: -4.20721444e-13 | AQ129: -4.333430873e-13 | AR129: -4.463433799e-13 | AS129: -4.597336813e-13 | AT129: -4.735256918e-13 | AU129: -4.877314625e-13 | AV129: -5.023634064e-13 | AW129: -5.174343086e-13 | AX129: -5.329573379e-13 | AY129: -5.48946058e-13 | AZ129: -5.654144397e-13 | BA129: -5.823768729e-13 | BB129: -5.998481791e-13 | BC129: -6.178436245e-13 | BD129: -6.363789332e-13 | BE129: -6.554703012e-13 | BF129: -6.751344103e-13
C131: After-Tax Cash Flow in P50 Case | E131: USD | I131: =I34 -> 3256344.627 | J131: 3304815.374 | K131: 3354008.262 | L131: 3403934.049 | M131: 3454603.655 | N131: 3502998.161 | O131: 3555188.814 | P131: 3608157.026 | Q131: 3661914.383 | R131: 3716472.641 | S131: 3771843.731 | T131: 3828039.764 | U131: 3885073.029 | V131: 3942955.999 | W131: 4001701.333 | X131: 4061321.878 | Y131: 4121830.673 | Z131: 4183240.951 | AA131: 4245566.142 | AB131: 4308819.877 | AC131: 4373015.988 | AD131: 4438168.516 | AE131: 4504291.708 | AF131: 4571400.024 | AG131: 4639508.143 | AH131: 4708630.957 | AI131: 4778783.584 | AJ131: 4849981.366 | AK131: 4922239.873 | AL131: 4995574.907 | AM131: 0 | AN131: 0 | AO131: =AO34 -> 0 | AP131: 0 | AQ131: 0 | AR131: 0 | AS131: 0 | AT131: 0 | AU131: 0 | AV131: 0 | AW131: 0 | AX131: 0 | AY131: 0 | AZ131: 0 | BA131: 0 | BB131: 0 | BC131: 0 | BD131: 0 | BE131: 0 | BF131: 0
C132: Less: Debt Service | E132: USD | I132: =I122 -> 2536.3861 | J132: =J122 -> 2574.135254 | K132: 2612.446805 | L132: 2651.329133 | M132: 2690.790741 | N132: 2728.169771 | O132: 2768.815957 | P132: 2810.067701 | Q132: 2851.934023 | R132: 2894.424079 | S132: 2937.547163 | T132: 2981.312703 | U132: 3025.730272 | V132: 3070.809583 | W132: 3116.560494 | X132: 3162.993011 | Y132: 3210.117287 | Z132: 3257.943629 | AA132: 3306.482495 | AB132: 3355.744501 | AC132: 0 | AD132: 0 | AE132: 0 | AF132: 0 | AG132: 0 | AH132: 0 | AI132: 0 | AJ132: 0 | AK132: 0 | AL132: 0 | AM132: 0 | AN132: 0 | AO132: 0 | AP132: 0 | AQ132: 0 | AR132: 0 | AS132: 0 | AT132: 0 | AU132: 0 | AV132: 0 | AW132: 0 | AX132: 0 | AY132: 0 | AZ132: 0 | BA132: 0 | BB132: 0 | BC132: 0 | BD132: 0 | BE132: 0 | BF132: 0
C133: Net Equity Cash Flow | E133: USD | H133: =-H63 -> -7575 | I133: =I131-I132 -> 3253808.241 | J133: =J131-J132 -> 3302241.239 | K133: 3351395.815 | L133: 3401282.72 | M133: 3451912.865 | N133: 3500269.992 | O133: 3552419.998 | P133: 3605346.958 | Q133: 3659062.449 | R133: 3713578.217 | S133: 3768906.184 | T133: 3825058.451 | U133: 3882047.299 | V133: 3939885.189 | W133: 3998584.772 | X133: 4058158.885 | Y133: 4118620.556 | Z133: 4179983.007 | AA133: 4242259.66 | AB133: 4305464.133 | AC133: 4373015.988 | AD133: 4438168.516 | AE133: 4504291.708 | AF133: 4571400.024 | AG133: 4639508.143 | AH133: 4708630.957 | AI133: 4778783.584 | AJ133: 4849981.366 | AK133: 4922239.873 | AL133: 4995574.907 | AM133: 0 | AN133: 0 | AO133: 0 | AP133: 0 | AQ133: 0 | AR133: 0 | AS133: 0 | AT133: 0 | AU133: 0 | AV133: 0 | AW133: 0 | AX133: 0 | AY133: 0 | AZ133: 0 | BA133: 0 | BB133: 0 | BC133: 0 | BD133: 0 | BE133: 0 | BF133: 0
C134: Equity IRR | F134: =IRR(H133:BF133) -> 429.5605274
C135: Target IRR | E135: % | F135: ='Detailed LCOE Calculator'!G88 -> 0.08
C137: PV of Equity Cash Flow at Target | E137: USD | F137: =NPV(F135,H133:BF133) -> 39083920.76 | G137: NPV Target
C138: Project IRR | F138: =F37 -> 0.03292
C139: LCOE | F139: =F21*1000 -> 20914.90816

Sheet Sculpting
B2: Monthly
H3: 1 | I3: 2 | J3: 3 | K3: 4 | L3: 5 | M3: 6 | N3: 7 | O3: 8 | P3: 9 | Q3: 10 | R3: 11 | S3: 12 | T3: 13 | U3: 14 | V3: 15 | W3: 16 | X3: 17 | Y3: 18 | Z3: 19 | AA3: 20 | AB3: 21 | AC3: 22 | AD3: 23 | AE3: 24 | AF3: 25 | AG3: 26 | AH3: 27 | AI3: 28 | AJ3: 29 | AK3: 30 | AL3: 31 | AM3: 32 | AN3: 33 | AO3: 34 | AP3: 35 | AQ3: 36 | AR3: 37 | AS3: 38 | AT3: 39 | AU3: 40 | AV3: 41 | AW3: 42 | AX3: 43 | AY3: 44 | AZ3: 45 | BA3: 46 | BB3: 47 | BC3: 48 | BD3: 49 | BE3: 50
D4: Date | H4: 2021-01-01 | I4: =EDATE(H4,1) -> 2021-02-01 | J4: =EDATE(I4,1) -> 2021-03-01 | K4: 2021-04-01 | L4: 2021-05-01 | M4: 2021-06-01 | N4: 2021-07-01 | O4: 2021-08-01 | P4: 2021-09-01 | Q4: 2021-10-01 | R4: 2021-11-01 | S4: 2021-12-01 | T4: 2022-01-01 | U4: 2022-02-01 | V4: 2022-03-01 | W4: 2022-04-01 | X4: 2022-05-01 | Y4: 2022-06-01 | Z4: 2022-07-01 | AA4: 2022-08-01 | AB4: 2022-09-01 | AC4: 2022-10-01 | AD4: 2022-11-01 | AE4: 2022-12-01 | AF4: 2023-01-01 | AG4: 2023-02-01 | AH4: 2023-03-01 | AI4: 2023-04-01 | AJ4: 2023-05-01 | AK4: 2023-06-01 | AL4: 2023-07-01 | AM4: 2023-08-01 | AN4: 2023-09-01 | AO4: 2023-10-01 | AP4: 2023-11-01 | AQ4: 2023-12-01 | AR4: 2024-01-01 | AS4: 2024-02-01 | AT4: 2024-03-01 | AU4: 2024-04-01 | AV4: 2024-05-01 | AW4: 2024-06-01 | AX4: 2024-07-01 | AY4: 2024-08-01 | AZ4: 2024-09-01 | BA4: 2024-10-01 | BB4: 2024-11-01 | BC4: 2024-12-01 | BD4: 2025-01-01 | BE4: 2025-02-01
D5: Month | H5: =MONTH(H4) -> 1 | I5: =MONTH(I4) -> 2 | J5: 3 | K5: 4 | L5: 5 | M5: 6 | N5: 7 | O5: 8 | P5: 9 | Q5: 10 | R5: 11 | S5: 12 | T5: 1 | U5: 2 | V5: 3 | W5: 4 | X5: 5 | Y5: 6 | Z5: 7 | AA5: 8 | AB5: 9 | AC5: 10 | AD5: 11 | AE5: 12 | AF5: 1 | AG5: 2 | AH5: 3 | AI5: 4 | AJ5: 5 | AK5: 6 | AL5: 7 | AM5: 8 | AN5: 9 | AO5: 10 | AP5: 11 | AQ5: 12 | AR5: 1 | AS5: 2 | AT5: 3 | AU5: 4 | AV5: 5 | AW5: 6 | AX5: 7 | AY5: 8 | AZ5: 9 | BA5: 10 | BB5: 11 | BC5: 12 | BD5: 1 | BE5: 2
D6: New Semester | H6: =MOD(H5,6)=0 -> FALSE | I6: =MOD(I5,6)=0 -> FALSE | J6: FALSE | K6: FALSE | L6: FALSE | M6: TRUE | N6: FALSE | O6: FALSE | P6: FALSE | Q6: FALSE | R6: FALSE | S6: TRUE | T6: FALSE | U6: FALSE | V6: FALSE | W6: FALSE | X6: FALSE | Y6: TRUE | Z6: FALSE | AA6: FALSE | AB6: FALSE | AC6: FALSE | AD6: FALSE | AE6: TRUE | AF6: FALSE | AG6: FALSE | AH6: FALSE | AI6: FALSE | AJ6: FALSE | AK6: TRUE | AL6: FALSE | AM6: FALSE | AN6: FALSE | AO6: FALSE | AP6: FALSE | AQ6: TRUE | AR6: FALSE | AS6: FALSE | AT6: FALSE | AU6: FALSE | AV6: FALSE | AW6: TRUE | AX6: FALSE | AY6: FALSE | AZ6: FALSE | BA6: FALSE | BB6: FALSE | BC6: TRUE | BD6: FALSE | BE6: FALSE
D7: Semester Counter | G7: 1 | H7: =G7+H6 -> 1 | I7: =H7+I6 -> 1 | J7: 1 | K7: 1 | L7: 1 | M7: 2 | N7: 2 | O7: 2 | P7: 2 | Q7: 2 | R7: 2 | S7: 3 | T7: 3 | U7: 3 | V7: 3 | W7: 3 | X7: 3 | Y7: 4 | Z7: 4 | AA7: 4 | AB7: 4 | AC7: 4 | AD7: 4 | AE7: 5 | AF7: 5 | AG7: 5 | AH7: 5 | AI7: 5 | AJ7: 5 | AK7: 6 | AL7: 6 | AM7: 6 | AN7: 6 | AO7: 6 | AP7: 6 | AQ7: 7 | AR7: 7 | AS7: 7 | AT7: 7 | AU7: 7 | AV7: 7 | AW7: 8 | AX7: 8 | AY7: 8 | AZ7: 8 | BA7: 8 | BB7: 8 | BC7: 9 | BD7: 9 | BE7: 9
D9: Month | G9: 1 | H9: 2 | I9: 3 | J9: 4 | K9: 5 | L9: 6 | M9: 7 | N9: 8 | O9: 9 | P9: 10 | Q9: 11 | R9: 12
D10: Seasonal Factor | G10: =TRANSPOSE(G55:G66) -> 0.05484729466 | H10: 0.06469855987 | I10: 0.07614877771 | J10: 0.08865065568 | K10: 0.09446698002 | L10: 0.09271779023 | M10: 0.09580838323 | N10: 0.09580838323 | O10: 0.09265340287 | P10: 0.09536840298 | Q10: 0.06851887623 | R10: 0.08031249329
D12: P50 Capacity Factor | F12: 0.38
D13: P99 Capacity Factor | F13: 0.3
D15: P50 DSCR | F15: 1.35
D16: P99 DSCR | F16: 1
D18: Wind Capacity | E18: MW | F18: 100 | H18: =$F$18 -> 100 | I18: =$F$18 -> 100 | J18: 100 | K18: 100 | L18: 100 | M18: 100 | N18: 100 | O18: 100 | P18: 100 | Q18: 100 | R18: 100 | S18: 100 | T18: 100 | U18: 100 | V18: 100 | W18: 100 | X18: 100 | Y18: 100 | Z18: 100 | AA18: 100 | AB18: 100 | AC18: 100 | AD18: 100 | AE18: 100 | AF18: 100 | AG18: 100 | AH18: 100 | AI18: 100 | AJ18: 100 | AK18: 100 | AL18: 100 | AM18: 100 | AN18: 100 | AO18: 100 | AP18: 100 | AQ18: 100 | AR18: 100 | AS18: 100 | AT18: 100 | AU18: 100 | AV18: 100 | AW18: 100 | AX18: 100 | AY18: 100 | AZ18: 100 | BA18: 100 | BB18: 100 | BC18: 100 | BD18: 100 | BE18: 100
D19: Wind Capacity Factor | E19: % | F19: =F13 -> 0.3 | H19: =$F$19 -> 0.3 | I19: =$F$19 -> 0.3 | J19: 0.3 | K19: 0.3 | L19: 0.3 | M19: 0.3 | N19: 0.3 | O19: 0.3 | P19: 0.3 | Q19: 0.3 | R19: 0.3 | S19: 0.3 | T19: 0.3 | U19: 0.3 | V19: 0.3 | W19: 0.3 | X19: 0.3 | Y19: 0.3 | Z19: 0.3 | AA19: 0.3 | AB19: 0.3 | AC19: 0.3 | AD19: 0.3 | AE19: 0.3 | AF19: 0.3 | AG19: 0.3 | AH19: 0.3 | AI19: 0.3 | AJ19: 0.3 | AK19: 0.3 | AL19: 0.3 | AM19: 0.3 | AN19: 0.3 | AO19: 0.3 | AP19: 0.3 | AQ19: 0.3 | AR19: 0.3 | AS19: 0.3 | AT19: 0.3 | AU19: 0.3 | AV19: 0.3 | AW19: 0.3 | AX19: 0.3 | AY19: 0.3 | AZ19: 0.3 | BA19: 0.3 | BB19: 0.3 | BC19: 0.3 | BD19: 0.3 | BE19: 0.3
D20: Annual Wind Generation | E20: MWH | H20: =H18*H19*8760 -> 262800 | I20: =I18*I19*8760 -> 262800 | J20: 262800 | K20: 262800 | L20: 262800 | M20: 262800 | N20: 262800 | O20: 262800 | P20: 262800 | Q20: 262800 | R20: 262800 | S20: 262800 | T20: 262800 | U20: 262800 | V20: 262800 | W20: 262800 | X20: 262800 | Y20: 262800 | Z20: 262800 | AA20: 262800 | AB20: 262800 | AC20: 262800 | AD20: 262800 | AE20: 262800 | AF20: 262800 | AG20: 262800 | AH20: 262800 | AI20: 262800 | AJ20: 262800 | AK20: 262800 | AL20: 262800 | AM20: 262800 | AN20: 262800 | AO20: 262800 | AP20: 262800 | AQ20: 262800 | AR20: 262800 | AS20: 262800 | AT20: 262800 | AU20: 262800 | AV20: 262800 | AW20: 262800 | AX20: 262800 | AY20: 262800 | AZ20: 262800 | BA20: 262800 | BB20: 262800 | BC20: 262800 | BD20: 262800 | BE20: 262800
D22: Seasonal Factor | E22: % | H22: =LOOKUP(H5,9:9,10:10) -> 0.05484729466 | I22: =LOOKUP(I5,9:9,10:10) -> 0.06469855987 | J22: 0.07614877771 | K22: 0.08865065568 | L22: 0.09446698002 | M22: 0.09271779023 | N22: 0.09580838323 | O22: 0.09580838323 | P22: 0.09265340287 | Q22: 0.09536840298 | R22: 0.06851887623 | S22: 0.08031249329 | T22: 0.05484729466 | U22: 0.06469855987 | V22: 0.07614877771 | W22: 0.08865065568 | X22: 0.09446698002 | Y22: 0.09271779023 | Z22: 0.09580838323 | AA22: 0.09580838323 | AB22: 0.09265340287 | AC22: 0.09536840298 | AD22: 0.06851887623 | AE22: 0.08031249329 | AF22: 0.05484729466 | AG22: 0.06469855987 | AH22: 0.07614877771 | AI22: 0.08865065568 | AJ22: 0.09446698002 | AK22: 0.09271779023 | AL22: 0.09580838323 | AM22: 0.09580838323 | AN22: 0.09265340287 | AO22: 0.09536840298 | AP22: 0.06851887623 | AQ22: 0.08031249329 | AR22: 0.05484729466 | AS22: 0.06469855987 | AT22: 0.07614877771 | AU22: 0.08865065568 | AV22: 0.09446698002 | AW22: 0.09271779023 | AX22: 0.09580838323 | AY22: 0.09580838323 | AZ22: 0.09265340287 | BA22: 0.09536840298 | BB22: 0.06851887623 | BC22: 0.08031249329 | BD22: 0.05484729466 | BE22: 0.06469855987
D23: Seasonal Wind Generation | E23: MWH | H23: =H22*H20 -> 14413.86904 | I23: =I22*I20 -> 17002.78153 | J23: 20011.89878 | K23: 23297.39231 | L23: 24825.92235 | M23: 24366.23527 | N23: 25178.44311 | O23: 25178.44311 | P23: 24349.31427 | Q23: 25062.8163 | R23: 18006.76067 | S23: 21106.12324 | T23: 14413.86904 | U23: 17002.78153 | V23: 20011.89878 | W23: 23297.39231 | X23: 24825.92235 | Y23: 24366.23527 | Z23: 25178.44311 | AA23: 25178.44311 | AB23: 24349.31427 | AC23: 25062.8163 | AD23: 18006.76067 | AE23: 21106.12324 | AF23: 14413.86904 | AG23: 17002.78153 | AH23: 20011.89878 | AI23: 23297.39231 | AJ23: 24825.92235 | AK23: 24366.23527 | AL23: 25178.44311 | AM23: 25178.44311 | AN23: 24349.31427 | AO23: 25062.8163 | AP23: 18006.76067 | AQ23: 21106.12324 | AR23: 14413.86904 | AS23: 17002.78153 | AT23: 20011.89878 | AU23: 23297.39231 | AV23: 24825.92235 | AW23: 24366.23527 | AX23: 25178.44311 | AY23: 25178.44311 | AZ23: 24349.31427 | BA23: 25062.8163 | BB23: 18006.76067 | BC23: 21106.12324 | BD23: 14413.86904 | BE23: 17002.78153
B26: Semi-Annual
D27: Semester
D28: Date
D29: Production | E29: MWH
D31: PPA Price | E31: USD/MWH | F31: 45
D32: Revenues | E32: USD | T32: DSCR =CFADS/Debt Service
T33: Debt Service =CFADS/DSCR
D34: Operating Expense | E34: USD/kWy | F34: 35 | T34: Debt Service =Interest + Repayment
T35: NPV of Debt Service =Amount of Debt
D36: Net Cash Flow | E36: USD
B38: Debt Sizing
D39: Target DSCR | E39: x | F39: =F16 -> 1
D40: Target Debt Service | E40: USD
D41: Flat Debt Service | E41: USD | F41: =-PMT(H42,9,F45) -> 0
D42: Interest Rate | E42: % | F42: 0.035
D43: Period Interest Rate | E43: %
D45: PV of Debt Service | F45: =NPV(H42,H40:P40) -> 0
D47: Opening Balance | E47: USD
D48: Less Repayment | E48: USD
D49: Closing Balance | E49: USD | G49: =F45 -> 0
D50: Interest | E50: USD
D52: DSCR | E52: x
D55: January | E55: 8.2 | F55: 5111 | G55: =F55/$F$68 -> 0.05484729466
D56: February | E56: 8.5 | F56: 6029 | G56: =F56/$F$68 -> 0.06469855987
D57: March | E57: 7.6 | F57: 7096 | G57: 0.07614877771
D58: April | E58: 7.7 | F58: 8261 | G58: 0.08865065568
D59: May | E59: 6.6 | F59: 8803 | G59: 0.09446698002
D60: June | E60: 6.4 | F60: 8640 | G60: 0.09271779023
D61: July | E61: 5.9 | F61: 8928 | G61: 0.09580838323
D62: August | E62: 5.8 | F62: 8928 | G62: 0.09580838323
D63: September | E63: 6.6 | F63: 8634 | G63: 0.09265340287
D64: October | E64: 7 | F64: 8887 | G64: 0.09536840298
D65: November | E65: 7.4 | F65: 6385 | G65: 0.06851887623
D66: December | E66: 8.1 | F66: 7484 | G66: 0.08031249329
D68: Total | F68: =SUM(F55:F67) -> 93186

Sheet Scenario Analysis
C4: Scenario Number | D4: 1
D5: Battery Costs | E5: Diesel Costs | F5: Battery Life | G5: Battery Duration | H5: Solar Costs
C7: Base Case | D7: 250 | E7: 80 | F7: 15 | G7: 4 | H7: 700
C8: Positive Battery Case | D8: 200 | E8: 90 | F8: 20 | G8: 3 | H8: 550
C9: Negative Battery Case | D9: 400 | E9: 60 | F9: 10 | G9: 6 | H9: 800
C12: =INDEX(C7:C9,$D$4) -> Base Case | D12: =INDEX(D7:D9,$D$4) -> 250 | E12: =INDEX(E7:E9,$D$4) -> 80 | F12: =INDEX(F7:F9,$D$4) -> 15 | G12: =INDEX(G7:G9,$D$4) -> 4 | H12: =INDEX(H7:H9,$D$4) -> 700

Sheet Control
C4: Include Battery | D4: FALSE
C5: Include Thermal | D5: TRUE
C7: Solar Only | D7: TRUE
C8: Solar and Battery | D8: FALSE
D11: Solar Only | E11: Solar and Battery | F11: Solar Applied
G12: 1 | H12: 2 | I12: 3 | J12: 4 | K12: 5 | L12: 6 | M12: 7 | N12: 8 | O12: 9 | P12: 10 | Q12: 11 | R12: 12 | S12: 13 | T12: 14 | U12: 15 | V12: 16 | W12: 17 | X12: 18 | Y12: 19 | Z12: 20 | AA12: 21 | AB12: 22 | AC12: 23 | AD12: 24
C13: Load | G13: ='Storage Balance'!K4 -> 41.66666667 | H13: ='Storage Balance'!L4 -> 41.66666667 | I13: ='Storage Balance'!M4 -> 41.66666667 | J13: ='Storage Balance'!N4 -> 41.66666667 | K13: ='Storage Balance'!O4 -> 41.66666667 | L13: ='Storage Balance'!P4 -> 41.66666667 | M13: ='Storage Balance'!Q4 -> 41.66666667 | N13: ='Storage Balance'!R4 -> 41.66666667 | O13: ='Storage Balance'!S4 -> 41.66666667 | P13: ='Storage Balance'!T4 -> 41.66666667 | Q13: ='Storage Balance'!U4 -> 41.66666667 | R13: ='Storage Balance'!V4 -> 41.66666667 | S13: ='Storage Balance'!W4 -> 41.66666667 | T13: ='Storage Balance'!X4 -> 41.66666667 | U13: ='Storage Balance'!Y4 -> 41.66666667 | V13: ='Storage Balance'!Z4 -> 41.66666667 | W13: ='Storage Balance'!AA4 -> 41.66666667 | X13: ='Storage Balance'!AB4 -> 41.66666667 | Y13: ='Storage Balance'!AC4 -> 41.66666667 | Z13: ='Storage Balance'!AD4 -> 41.66666667 | AA13: ='Storage Balance'!AE4 -> 41.66666667 | AB13: ='Storage Balance'!AF4 -> 41.66666667 | AC13: ='Storage Balance'!AG4 -> 41.66666667 | AD13: ='Storage Balance'!AH4 -> 41.66666667
C14: Solar Production | D14: =D7 -> TRUE | E14: =D8 -> FALSE | F14: =OR(E14,D14) -> TRUE | G14: =IF($D$14,'Storage Balance'!K52,'Storage Balance'!K13)*$F$14 -> 0 | H14: =IF($D$14,'Storage Balance'!L52,'Storage Balance'!L13)*$F$14 -> 0 | I14: =IF($D$14,'Storage Balance'!M52,'Storage Balance'!M13)*$F$14 -> 0 | J14: =IF($D$14,'Storage Balance'!N52,'Storage Balance'!N13)*$F$14 -> 0 | K14: =IF($D$14,'Storage Balance'!O52,'Storage Balance'!O13)*$F$14 -> 0 | L14: =IF($D$14,'Storage Balance'!P52,'Storage Balance'!P13)*$F$14 -> 0 | M14: =IF($D$14,'Storage Balance'!Q52,'Storage Balance'!Q13)*$F$14 -> 0 | N14: =IF($D$14,'Storage Balance'!R52,'Storage Balance'!R13)*$F$14 -> 4.040204015 | O14: =IF($D$14,'Storage Balance'!S52,'Storage Balance'!S13)*$F$14 -> 18.1970177 | P14: =IF($D$14,'Storage Balance'!T52,'Storage Balance'!T13)*$F$14 -> 27.8507628 | Q14: =IF($D$14,'Storage Balance'!U52,'Storage Balance'!U13)*$F$14 -> 37.23202153 | R14: =IF($D$14,'Storage Balance'!V52,'Storage Balance'!V13)*$F$14 -> 39.12936381 | S14: =IF($D$14,'Storage Balance'!W52,'Storage Balance'!W13)*$F$14 -> 41.66666667 | T14: =IF($D$14,'Storage Balance'!X52,'Storage Balance'!X13)*$F$14 -> 39.33342671 | U14: =IF($D$14,'Storage Balance'!Y52,'Storage Balance'!Y13)*$F$14 -> 35.47394113 | V14: =IF($D$14,'Storage Balance'!Z52,'Storage Balance'!Z13)*$F$14 -> 23.0152367 | W14: =IF($D$14,'Storage Balance'!AA52,'Storage Balance'!AA13)*$F$14 -> 12.30294044 | X14: =IF($D$14,'Storage Balance'!AB52,'Storage Balance'!AB13)*$F$14 -> 1.289580959 | Y14: =IF($D$14,'Storage Balance'!AC52,'Storage Balance'!AC13)*$F$14 -> 0.5542300187 | Z14: =IF($D$14,'Storage Balance'!AD52,'Storage Balance'!AD13)*$F$14 -> 0 | AA14: =IF($D$14,'Storage Balance'!AE52,'Storage Balance'!AE13)*$F$14 -> 0 | AB14: =IF($D$14,'Storage Balance'!AF52,'Storage Balance'!AF13)*$F$14 -> 0 | AC14: =IF($D$14,'Storage Balance'!AG52,'Storage Balance'!AG13)*$F$14 -> 0 | AD14: =IF($D$14,'Storage Balance'!AH52,'Storage Balance'!AH13)*$F$14 -> 0
C15: Battery Discharge | D15: =D4 -> FALSE | E15: =AND(F14,D4) -> FALSE | G15: ='Storage Balance'!K11*$E$15 -> 0 | H15: ='Storage Balance'!L11*$E$15 -> 0 | I15: ='Storage Balance'!M11*$E$15 -> 0 | J15: ='Storage Balance'!N11*$E$15 -> 0 | K15: ='Storage Balance'!O11*$E$15 -> 0 | L15: ='Storage Balance'!P11*$E$15 -> 0 | M15: ='Storage Balance'!Q11*$E$15 -> 0 | N15: ='Storage Balance'!R11*$E$15 -> 0 | O15: ='Storage Balance'!S11*$E$15 -> 0 | P15: ='Storage Balance'!T11*$E$15 -> 0 | Q15: ='Storage Balance'!U11*$E$15 -> 0 | R15: ='Storage Balance'!V11*$E$15 -> 0 | S15: ='Storage Balance'!W11*$E$15 -> 0 | T15: ='Storage Balance'!X11*$E$15 -> 0 | U15: ='Storage Balance'!Y11*$E$15 -> 0 | V15: ='Storage Balance'!Z11*$E$15 -> 0 | W15: ='Storage Balance'!AA11*$E$15 -> 0 | X15: ='Storage Balance'!AB11*$E$15 -> 0 | Y15: ='Storage Balance'!AC11*$E$15 -> 0 | Z15: ='Storage Balance'!AD11*$E$15 -> 0 | AA15: ='Storage Balance'!AE11*$E$15 -> 0 | AB15: ='Storage Balance'!AF11*$E$15 -> 0 | AC15: ='Storage Balance'!AG11*$E$15 -> 0 | AD15: ='Storage Balance'!AH11*$E$15 -> 0
C16: Thermal | D16: =D5 -> TRUE | G16: =IF($D$16,G13-G14-G15,0) -> 41.66666667 | H16: =IF($D$16,H13-H14-H15,0) -> 41.66666667 | I16: 41.66666667 | J16: 41.66666667 | K16: 41.66666667 | L16: 41.66666667 | M16: 41.66666667 | N16: 37.62646265 | O16: 23.46964896 | P16: 13.81590387 | Q16: 4.434645132 | R16: 2.53730286 | S16: 0 | T16: 2.333239955 | U16: 6.19272554 | V16: 18.65142997 | W16: 29.36372623 | X16: 40.37708571 | Y16: 41.11243665 | Z16: 41.66666667 | AA16: 41.66666667 | AB16: 41.66666667 | AC16: 41.66666667 | AD16: 41.66666667
C17: Unserved Energy | G17: =G13-G14-G15-G16 -> 0 | H17: =H13-H14-H15-H16 -> 0 | I17: 0 | J17: 0 | K17: 0 | L17: 0 | M17: 0 | N17: 0 | O17: 0 | P17: 0 | Q17: 0 | R17: 0 | S17: 0 | T17: 0 | U17: 0 | V17: 0 | W17: 0 | X17: 0 | Y17: 0 | Z17: 0 | AA17: 0 | AB17: 0 | AC17: 0 | AD17: 0
G20: =G12 -> 1 | H20: =H12 -> 2 | I20: 3 | J20: 4 | K20: 5 | L20: 6 | M20: 7 | N20: 8 | O20: 9 | P20: 10 | Q20: 11 | R20: 12 | S20: 13 | T20: 14 | U20: 15 | V20: 16 | W20: 17 | X20: 18 | Y20: 19 | Z20: 20 | AA20: 21 | AB20: 22 | AC20: 23 | AD20: 24
C21: =C14 -> Solar Production | G21: =G14 -> 0 | H21: 0 | I21: 0 | J21: 0 | K21: 0 | L21: 0 | M21: 0 | N21: 4.040204015 | O21: 18.1970177 | P21: 27.8507628 | Q21: 37.23202153 | R21: 39.12936381 | S21: 41.66666667 | T21: 39.33342671 | U21: 35.47394113 | V21: 23.0152367 | W21: 12.30294044 | X21: 1.289580959 | Y21: 0.5542300187 | Z21: 0 | AA21: 0 | AB21: 0 | AC21: 0 | AD21: 0
C22: =C15 -> Battery Discharge | G22: =G15 -> 0 | H22: 0 | I22: 0 | J22: 0 | K22: 0 | L22: 0 | M22: 0 | N22: 0 | O22: 0 | P22: 0 | Q22: 0 | R22: 0 | S22: 0 | T22: 0 | U22: 0 | V22: 0 | W22: 0 | X22: 0 | Y22: 0 | Z22: 0 | AA22: 0 | AB22: 0 | AC22: 0 | AD22: 0
C23: =C16 -> Thermal | G23: =G16 -> 41.66666667 | H23: 41.66666667 | I23: 41.66666667 | J23: 41.66666667 | K23: 41.66666667 | L23: 41.66666667 | M23: 41.66666667 | N23: 37.62646265 | O23: 23.46964896 | P23: 13.81590387 | Q23: 4.434645132 | R23: 2.53730286 | S23: 0 | T23: 2.333239955 | U23: 6.19272554 | V23: 18.65142997 | W23: 29.36372623 | X23: 40.37708571 | Y23: 41.11243665 | Z23: 41.66666667 | AA23: 41.66666667 | AB23: 41.66666667 | AC23: 41.66666667 | AD23: 41.66666667
C24: =C17 -> Unserved Energy | G24: =G17 -> 0 | H24: 0 | I24: 0 | J24: 0 | K24: 0 | L24: 0 | M24: 0 | N24: 0 | O24: 0 | P24: 0 | Q24: 0 | R24: 0 | S24: 0 | T24: 0 | U24: 0 | V24: 0 | W24: 0 | X24: 0 | Y24: 0 | Z24: 0 | AA24: 0 | AB24: 0 | AC24: 0 | AD24: 0

Sheet Cost of Alternative
E3: Thermal | F3: Solar | G3: Battery | H3: Solar + Battery
C4: MW of Capacity | E4: ='Storage Balance'!F4 -> 41.66666667 | F4: ='Storage Balance'!F8 -> 148.7641547 | G4: ='Storage Balance'!D40 -> 107.0974881
C5: MWH for Battery Storage | G5: ='Storage Balance'!D39 -> 317.810542
C6: Implied Battery Duration | G6: =G5/G4 -> 2.967488293
C7: Round Trip Efficiency of Battery | G7: =Sensitivity!M7 -> 1
C9: Total Production | E9: ='Storage Balance'!I4 -> 1000 | F9: ='Storage Balance'!I13 -> 396.0079324 | G9: ='Storage Balance'!I11 -> 603.9920676 | H9: =E9 -> 1000
C10: Cost per kW | D10: USD per kW | E10: 1000 | F10: =Sensitivity!X7 -> 600 | G10: ='Storage Balance'!I34 -> 603.9920676
C11: Cost per kWh | D11: USD per kWh | G11: =Sensitivity!R7 -> 409.8341138
C13: Capital Expenditure | D13: USD | E13: =E4*E10*1000 -> 41666666.67 | F13: =F4*F10*1000 -> 89258492.84 | G13: =G11*G5*1000 -> 130249601.9 | H13: =F13+G13 -> 219508094.7
C15: Life | D15: yrs | E15: 20 | F15: 30 | G15: 10
C16: Degradation | D16: % | E16: 0
C17: Tax Life | E17: 5 | F17: 5 | G17: 5
C18: Income Tax Rate | E18: 0.3 | F18: 0.3 | G18: 0.3
C19: Variable Declining Balance Factor (1-St Line) | E19: 1 | F19: 1 | G19: 1
C20: Debt to Captial | E20: 0.8 | F20: 0.8 | G20: 0.8
C21: Target Equity IRR | E21: 0.075 | F21: 0.075 | G21: 0.075
C22: Cost of Debt | E22: 0.032 | F22: 0.032 | G22: 0.032
C28: IRR Target | D28: % | E28: 0.07 | F28: =E28 -> 0.07 | G28: =F28 -> 0.07 | H28: =G28 -> 0.07
C30: PMT | D30: % per year | E30: =PMT(E28,E15,-1) -> 0.09439292574 | F30: =PMT(F28,F15,-1) -> 0.08058640351 | G30: =PMT(G28,G15,-1) -> 0.1423775027
C33: Capital Recovery | D33: USD per year | E33: =E30*E13 -> 3933038.573 | F33: =F30*F13 -> 7193020.921 | G33: 18544613.04 | H33: =F33+G33 -> 25737633.97
C35: Fuel Cost | D35: USD per MWh | E35: 30
C36: Capacity Factor | D36: % | E36: 0.5 | F36: ='Storage Balance'!G8 -> 0.2800853925
C37: Annual Production | D37: MWh | E37: =E36*8760*E4 -> 182500 | F37: =F36*8760*F4 -> 365000
C38: Fuel Expense | D38: USD per year | E38: =E35*E37 -> 5475000 | F38: =F35*F37 -> 0
C40: O&M
C42: Total Cost | D42: USD per year | E42: =E40+E38+E33 -> 9408038.573 | F42: =F40+F38+F33 -> 7193020.921 | G42: =G40+G38+G33 -> 18544613.04 | H42: =H40+H38+H33 -> 25737633.97
C43: Cost/MWH | D43: USD/MWH | E43: =E42/(E9*365) -> 25.77544814 | F43: =IF(F9,F42/F9) -> 18163.8304 | H43: =H42/(H9*365) -> 70.51406566

Sheet Storage Balance
D2: ='Hourly Solar'!$E$6 -> 2008-05-22
F3: Max | G3: LF | H3: Average | I3: Total | K3: 1 | L3: 2 | M3: 3 | N3: 4 | O3: 5 | P3: 6 | Q3: 7 | R3: 8 | S3: 9 | T3: 10 | U3: 11 | V3: 12 | W3: 13 | X3: 14 | Y3: 15 | Z3: 16 | AA3: 17 | AB3: 18 | AC3: 19 | AD3: 20 | AE3: 21 | AF3: 22 | AG3: 23 | AH3: 24
C4: Load | D4: 1000 | E4: MW | F4: =MAX(K4:XFD4) -> 41.66666667 | G4: =AVERAGE(K4:AH4)/F4 -> 1 | H4: =AVERAGE(K4:AH4) -> 41.66666667 | I4: =SUM(K4:AH4) -> 1000 | K4: =$D$4*K68 -> 41.66666667 | L4: 41.66666667 | M4: 41.66666667 | N4: 41.66666667 | O4: 41.66666667 | P4: 41.66666667 | Q4: 41.66666667 | R4: 41.66666667 | S4: 41.66666667 | T4: 41.66666667 | U4: 41.66666667 | V4: 41.66666667 | W4: 41.66666667 | X4: 41.66666667 | Y4: 41.66666667 | Z4: 41.66666667 | AA4: 41.66666667 | AB4: 41.66666667 | AC4: 41.66666667 | AD4: 41.66666667 | AE4: 41.66666667 | AF4: 41.66666667 | AG4: 41.66666667 | AH4: 41.66666667
C5: Solar Pattern and Cap Factor | D5: =SUM(K5:XFD5)/24 -> 0.23196 | E5: % | F5: =MAX(K5:XFD5) -> 0.828176 | G5: =AVERAGE(K5:AH5)/F5 -> 0.2800853925 | H5: =AVERAGE(K5:AH5) -> 0.23196 | I5: =SUM(K5:AH5) -> 5.56704 | K5: ='Hourly Solar'!L8 -> 0 | L5: ='Hourly Solar'!M8 -> 0 | M5: ='Hourly Solar'!N8 -> 0 | N5: ='Hourly Solar'!O8 -> 0 | O5: ='Hourly Solar'!P8 -> 0 | P5: ='Hourly Solar'!Q8 -> 0 | Q5: ='Hourly Solar'!R8 -> 0 | R5: ='Hourly Solar'!S8 -> 0.080304 | S5: ='Hourly Solar'!T8 -> 0.361688 | T5: ='Hourly Solar'!U8 -> 0.553568 | U5: ='Hourly Solar'!V8 -> 0.740032 | V5: ='Hourly Solar'!W8 -> 0.777744 | W5: ='Hourly Solar'!X8 -> 0.828176 | X5: ='Hourly Solar'!Y8 -> 0.7818 | Y5: ='Hourly Solar'!Z8 -> 0.705088 | Z5: ='Hourly Solar'!AA8 -> 0.457456 | AA5: ='Hourly Solar'!AB8 -> 0.244536 | AB5: ='Hourly Solar'!AC8 -> 0.025632 | AC5: ='Hourly Solar'!AD8 -> 0.011016 | AD5: ='Hourly Solar'!AE8 -> 0 | AE5: ='Hourly Solar'!AF8 -> 0 | AF5: ='Hourly Solar'!AG8 -> 0 | AG5: ='Hourly Solar'!AH8 -> 0 | AH5: ='Hourly Solar'!AI8 -> 0
C6: Required Solar Capacity in MWp | D6: =H4/D5 -> 179.6286716 | E6: MW | F6: CF = Average/Capacity or Capacity = Average/CF | K6: =$D$6 -> 179.6286716 | L6: =$D$6 -> 179.6286716 | M6: 179.6286716 | N6: 179.6286716 | O6: 179.6286716 | P6: 179.6286716 | Q6: 179.6286716 | R6: 179.6286716 | S6: 179.6286716 | T6: 179.6286716 | U6: 179.6286716 | V6: 179.6286716 | W6: 179.6286716 | X6: 179.6286716 | Y6: 179.6286716 | Z6: 179.6286716 | AA6: 179.6286716 | AB6: 179.6286716 | AC6: 179.6286716 | AD6: 179.6286716 | AE6: 179.6286716 | AF6: 179.6286716 | AG6: 179.6286716 | AH6: 179.6286716
C8: Solar Production | F8: =MAX(K8:AH8) -> 148.7641547 | G8: =AVERAGE(K8:AH8)/F8 -> 0.2800853925 | H8: =AVERAGE(K8:AH8) -> 41.66666667 | I8: =SUM(K8:AH8) -> 1000 | K8: =K6*K5 -> 0 | L8: =L6*L5 -> 0 | M8: 0 | N8: 0 | O8: 0 | P8: 0 | Q8: 0 | R8: 14.42490084 | S8: 64.96953498 | T8: 99.43668449 | U8: 132.9309651 | V8: 139.7051216 | W8: 148.7641547 | X8: 140.4336955 | Y8: 126.6540208 | Z8: 82.1722136 | AA8: 43.92567684 | AB8: 4.604242111 | AC8: 1.978789446 | AD8: 0 | AE8: 0 | AF8: 0 | AG8: 0 | AH8: 0
D9: =I8-I4 -> 0
C10: Surplus Storage w/o RTE | E10: MW | F10: =MAX(K10:AH10) -> 107.0974881 | G10: =AVERAGE(K10:AH10)/F10 -> 0.2349853073 | H10: =AVERAGE(K10:AH10) -> 25.16633615 | I10: =SUM(K10:AH10) -> 603.9920676 | K10: =MAX(K8-K4,0) -> 0 | L10: 0 | M10: 0 | N10: 0 | O10: 0 | P10: 0 | Q10: 0 | R10: 0 | S10: 23.30286831 | T10: 57.77001782 | U10: 91.26429844 | V10: 98.03845491 | W10: 107.0974881 | X10: 98.7670288 | Y10: 84.98735414 | Z10: 40.50554693 | AA10: 2.259010174 | AB10: 0 | AC10: 0 | AD10: 0 | AE10: 0 | AF10: 0 | AG10: 0 | AH10: 0
C11: Required Dispense w/o RTE | E11: MW | F11: =MAX(K11:AH11) -> 41.66666667 | G11: =AVERAGE(K11:AH11)/F11 -> 0.6039920676 | H11: =AVERAGE(K11:AH11) -> 25.16633615 | I11: =SUM(K11:AH11) -> 603.9920676 | K11: =MAX(K4-K8,0) -> 41.66666667 | L11: 41.66666667 | M11: 41.66666667 | N11: 41.66666667 | O11: 41.66666667 | P11: 41.66666667 | Q11: 41.66666667 | R11: 27.24176582 | S11: 0 | T11: 0 | U11: 0 | V11: 0 | W11: 0 | X11: 0 | Y11: 0 | Z11: 0 | AA11: 0 | AB11: 37.06242456 | AC11: 39.68787722 | AD11: 41.66666667 | AE11: 41.66666667 | AF11: 41.66666667 | AG11: 41.66666667 | AH11: 41.66666667
C13: Load from Solar (Load - Dispensed) | E13: MW | F13: =MAX(K13:AH13) -> 41.66666667 | G13: =IF(F13,AVERAGE(K13:AH13)/F13) -> 0.3960079324 | H13: =AVERAGE(K13:AH13) -> 16.50033052 | I13: =SUM(K13:AH13) -> 396.0079324 | K13: =K4-K11 -> 0 | L13: =L4-L11 -> 0 | M13: 0 | N13: 0 | O13: 0 | P13: 0 | Q13: 0 | R13: 14.42490084 | S13: 41.66666667 | T13: 41.66666667 | U13: 41.66666667 | V13: 41.66666667 | W13: 41.66666667 | X13: 41.66666667 | Y13: 41.66666667 | Z13: 41.66666667 | AA13: 41.66666667 | AB13: 4.604242111 | AC13: 1.978789446 | AD13: 0 | AE13: 0 | AF13: 0 | AG13: 0 | AH13: 0
C15: Round Trip Efficiency | E15: % | F15: ='Cost of Alternative'!G7 -> 1 | K15: =$F$15 -> 1 | L15: =$F$15 -> 1 | M15: 1 | N15: 1 | O15: 1 | P15: 1 | Q15: 1 | R15: 1 | S15: 1 | T15: 1 | U15: 1 | V15: 1 | W15: 1 | X15: 1 | Y15: 1 | Z15: 1 | AA15: 1 | AB15: 1 | AC15: 1 | AD15: 1 | AE15: 1 | AF15: 1 | AG15: 1 | AH15: 1
C16: Increase in Required Storage | E16: MW | F16: =MAX(K16:AH16) -> 0 | G16: =IF(F16,AVERAGE(K16:AH16)/F16,FALSE) -> FALSE | H16: =AVERAGE(K16:AH16) -> 0 | I16: =SUM(K16:AH16) -> 0 | K16: =K10/K15-K10 -> 0 | L16: 0 | M16: 0 | N16: 0 | O16: 0 | P16: 0 | Q16: 0 | R16: 0 | S16: 0 | T16: 0 | U16: 0 | V16: 0 | W16: 0 | X16: 0 | Y16: 0 | Z16: 0 | AA16: 0 | AB16: 0 | AC16: 0 | AD16: 0 | AE16: 0 | AF16: 0 | AG16: 0 | AH16: 0
C17: Total Solar with Increase for RTE | E17: MW | F17: =MAX(K17:AH17) -> 148.7641547 | G17: =AVERAGE(K17:AH17)/F17 -> 0.2800853925 | H17: =AVERAGE(K17:AH17) -> 41.66666667 | I17: =SUM(K17:AH17) -> 1000 | K17: =K8+K16 -> 0 | L17: 0 | M17: 0 | N17: 0 | O17: 0 | P17: 0 | Q17: 0 | R17: 14.42490084 | S17: 64.96953498 | T17: 99.43668449 | U17: 132.9309651 | V17: 139.7051216 | W17: 148.7641547 | X17: 140.4336955 | Y17: 126.6540208 | Z17: 82.1722136 | AA17: 43.92567684 | AB17: 4.604242111 | AC17: 1.978789446 | AD17: 0 | AE17: 0 | AF17: 0 | AG17: 0 | AH17: 0
C18: Storage with Increase for RTE | E18: MW | F18: =MAX(K18:AH18) -> 107.0974881 | G18: =AVERAGE(K18:AH18)/F18 -> 0.2349853073 | H18: =AVERAGE(K18:AH18) -> 25.16633615 | I18: =SUM(K18:AH18) -> 603.9920676 | K18: =K16+K10 -> 0 | L18: 0 | M18: 0 | N18: 0 | O18: 0 | P18: 0 | Q18: 0 | R18: 0 | S18: 23.30286831 | T18: 57.77001782 | U18: 91.26429844 | V18: 98.03845491 | W18: 107.0974881 | X18: 98.7670288 | Y18: 84.98735414 | Z18: 40.50554693 | AA18: 2.259010174 | AB18: 0 | AC18: 0 | AD18: 0 | AE18: 0 | AF18: 0 | AG18: 0 | AH18: 0
C20: First Storage | E20: Flag | K20: =AND(K10>0,J10=0,J21=0)*1 -> 0 | L20: 0 | M20: 0 | N20: 0 | O20: 0 | P20: 0 | Q20: 0 | R20: 0 | S20: 1 | T20: 0 | U20: 0 | V20: 0 | W20: 0 | X20: 0 | Y20: 0 | Z20: 0 | AA20: 0 | AB20: 0 | AC20: 0 | AD20: 0 | AE20: 0 | AF20: 0 | AG20: 0 | AH20: 0
C21: Accumulated First Storage | E21: Count | K21: =J21+K20 -> 0 | L21: =K21+L20 -> 0 | M21: 0 | N21: 0 | O21: 0 | P21: 0 | Q21: 0 | R21: 0 | S21: 1 | T21: 1 | U21: 1 | V21: 1 | W21: 1 | X21: 1 | Y21: 1 | Z21: 1 | AA21: 1 | AB21: 1 | AC21: 1 | AD21: 1 | AE21: 1 | AF21: 1 | AG21: 1 | AH21: 1
C22: Start of Storage | E22: Hour | F22: =_xlfn.XLOOKUP(1,20:20,3:3,0,0) -> 9
B24: After Sort
C25: Re-order | E25: Hour | K25: =F22 -> 9 | L25: =IF(K25=24,1,K25+1) -> 10 | M25: =IF(L25=24,1,L25+1) -> 11 | N25: 12 | O25: 13 | P25: 14 | Q25: 15 | R25: 16 | S25: 17 | T25: 18 | U25: 19 | V25: 20 | W25: 21 | X25: 22 | Y25: 23 | Z25: 24 | AA25: 1 | AB25: 2 | AC25: 3 | AD25: 4 | AE25: 5 | AF25: 6 | AG25: 7 | AH25: 8
C26: Column | E26: Column | K26: =MATCH(K25,3:3,0) -> 19 | L26: 20 | M26: 21 | N26: 22 | O26: 23 | P26: 24 | Q26: 25 | R26: 26 | S26: 27 | T26: 28 | U26: 29 | V26: 30 | W26: 31 | X26: 32 | Y26: 33 | Z26: 34 | AA26: 11 | AB26: 12 | AC26: 13 | AD26: 14 | AE26: 15 | AF26: 16 | AG26: 17 | AH26: 18
C28: Storage | E28: MW | I28: =SUM(K28:AH28) -> 603.9920676 | K28: =K10 -> 0 | L28: =L10 -> 0 | M28: 0 | N28: 0 | O28: 0 | P28: 0 | Q28: 0 | R28: 0 | S28: 23.30286831 | T28: 57.77001782 | U28: 91.26429844 | V28: 98.03845491 | W28: 107.0974881 | X28: 98.7670288 | Y28: 84.98735414 | Z28: 40.50554693 | AA28: 2.259010174 | AB28: 0 | AC28: 0 | AD28: 0 | AE28: 0 | AF28: 0 | AG28: 0 | AH28: 0
C29: Required Dispense | E29: MW | I29: =SUM(K29:AH29) -> 603.9920676 | K29: =INDEX(11:11,K26) -> 0 | L29: =INDEX(11:11,L26) -> 0 | M29: =INDEX(11:11,M26) -> 0 | N29: =INDEX(11:11,N26) -> 0 | O29: =INDEX(11:11,O26) -> 0 | P29: =INDEX(11:11,P26) -> 0 | Q29: =INDEX(11:11,Q26) -> 0 | R29: =INDEX(11:11,R26) -> 0 | S29: =INDEX(11:11,S26) -> 0 | T29: =INDEX(11:11,T26) -> 37.06242456 | U29: =INDEX(11:11,U26) -> 39.68787722 | V29: =INDEX(11:11,V26) -> 41.66666667 | W29: =INDEX(11:11,W26) -> 41.66666667 | X29: =INDEX(11:11,X26) -> 41.66666667 | Y29: =INDEX(11:11,Y26) -> 41.66666667 | Z29: =INDEX(11:11,Z26) -> 41.66666667 | AA29: =INDEX(11:11,AA26) -> 41.66666667 | AB29: =INDEX(11:11,AB26) -> 41.66666667 | AC29: =INDEX(11:11,AC26) -> 41.66666667 | AD29: =INDEX(11:11,AD26) -> 41.66666667 | AE29: =INDEX(11:11,AE26) -> 41.66666667 | AF29: =INDEX(11:11,AF26) -> 41.66666667 | AG29: =INDEX(11:11,AG26) -> 41.66666667 | AH29: =INDEX(11:11,AH26) -> 27.24176582
B31: Storage Balance
C32: Opening Balance | E32: MWH | K32: =J35 -> 0 | L32: =K35 -> 0 | M32: 0 | N32: 0 | O32: 0 | P32: 0 | Q32: 0 | R32: 0 | S32: 0 | T32: 23.30286831 | U32: 44.01046157 | V32: 95.5868828 | W32: 151.958671 | X32: 217.3894924 | Y32: 274.4898546 | Z32: 317.810542 | AA32: 316.6494223 | AB32: 277.2417658 | AC32: 235.5750992 | AD32: 193.9084325 | AE32: 152.2417658 | AF32: 110.5750992 | AG32: 68.90843249 | AH32: 27.24176582
C33: Add: Storage | E33: MW | I33: =SUM(K33:AH33) -> 603.9920676 | K33: =K28 -> 0 | L33: =L28 -> 0 | M33: 0 | N33: 0 | O33: 0 | P33: 0 | Q33: 0 | R33: 0 | S33: 23.30286831 | T33: 57.77001782 | U33: 91.26429844 | V33: 98.03845491 | W33: 107.0974881 | X33: 98.7670288 | Y33: 84.98735414 | Z33: 40.50554693 | AA33: 2.259010174 | AB33: 0 | AC33: 0 | AD33: 0 | AE33: 0 | AF33: 0 | AG33: 0 | AH33: 0
C34: Less: Dispensed | E34: MW | F34: =F15 -> 1 | I34: =SUM(K34:AH34) -> 603.9920676 | K34: =K29*$F$34 -> 0 | L34: =L29*$F$34 -> 0 | M34: 0 | N34: 0 | O34: 0 | P34: 0 | Q34: 0 | R34: 0 | S34: 0 | T34: 37.06242456 | U34: 39.68787722 | V34: 41.66666667 | W34: 41.66666667 | X34: 41.66666667 | Y34: 41.66666667 | Z34: 41.66666667 | AA34: 41.66666667 | AB34: 41.66666667 | AC34: 41.66666667 | AD34: 41.66666667 | AE34: 41.66666667 | AF34: 41.66666667 | AG34: 41.66666667 | AH34: 27.24176582
C35: Closing Balance | E35: MWH | K35: =K32+K33-K34 -> 0 | L35: =L32+L33-L34 -> 0 | M35: 0 | N35: 0 | O35: 0 | P35: 0 | Q35: 0 | R35: 0 | S35: 23.30286831 | T35: 44.01046157 | U35: 95.5868828 | V35: 151.958671 | W35: 217.3894924 | X35: 274.4898546 | Y35: 317.810542 | Z35: 316.6494223 | AA35: 277.2417658 | AB35: 235.5750992 | AC35: 193.9084325 | AD35: 152.2417658 | AE35: 110.5750992 | AF35: 68.90843249 | AG35: 27.24176582 | AH35: -8.526512829e-14
B37: Battery Statistics
C39: Maximum Storage | D39: =MAX(K35:AH35) -> 317.810542 | E39: MWH
C40: Maximum Capacity | D40: =MAX(K33:AH33) -> 107.0974881 | E40: MW
C42: Duration | D42: =D39/D40 -> 2.967488293 | E42: Hours
C44: Solar Capacity for Storage | D44: =D46-D45 -> 107.0974881 | E44: MW
C45: Maximum Load | D45: =MAX(K4:AH4) -> 41.66666667 | E45: MW
C46: Solar Capacity for Load and Storage | D46: =MAX(K8:AH8) -> 148.7641547 | E46: MW
B48: Analysis without Batteries
C49: Total Load | E49: MW | F49: =MAX(K49:AH49) -> 41.66666667 | G49: =AVERAGE(K49:AH49)/F49 -> 1 | H49: =AVERAGE(K49:AH49) -> 41.66666667 | I49: =SUM(K49:AH49) -> 1000 | K49: =K4 -> 41.66666667 | L49: =L4 -> 41.66666667 | M49: 41.66666667 | N49: 41.66666667 | O49: 41.66666667 | P49: 41.66666667 | Q49: 41.66666667 | R49: 41.66666667 | S49: 41.66666667 | T49: 41.66666667 | U49: 41.66666667 | V49: 41.66666667 | W49: 41.66666667 | X49: 41.66666667 | Y49: 41.66666667 | Z49: 41.66666667 | AA49: 41.66666667 | AB49: 41.66666667 | AC49: 41.66666667 | AD49: 41.66666667 | AE49: 41.66666667 | AF49: 41.66666667 | AG49: 41.66666667 | AH49: 41.66666667
C50: Solar Capacity Factor | D50: =SUM(K50:AH50/24) -> 0.23196 | E50: % | F50: =MAX(K50:AH50) -> 0.828176 | G50: =AVERAGE(K50:AH50)/F50 -> 0.2800853925 | H50: =AVERAGE(K50:AH50) -> 0.23196 | I50: =SUM(K50:AH50) -> 5.56704 | K50: =K5 -> 0 | L50: =L5 -> 0 | M50: 0 | N50: 0 | O50: 0 | P50: 0 | Q50: 0 | R50: 0.080304 | S50: 0.361688 | T50: 0.553568 | U50: 0.740032 | V50: 0.777744 | W50: 0.828176 | X50: 0.7818 | Y50: 0.705088 | Z50: 0.457456 | AA50: 0.244536 | AB50: 0.025632 | AC50: 0.011016 | AD50: 0 | AE50: 0 | AF50: 0 | AG50: 0 | AH50: 0
C51: Solar Capacity to Meet Load | D51: =F49/D50*G50 -> 50.31136699 | E51: MWp | K51: =$D$51 -> 50.31136699 | L51: =$D$51 -> 50.31136699 | M51: 50.31136699 | N51: 50.31136699 | O51: 50.31136699 | P51: 50.31136699 | Q51: 50.31136699 | R51: 50.31136699 | S51: 50.31136699 | T51: 50.31136699 | U51: 50.31136699 | V51: 50.31136699 | W51: 50.31136699 | X51: 50.31136699 | Y51: 50.31136699 | Z51: 50.31136699 | AA51: 50.31136699 | AB51: 50.31136699 | AC51: 50.31136699 | AD51: 50.31136699 | AE51: 50.31136699 | AF51: 50.31136699 | AG51: 50.31136699 | AH51: 50.31136699
C52: Solar Production to Meet Load | E52: MW | F52: =MAX(K52:AH52) -> 41.66666667 | G52: =AVERAGE(K52:AH52)/F52 -> 0.2800853925 | H52: =AVERAGE(K52:AH52) -> 11.67022469 | I52: =SUM(K52:AH52) -> 280.0853925 | K52: =K51*K50 -> 0 | L52: =L51*L50 -> 0 | M52: 0 | N52: 0 | O52: 0 | P52: 0 | Q52: 0 | R52: 4.040204015 | S52: 18.1970177 | T52: 27.8507628 | U52: 37.23202153 | V52: 39.12936381 | W52: 41.66666667 | X52: 39.33342671 | Y52: 35.47394113 | Z52: 23.0152367 | AA52: 12.30294044 | AB52: 1.289580959 | AC52: 0.5542300187 | AD52: 0 | AE52: 0 | AF52: 0 | AG52: 0 | AH52: 0
B54: Alternative Shapes
C55: Case 1 | G55: =SUM(K55:AH55) -> 0.9999269775 | H55: 3 | I55: 12 | K55: =_xlfn.NORM.DIST(K3,$I$55,$H$55,0) -> 0.0001600902172 | L55: =_xlfn.NORM.DIST(L3,$I$55,$H$55,0) -> 0.0005140929988 | M55: 0.001477282804 | N55: 0.003798662008 | O55: 0.008740629698 | P55: 0.01799698884 | Q55: 0.03315904626 | R55: 0.05467002489 | S55: 0.08065690817 | T55: 0.1064826685 | U55: 0.1257944092 | V55: 0.1329807601 | W55: 0.1257944092 | X55: 0.1064826685 | Y55: 0.08065690817 | Z55: 0.05467002489 | AA55: 0.03315904626 | AB55: 0.01799698884 | AC55: 0.008740629698 | AD55: 0.003798662008 | AE55: 0.001477282804 | AF55: 0.0005140929988 | AG55: 0.0001600902172 | AH55: 4.461007525e-05
C56: Case 1 Normalised | G56: =SUM(K56:AH56) -> 1 | K56: =K55/$G$55 -> 0.0001601019083 | L56: =L55/$G$55 -> 0.0005141305419 | M56: 0.001477390687 | N56: 0.003798939416 | O56: 0.008741268007 | P56: 0.01799830312 | Q56: 0.0331614678 | R56: 0.05467401733 | S56: 0.08066279837 | T56: 0.1064904447 | U56: 0.1258035957 | V56: 0.1329904714 | W56: 0.1258035957 | X56: 0.1064904447 | Y56: 0.08066279837 | Z56: 0.05467401733 | AA56: 0.0331614678 | AB56: 0.01799830312 | AC56: 0.008741268007 | AD56: 0.003798939416 | AE56: 0.001477390687 | AF56: 0.0005141305419 | AG56: 0.0001601019083 | AH56: 4.461333303e-05
C58: Case 1 | G58: =SUM(K58:AH58) -> 0.9999269775 | H58: 3 | I58: 12 | K58: =_xlfn.NORM.DIST(K$3,$I$58,$H$58,0) -> 0.0001600902172 | L58: =_xlfn.NORM.DIST(L$3,$I$55,$H$55,0) -> 0.0005140929988 | M58: 0.001477282804 | N58: 0.003798662008 | O58: 0.008740629698 | P58: 0.01799698884 | Q58: 0.03315904626 | R58: 0.05467002489 | S58: 0.08065690817 | T58: 0.1064826685 | U58: 0.1257944092 | V58: 0.1329807601 | W58: 0.1257944092 | X58: 0.1064826685 | Y58: 0.08065690817 | Z58: 0.05467002489 | AA58: 0.03315904626 | AB58: 0.01799698884 | AC58: 0.008740629698 | AD58: 0.003798662008 | AE58: 0.001477282804 | AF58: 0.0005140929988 | AG58: 0.0001600902172 | AH58: 4.461007525e-05
C59: Case 1 Normalised | G59: =SUM(K59:AH59) -> 1 | K59: =K58/$G$55 -> 0.0001601019083 | L59: =L58/$G$55 -> 0.0005141305419 | M59: =M58/$G$55 -> 0.001477390687 | N59: =N58/$G$55 -> 0.003798939416 | O59: =O58/$G$55 -> 0.008741268007 | P59: =P58/$G$55 -> 0.01799830312 | Q59: =Q58/$G$55 -> 0.0331614678 | R59: =R58/$G$55 -> 0.05467401733 | S59: =S58/$G$55 -> 0.08066279837 | T59: =T58/$G$55 -> 0.1064904447 | U59: =U58/$G$55 -> 0.1258035957 | V59: =V58/$G$55 -> 0.1329904714 | W59: =W58/$G$55 -> 0.1258035957 | X59: =X58/$G$55 -> 0.1064904447 | Y59: =Y58/$G$55 -> 0.08066279837 | Z59: =Z58/$G$55 -> 0.05467401733 | AA59: =AA58/$G$55 -> 0.0331614678 | AB59: =AB58/$G$55 -> 0.01799830312 | AC59: =AC58/$G$55 -> 0.008741268007 | AD59: =AD58/$G$55 -> 0.003798939416 | AE59: =AE58/$G$55 -> 0.001477390687 | AF59: =AF58/$G$55 -> 0.0005141305419 | AG59: =AG58/$G$55 -> 0.0001601019083 | AH59: =AH58/$G$55 -> 4.461333303e-05
C61: Case 1 | G61: =SUM(K61:AH61) -> 0.001070641806 | H61: 3 | I61: 12 | K61: =_xlfn.NORM.DIST(K9,$I$55,$H$55,0) -> 4.461007525e-05 | L61: =_xlfn.NORM.DIST(L9,$I$55,$H$55,0) -> 4.461007525e-05 | M61: 4.461007525e-05 | N61: 4.461007525e-05 | O61: 4.461007525e-05 | P61: 4.461007525e-05 | Q61: 4.461007525e-05 | R61: 4.461007525e-05 | S61: 4.461007525e-05 | T61: 4.461007525e-05 | U61: 4.461007525e-05 | V61: 4.461007525e-05 | W61: 4.461007525e-05 | X61: 4.461007525e-05 | Y61: 4.461007525e-05 | Z61: 4.461007525e-05 | AA61: 4.461007525e-05 | AB61: 4.461007525e-05 | AC61: 4.461007525e-05 | AD61: 4.461007525e-05 | AE61: 4.461007525e-05 | AF61: 4.461007525e-05 | AG61: 4.461007525e-05 | AH61: 4.461007525e-05
C62: Case 1 Normalised | G62: =SUM(K62:AH62) -> 0.001070719993 | K62: =K61/$G$55 -> 4.461333303e-05 | L62: =L61/$G$55 -> 4.461333303e-05 | M62: =M61/$G$55 -> 4.461333303e-05 | N62: =N61/$G$55 -> 4.461333303e-05 | O62: =O61/$G$55 -> 4.461333303e-05 | P62: =P61/$G$55 -> 4.461333303e-05 | Q62: =Q61/$G$55 -> 4.461333303e-05 | R62: =R61/$G$55 -> 4.461333303e-05 | S62: =S61/$G$55 -> 4.461333303e-05 | T62: =T61/$G$55 -> 4.461333303e-05 | U62: =U61/$G$55 -> 4.461333303e-05 | V62: =V61/$G$55 -> 4.461333303e-05 | W62: =W61/$G$55 -> 4.461333303e-05 | X62: =X61/$G$55 -> 4.461333303e-05 | Y62: =Y61/$G$55 -> 4.461333303e-05 | Z62: =Z61/$G$55 -> 4.461333303e-05 | AA62: =AA61/$G$55 -> 4.461333303e-05 | AB62: =AB61/$G$55 -> 4.461333303e-05 | AC62: =AC61/$G$55 -> 4.461333303e-05 | AD62: =AD61/$G$55 -> 4.461333303e-05 | AE62: =AE61/$G$55 -> 4.461333303e-05 | AF62: =AF61/$G$55 -> 4.461333303e-05 | AG62: =AG61/$G$55 -> 4.461333303e-05 | AH62: =AH61/$G$55 -> 4.461333303e-05
C64: Flat Load | K64: =1/24 -> 0.04166666667 | L64: =1/24 -> 0.04166666667 | M64: 0.04166666667 | N64: 0.04166666667 | O64: 0.04166666667 | P64: 0.04166666667 | Q64: 0.04166666667 | R64: 0.04166666667 | S64: 0.04166666667 | T64: 0.04166666667 | U64: 0.04166666667 | V64: 0.04166666667 | W64: 0.04166666667 | X64: 0.04166666667 | Y64: 0.04166666667 | Z64: 0.04166666667 | AA64: 0.04166666667 | AB64: 0.04166666667 | AC64: 0.04166666667 | AD64: 0.04166666667 | AE64: 0.04166666667 | AF64: 0.04166666667 | AG64: 0.04166666667 | AH64: 0.04166666667
C65: Coincident Load | R65: =1/12 -> 0.08333333333 | S65: =1/12 -> 0.08333333333 | T65: 0.08333333333 | U65: 0.08333333333 | V65: 0.08333333333 | W65: 0.08333333333 | X65: 0.08333333333 | Y65: 0.08333333333 | Z65: 0.08333333333 | AA65: 0.08333333333 | AB65: 0.08333333333 | AC65: 0.08333333333 | AD65: 0 | AE65: 0 | AF65: 0 | AG65: 0 | AH65: 0
C66: Non-coincident Load | K66: =1/12 -> 0.08333333333 | L66: =1/12 -> 0.08333333333 | M66: 0.08333333333 | N66: 0.08333333333 | O66: 0.08333333333 | P66: 0.08333333333 | Q66: 0.08333333333 | AD66: 0.08333333333 | AE66: 0.08333333333 | AF66: 0.08333333333 | AG66: 0.08333333333 | AH66: 0.08333333333
C68: =INDEX(C64:C66,$D$68) -> Flat Load | D68: 1 | K68: =INDEX(K64:K66,$D$68) -> 0.04166666667 | L68: =INDEX(L64:L66,$D$68) -> 0.04166666667 | M68: =INDEX(M64:M66,$D$68) -> 0.04166666667 | N68: =INDEX(N64:N66,$D$68) -> 0.04166666667 | O68: =INDEX(O64:O66,$D$68) -> 0.04166666667 | P68: =INDEX(P64:P66,$D$68) -> 0.04166666667 | Q68: =INDEX(Q64:Q66,$D$68) -> 0.04166666667 | R68: =INDEX(R64:R66,$D$68) -> 0.04166666667 | S68: =INDEX(S64:S66,$D$68) -> 0.04166666667 | T68: =INDEX(T64:T66,$D$68) -> 0.04166666667 | U68: =INDEX(U64:U66,$D$68) -> 0.04166666667 | V68: =INDEX(V64:V66,$D$68) -> 0.04166666667 | W68: =INDEX(W64:W66,$D$68) -> 0.04166666667 | X68: =INDEX(X64:X66,$D$68) -> 0.04166666667 | Y68: =INDEX(Y64:Y66,$D$68) -> 0.04166666667 | Z68: =INDEX(Z64:Z66,$D$68) -> 0.04166666667 | AA68: =INDEX(AA64:AA66,$D$68) -> 0.04166666667 | AB68: =INDEX(AB64:AB66,$D$68) -> 0.04166666667 | AC68: =INDEX(AC64:AC66,$D$68) -> 0.04166666667 | AD68: =INDEX(AD64:AD66,$D$68) -> 0.04166666667 | AE68: =INDEX(AE64:AE66,$D$68) -> 0.04166666667 | AF68: =INDEX(AF64:AF66,$D$68) -> 0.04166666667 | AG68: =INDEX(AG64:AG66,$D$68) -> 0.04166666667 | AH68: =INDEX(AH64:AH66,$D$68) -> 0.04166666667

Sheet Sensitivity
J2: Battrery Sizing and Dispatch
F4: Solar Shape Date | J4: Load Shape | M4: Round Trip | N4: Depth of | O4: Implied | Q4: Battery Cost | X4: Solar
M5: Efficiency | N5: Discharge | O5: Duration | S5: O&M | T5: Battery | X5: Cost
F6: Year | G6: Month | H6: Day | I6: Shape | J6: Description | K6: Code | L6: Shape | M6: Percent | N6: Percent | O6: Hours | P6: Constant | Q6: Slope | R6: USD/kWh | S6: % of Capital | T6: Life | X6: Cost/kWp
D7: Base Case | M7: 1 | O7: ='Storage Balance'!$D$42 -> 2.967488293 | P7: ='Cost Slope'!E9 -> 607.6666667 | Q7: ='Cost Slope'!E8 -> -66.66666667 | R7: =P7+Q7*O7 -> 409.8341138 | S7: 0.015 | T7: 15 | X7: 600

Sheet Hourly Solar
C3: Date | E3: 22
C4: Month | E4: 5
C5: Year | E5: 2008
C6: Date | E6: =DATE(E5,E4,E3) -> 2008-05-22 | L6: 0 | M6: 1 | N6: 2 | O6: 3 | P6: 4 | Q6: 5 | R6: 6 | S6: 7 | T6: 8 | U6: 9 | V6: 10 | W6: 11 | X6: 12 | Y6: 13 | Z6: 14 | AA6: 15 | AB6: 16 | AC6: 17 | AD6: 18 | AE6: 19 | AF6: 20 | AG6: 21 | AH6: 22 | AI6: 23
L7: =TRANSPOSE(J16:J39) -> 0 | M7: 0 | N7: 0 | O7: 0 | P7: 0 | Q7: 0 | R7: 0 | S7: 100.38 | T7: 452.11 | U7: 691.96 | V7: 925.04 | W7: 972.18 | X7: 1035.22 | Y7: 977.25 | Z7: 881.36 | AA7: 571.82 | AB7: 305.67 | AC7: 32.04 | AD7: 13.77 | AE7: 0 | AF7: 0 | AG7: 0 | AH7: 0 | AI7: 0
L8: =TRANSPOSE(L16:L39) -> 0 | M8: 0 | N8: 0 | O8: 0 | P8: 0 | Q8: 0 | R8: 0 | S8: 0.080304 | T8: 0.361688 | U8: 0.553568 | V8: 0.740032 | W8: 0.777744 | X8: 0.828176 | Y8: 0.7818 | Z8: 0.705088 | AA8: 0.457456 | AB8: 0.244536 | AC8: 0.025632 | AD8: 0.011016 | AE8: 0 | AF8: 0 | AG8: 0 | AH8: 0 | AI8: 0
C11: Match | E11: =MATCH(E6,C:C,0) -> 29704 | L11: Performance Ratio
H12: STC | J12: 1000 | L12: 0.8
C15: Date | D15: Malaysia | H15: Hour | I15: Match + 1 | J15: POA | K15: Capacity Factor | L15: CF After PR
C16: 2005-01-01 | D16: 0 | H16: 0 | I16: =H16+$E$11 -> 29704 | J16: =INDEX(D:D,I16) -> 0 | K16: =J16/$J$12 -> 0 | L16: =K16*$L$12 -> 0
C17: 2005-01-01 | D17: 0 | H17: 1 | I17: =H17+$E$11 -> 29705 | J17: =INDEX(D:D,I17) -> 0 | K17: =J17/$J$12 -> 0 | L17: =K17*$L$12 -> 0
C18: 2005-01-01 | D18: 0 | H18: 2 | I18: 29706 | J18: =INDEX(D:D,I18) -> 0 | K18: 0 | L18: 0
C19: 2005-01-01 | D19: 0 | H19: 3 | I19: 29707 | J19: =INDEX(D:D,I19) -> 0 | K19: 0 | L19: 0
C20: 2005-01-01 | D20: 0 | H20: 4 | I20: 29708 | J20: =INDEX(D:D,I20) -> 0 | K20: 0 | L20: 0
C21: 2005-01-01 | D21: 0 | H21: 5 | I21: 29709 | J21: =INDEX(D:D,I21) -> 0 | K21: 0 | L21: 0
C22: 2005-01-01 | D22: 0 | H22: 6 | I22: 29710 | J22: =INDEX(D:D,I22) -> 0 | K22: 0 | L22: 0
C23: 2005-01-01 | D23: 412.3 | H23: 7 | I23: 29711 | J23: =INDEX(D:D,I23) -> 100.38 | K23: 0.10038 | L23: 0.080304
C24: 2005-01-01 | D24: 197.94 | H24: 8 | I24: 29712 | J24: =INDEX(D:D,I24) -> 452.11 | K24: 0.45211 | L24: 0.361688
C25: 2005-01-01 | D25: 549.88 | H25: 9 | I25: 29713 | J25: =INDEX(D:D,I25) -> 691.96 | K25: 0.69196 | L25: 0.553568
C26: 2005-01-01 | D26: 738.09 | H26: 10 | I26: 29714 | J26: =INDEX(D:D,I26) -> 925.04 | K26: 0.92504 | L26: 0.740032
C27: 2005-01-01 | D27: 333.74 | H27: 11 | I27: 29715 | J27: =INDEX(D:D,I27) -> 972.18 | K27: 0.97218 | L27: 0.777744
C28: 2005-01-01 | D28: 610.88 | H28: 12 | I28: 29716 | J28: =INDEX(D:D,I28) -> 1035.22 | K28: 1.03522 | L28: 0.828176
C29: 2005-01-01 | D29: 686.93 | H29: 13 | I29: 29717 | J29: =INDEX(D:D,I29) -> 977.25 | K29: 0.97725 | L29: 0.7818
C30: 2005-01-01 | D30: 450.08 | H30: 14 | I30: 29718 | J30: =INDEX(D:D,I30) -> 881.36 | K30: 0.88136 | L30: 0.705088
C31: 2005-01-01 | D31: 701.02 | H31: 15 | I31: 29719 | J31: =INDEX(D:D,I31) -> 571.82 | K31: 0.57182 | L31: 0.457456
C32: 2005-01-01 | D32: 167.82 | H32: 16 | I32: 29720 | J32: =INDEX(D:D,I32) -> 305.67 | K32: 0.30567 | L32: 0.244536
C33: 2005-01-01 | D33: 66.2 | H33: 17 | I33: 29721 | J33: =INDEX(D:D,I33) -> 32.04 | K33: 0.03204 | L33: 0.025632
C34: 2005-01-01 | D34: 14.57 | H34: 18 | I34: 29722 | J34: =INDEX(D:D,I34) -> 13.77 | K34: 0.01377 | L34: 0.011016
C35: 2005-01-01 | D35: 0 | H35: 19 | I35: 29723 | J35: =INDEX(D:D,I35) -> 0 | K35: 0 | L35: 0
C36: 2005-01-01 | D36: 0 | H36: 20 | I36: 29724 | J36: =INDEX(D:D,I36) -> 0 | K36: 0 | L36: 0
C37: 2005-01-01 | D37: 0 | H37: 21 | I37: 29725 | J37: =INDEX(D:D,I37) -> 0 | K37: 0 | L37: 0
C38: 2005-01-01 | D38: 0 | H38: 22 | I38: 29726 | J38: =INDEX(D:D,I38) -> 0 | K38: 0 | L38: 0
C39: 2005-01-01 | D39: 0 | H39: 23 | I39: 29727 | J39: =INDEX(D:D,I39) -> 0 | K39: 0 | L39: 0
C40: 2005-01-02 | D40: 0
C41: 2005-01-02 | D41: 0
C42: 2005-01-02 | D42: 0
C43: 2005-01-02 | D43: 0
C44: 2005-01-02 | D44: 0
C45: 2005-01-02 | D45: 0
C46: 2005-01-02 | D46: 0
C47: 2005-01-02 | D47: 1450.93
C48: 2005-01-02 | D48: 127.26
C49: 2005-01-02 | D49: 222.53
C50: 2005-01-02 | D50: 770.16
C51: 2005-01-02 | D51: 825.76
C52: 2005-01-02 | D52: 655.51
C53: 2005-01-02 | D53: 969.29
C54: 2005-01-02 | D54: 673.69
C55: 2005-01-02 | D55: 775.89
C56: 2005-01-02 | D56: 273.86
C57: 2005-01-02 | D57: 439.15
C58: 2005-01-02 | D58: 20.63
C59: 2005-01-02 | D59: 0
C60: 2005-01-02 | D60: 0
C61: 2005-01-02 | D61: 0
C62: 2005-01-02 | D62: 0
C63: 2005-01-02 | D63: 0
C64: 2005-01-03 | D64: 0
C65: 2005-01-03 | D65: 0
C66: 2005-01-03 | D66: 0
C67: 2005-01-03 | D67: 0
C68: 2005-01-03 | D68: 0
C69: 2005-01-03 | D69: 0
C70: 2005-01-03 | D70: 0
C71: 2005-01-03 | D71: 443.78
C72: 2005-01-03 | D72: 68.27
C73: 2005-01-03 | D73: 186.11
C74: 2005-01-03 | D74: 981.3
C75: 2005-01-03 | D75: 966.32
C76: 2005-01-03 | D76: 736.41
C77: 2005-01-03 | D77: 701.33
C78: 2005-01-03 | D78: 753.28
C79: 2005-01-03 | D79: 58.51
C80: 2005-01-03 | D80: 63.12
C81: 2005-01-03 | D81: 35.38
C82: 2005-01-03 | D82: 22.17
C83: 2005-01-03 | D83: 0
C84: 2005-01-03 | D84: 0
C85: 2005-01-03 | D85: 0
C86: 2005-01-03 | D86: 0
C87: 2005-01-03 | D87: 0
C88: 2005-01-04 | D88: 0
C89: 2005-01-04 | D89: 0
C90: 2005-01-04 | D90: 0
C91: 2005-01-04 | D91: 0
C92: 2005-01-04 | D92: 0
C93: 2005-01-04 | D93: 0
C94: 2005-01-04 | D94: 0
C95: 2005-01-04 | D95: 409.3
C96: 2005-01-04 | D96: 610.66
C97: 2005-01-04 | D97: 355.43
C98: 2005-01-04 | D98: 941.37
C99: 2005-01-04 | D99: 1063.88
C100: 2005-01-04 | D100: 944.24
C101: 2005-01-04 | D101: 984.03
C102: 2005-01-04 | D102: 976.67
C103: 2005-01-04 | D103: 78.08
C104: 2005-01-04 | D104: 74.66
C105: 2005-01-04 | D105: 558.76
C106: 2005-01-04 | D106: 21.7
C107: 2005-01-04 | D107: 0
C108: 2005-01-04 | D108: 0
C109: 2005-01-04 | D109: 0
C110: 2005-01-04 | D110: 0
C111: 2005-01-04 | D111: 0
C112: 2005-01-05 | D112: 0
C113: 2005-01-05 | D113: 0
C114: 2005-01-05 | D114: 0
C115: 2005-01-05 | D115: 0
C116: 2005-01-05 | D116: 0
C117: 2005-01-05 | D117: 0
C118: 2005-01-05 | D118: 0
C119: 2005-01-05 | D119: 21.39
C120: 2005-01-05 | D120: 85.65
C121: 2005-01-05 | D121: 251.13
C122: 2005-01-05 | D122: 337.98
C123: 2005-01-05 | D123: 693.06
C124: 2005-01-05 | D124: 1070.17
C125: 2005-01-05 | D125: 1075.74
C126: 2005-01-05 | D126: 1039.81
C127: 2005-01-05 | D127: 936.26
C128: 2005-01-05 | D128: 802.97
C129: 2005-01-05 | D129: 597.29
C130: 2005-01-05 | D130: 9.1
C131: 2005-01-05 | D131: 0
C132: 2005-01-05 | D132: 0
C133: 2005-01-05 | D133: 0
C134: 2005-01-05 | D134: 0
C135: 2005-01-05 | D135: 0
C136: 2005-01-06 | D136: 0
C137: 2005-01-06 | D137: 0
C138: 2005-01-06 | D138: 0
C139: 2005-01-06 | D139: 0
C140: 2005-01-06 | D140: 0
C141: 2005-01-06 | D141: 0
C142: 2005-01-06 | D142: 0
C143: 2005-01-06 | D143: 74.94
C144: 2005-01-06 | D144: 26
C145: 2005-01-06 | D145: 462.32
C146: 2005-01-06 | D146: 695.66
C147: 2005-01-06 | D147: 1009.09
C148: 2005-01-06 | D148: 611.74
C149: 2005-01-06 | D149: 777.3
C150: 2005-01-06 | D150: 755.62
C151: 2005-01-06 | D151: 575.37
C152: 2005-01-06 | D152: 40.28
C153: 2005-01-06 | D153: 61.38
C154: 2005-01-06 | D154: 23.8
C155: 2005-01-06 | D155: 0
C156: 2005-01-06 | D156: 0
C157: 2005-01-06 | D157: 0
C158: 2005-01-06 | D158: 0
C159: 2005-01-06 | D159: 0
C160: 2005-01-07 | D160: 0
C161: 2005-01-07 | D161: 0
C162: 2005-01-07 | D162: 0
C163: 2005-01-07 | D163: 0
C164: 2005-01-07 | D164: 0
C165: 2005-01-07 | D165: 0
C166: 2005-01-07 | D166: 0
C167: 2005-01-07 | D167: 317.82
C168: 2005-01-07 | D168: 598.1
C169: 2005-01-07 | D169: 830.57
C170: 2005-01-07 | D170: 892.24
C171: 2005-01-07 | D171: 870.87
C172: 2005-01-07 | D172: 463.06
C173: 2005-01-07 | D173: 403.33
C174: 2005-01-07 | D174: 400.48
C175: 2005-01-07 | D175: 473.91
C176: 2005-01-07 | D176: 443.98
C177: 2005-01-07 | D177: 300.4
C178: 2005-01-07 | D178: 18.26
C179: 2005-01-07 | D179: 0
C180: 2005-01-07 | D180: 0
C181: 2005-01-07 | D181: 0
C182: 2005-01-07 | D182: 0
C183: 2005-01-07 | D183: 0
C184: 2005-01-08 | D184: 0
C185: 2005-01-08 | D185: 0
C186: 2005-01-08 | D186: 0
C187: 2005-01-08 | D187: 0
C188: 2005-01-08 | D188: 0
C189: 2005-01-08 | D189: 0
C190: 2005-01-08 | D190: 0
C191: 2005-01-08 | D191: 1338.31
C192: 2005-01-08 | D192: 67.41
C193: 2005-01-08 | D193: 257.04
C194: 2005-01-08 | D194: 776.22
C195: 2005-01-08 | D195: 389.02
C196: 2005-01-08 | D196: 190.19
C197: 2005-01-08 | D197: 266.48
C198: 2005-01-08 | D198: 292.26
C199: 2005-01-08 | D199: 259
C200: 2005-01-08 | D200: 398.72
C201: 2005-01-08 | D201: 549.92
C202: 2005-01-08 | D202: 23.88
C203: 2005-01-08 | D203: 0
C204: 2005-01-08 | D204: 0
C205: 2005-01-08 | D205: 0
C206: 2005-01-08 | D206: 0
... 4294 more rows

Sheet Cost Slope
D3: y | E3: x
D4: 341 | E4: 4
D5: 541 | E5: 1
D8: Slope | E8: =(D4-D5)/(E4-E5) -> -66.66666667 | G8: (y1-y2)/(x1-x2)
D9: Intercept | E9: =D4-E4*E8 -> 607.6666667 | G9: y1 = a + x1 * Slope
G10: a = x1 * Slope + y1
D11: Test | E11: =E9+E8*E4 -> 341

Sheet Detailed LCOE Calculator
B3: Gas Cost | E3: =#REF! -> 
B4: Technology | E4: 1 | G4: =INDEX(I4:S4,$E$4) -> Solar | I4: Solar | J4: Solar | K4: Solar | L4: Solar
G5: =INDEX(I5:S5,$E$4) -> No Tracking | I5: No Tracking | J5: No Tracking | K5: No Tracking | L5: No Tracking
B6: Real LCOE | G6: =G77 -> 20.91490816 | I6: =I77 -> 20.91490816 | J6: =J77 -> 20.91490816 | K6: =K77 -> 20.91490816 | L6: =L77 -> 18.89983608
C8: Annual Production | E8: Quantity | G8: =INDEX(I8:S8,$E$4) -> 160 | I8: 160 | J8: 160 | K8: 160 | L8: 160
C9: Total Capital Cost | E9: USD | G9: =INDEX(I9:S9,$E$4) -> 50500 | I9: 50500 | J9: 50500 | K9: 50500 | L9: 50500
B11: Carrying Charge Analysis
C12: Project Life | E12: Yr | G12: =INDEX(I12:S12,$E$4) -> 30 | I12: 30 | J12: 30 | K12: 30 | L12: 30
C13: Tax Life | E13: Yr | G13: =INDEX(I13:S13,$E$4) -> 5 | I13: 5 | J13: 5 | K13: 5 | L13: 5
C14: Income Tax Rate | E14: % | G14: =INDEX(I14:S14,$E$4) -> 0.3 | I14: 0.3 | J14: 0.3 | K14: 0.3 | L14: 0.3
C15: Variable Declining Balance Factor (1-St Line) | E15: Factor | G15: =INDEX(I15:S15,$E$4) -> 1 | I15: 1 | J15: 1 | K15: 1 | L15: 1
C16: Debt to Captial | E16: % | G16: =INDEX(I16:S16,$E$4) -> 0.8 | I16: 0.8 | J16: 0.8 | K16: 0.8 | L16: 0.8
C17: Target Equity IRR | E17: % | G17: =INDEX(I17:S17,$E$4) -> 0.075 | I17: 0.075 | J17: 0.075 | K17: 0.075 | L17: 0.075
C18: Cost of Debt | E18: % | G18: =INDEX(I18:S18,$E$4) -> 0.032 | I18: 0.032 | J18: 0.032 | K18: 0.032 | L18: 0.032
C19: After Cost of Debt | E19: % | G19: =INDEX(I19:S19,$E$4) -> 0.0224 | I19: =I18*(1-I14) -> 0.0224 | J19: =J18*(1-J14) -> 0.0224 | K19: =K18*(1-K14) -> 0.0224 | L19: =L18*(1-L14) -> 0.0224
C20: WACC | E20: % | G20: =INDEX(I20:S20,$E$4) -> 0.03292 | I20: =I19*I16+I17*(1-I16) -> 0.03292 | J20: =J19*J16+J17*(1-J16) -> 0.03292 | K20: =K19*K16+K17*(1-K16) -> 0.03292 | L20: =L19*L16+L17*(1-L16) -> 0.03292
C22: Required Project IRR | E22: % p.a. | G22: =INDEX(I22:S22,$E$4) -> 0.03292 | I22: =I20 -> 0.03292 | J22: =J20 -> 0.03292 | K22: =K20 -> 0.03292 | L22: =L20 -> 0.03292
C24: Inflation | E24: % p.a. | G24: =INDEX(I24:S24,$E$4) -> 0.02 | I24: 0.02 | J24: 0.02 | K24: 0.02 | L24: 0.02
C25: Degradation | E25: % p.a. | G25: =INDEX(I25:S25,$E$4) -> 0.005 | I25: 0.005 | J25: 0.005 | K25: 0.005 | L25: 0.005
C26: Tax Shield Value | E26: % | G26: =INDEX(I26:S26,$E$4) -> 0.2725064009 | I26: =tax_dep_shield(I13,I15,I22,I14) -> 0.2725064009 | J26: =tax_dep_shield(J13,J15,J22,J14) -> 0.2725064009 | K26: =tax_dep_shield(K13,K15,K22,K14) -> 0.2725064009 | L26: =tax_dep_shield(L13,L15,L22,L14) -> 0.2725064009
C28: Levelizing Factor with PMT | E28: % | G28: =INDEX(I28:S28,$E$4) -> 0.05296368708 | I28: =PMT(I22,I12,-1) -> 0.05296368708 | J28: =PMT(J22,J12,-1) -> 0.05296368708 | K28: =PMT(K22,K12,-1) -> 0.05296368708 | L28: =PMT(L22,L12,-1) -> 0.05296368708
C29: Capital Recovery Pre-Tax | E29: USD/yr | G29: =INDEX(I29:S29,$E$4) -> 2674.666197 | I29: =I28*I9 -> 2674.666197 | J29: =J28*J9 -> 2674.666197 | K29: =K28*K9 -> 2674.666197 | L29: =L28*L9 -> 2674.666197
C31: Capital Cost Recovery Base | E31: USD/yr | G31: =INDEX(I31:S31,$E$4) -> 2674.666197 | I31: =I28*I9 -> 2674.666197 | J31: =J28*J9 -> 2674.666197 | K31: =K28*K9 -> 2674.666197 | L31: =L28*L9 -> 2674.666197
C32: IRR Adjusted for Degradation | E32: % p.a. | G32: =INDEX(I32:S32,$E$4) -> 0.03811055276 | I32: =(1+I22)/(1-I25)-1 -> 0.03811055276 | J32: =(1+J22)/(1-J25)-1 -> 0.03811055276 | K32: 0.03811055276 | L32: 0.03811055276
C33: Nominal Levelizing Factor with Degradation | E33: % p.a. | G33: =INDEX(I33:S33,$E$4) -> 0.05651077627 | I33: =PMT(I32,I12,-1) -> 0.05651077627 | J33: =PMT(J32,J12,-1) -> 0.05651077627 | K33: =PMT(K32,K12,-1) -> 0.05651077627 | L33: =PMT(L32,L12,-1) -> 0.05651077627
C34: PMT Factor Adjusted for Paying Taxes | E34: % p.a. | G34: =INDEX(I34:S34,$E$4) -> 0.08072968039 | I34: =I33/(1-I14) -> 0.08072968039 | J34: =J33/(1-J14) -> 0.08072968039 | K34: =K33/(1-K14) -> 0.08072968039 | L34: =L33/(1-L14) -> 0.08072968039
C35: PMT Factor Adjust for Tax Depreciation Shield | E35: % p.a. | G35: =INDEX(I35:S35,$E$4) -> 0.05873032574 | I35: =I34*(1-I26) -> 0.05873032574 | J35: =J34*(1-J26) -> 0.05873032574 | K35: =K34*(1-K26) -> 0.05873032574 | L35: =L34*(1-L26) -> 0.05873032574
C37: Construction Timing | E37: Year | I37: 1 | J37: 1 | K37: 1 | L37: 1
C38: Construction Factor | E38: Factor | I38: =FV(I22,I37,-1/I37) -> 1 | J38: =FV(J22,J37,-1/J37) -> 1 | K38: 1 | L38: 1
C39: Capital Cost Recovery with Degradation | E39: USD/yr | G39: =INDEX(I39:S39,$E$4) -> 2965.88145 | I39: =I35*I9*I38 -> 2965.88145 | J39: =J35*J9*J38 -> 2965.88145 | K39: =K35*K9*K38 -> 2965.88145 | L39: =L35*L9*L38 -> 2965.88145
C41: Real IRR | E41: % p.a. | G41: =INDEX(I41:S41,$E$4) -> 0.01266666667 | I41: =(1+I22)/(1+I24)-1 -> 0.01266666667 | J41: =(1+J22)/(1+J24)-1 -> 0.01266666667 | K41: 0.01266666667 | L41: 0.01266666667
C42: Levelizing Factor with Real IRR | E42: % p.a. | G42: =INDEX(I42:S42,$E$4) -> 0.01775544389 | I42: =(1+I41)/(1-I25)-1 -> 0.01775544389 | J42: =(1+J41)/(1-J25)-1 -> 0.01775544389 | K42: 0.01775544389 | L42: 0.01775544389
C43: Real IRR Adjusted for Degradation | E43: % p.a. | G43: =INDEX(I43:S43,$E$4) -> 0.01775544389 | I43: =(1+I41)/(1-I25)-1 -> 0.01775544389 | J43: =(1+J41)/(1-J25)-1 -> 0.01775544389 | K43: 0.01775544389 | L43: 0.01775544389
C44: Levelizing Factor with Real IRR and Degradation | E44: % p.a. | G44: =INDEX(I44:S44,$E$4) -> 0.04328372983 | I44: =PMT(I43,I12,-1) -> 0.04328372983 | J44: =PMT(J43,J12,-1) -> 0.04328372983 | K44: =PMT(K43,K12,-1) -> 0.04328372983 | L44: =PMT(L43,L12,-1) -> 0.04328372983
C46: Adj for Tax on Inc (Divide by (1-t)) | E46: % | G46: =INDEX(I46:S46,$E$4) -> 0.06183389975 | I46: =I44/(1-I14) -> 0.06183389975 | J46: =J44/(1-J14) -> 0.06183389975 | K46: =K44/(1-K14) -> 0.06183389975 | L46: =L44/(1-L14) -> 0.06183389975
C47: Adj for Tax Shield | E47: % | G47: =INDEX(I47:S47,$E$4) -> 0.04498376628 | I47: =I46*(1-I26) -> 0.04498376628 | J47: =J46*(1-J26) -> 0.04498376628 | K47: 0.04498376628 | L47: 0.04498376628
C49: Construction Real | E49: Factor | I49: 1 | J49: 1 | K49: 1 | L49: 1
C50: Final Real Capital Cost Recovery with Degradation | E50: USD/yr | G50: =INDEX(I50:S50,$E$4) -> 2271.680197 | I50: =I47*I9 -> 2271.680197 | J50: =J47*J9 -> 2271.680197 | K50: =K47*K9 -> 2271.680197 | L50: =L47*L9 -> 2271.680197
C53: Total Operating Costs | E53: USD/yr | G53: =INDEX(I53:S53,$E$4) -> 1000 | I53: 1000 | J53: 1000 | K53: 1000 | L53: 700
C55: Inflation Factor for Nominal Cost | E55: Factor | G55: =INDEX(I55:S55,$E$4) -> 1.315051761 | I55: =PV(I41,I12,-1)/PV(I22,I12,-1) -> 1.315051761 | J55: =PV(J41,J12,-1)/PV(J22,J12,-1) -> 1.315051761 | K55: =PV(K41,K12,-1)/PV(K22,K12,-1) -> 1.315051761 | L55: =PV(L41,L12,-1)/PV(L22,L12,-1) -> 1.315051761
C56: Degradation Factor for Nominal Cost | E56: Factor | G56: =INDEX(I56:S56,$E$4) -> 1.403123535 | I56: =PV(I41,I12,-1)/PV(I32,I12,-1) -> 1.403123535 | J56: =PV(J41,J12,-1)/PV(J32,J12,-1) -> 1.403123535 | K56: =PV(K41,K12,-1)/PV(K32,K12,-1) -> 1.403123535 | L56: =PV(L41,L12,-1)/PV(L32,L12,-1) -> 1.403123535
C57: Adjusted Nominal Cost for LCOE Calc | E57: USD/yr | G57: =INDEX(I57:S57,$E$4) -> 1403.123535 | I57: =I56*I53 -> 1403.123535 | J57: =J56*J53 -> 1403.123535 | K57: =K56*K53 -> 1403.123535 | L57: =L56*L53 -> 982.1864744
C59: Degradation Factor for Real Cost | E59: Factor | G59: =INDEX(I59:S59,$E$4) -> 1.074705109 | I59: =PV(I41,I12,-1)/PV(I43,I12,-1) -> 1.074705109 | J59: =PV(J41,J12,-1)/PV(J43,J12,-1) -> 1.074705109 | K59: =PV(K41,K12,-1)/PV(K43,K12,-1) -> 1.074705109 | L59: =PV(L41,L12,-1)/PV(L43,L12,-1) -> 1.074705109
C60: Adjusted Real Cost of LOCE | E60: USD/yr | G60: =INDEX(I60:S60,$E$4) -> 1074.705109 | I60: =I53*I59 -> 1074.705109 | J60: =J53*J59 -> 1074.705109 | K60: =K53*K59 -> 1074.705109 | L60: =L53*L59 -> 752.2935766
B62: LCOE Calculation
C63: Nominal Capital Recovery | E63: USD/yr | G63: =INDEX(I63:S63,$E$4) -> 2965.88145 | I63: =I39 -> 2965.88145 | J63: =J39 -> 2965.88145 | K63: =K39 -> 2965.88145 | L63: =L39 -> 2965.88145
C64: Nomina O&M Cost | E64: USD/yr | G64: =INDEX(I64:S64,$E$4) -> 1403.123535 | I64: =I57 -> 1403.123535 | J64: =J57 -> 1403.123535 | K64: =K57 -> 1403.123535 | L64: =L57 -> 982.1864744
C65: Total Nominal Cost | E65: USD/yr | G65: =INDEX(I65:S65,$E$4) -> 4369.004985 | I65: =SUM(I63:I64) -> 4369.004985 | J65: =SUM(J63:J64) -> 4369.004985 | K65: =SUM(K63:K64) -> 4369.004985 | L65: =SUM(L63:L64) -> 3948.067924
C67: Total Production | E67: kWh | G67: =INDEX(I67:S67,$E$4) -> 160 | I67: =I8 -> 160 | J67: =J8 -> 160 | K67: 160 | L67: 160
C68: LCOE - Nominal | E68: USD/kWh | G68: =INDEX(I68:S68,$E$4) -> 27.30628115 | I68: =IFERROR(I65/I67,FALSE) -> 27.30628115 | J68: =IFERROR(J65/J67,FALSE) -> 27.30628115 | K68: =IFERROR(K65/K67,FALSE) -> 27.30628115 | L68: =IFERROR(L65/L67,FALSE) -> 24.67542453
C69: LCOE - Nominal | E69: USD/MWh | G69: =INDEX(I69:S69,$E$4) -> 27306.28115 | I69: =I68*1000 -> 27306.28115 | J69: =J68*1000 -> 27306.28115 | K69: =K68*1000 -> 27306.28115 | L69: =L68*1000 -> 24675.42453
C71: Capital Recovery - Real | E71: USD/yr | G71: =INDEX(I71:S71,$E$4) -> 2271.680197 | I71: =I50 -> 2271.680197 | J71: =J50 -> 2271.680197 | K71: =K50 -> 2271.680197 | L71: =L50 -> 2271.680197
C72: O&M Cost | E72: USD/yr | G72: =INDEX(I72:S72,$E$4) -> 1074.705109 | I72: =I60 -> 1074.705109 | J72: =J60 -> 1074.705109 | K72: =K60 -> 1074.705109 | L72: =L60 -> 752.2935766
C73: Total Cost | E73: USD/yr | G73: =INDEX(I73:S73,$E$4) -> 3346.385306 | I73: =SUM(I71:I72) -> 3346.385306 | J73: =SUM(J71:J72) -> 3346.385306 | K73: =SUM(K71:K72) -> 3346.385306 | L73: =SUM(L71:L72) -> 3023.973774
C75: Total Production | E75: kWh | G75: =INDEX(I75:S75,$E$4) -> 160 | I75: =I67 -> 160 | J75: =J67 -> 160 | K75: =K67 -> 160 | L75: =L67 -> 160
C76: LCOE - Real | E76: USD/kWh | G76: =INDEX(I76:S76,$E$4) -> 20.91490816 | I76: =IFERROR(I73/I75,FALSE) -> 20.91490816 | J76: =IFERROR(J73/J75,FALSE) -> 20.91490816 | K76: =IFERROR(K73/K75,FALSE) -> 20.91490816 | L76: =IFERROR(L73/L75,FALSE) -> 18.89983608
C77: LCOE - Real | E77: USD/MWh | G77: =INDEX(I77:S77,$E$4) -> 20.91490816 | I77: =I76 -> 20.91490816 | J77: =J76 -> 20.91490816 | K77: 20.91490816 | L77: 18.89983608
C79: LCOE-Real | E79: USD/kW-year
B81: Financing Assumptions
C82: Max Debt to Capital | G82: =INDEX(I82:S82,$E$4) -> 0.85 | I82: 0.85 | J82: 0.85 | K82: 0.85 | L82: 0.85
C83: Interest Rate | G83: =INDEX(I83:S83,$E$4) -> 0.03 | I83: 0.03 | J83: 0.03 | K83: 0.03 | L83: 0.03
C84: Debt Tenor | G84: =INDEX(I84:S84,$E$4) -> 20 | I84: 20 | J84: 20 | K84: 20 | L84: 20
C85: P50 DSCR | G85: =INDEX(I85:S85,$E$4) -> 1.2 | I85: 1.2 | J85: 1.2 | K85: 1.2 | L85: 1.2
C86: P99 DSCR | G86: =INDEX(I86:S86,$E$4) -> 1 | I86: 1 | J86: 1 | K86: 1 | L86: 1
C88: Target Equity IRR | G88: =INDEX(I88:S88,$E$4) -> 0.08 | I88: 0.08 | J88: 0.08 | K88: 0.08 | L88: 0.08
I99: =TRANSPOSE(I4:S4) -> Solar | J99: =TRANSPOSE(J4:T4) -> Solar | K99: =TRANSPOSE(K4:U4) -> Solar | L99: =TRANSPOSE(L4:V4) -> Solar
I100: Solar | J100: Solar | K100: Solar | L100: 0
I101: Solar | J101: Solar | K101: 0 | L101: 0
I102: Solar | J102: 0 | K102: 0 | L102: 0
I103: 0 | J103: 0 | K103: 0 | L103: 0
I104: 0 | J104: 0 | K104: 0 | L104: 0
I105: 0 | J105: 0 | K105: 0 | L105: 0
I106: 0 | J106: 0 | K106: 0 | L106: 0
I107: 0 | J107: 0 | K107: 0 | L107: 0
I108: 0 | J108: 0 | K108: 0 | L108: 0
I109: 0 | J109: 0 | K109: 0 | L109: 0

Sheet Power Curve
C2: Speed | D2: GE | E2: Gamesa | F2: Simens | H2: M/sec | R2: GE | S2: Vestas
C3: 2 | I3: Vestas | J3: GE | R3: power | S3: power | X3: P50 | Y3: 340.3
C4: 3 | D4: 4 | E4: 13 | F4: 30 | H4: 0 | Q4: speed | R4: MW | S4: MW | X4: 0.01 | Y4: 256.1
C5: 4 | D5: 93 | E5: 89 | F5: 126 | H5: 3 | I5: 12 | J5: 1 | P5: hr 1 | Q5: 2.5 | R5: =interpolate_look_up(Q5,H:H,J:J) -> 0 | S5: =interpolate_look_up(Q5,H:H,I:I) -> 0 | X5: Std Dev | Y5: 36.19407095 | Z5: =Y5/Y3 -> 0.1063593034
C6: 5 | D6: 320 | E6: 226 | F6: 282 | H6: 3.5 | I6: 50 | J6: 14 | P6: hr 2 | Q6: 4.1 | R6: =interpolate_look_up(Q6,H:H,J:J) -> 88.56434596 | S6: =interpolate_look_up(Q6,H:H,I:I) -> 116.9106063 | X6: Compute | Y6: =_xlfn.NORM.INV(X4,Y3,Y5) -> 256.1
C7: 6 | D7: 509 | E7: 421 | F7: 514 | H7: 4 | I7: 106 | J7: 77 | P7: hr 3 | Q7: 6.2 | R7: =interpolate_look_up(Q7,H:H,J:J) -> 533.7066412 | S7: =interpolate_look_up(Q7,H:H,I:I) -> 485.1456619 | Y7: =Y6-Y4 -> 0
C8: 7 | D8: 810 | E8: 687 | F8: 836 | H8: 4.5 | I8: 173 | J8: 155 | P8: hr 4 | Q8: 8 | R8: =interpolate_look_up(Q8,H:H,J:J) -> 1130 | S8: =interpolate_look_up(Q8,H:H,I:I) -> 1063
C9: 8 | D9: 1189 | E9: 1043 | F9: 1262 | H9: 5 | I9: 248 | J9: 248 | P9: hr 5 | Q9: 7 | R9: =interpolate_look_up(Q9,H:H,J:J) -> 777 | S9: =interpolate_look_up(Q9,H:H,I:I) -> 705 | X9: P90 | Y9: 0.1
C10: 9 | D10: 1472 | E10: 1464 | F10: 1803 | H10: 5.5 | I10: 338 | J10: 362 | P10: hr 6 | Q10: 9 | R10: =interpolate_look_up(Q10,H:H,J:J) -> 1418 | S10: =interpolate_look_up(Q10,H:H,I:I) -> 1474 | Y10: =_xlfn.NORM.INV(Y9,Y3,Y5) -> 293.9154317
C11: 10 | D11: 1596 | E11: 1793 | F11: 2203 | H11: 6 | I11: 443 | J11: 484 | P11: hr 7 | Q11: 8.1 | R11: =interpolate_look_up(Q11,H:H,J:J) -> 1160.327798 | S11: =interpolate_look_up(Q11,H:H,I:I) -> 1101.333719
C12: 11 | D12: 1620 | E12: 1943 | F12: 2295 | H12: 6.5 | I12: 556 | J12: 618 | P12: hr 8 | Q12: 9.3 | R12: =interpolate_look_up(Q12,H:H,J:J) -> 1473.674494 | S12: =interpolate_look_up(Q12,H:H,I:I) -> 1572.04199
C13: 12 | D13: 1620 | E13: 1987 | F13: 2300 | H13: 7 | I13: 705 | J13: 777 | P13: hr 9 | Q13: 11.2 | R13: =interpolate_look_up(Q13,H:H,J:J) -> 1612.391003 | S13: =interpolate_look_up(Q13,H:H,I:I) -> 1810.397615
C14: 13 | D14: 1620 | E14: 1998 | F14: 2300 | H14: 7.5 | I14: 873 | J14: 952 | P14: hr 10 | Q14: 11.1 | R14: =interpolate_look_up(Q14,H:H,J:J) -> 1610.194005 | S14: =interpolate_look_up(Q14,H:H,I:I) -> 1809.19841
C15: 14 | D15: 1620 | E15: 2000 | F15: 2300 | H15: 8 | I15: 1063 | J15: 1130 | P15: hr 11 | Q15: 2.3 | R15: =interpolate_look_up(Q15,H:H,J:J) -> 0 | S15: =interpolate_look_up(Q15,H:H,I:I) -> 0
C16: 15 | D16: 1620 | E16: 2000 | F16: 2300 | H16: 8.5 | I16: 1269 | J16: 1290 | P16: hr 12 | Q16: 17.2 | R16: =interpolate_look_up(Q16,H:H,J:J) -> 1620 | S16: =interpolate_look_up(Q16,H:H,I:I) -> 1815
C17: 16 | D17: 1620 | E17: 2000 | F17: 2300 | H17: 9 | I17: 1474 | J17: 1418 | P17: hr 13 | Q17: 1.2 | R17: =interpolate_look_up(Q17,H:H,J:J) -> 0 | S17: =interpolate_look_up(Q17,H:H,I:I) -> 0
C18: 17 | D18: 1620 | E18: 2000 | F18: 2300 | H18: 9.5 | I18: 1641 | J18: 1512 | P18: hr 14 | Q18: 1.1 | R18: =interpolate_look_up(Q18,H:H,J:J) -> 0 | S18: =interpolate_look_up(Q18,H:H,I:I) -> 0
C19: 18 | D19: 1620 | E19: 2000 | F19: 2300 | H19: 10 | I19: 1744 | J19: 1570 | P19: hr 15 | Q19: 3 | R19: =interpolate_look_up(Q19,H:H,J:J) -> 1 | S19: =interpolate_look_up(Q19,H:H,I:I) -> 12
C20: 19 | D20: 1620 | E20: 2000 | F20: 2300 | H20: 10.5 | I20: 1792 | J20: 1593 | P20: hr 16 | Q20: 3.2 | R20: =interpolate_look_up(Q20,H:H,J:J) -> 2.873764756 | S20: =interpolate_look_up(Q20,H:H,I:I) -> 21.23717518
C21: 20 | D21: 1620 | E21: 2000 | F21: 2300 | H21: 11 | I21: 1808 | J21: 1608
C22: 21 | D22: 1620 | E22: 2000 | F22: 2300 | H22: 11.5 | I22: 1814 | J22: 1619
C23: 22 | D23: 1620 | E23: 1906 | F23: 2300 | H23: 12 | I23: 1815 | J23: 1620 | P23: Average | R23: =AVERAGE(R5:R20) -> 714.2332533 | S23: =AVERAGE(S5:S20) -> 749.0790736
C24: 23 | D24: 1620 | E24: 1681 | F24: 2300 | H24: 12.5 | I24: 1815 | J24: 1620 | P24: Capacity | R24: =I28 -> 1815 | S24: =J28 -> 1620
C25: 24 | D25: 1620 | E25: 1455 | F25: 2300 | H25: 13 | I25: 1815 | J25: 1620 | P25: Capacity Factor | R25: =R23/R24 -> 0.3935169439 | S25: =S23/S24 -> 0.4623944899
C26: 25 | D26: 1620 | E26: 1230 | F26: 2300 | H26: 13.5 | I26: 1815 | J26: 1620 | P26: Std Dev
H27: 14 | I27: 1815 | J27: 1620 | P27: Percent
H28: 14.5 | I28: 1815 | J28: 1620
H29: 15 | I29: 1815 | J29: 1620
H30: 15.5 | I30: 1815 | J30: 1620
H31: 16 | I31: 1815 | J31: 1620
H32: 16.5 | I32: 1815 | J32: 1620
H33: 17 | I33: 1815 | J33: 1620
H34: 17.5 | I34: 1815 | J34: 1620
H35: 18 | I35: 1815 | J35: 1620
H36: 18.5 | I36: 1815 | J36: 1620
H37: 19 | I37: 1815 | J37: 1620
H38: 19.5 | I38: 1815 | J38: 1620
H39: 20 | I39: 1815 | J39: 1620
P41: 1 | Q41: 5 | R41: 8 | S41: 10
P42: 100 | Q42: 200 | R42: 300 | S42: 400
P43: 1 | Q43: 2 | R43: 3 | S43: 4 | T43: 5 | U43: 6 | V43: 7 | W43: 8 | X43: 9 | Y43: 10
P44: =LOOKUP(P43,41:41,42:42) -> 100 | Q44: =LOOKUP(Q43,41:41,42:42) -> 100 | R44: 100 | S44: 100 | T44: 200 | U44: 200 | V44: 200 | W44: 300 | X44: 300 | Y44: 400
P45: =interpolate_look_up(P43,41:41,42:42) -> 100 | Q45: =interpolate_look_up(Q43,41:41,42:42) -> 118.9207115 | R45: =interpolate_look_up(R43,41:41,42:42) -> 141.4213562 | S45: =interpolate_look_up(S43,41:41,42:42) -> 168.1792831 | T45: =interpolate_look_up(T43,41:41,42:42) -> 200 | U45: =interpolate_look_up(U43,41:41,42:42) -> 228.9428485 | V45: =interpolate_look_up(V43,41:41,42:42) -> 262.0741394 | W45: =interpolate_look_up(W43,41:41,42:42) -> 300 | X45: =interpolate_look_up(X43,41:41,42:42) -> 346.4101615 | Y45: =interpolate_look_up(Y43,41:41,42:42) -> 400

Sheet Egypt Case Study
D2: Lat/Lon | F2: 30.98 | G2: 31.28
D3: Tilt | F3: 6
D4: Azimuth | F4: 162
D6: PVGIS
E8: Horizontal | F8: kWh/m3 | G8: 2104
E9: In Plane | F9: kWh/m3 | G9: 2019.04 | H9: =G9/G8 -> 0.9596197719
E10: Yield | F10: kWh/kWp | G10: 1515.7
E12: PR | G12: =G10/G9 -> 0.7507033045
D14: PVSYST
E15: Horizontal | F15: kWh/m3 | G15: =T84 -> 1913.2
E16: Global Inc | F16: kWh/m3 | G16: =V84 -> 1845.5 | H16: =G16/G9 -> 0.9140482606
E17: Yield | F17: kWh/kWp | G17: =Y86 -> 1302.764977
E19: PR | G19: =G17/G16 -> 0.7059143739
E44: 651
E46: 1000 | F46: kwh/m2
E47: 25
E49: 50
E50: 800
AN51: 1913
E52: 700
E54: 533
E56: =E54/E44 -> 0.8187403994
V82: GlobInc
T83: kWh/m3 | V83: kWh/m3
G84: Lat/Lon | H84: 30.98 | I84: 31.28 | R84: Annual | T84: 1913.2 | V84: 1845.5 | W84: 1656.1 | X84: MWH | Y84: 848.1
G85: Tilt | H85: 6 | R85: Capacity | X85: kWp | Y85: 651
G86: Azimuth | H86: 162 | R86: Yield | S86: kWh/kWp | Y86: =Y84/Y85*1000 -> 1302.764977
R88: PR | Y88: =Y86/V84 -> 0.7059143739

Sheet Solar Resource
E2: PV GIS No Tracking | F2: PV GIS Tracking | G2: Helioscope | H2: PV Syst | I2: World Bank | J2: PVWatts
C3: Global Horizontal | D3: annual kWh/m2 | E3: 1869.58 | F3: =E3 -> 1869.58 | G3: 1904 | H3: 1887.5 | I3: 1892 | J3: =5.53*365 -> 2018.45
C4: In Plane Radiation | D4: annual kWh/m2 | E4: 2315.33 | F4: 3123 | G4: =G3 -> 1904 | H4: 2497.2
C5: Hourly Radiation | D5: Hourly kWh/m2 | E5: =E4/8760 -> 0.2643070776 | F5: =F4/8760 -> 0.3565068493 | G5: =G4/8760 -> 0.2173515982 | H5: =H4/8760 -> 0.2850684932
C6: Hourly Radiation | D6: Hourly w/m2 | E6: =E5*1000 -> 264.3070776 | F6: =F5*1000 -> 356.5068493 | G6: =G5*1000 -> 217.3515982 | H6: =H5*1000 -> 285.0684932
C8: Versus Global | D8: Percent
C10: STC - Max | D10: w/m2 | E10: 1000 | F10: 1000 | G10: 1000 | H10: 1000
C11: Capacity Factor from Resource | D11: %
C14: Capacity | D14: kWp | E14: 1 | F14: 1 | G14: 1 | H14: 344
C15: Energy to Grid | D15: kWh- annual | E15: 1801.63 | F15: 2452 | G15: 1713.453 | H15: 754775
C16: Average Energy | D16: kWh - 1 hr | E16: =E15/8760 -> 0.2056655251 | F16: =F15/8760 -> 0.2799086758 | G16: =G15/8760 -> 0.1955996575 | H16: =H15/8760 -> 86.16152968
C17: Final Cap Factor | D17: % | E17: =E16/E14 -> 0.2056655251 | F17: =F16 -> 0.2799086758 | G17: =G16 -> 0.1955996575 | H17: =H16/H14 -> 0.250469563
C19: Performance Ratio
F27: 2063
F28: =F27/8760 -> 0.2355022831

Sheet Solar Uncertainty
AG2: =AG3/AF8 -> 0
AF3: 0.1 | AH3: =_xlfn.FORMULATEXT(AG3) -> 
AF5: =_xlfn.NORM.DIST(AF10,AF8,AF7,1) -> 0.2503714733 | AH5: =_xlfn.FORMULATEXT(AF5) -> =NORM.DIST(AF10,AF8,AF7,1)
AE7: Variability | AF7: 55.1
AE8: P50 | AF8: 848.1
AE9: P90 | AF9: 777.5 | AI9: 0.25
AE10: P75 | AF10: 811 | AI10: =_xlfn.NORM.INV(AI9,AF8,AF7) -> 810.9356148
AE12: 0.01 | AG12: =AF12/AF8 -> 0
AF15: Std Dev | AG15: MSE
AF16: 0.03
AF17: 0.01
AF18: 0.0051
AF19: 0.012
AF20: 0.055
AF23: =SUM(AF16:AF21) -> 0.1121
AF24: Total Dev
B28: Global horizontal irradiation
C29: Month
D30: January | E30: February | F30: March | G30: April | H30: May | I30: June | J30: July | K30: August | L30: September | M30: October | N30: November | O30: December | P30: TOTAL
C31: 2005 | D31: 106.49 | E31: 118.99 | F31: 173.35 | G31: 191.38 | H31: 243.89 | I31: 245.94 | J31: 249.63 | K31: 231.61 | L31: 195.27 | M31: 155.71 | N31: 115.19 | O31: 94.51 | P31: =SUM(D31:O31) -> 2121.96
C32: 2006 | D32: 99.63 | E32: 108.57 | F32: 166.88 | G32: 192.61 | H32: 236.29 | I32: 249.64 | J32: 246.24 | K32: 228.95 | L32: 195.89 | M32: 153.16 | N32: 110.66 | O32: 95.35 | P32: =SUM(D32:O32) -> 2083.87
C33: 2007 | D33: 104.83 | E33: 104.56 | F33: 172.59 | G33: 193.66 | H33: 225.59 | I33: 246.64 | J33: 249.12 | K33: 230.18 | L33: 187.9 | M33: 162.23 | N33: 113.23 | O33: 100.05 | P33: 2090.58 | AF33: 0.065 | AG33: =AF33*AF8 -> 55.1265
C34: 2008 | D34: 99.56 | E34: 119.05 | F34: 175.68 | G34: 211.72 | H34: 236.17 | I34: 250.13 | J34: 247.17 | K34: 229.04 | L34: 190.27 | M34: 148.45 | N34: 116.2 | O34: 94.69 | P34: 2118.13
C35: 2009 | D35: 110.16 | E35: 121.17 | F35: 171.4 | G35: 198.72 | H35: 226.26 | I35: 250.4 | J35: 249.05 | K35: 233.05 | L35: 189.05 | M35: 152.53 | N35: 118.02 | O35: 96 | P35: 2115.81
C36: 2010 | D36: 109.13 | E36: 118.34 | F36: 180.56 | G36: 206.31 | H36: 239.33 | I36: 242.93 | J36: 246 | K36: 227.28 | L36: 194.13 | M36: 155.58 | N36: 124.34 | O36: 97.01 | P36: 2140.94
C37: 2011 | D37: 103.06 | E37: 116.49 | F37: 170.59 | G37: 184.8 | H37: 224 | I37: 246.92 | J37: 253.78 | K37: 231.6 | L37: 193.1 | M37: 153.8 | N37: 106.87 | O37: 100.94 | P37: 2085.95
C38: 2012 | D38: 96.24 | E38: 111.38 | F38: 168.74 | G38: 211.67 | H38: 236.55 | I38: 248.55 | J38: 248.71 | K38: 233.75 | L38: 193.81 | M38: 154.63 | N38: 105.92 | O38: 100.13 | P38: 2110.08
C39: 2013 | D39: 108.78 | E39: 122.29 | F39: 183.72 | G39: 198.9 | H39: 235.94 | I39: 243.19 | J39: 250.44 | K39: 233.27 | L39: 192.82 | M39: 164.3 | N39: 105.75 | O39: 96.6 | P39: 2136
C40: 2014 | D40: 110.24 | E40: 117.28 | F40: 170.2 | G40: 204.21 | H40: 226.96 | I40: 244.25 | J40: 248.19 | K40: 230.1 | L40: 185.74 | M40: 153 | N40: 109.55 | O40: 98.91 | P40: 2098.63
C41: 2015 | D41: 105.91 | E41: 106.63 | F41: 164.25 | G41: 202.78 | H41: 236.34 | I41: 236.01 | J41: 252.16 | K41: 232.59 | L41: 190.97 | M41: 148.23 | N41: 107.44 | O41: 97.64 | P41: 2080.95
C42: 2016 | D42: 95.96 | E42: 128.35 | F42: 165.96 | G42: 205.51 | H42: 234.92 | I42: 240.08 | J42: 249.05 | K42: 229.89 | L42: 188.81 | M42: 155.98 | N42: 104.81 | O42: 76.35 | P42: 2075.67
C44: Average
C45: Standard Deviation
C46: Coefficient of Variation
C48: P99
C49: %reduction output
B51: Simulated Standard Deviation
C52: Modelling error
C53: Uncertainty related to variation in solar power
C54: Uncertainty related to performance ratio
C55: 1 year uncertainty - Coefficient of Variation
AF56: 0.03 | AG56: =AF56^2 -> 0.0009
C57: Solar yield (kWh/kWp) | AF57: 0.024 | AG57: =AF57^2 -> 0.000576
C58: Standard deviation | AF58: 0.03 | AG58: 0.0009
C59: Probability
C60: P99 | AG60: =SUM(AG56:AG58) -> 0.002376
AG61: =AG60^0.5 -> 0.04874423043
C62: P99 versus P50

Sheet Monthly Change
B3: January | C3: February | D3: March | E3: April | F3: May | G3: June | H3: July | I3: August | J3: September | K3: October | L3: November | M3: December
A4: 2005 | B4: 153.66 | C4: 142.12 | D4: 224.63 | E4: 231.34 | F4: 221.18 | G4: 217.36 | H4: 217.12 | I4: 217.38 | J4: 186.31 | K4: 191.5 | L4: 158.1 | M4: 146.06 | N4: =SUM(B4:M4) -> 2306.76
A5: 2006 | B5: 155.98 | C5: 152.71 | D5: 219.87 | E5: 236.88 | F5: 225.96 | G5: 229.62 | H5: 219.63 | I5: 210.54 | J5: 195.79 | K5: 196.95 | L5: 171.41 | M5: 151.07 | N5: =SUM(B5:M5) -> 2366.41
A6: 2007 | B6: 159.64 | C6: 173.43 | D6: 212.32 | E6: 223.27 | F6: 234.99 | G6: 231.83 | H6: 218.33 | I6: 207.26 | J6: 207.17 | K6: 191.02 | L6: 165.93 | M6: 157.4 | N6: 2382.59
A7: 2008 | B7: 169.17 | C7: 166.93 | D7: 225.59 | E7: 239.79 | F7: 237.58 | G7: 222.55 | H7: 212.41 | I7: 211.56 | J7: 199.93 | K7: 189.13 | L7: 158.98 | M7: 136.64 | N7: 2370.26
A8: 2009 | B8: 172.19 | C8: 170.17 | D8: 198.64 | E8: 238.06 | F8: 235.72 | G8: 208.15 | H8: 214.01 | I8: 214.05 | J8: 199.08 | K8: 190.68 | L8: 143.25 | M8: 138.29 | N8: 2322.29
A9: 2010 | B9: 173.24 | C9: 175.93 | D9: 227.74 | E9: 225.39 | F9: 229.46 | G9: 218.96 | H9: 222.2 | I9: 211.09 | J9: 194.54 | K9: 173.62 | L9: 168.98 | M9: 160.89 | N9: 2382.04
A10: 2011 | B10: 152.81 | C10: 179.9 | D10: 220.52 | E10: 235.19 | F10: 233.82 | G10: 227.62 | H10: 227.84 | I10: 215.34 | J10: 210.25 | K10: 195.36 | L10: 167.22 | M10: 153.46 | N10: 2419.33
A11: 2012 | B11: 164.74 | C11: 160.86 | D11: 211.22 | E11: 206.85 | F11: 244.61 | G11: 219.25 | H11: 222.59 | I11: 212.31 | J11: 185.53 | K11: 193.73 | L11: 159.78 | M11: 156.72 | N11: 2338.19
A12: 2013 | B12: 164.22 | C12: 174.3 | D12: 222.54 | E12: 234.97 | F12: 242.35 | G12: 209.53 | H12: 215.51 | I12: 212.55 | J12: 195.21 | K12: 187.53 | L12: 161.18 | M12: 146.62 | N12: 2366.51
A13: 2014 | B13: 167.53 | C13: 186.37 | D13: 221.28 | E13: 234.74 | F13: 222.46 | G13: 218.64 | H13: 229.28 | I13: 211.13 | J13: 210.59 | K13: 195.2 | L13: 163.88 | M13: 150.57 | N13: 2411.67
A14: 2015 | B14: 152.26 | C14: 164.05 | D14: 209.35 | E14: 238.63 | F14: 247.5 | G14: 235.19 | H14: 222.48 | I14: 213.61 | J14: 200.61 | K14: 186.75 | L14: 162.57 | M14: 150.63 | N14: 2383.63
A15: 2016 | B15: 152.77 | C15: 171.33 | D15: 219.88 | E15: 226.79 | F15: 229.89 | G15: 232.37 | H15: 221.8 | I15: 214.86 | J15: 201.97 | K15: 175.87 | L15: 143.16 | M15: 148.37 | N15: 2339.06
M17: Avg | N17: =AVERAGE(N4:N15) -> 2365.728333
M18: Std Dev | N18: =_xlfn.STDEV.S(N4:N15) -> 33.99191878
M19: Std Dev | N19: =N18/N17 -> 0.01436847938

Sheet Details of Standard Deviation
B2: From the Wind Study
C3: Energy Estimation
E5: 1 yr | F5: 10 yr | G5: 20 yr
D6: 99 | F6: 281.5 | G6: 283.2
D7: 95 | E7: 280.8 | F7: 298.7 | G7: 299.9
D8: 90 | E8: 293.9 | F8: 307.9 | G8: 308.9
D9: 75 | E9: 315.9 | F9: 323.3 | G9: 323.8
D10: 50 | E10: 340.3 | F10: 340.3 | G10: 340.3
D13: P99 vs P50 | E13: =E6/E10 -> 0 | F13: =F6/F10 -> 0.8272112842 | G13: =G6/G10 -> 0.8322068763
D14: % Difference | E14: =1-E13 -> 1 | F14: =1-F13 -> 0.1727887158 | G14: =1-G13 -> 0.1677931237 | J14: % of P50
D16: Std Dev 1 year | E16: 36.2 | F16: GWh/annum | J16: =E16/$E$10 -> 0.1063767264
D17: Std Dev 10 year | E17: 25.3 | F17: GWh/annum | J17: =E17/$E$10 -> 0.07434616515
D18: Std Dev 20 year | E18: 24.6 | F18: GWh/annum | J18: =E18/$E$10 -> 0.07228915663
D20: Verification of P99 | E20: 0.01 | I20: =_xlfn.FORMULATEXT(F20) -> 
B22: Details of Uncertainty
D25: Energy uncertainty
F26: % | G26: [GWh/a] | I26: One Year | J26: 10 Year | K26: 20 Year
D27: Anemometer accuracy | F27: 3.1 | G27: 10.6
D28: Variability of the year period | F28: 1.9 | G28: 6.5
D29: Synthesis from Mast at m | F29: 0.9 | G29: 3
D30: Correlation to long term reference stations | F30: 0.7 | G30: 2.4
D31: Extrapolation to m | F31: 1.3 | G31: 4.3
D33: Substation metering | F33: 0.3 | G33: 1
D34: Wake and topographic calculation | F34: 5.5 | G34: 18.7
D35: Wind rose representative of long term | F35: 0.4 | G35: 1.3
D36: Energy loss factor assumptions | F36: 1.5 | G36: 5.1
D37: Future energy variability year 1 | F37: 8 | G37: 27.3
D38: Future energy variability year 10 | F38: 2.5 | G38: 8.6
D39: Future energy variability year 20 | F39: 1.8 | G39: 6.1
D41: Sum of Squares
D42: Square Root | F42: [GWh/a]
D45: Overall energy uncertainty year | F45: 10.6 | G45: 36.2
D46: Overall energy uncertainty year | F46: 7.4 | G46: 25.3
D47: Overall energy uncertainty year | F47: 7.2 | G47: 24.6
D50: Overall historical wind speed | F50: 4 | G50: 13.7

Sheet Hydrogen
B4: Technology | E4: 1 | I4: Electricity | J4: Electrolyzer | K4: Compression | L4: Storage | M4: Air Separation | N4: Ammonia | O4: Ammonia | P4: Diesel
O5: Ship | P5: Ship
B7: Driver 1 Production
C8: Output Production Measure | I8: kWh | J8: kg H2 | K8: kg H2 | L8: kg H2 | M8: N2 | N8: Ton NH3
C9: Input | I9: kWh Sun | J9: kWh | K9: kg H2 | L9: kg H2 | M9: Air/kWh | N9: N2 and H2
C10: Input Required
C12: Efficiency Measure
D13: Electrolyser efficiency | E13: kWh/kg | J13: 55
D14: Electrolyser Capacity | E14: kW | J14: 3000
D15: Electrolyser Capacity | E15: kg/h | J15: =J14/J13 -> 54.54545455
D16: Water efficiency | E16: litres/kg | J16: 11
D17: Water Used | E17: litres/hr | J17: =J15*J16 -> 600
D19: Load factor | E19: % | J19: 0.96
D20: Hours per Year | E20: Hours | J20: =J19*8760 -> 8409.6
D22: Hydrogen Produced | E22: kg/yr | J22: =J15*J20 -> 458705.4545
D23: Water Use per Year | E23: kg/yr | J23: =J17*J20 -> 5045760
D24: Electricity Use per Year | E24: kg/yr | J24: =J14*J20/1000 -> 25228.8
B27: Driver 2 Capital Cost - Part 1 Electrolyzer
C28: Electrolyzer Cost | E28: USD/kW | J28: 900
C31: Total Costs | E31: USD | J31: =J28*J14 -> 2700000
B33: Driver 3 O&M Cost
C34: Fixed O&M Cost | E34: % of CAPEX | J34: 0.015
C35: Total Fixed O&M Cost | E35: USD/Yr | J35: =J34*J31 -> 40500
C37: Electricity cost | E37: USD/MWh | J37: 30
C38: MW per Hour | E38: MWh | J38: =J14/1000 -> 3
C39: Electricity used | E39: MWh | J39: =J38*J20 -> 25228.8
C40: Electricity cost | E40: USD/yr | J40: =J37*J39 -> 756864
C41: Electricity Cost per kg | E41: USD/kg | J41: =J40/J22 -> 1.65
C43: Water Cost | E43: USD/Litre
C44: Total Litres Used | E44: Litres
C47: Total Costs | E47: USD/yr | J47: =J35+J40 -> 797364
C48: Electrolyzer Cost/kg | E48: USD/kg
B50: Driver 4 Finance
C51: Project Life | E51: Yr | J51: 20
C52: Required Project IRR | E52: % p.a. | J52: 0.07
C53: Inflation | E53: % p.a.
C54: Degradation | E54: % p.a.
C57: Levelizing Factor with PMT | E57: % | J57: =PMT(J52,J51,-1) -> 0.09439292574
C58: Capital Cost Recovery | E58: USD/yr | J58: =J31*J57 -> 254860.8995
B61: LCOH Calculation
C62: Capital Recovery | E62: USD/yr | J62: =J58 -> 254860.8995
C63: O&M Cost | E63: USD/yr | J63: =J47 -> 797364
C64: Total Cost | E64: USD/yr | J64: =SUM(J62:J63) -> 1052224.9
C66: Total Production | E66: kg | J66: =J15*8760*J19 -> 458705.4545
C67: Hydrogen Cost | E67: USD/kWh | J67: =J64/J66 -> 2.293900997
C68: LCOShip | E68: USD/MWh

Sheet CO2

Sheet Simulation
C2: P50 Case | D2: 340.3 | I2: Rows | J2: 2125
D4: Anemometer accuracy | E4: Variability of the year period | F4: Synthesis from Mast at m | G4: Correlation to long term reference stations | H4: Extrapolation to m | I4: Substation metering | J4: Wake and topographic calculation | K4: Wind rose representative of long term | L4: Energy loss factor assumptions | M4: Future energy variability year 1 | N4: Sum
C5: Standard Deviation | D5: 10.6 | E5: 6.5 | F5: 3 | G5: 2.4 | H5: 4.3 | I5: 1 | J5: 18.7 | K5: 1.3 | L5: 5.1 | M5: 27.3
C6: Percent | D6: =D5/$D$2 -> 0.03114898619 | E6: =E5/$D$2 -> 0.01910079342 | F6: 0.008815750808 | G6: 0.007052600646 | H6: 0.01263590949 | I6: 0.002938583603 | J6: 0.05495151337 | K6: 0.003820158684 | L6: 0.01498677637 | M6: 0.08022333235 | N6: MSE
C7: Squared | D7: =D6^2 -> 0.0009702593406 | E7: =E6^2 -> 0.0003648403092 | F7: 7.771746231e-05 | G7: 4.973917588e-05 | H7: 0.0001596662087 | I7: 8.63527359e-06 | J7: 0.003019668822 | K7: 1.459361237e-05 | L7: 0.0002246034661 | M7: 0.006435783054 | N7: =SUM(D7:M7)^0.5 -> 0.106421364
C9: Rand | D9: =RAND() -> 0.5922720591 | E9: =RAND() -> 0.3682534088 | F9: 0.4847414598 | G9: 0.3926255015 | H9: 0.072323643 | I9: 0.6041259915 | J9: 0.3424198863 | K9: 0.9562217376 | L9: 0.5663712462 | M9: 0.459455371
C10: Simulation with Norminv | D10: =_xlfn.NORM.INV(D9,0,D6) -> 0.007269970037 | E10: =_xlfn.NORM.INV(E9,0,E6) -> -0.00642708851 | F10: =_xlfn.NORM.INV(F9,0,F6) -> -0.0003372625769 | G10: -0.001921710644 | H10: -0.01843202 | I10: 0.0007759077312 | J10: -0.02230304729 | K10: 0.006526474934 | L10: 0.002504935243 | M10: -0.008167208603 | N10: =SUM(D10:M10) -> -0.04051104967
D12: =_xlfn.STDEV.P(D16:D2140) -> 0.03106923796 | E12: 0.01937161107 | F12: 0.008695788067 | G12: 0.00706527423 | H12: 0.01292144355 | I12: 0.002984233719 | J12: 0.05476692182 | K12: 0.003897625884 | L12: 0.01524648635 | M12: 0.08158331356
K13: Standard Deviation Simulation | N13: =_xlfn.STDEV.P(N14:N2140) -> 0.1077462874
C14: Simulation Draws
D16: 0.0553918925 | E16: -0.004584022463 | F16: 0.00415350583 | G16: 0.0008544081366 | H16: 0.008216537207 | I16: -0.002860304263 | J16: -0.01886291027 | K16: -0.0004937831371 | L16: -0.007136612109 | M16: 0.005902714269 | N16: -0.03538313291
D17: -0.01331818705 | E17: -0.02144592366 | F17: 0.02065454091 | G17: 0.003362101365 | H17: -0.01893890844 | I17: 0.002030308273 | J17: -0.0769286246 | K17: -2.897991026e-05 | L17: -0.003981608246 | M17: -0.04227465781 | N17: -0.2307848365
D18: 0.002817110354 | E18: 0.01523769266 | F18: -0.01199131391 | G18: -0.009102196248 | H18: -0.01101748883 | I18: 0.004473640816 | J18: 0.02933352388 | K18: 0.003012283773 | L18: -0.002171415052 | M18: -0.08186883064 | N18: -0.149237292
D19: -0.01160547018 | E19: -0.001667519354 | F19: 0.00486081151 | G19: 0.007464849136 | H19: -0.01606862706 | I19: 0.002800373034 | J19: 0.02197557907 | K19: 0.002589476441 | L19: 0.008014057598 | M19: 0.05524635747 | N19: 0.01513336107
D20: 0.03993211256 | E20: 6.361081498e-05 | F20: 0.007235845465 | G20: -0.003782868378 | H20: -0.01866015738 | I20: 0.0007156673326 | J20: 0.01330249954 | K20: 0.002323760053 | L20: -0.02319014661 | M20: 0.1003273165 | N20: -0.05691749918
D21: -0.02209322895 | E21: -0.01006546372 | F21: 0.002705248524 | G21: -0.01034907026 | H21: -0.007659714157 | I21: -0.0003021320581 | J21: -0.0003305055432 | K21: 0.003437058688 | L21: -0.005809056656 | M21: -0.0008890610413 | N21: -0.1662030621
D22: -0.002231359015 | E22: 0.01232034594 | F22: 0.0001407239839 | G22: -0.001964020512 | H22: 0.01790142566 | I22: 0.0008235273194 | J22: 0.03605883634 | K22: -0.001174428824 | L22: -0.02567747187 | M22: 0.02647288322 | N22: -0.1355028477
D23: -0.004364733771 | E23: -0.01764534816 | F23: -0.002953929975 | G23: -0.007708401893 | H23: 0.01745382336 | I23: 0.0008388942383 | J23: 0.03230957963 | K23: 0.004565795098 | L23: -0.01967249526 | M23: -0.1048071403 | N23: 0.07224363967
D24: -0.01156380379 | E24: 0.006277425107 | F24: -0.01463317246 | G24: -0.005012742673 | H24: -0.001502595165 | I24: 0.002226231852 | J24: 0.04899503826 | K24: -8.076926437e-05 | L24: -0.02410814721 | M24: 0.1266751092 | N24: -0.01080568459
D25: -0.01479803937 | E25: 0.01271550816 | F25: -0.008715265942 | G25: 6.705294739e-05 | H25: -0.02144675979 | I25: 0.002088411349 | J25: -0.03705896187 | K25: -0.000965342935 | L25: 0.01518878839 | M25: -0.05313864891 | N25: -0.1121452365
D26: -0.01055516588 | E26: 0.004652451646 | F26: 0.009943706544 | G26: -0.0013887629 | H26: 0.00930544637 | I26: 0.004246157409 | J26: -0.06093574976 | K26: 0.002882847887 | L26: 0.03122519423 | M26: -0.01127767926 | N26: -0.01942901971
D27: 0.001841852388 | E27: 0.007819457396 | F27: -0.0007644370022 | G27: 0.005563830262 | H27: -0.0114866569 | I27: 0.002752167859 | J27: 0.05278400815 | K27: 0.002716241524 | L27: 6.182572797e-06 | M27: -0.05168133623 | N27: -0.02645582917
D28: -0.02503412856 | E28: 0.002377753578 | F28: -0.006516073983 | G28: 0.005575016891 | H28: -0.006670404982 | I28: -0.002094518883 | J28: 0.04332019294 | K28: -0.008581153331 | L28: 0.01331753441 | M28: -0.06030826069 | N28: 0.1435224716
D29: -0.01091794631 | E29: 0.02796223175 | F29: 0.006723032748 | G29: 0.002353630347 | H29: 0.009184034556 | I29: -0.002649592046 | J29: -0.05463209012 | K29: -0.002507241209 | L29: -0.02665581382 | M29: -0.07512836192 | N29: 0.03180038741
D30: -0.008464527074 | E30: 0.006358779711 | F30: -0.001609334338 | G30: 0.006666490643 | H30: 0.02051444426 | I30: 0.003177607353 | J30: -0.03988695246 | K30: -0.002184736746 | L30: -0.009955621385 | M30: -0.03074081931 | N30: 0.0292553241
D31: -0.008375355525 | E31: -0.01622108819 | F31: -0.001984009171 | G31: 0.006032678542 | H31: 0.001376242215 | I31: -0.002429897571 | J31: -0.03406575747 | K31: -0.001069148993 | L31: 0.02069865723 | M31: 0.0344748842 | N31: -0.1287493401
D32: 0.005890671772 | E32: 0.04359100357 | F32: -0.003264330492 | G32: -0.00442613739 | H32: 0.01568725839 | I32: -0.001082323056 | J32: -0.004758470871 | K32: 0.001311195737 | L32: 0.00367909966 | M32: 0.04070193755 | N32: -0.05203738765
D33: -0.0293336839 | E33: 0.01225043887 | F33: 0.005585321054 | G33: 0.005700436392 | H33: -0.003830346376 | I33: 0.0004438359423 | J33: -0.02712867483 | K33: 0.001802377312 | L33: -0.01466782152 | M33: -0.02472784208 | N33: 0.1694566157
D34: 0.04625379858 | E34: -0.01360163059 | F34: 0.003917108945 | G34: 0.002601304528 | H34: 0.007906078602 | I34: 0.001437047745 | J34: 0.06002689484 | K34: 0.006959676965 | L34: -0.02558154652 | M34: -0.1418457428 | N34: -0.1057351044
D35: -0.006569569801 | E35: -0.002079484943 | F35: 0.003878058856 | G35: 0.006555780266 | H35: -0.007996201654 | I35: 4.472416684e-05 | J35: 0.1115638795 | K35: 0.003067594118 | L35: 0.007020782739 | M35: -0.009342642483 | N35: 0.1224237011
D36: 0.03720623603 | E36: 0.01057853389 | F36: -0.02043664485 | G36: -0.007737876813 | H36: -0.006481586506 | I36: 0.0005172223503 | J36: -0.01139981501 | K36: 0.01117790579 | L36: 0.0300460446 | M36: -0.05736786812 | N36: -0.07907979208
D37: -0.002297878329 | E37: -0.00128786426 | F37: -0.01705725868 | G37: 0.00131881838 | H37: -0.01400765444 | I37: 0.005181033214 | J37: -0.01816591798 | K37: 0.002351850467 | L37: 0.01187682619 | M37: -0.0900170518 | N37: 0.1094915337
D38: 0.0579313303 | E38: 0.01797094127 | F38: -0.0164081304 | G38: 0.006325135479 | H38: 0.006260537167 | I38: -7.391470677e-05 | J38: 0.03273266524 | K38: 0.005541284268 | L38: -0.009141707768 | M38: -0.06106164012 | N38: 0.07861384266
D39: 0.005115854448 | E39: -0.03446943545 | F39: -0.01595677383 | G39: 0.0008651709569 | H39: -0.01047586849 | I39: -0.001610314668 | J39: -0.01252672483 | K39: 0.007745296681 | L39: -0.0004994457787 | M39: 0.07091506877 | N39: -0.02796744109
D40: 0.005777868209 | E40: 0.007863457783 | F40: 0.001484663314 | G40: 0.00357446841 | H40: 0.01419070202 | I40: -0.002438714601 | J40: -0.09492040089 | K40: 0.0002971796209 | L40: -0.001548841669 | M40: -0.08274382456 | N40: -0.00729845031
D41: 0.07105354828 | E41: 0.01123851073 | F41: -0.007501410875 | G41: 0.01221964493 | H41: 0.00682044925 | I41: -0.003239903161 | J41: 0.05113879825 | K41: 0.002241728935 | L41: 0.02720563713 | M41: 0.09406325604 | N41: 0.02101307166
D42: 0.003871029728 | E42: -0.002936626324 | F42: -0.01406837357 | G42: 0.01181428185 | H42: -0.0005519585833 | I42: 0.003217222108 | J42: -0.01798999095 | K42: -0.005020070597 | L42: -0.008595906801 | M42: -0.03036666231 | N42: -0.03690004308
D43: -0.03485847336 | E43: 0.009239510965 | F43: -0.0005741944094 | G43: -0.001551098355 | H43: -0.02153248322 | I43: -0.004384049854 | J43: -0.02172643537 | K43: 0.0006122285805 | L43: -0.006464243383 | M43: -0.08140936476 | N43: 0.1209638129
D44: 0.01385866126 | E44: -0.00745494584 | F44: -0.01487215031 | G44: 0.01284145514 | H44: -0.008634723696 | I44: 0.002990851695 | J44: -0.03570331924 | K44: 0.0002392273931 | L44: 0.01305388512 | M44: 0.005957649961 | N44: 0.05426953026
D45: 0.0006003656508 | E45: -0.007667043195 | F45: -0.002085593551 | G45: 0.005573804208 | H45: 0.008078967325 | I45: 0.001020307652 | J45: 0.02021626797 | K45: -0.006494282316 | L45: -0.004109718952 | M45: -0.009313417354 | N45: -0.06111214069
D46: 0.02417475367 | E46: 0.003713822043 | F46: 0.01201985583 | G46: 0.01133160176 | H46: 0.004657689888 | I46: 0.0023572349 | J46: 0.08037255023 | K46: -0.002142791767 | L46: -0.007381696734 | M46: 0.009778688504 | N46: -0.07728471472
D47: 0.0336762369 | E47: 0.005338107819 | F47: 0.001802321414 | G47: -0.00282915311 | H47: -0.01947713172 | I47: 0.002357003983 | J47: -0.01641853253 | K47: -0.0007273596302 | L47: -0.005623862444 | M47: -0.006442911172 | N47: -0.08251701128
D48: -0.009249987211 | E48: 0.0203149021 | F48: -0.005360021438 | G48: 0.0005137007808 | H48: -0.01653350187 | I48: -0.00315258112 | J48: 0.01077048742 | K48: -0.001682987655 | L48: -0.004877402637 | M48: 0.1784252512 | N48: 0.01729020903
D49: 0.04814689276 | E49: -0.01201784507 | F49: 0.006908749825 | G49: 0.006411418459 | H49: -0.01211100003 | I49: 0.001870659607 | J49: -0.06718219129 | K49: 0.0002669286756 | L49: 0.02683599413 | M49: 0.002793119423 | N49: -0.2143859214
D50: -0.0443625312 | E50: 0.0007815814191 | F50: 0.006602447008 | G50: -0.0006977647102 | H50: 0.01578885895 | I50: 0.003217766861 | J50: 0.03312181477 | K50: 0.001241526349 | L50: 0.01377566737 | M50: -0.03056668351 | N50: -0.06015035093
D51: 0.023548479 | E51: -0.02365943658 | F51: -0.00331912854 | G51: -0.003346838784 | H51: 0.01021657564 | I51: -0.005573685169 | J51: -0.01721371088 | K51: -0.01000883487 | L51: -0.03375804519 | M51: 0.09972534145 | N51: -0.2002013986
D52: 0.0002495367365 | E52: -0.03259210944 | F52: -0.003097447265 | G52: 0.005455723238 | H52: 0.00658670218 | I52: -0.001822051741 | J52: 0.001239612366 | K52: 0.002823759043 | L52: -0.00789025063 | M52: -0.207773542 | N52: -0.1097818628
D53: -0.02972744515 | E53: 0.01462209567 | F53: 0.001851429671 | G53: 0.003655270546 | H53: -0.02481422112 | I53: 0.007964868386 | J53: -0.07992123794 | K53: 0.0015965447 | L53: -0.0169345329 | M53: -0.1076552891 | N53: 0.06983137232
D54: -0.009326859163 | E54: 0.04614872117 | F54: -0.006821048318 | G54: -0.001734132979 | H54: -0.003984054145 | I54: -0.001103241349 | J54: -0.006472967919 | K54: 0.001842702209 | L54: 0.004526408085 | M54: -0.08409697339 | N54: 0.06726873602
D55: 0.02069920036 | E55: 0.01897292728 | F55: -0.006908480683 | G55: 0.006273370204 | H55: 0.007531814865 | I55: -0.002497593851 | J55: -0.04636833721 | K55: -0.0004640366257 | L55: 0.00862626845 | M55: -0.06105739881 | N55: -0.115289759
D56: -0.02578488374 | E56: 0.005859543788 | F56: -0.01277322217 | G56: -0.008271444005 | H56: -0.008187194152 | I56: 0.0003206982864 | J56: 0.03622818127 | K56: -0.001021335283 | L56: -0.007977800277 | M56: 0.02232773317 | N56: -0.1673454893
D57: 0.006984149433 | E57: 0.01565890863 | F57: 0.0009097975231 | G57: -0.01334626236 | H57: 0.01669858884 | I57: -0.001791065966 | J57: 0.0137440283 | K57: 0.006746646189 | L57: 0.005686685144 | M57: 0.1224815508 | N57: -0.06565374609
D58: 0.02066989042 | E58: 0.02561683664 | F58: 0.007102753547 | G58: 0.002877887931 | H58: -0.006724016589 | I58: 0.0009323280951 | J58: 0.02277420391 | K58: 0.001940934651 | L58: -0.002689668837 | M58: -0.03207561599 | N58: 0.1161367389
D59: 0.007840798209 | E59: 0.005702694578 | F59: 0.01201666805 | G59: 0.01501385692 | H59: 0.001921168712 | I59: 0.003459581847 | J59: -0.02138158877 | K59: 0.0003273904542 | L59: -0.001284358323 | M59: 0.04134624452 | N59: -0.1706508564
D60: 0.03895301379 | E60: -0.03374847879 | F60: 0.002632112926 | G60: 0.003013200895 | H60: 0.0033692426 | I60: -0.0007396951377 | J60: 0.04627636509 | K60: -0.001829726207 | L60: 0.007291032019 | M60: 0.02685637632 | N60: -0.05969917633
D61: 0.004976801351 | E61: -0.02698820315 | F61: 0.006128528365 | G61: -0.02327761535 | H61: 0.01742636226 | I61: -0.002714663333 | J61: 0.00518597107 | K61: 0.008813624297 | L61: -0.01191763369 | M61: -0.009531717375 | N61: 0.04432219388
D62: -0.02087104797 | E62: 0.01041981869 | F62: 0.008194494638 | G62: 0.002656824689 | H62: -0.01519618784 | I62: -0.002260300422 | J62: -0.06518387394 | K62: -0.001435514762 | L62: -0.01044044422 | M62: 0.1243566493 | N62: -0.02157118901
D63: 0.01238857436 | E63: 0.02897479265 | F63: -0.008378750716 | G63: 0.006013020136 | H63: 0.001514444982 | I63: -0.0002189081518 | J63: 0.03006804185 | K63: -0.004997613517 | L63: 0.001346628819 | M63: -0.06873410578 | N63: -0.002141304295
D64: -0.04116362122 | E64: -0.001161149223 | F64: -0.01577477822 | G64: 0.009787283295 | H64: 0.01885250426 | I64: 0.004640543578 | J64: -0.02238147068 | K64: -0.0004840872561 | L64: -0.02388366745 | M64: -0.08278976639 | N64: 0.01487582214
D65: -0.03971661707 | E65: -0.03084153752 | F65: 0.007690348137 | G65: -0.002947443294 | H65: 0.009193883357 | I65: -0.001604596363 | J65: 0.06078910198 | K65: -0.001416184725 | L65: 0.03721067972 | M65: 0.07485408757 | N65: 0.02433536433
D66: -0.009619019977 | E66: 0.009255522258 | F66: 0.004559948805 | G66: 0.00311336013 | H66: 0.03276710579 | I66: -0.0003718420587 | J66: 0.0646796247 | K66: 0.002145471985 | L66: -0.003206556764 | M66: -0.02956103937 | N66: -0.03056803603
D67: -0.03160789931 | E67: 0.02590337016 | F67: -0.002399196529 | G67: 0.003368153884 | H67: 0.01195920211 | I67: 0.0004392983117 | J67: 0.009005355368 | K67: -0.005704153863 | L67: 0.01150940132 | M67: 0.128538686 | N67: -0.2080965358
D68: 0.01398658933 | E68: -0.006409787474 | F68: -0.004494004224 | G68: -0.004235498877 | H68: -0.00735391964 | I68: 0.00184426597 | J68: -0.06061329325 | K68: -0.0002887072399 | L68: 0.0007250418184 | M68: -0.0510723836 | N68: 0.1133059641
D69: 0.01285391164 | E69: -0.00161327528 | F69: -0.006781502456 | G69: -0.001042616508 | H69: 0.01990405956 | I69: -0.0004354336217 | J69: 0.02750156444 | K69: 0.001985632281 | L69: 0.0003343499112 | M69: -0.2334584289 | N69: 0.04176012611
D70: -0.005105919287 | E70: -0.00364002028 | F70: 0.008641402122 | G70: 0.004079764103 | H70: -0.02133534688 | I70: 0.001536207613 | J70: 0.02169882932 | K70: 0.003783521116 | L70: 0.01594625356 | M70: 0.07129208796 | N70: 0.01262756554
D71: 0.08512053551 | E71: 0.007302197241 | F71: 0.02104529148 | G71: 0.009719050516 | H71: -0.00830745361 | I71: 0.002870561017 | J71: 0.001761446973 | K71: -0.001938612279 | L71: -0.01004654309 | M71: 0.04151165254 | N71: -0.004242266546
D72: 0.0294752265 | E72: -0.02189158755 | F72: 0.004288808738 | G72: 0.005558987084 | H72: 0.02405781224 | I72: 0.002511230071 | J72: 0.03505729788 | K72: 0.001172390971 | L72: 0.01358640235 | M72: -0.06610923556 | N72: 0.1867783182
D73: 0.02598468316 | E73: -0.03539560083 | F73: 0.003826848772 | G73: -0.0002200553104 | H73: -0.02414405212 | I73: -0.004549011007 | J73: -0.0848832275 | K73: 0.001783603606 | L73: 0.01085961854 | M73: -0.03594552402 | N73: 0.111008127
D74: -0.0521206351 | E74: 0.009955288622 | F74: 0.0132481235 | G74: -0.004138055975 | H74: 0.01385403294 | I74: 0.002612373643 | J74: 0.008922725782 | K74: 0.006508610326 | L74: 0.004197952291 | M74: 0.001973499832 | N74: 0.1138533794
D75: 0.02641981308 | E75: -0.01013349417 | F75: 0.003076445534 | G75: 0.005204692425 | H75: 0.002597289937 | I75: 0.005882256319 | J75: 0.02792247165 | K75: 0.005285315246 | L75: 0.0103516828 | M75: -0.0473966216 | N75: -0.09380470951
D76: -0.000110739175 | E76: 0.02469977605 | F76: -0.005264093942 | G76: -0.006647106369 | H76: 0.001062508878 | I76: 0.004190416467 | J76: 0.04205525884 | K76: -0.01016232204 | L76: 0.02787764303 | M76: -0.04164431435 | N76: -0.08146000735
D77: 0.05602297029 | E77: -0.01027741532 | F77: 0.004715157864 | G77: -0.002294955492 | H77: 0.006916565239 | I77: 0.0006250142629 | J77: 0.05636419948 | K77: 0.00476510993 | L77: 0.01543680113 | M77: 0.09365315221 | N77: 0.1365540224
D78: -0.02513722805 | E78: -0.02422683631 | F78: 0.000367425075 | G78: -0.003141327513 | H78: -0.006206046215 | I78: 0.003037969939 | J78: 0.06282623586 | K78: 0.001557602139 | L78: -0.005500854103 | M78: -0.0582739141 | N78: 0.0508502503
D79: -0.004382826813 | E79: -0.01418911899 | F79: 0.00487252727 | G79: 0.00503844116 | H79: 0.0001439480597 | I79: -0.002990749704 | J79: 0.00320346972 | K79: 0.006095922801 | L79: -0.009827246202 | M79: -0.009655182104 | N79: -0.01240192192
D80: -0.004336489559 | E80: 0.002706513908 | F80: 0.01163268801 | G80: -0.004340668341 | H80: -0.008234345517 | I80: -0.001109633977 | J80: 0.08988479853 | K80: 0.001701503199 | L80: 0.01498008993 | M80: 0.1415448035 | N80: -0.07734170403
D81: 0.06003250317 | E81: 0.01540297986 | F81: 0.02297114379 | G81: 0.006154060083 | H81: -0.02310947802 | I81: -0.003669082123 | J81: 0.03183180719 | K81: -0.004722459491 | L81: 0.0002647016293 | M81: 0.0264586238 | N81: -0.04227079429
D82: 0.006945497003 | E82: -0.01241251298 | F82: 0.01983070074 | G82: 0.002284861615 | H82: -0.02189881104 | I82: -0.0009704391642 | J82: 0.04931953467 | K82: -0.0004086220242 | L82: -0.01732379439 | M82: -0.02253374831 | N82: 0.05905618606
D83: -0.04908687518 | E83: -0.01727040695 | F83: 0.003542059304 | G83: 0.01842729713 | H83: 0.01267253701 | I83: -0.001227247725 | J83: -0.03069217463 | K83: -6.611738998e-05 | L83: 0.00847725425 | M83: -0.0892696627 | N83: 0.2146706702
D84: -0.02886191811 | E84: 0.01231356195 | F84: 0.002778841357 | G84: 0.002141776019 | H84: 0.009726484331 | I84: 0.004302707282 | J84: -0.07988639813 | K84: 0.00897075795 | L84: -0.001118863661 | M84: 0.1602410773 | N84: 0.07030175735
D85: -0.02188137281 | E85: -0.001514302336 | F85: -0.007051661177 | G85: 0.0034359445 | H85: 0.01504360008 | I85: -0.0008206439917 | J85: 0.01854441269 | K85: -0.003782378598 | L85: 0.01122857095 | M85: -0.06250540079 | N85: -0.03857596807
D86: 0.002372189302 | E86: -0.02366218728 | F86: -0.01415106449 | G86: -0.01582342808 | H86: 0.00955458968 | I86: 0.0001775739136 | J86: -0.05523373136 | K86: 0.001677409347 | L86: 0.0188637906 | M86: -0.08058644501 | N86: -0.007790476017
D87: 0.004030935539 | E87: -0.01879775792 | F87: 0.000913246104 | G87: 0.00507338476 | H87: -0.01829919272 | I87: 0.003365807328 | J87: -0.09538900432 | K87: -0.002615181703 | L87: -0.004140467271 | M87: -0.06720576076 | N87: -0.00540129149
D88: 0.0001722629257 | E88: 0.01393549249 | F88: 0.002002533004 | G88: 0.003293320804 | H88: 0.004145413608 | I88: 0.0006220241601 | J88: 0.1153259728 | K88: -0.007465609418 | L88: -0.02241043782 | M88: 0.01007706004 | N88: 0.1614363631
D89: 0.02393282547 | E89: 0.006726734131 | F89: -0.006250038332 | G89: 0.002795916421 | H89: 0.0002865939957 | I89: -0.001040432627 | J89: 0.01711004403 | K89: 0.002726226458 | L89: -0.0001779935534 | M89: -0.08489048667 | N89: -0.01358089521
D90: 0.03310996246 | E90: -0.01381501824 | F90: -0.004162610673 | G90: -0.002504439316 | H90: -0.006336742929 | I90: -0.003071626014 | J90: 0.00312534695 | K90: 0.002623720573 | L90: 0.02085926943 | M90: -0.01432069348 | N90: 0.05609532728
D91: -0.06345807761 | E91: 0.02111498822 | F91: 0.00731555864 | G91: -0.005896750788 | H91: 0.005131684512 | I91: -0.0008641225822 | J91: 0.06914531472 | K91: -0.00390264623 | L91: -0.006261151574 | M91: 0.1465642169 | N91: 0.007811149722
D92: 0.007051763985 | E92: 0.02213993711 | F92: 0.004193842574 | G92: 0.006512916451 | H92: 0.008734606012 | I92: 0.001238574566 | J92: -0.04089637795 | K92: -0.003128773866 | L92: 0.01113493232 | M92: -0.05150461478 | N92: -0.03337636686
D93: 0.01383147502 | E93: 0.01036668752 | F93: 0.01543447483 | G93: -0.0004714258932 | H93: 0.009679836343 | I93: 0.004710546748 | J93: -0.06210137044 | K93: -0.001163458151 | L93: -0.02955202778 | M93: -0.1290970054 | N93: -0.02321573288
D94: -0.01811978479 | E94: 0.01531114397 | F94: -0.0002271336375 | G94: -0.005733544681 | H94: 0.0005984785479 | I94: -0.002496719786 | J94: 0.05662143625 | K94: -0.005079641832 | L94: 0.01986805079 | M94: 0.08005459414 | N94: 0.1173784653
D95: -0.0128659407 | E95: -0.001063631846 | F95: 0.01203185342 | G95: 0.0001523715868 | H95: -0.001690204423 | I95: -0.004947778141 | J95: 0.08096608113 | K95: 0.00264104323 | L95: 0.003365154687 | M95: -0.1064170737 | N95: -0.0005633776708
D96: 0.01530500812 | E96: 0.02326089873 | F96: 0.008489909103 | G96: -0.007247801781 | H96: 0.004605572677 | I96: 0.0007735311656 | J96: -0.01706561084 | K96: -0.003843455826 | L96: -0.01613080298 | M96: 0.05423930895 | N96: -0.01332356897
D97: -0.02928191334 | E97: -0.001151126639 | F97: -0.005305453355 | G97: -0.007138870217 | H97: 0.03575969231 | I97: -0.005542136003 | J97: -0.06449510285 | K97: -0.005017999715 | L97: 0.002517768991 | M97: 0.04809680829 | N97: -0.02500245805
D98: -0.01679875724 | E98: 0.02303681083 | F98: 0.006204355351 | G98: 0.00373044966 | H98: -0.01711979738 | I98: 0.001410697979 | J98: -0.1009857916 | K98: -0.007809426728 | L98: 0.005588580951 | M98: -0.02149620341 | N98: -0.1313698546
D99: -0.03402724753 | E99: 0.04944749307 | F99: 0.003284438871 | G99: -0.004081606049 | H99: -0.00344281267 | I99: -0.003955754761 | J99: -0.09492581071 | K99: 0.001054467821 | L99: -0.01395214146 | M99: 0.05792447341 | N99: -0.05128141449
D100: 0.02575000948 | E100: 0.01456663866 | F100: -0.01084968658 | G100: 0.01103886404 | H100: -7.124446018e-05 | I100: 0.003553661919 | J100: 0.02651796997 | K100: 0.001122854788 | L100: 0.007898225967 | M100: -0.06886805849 | N100: 0.0947508914
D101: 0.01731708689 | E101: -0.02459426289 | F101: 0.01276150952 | G101: -0.008727499343 | H101: -0.0141977509 | I101: -0.0003871464178 | J101: 0.03506530378 | K101: -0.006944147601 | L101: 0.01947113417 | M101: -0.06997284719 | N101: 0.1770266889
D102: -0.02826999268 | E102: 0.00709421383 | F102: 0.01925719369 | G102: -0.007945633151 | H102: 0.01994488278 | I102: -0.003974798467 | J102: 0.003760679332 | K102: 0.002665758764 | L102: 0.005068277067 | M102: 0.001931575166 | N102: 0.08217816995
D103: 0.0002285160826 | E103: -0.002200008208 | F103: -7.47734298e-05 | G103: -0.005565108504 | H103: 0.005419406838 | I103: 0.002990936503 | J103: 0.1749135892 | K103: -0.001792510225 | L103: -0.009096959115 | M103: 0.2381872796 | N103: -0.05491329624
D104: 0.01046189325 | E104: -0.02015010209 | F104: 0.003482333176 | G104: 0.006817948112 | H104: 0.00857045149 | I104: 0.001602305168 | J104: 0.02335196887 | K104: -0.0001332862868 | L104: 0.01056386577 | M104: -0.08622680137 | N104: -0.1505994154
D105: 0.01502274003 | E105: 0.01373953491 | F105: -0.001210694433 | G105: -0.0008483518001 | H105: -0.01457915442 | I105: -0.003351032746 | J105: -0.1024239298 | K105: -0.0005211248934 | L105: -0.005059531624 | M105: -0.01705602954 | N105: 0.04814221016
D106: -0.01864700901 | E106: 0.01668269445 | F106: -0.007576704813 | G106: -0.007712808561 | H106: 0.002723266114 | I106: 0.0009447498303 | J106: 0.080604821 | K106: 0.005485216667 | L106: -0.004148251216 | M106: 0.08976360102 | N106: -0.04223243392
D107: 0.01198905493 | E107: 0.02144851478 | F107: 0.006894668661 | G107: 0.00857447445 | H107: 0.01251495916 | I107: -0.002038187359 | J107: -0.03775534754 | K107: -0.001217486867 | L107: 0.007640895514 | M107: -0.08038654067 | N107: -0.03747551999
D108: -0.001657710586 | E108: -0.02927629408 | F108: 0.02114727366 | G108: -0.006305233529 | H108: -0.02593239018 | I108: -0.002173498546 | J108: 0.0598500916 | K108: 0.001494940954 | L108: 0.01937634134 | M108: -0.07696838258 | N108: 0.09698206316
D109: -0.005936328475 | E109: 0.004996533464 | F109: -0.0130716005 | G109: 0.003011020069 | H109: 0.006160783318 | I109: -0.002383851619 | J109: 0.01998547508 | K109: 0.00110383129 | L109: -0.008518792233 | M109: 0.03789710202 | N109: -0.08513958676
D110: 0.02316903038 | E110: 0.0130764401 | F110: 0.01688696706 | G110: -0.003644674855 | H110: -0.00438915495 | I110: 0.002440539461 | J110: 0.05602622513 | K110: -0.003133859628 | L110: 0.01790039034 | M110: 0.0002510824794 | N110: -0.008420042666
D111: -0.04049280481 | E111: -0.0268471358 | F111: 0.009340467329 | G111: -0.003232288918 | H111: -0.007982958882 | I111: 0.004976468333 | J111: 0.1534726898 | K111: -0.0006162649345 | L111: -0.02416885902 | M111: -0.0721838889 | N111: 0.09509012151
D112: 0.01823367919 | E112: 0.006923634307 | F112: 0.006376983761 | G112: 0.002979946679 | H112: -0.008946518719 | I112: -0.002768035508 | J112: 0.00139638872 | K112: 0.001099097209 | L112: -0.03230384964 | M112: 0.008655958918 | N112: -0.1001469718
D113: 0.006245118634 | E113: 0.01489412539 | F113: -0.006364168824 | G113: -0.002847409998 | H113: -0.009251894356 | I113: -0.006373348883 | J113: -0.0161596667 | K113: 6.065763433e-05 | L113: 0.01965183365 | M113: 0.01041147989 | N113: 0.1807536925
D114: 0.005989397531 | E114: 0.01151459329 | F114: 0.005775909219 | G114: -0.001681298778 | H114: -0.01286532717 | I114: 0.002583985417 | J114: 0.09994888423 | K114: -0.006494472109 | L114: -0.01450978043 | M114: -0.04621729444 | N114: 0.1085895573
D115: 0.01845518957 | E115: -0.02444795148 | F115: -0.00247187253 | G115: 0.001080908975 | H115: 0.01330146451 | I115: -0.0006657779524 | J115: 0.0006126859888 | K115: -0.000142346358 | L115: 0.003852236057 | M115: -0.01059437039 | N115: -0.1023653292
D116: 0.02318941641 | E116: -0.02667268948 | F116: 0.005424561628 | G116: -0.009860786046 | H116: -0.01519596596 | I116: 0.002620430755 | J116: 0.08332619636 | K116: 0.0002663022008 | L116: -0.01770058918 | M116: -0.05832904369 | N116: 0.01519637821
D117: -0.007462588516 | E117: 0.006529126499 | F117: -0.001665372812 | G117: -0.003480982479 | H117: 0.008803858234 | I117: -0.001505267328 | J117: 0.04661203547 | K117: -0.0002494951742 | L117: -0.03381983119 | M117: -0.07703581947 | N117: -0.03300283192
D118: 0.008544830202 | E118: 0.001726577447 | F118: 0.004322562366 | G118: 0.008480033912 | H118: -0.00377892099 | I118: 0.005407495668 | J118: -0.003172126467 | K118: 0.002090300911 | L118: -0.03171202057 | M118: 0.08400551142 | N118: 0.0762906903
D119: -0.01918924983 | E119: 0.01628575401 | F119: 0.006860160369 | G119: 0.005541561504 | H119: 0.003159470945 | I119: -0.001537690385 | J119: 0.1063919437 | K119: -0.001262686168 | L119: 0.009835355765 | M119: -0.04745607708 | N119: -0.001191336263
D120: 0.01341343839 | E120: 0.01856822141 | F120: 0.003201533409 | G120: 0.001888261317 | H120: 0.00439893539 | I120: 0.001191813221 | J120: -0.1192618287 | K120: -0.0009675183415 | L120: -0.01681048459 | M120: -0.005332213107 | N120: 0.0812975884
D121: 0.005737839537 | E121: 0.0003385357769 | F121: 0.006134470032 | G121: 0.0004759606187 | H121: -0.01333569413 | I121: -0.00420808292 | J121: 0.07864452755 | K121: 0.005037110056 | L121: 0.01908276534 | M121: 0.02114628553 | N121: -0.05592522205
D122: 0.03127656882 | E122: -0.0008030621226 | F122: 0.01615157207 | G122: 0.01279044733 | H122: 0.01081814105 | I122: 0.002022805363 | J122: -0.03873914027 | K122: 0.001006053989 | L122: 0.006507940973 | M122: 0.2061079091 | N122: 0.01434632103
D123: 0.006838749466 | E123: 0.02100679092 | F123: -0.004412115407 | G123: -0.004367653024 | H123: -0.01229278498 | I123: -0.006930415373 | J123: 0.04440379806 | K123: -0.002221933854 | L123: 0.01128163657 | M123: 0.03059294902 | N123: 0.03924558203
